Workbook

Sheet Quick Guide
A1: 1. INTRODUCTION to the DVM
A2: This Development Viability Model (“DVM”) is a toolkit designed to create a financial appraisal of primarily residential and mixed-use development projects, in the context of understanding whether a project is “viable” in Town Planning terms. It is for use in that context only; and is NOT intended to provide or support a formal valuation of any kind.
A3: Each copy of the DVM is limited to use on the particular Site that is described by the Address, the Local Planning Authority name and the Site reference details that are shown on the Project sheet. It should NOT be used for a different Site.
A4: If your development project involves any non-residential or investment property, you should read the Main User Guide that can be downloaded from an LPA’s website. This Shorter Guide is aimed at promoters of relatively straightforward housing development sites (up to 5 or 6 acres).
A5: Before starting to appraise a development project using the DVM, save a copy of the file you have been sent by the Local Planning Authority in a safe place, as a basic template that you can return to, if the need arises. Save subsequent copies/versions of the project appraisal you are creating with a different filename to the one used for the original template, to avoid over-writing the original. Check each time that you are saving it as a macro-enabled workbook (*.xlsm).
A6: It is good practice to save the file you are working on at regular intervals as you build your Appraisal. It is also important to do this before you use any of the “macro” buttons in the DVM, so that you can easily retrieve that previous version of the file, should you need/want to do so. Those buttons, at the top of most worksheets in the DVM, create/open extra sheets that enable you to tailor an Appraisal to the level of simplicity or complexity that you require.
A7: The DVM also offers a “Help” feature on most of its worksheets. The button marked with a “?” at the top right-hand corner of a sheet opens an abbreviated series of guidance notes/reminders and “tips” in a separate window. Some individual cells will also display a short instruction or cautionary note when you lock your cursor on them.
A8: Additional support/guidance is also available on each Local Planning Authority’s Viability webpage, in the form of short videos/screencasts that will talk you through the different steps in both simple and more complex development scenarios.
A9: Users are recommended to select the “Show Tabs” option on the Excel ribbon (at the top of your screen, top right-hand corner). This will hide the Excel “Commands”, which are not needed to run the DVM, giving more space on your screen for the essential information in each worksheet.
A10: Other useful/important tips for using the DVM are as follows:
A11:  | B11: The default setting on the DVM’s cashflow is 5 years, but this can be extended (up to a maximum of 30 years) on the Project sheet, where necessary.
A12:  | B12: The DVM allows you to break a development scheme into “elements”. If the build period for an individual residential element is more than 5 years, you can only apply a linear distribution of its Build Costs to the Cashflow (S-curve and Custom options will not be available).
A13:  | B13: Formulae within cells, and the proper functioning of the DVM’s macros, are protected by a series of “error” messages. If one of these appears on your screen, follow whatever instructions are in the message carefully. If there is no specific instruction, click “OK” to clear the message from your screen, and consider what incorrect action might have caused the message to appear; consulting the Main User Guide or the “Help” notes within the DVM, as necessary.
A14:  | B14: Each worksheet within the DVM can be printed, if required, using the normal Excel protocol. Each sheet has certain pre-defined settings (including Page Breaks), which can be previewed in the usual way. They can also be changed by the user, if required.
A15: The following colour conventions are used throughout the DVM:
A16:  | B16: Input cells, where entries can be made by the user, have a pale-yellow background.
A17:  | B17: Cells already containing an entry with a blue font are not “locked”; so the default value that is in them can be overwritten by the user, if required.
A18:  | B18: Cells with a grey background, and some cells with a plain white background, are “locked” so that the user cannot make an entry (or inadvertently overwrite any formulae that those cells contain).
A19:  | B19: Sometimes the background colour to a pale-yellow (unlocked) cell will change to white, indicating that the DVM has “locked” that cell. This will only happen as a result of particular choices that the user may have made, and is a proper part of the way in which the DVM works.
A20:  | B20: Cells with an orange background, containing text that is supplemented with an asterisk (*), are fields where an entry by the user is “mandatory” – the DVM will not operate, and will generate an “error” message, if a macro is activated before all mandatory fields have been completed.
A21: The DVM has a number of “default” settings. Most are listed in Cols J to L of the Project sheet, and can be changed by the user, if required. Their main purpose is to save having to make more/repeat entries on a number of worksheets within each appraisal. Please check that the default settings are appropriate to your appraisal; and if they are, there is no need to change them.
A22: 2. Starting an Appraisal
A23: When you first open the DVM file, you see three worksheets – a Project sheet, into which you will enter a basic outline of your development proposal; a sheet labelled “SDT”, containing a number of standard dwelling types (to which you can add other dwelling types of your own, if you wish); and a sheet containing costs taken from the Welsh Government’s Acceptable Cost Guidance for affordable housing delivery and Housing Grant.
A24: To start creating an Appraisal, select the Project worksheet and complete all fields marked with an asterisk (*) alongside text on an orange background. These are “mandatory” fields. This first step in creating your Appraisal is described in more detail in section 2 of the Main User Guide.
A25: In this Shorter Guide, it has been assumed that there is no Commercial or Investment property in your development project; so that row 18 and cell H28 on the Project sheet will be left blank.
A26: After completing the Project sheet, you will define your mix of dwelling types on a “Resi Overview” sheet, created when you click the “Validate and Proceed” button on the Project sheet. On the Resi Overview sheet, you can sub-divide your development (if desired) into a number of “Resi Elements”; corresponding to distinct phases of the whole development, or different types of dwelling (e.g. flats or bungalows as opposed to 2- or 3-storey houses). For many smaller developments, one “element” may suffice. The DVM is flexibly designed to make the Appraisal process as simple or as complex as the user requires. Read section 6 of the Main User Guide for a fuller explanation of the purpose in creating separate Resi Elements. If you want to use a different Build Cost rate, or to apply a different Build or Sales Programme, to particular parts of your project, you will need to subdivide the scheme into separate elements.
A27: Build Costs, as well as Build and Sales Periods, are defined by the user on the Resi Element sheets, which the DVM creates from the Resi Overview sheet.
A28: Build Cost in this context is what is often known as “plot cost”, i.e. the basic cost of constructing a dwelling, including normal foundations/substructure and superstructure; as well as site prelims and a main contractor’s allowance for overheads and profit. It does not include any other development costs, such as those associated with external site works, estate roads, sewers or landscaping; nor does it include any allowance for fees or contingencies. Separate allowance(s) will be made for these “external costs” on the “Costs” sheet (see below).
A29: The DVM allows you to determine the Build Period for your development, either according to the estimated rate of open market sales (being tied therefore to the Sales Period); or by specifying a set number of months. There is also flexibility on the Resi Element sheets to vary the monthly rate of sales from the average annual rate that the user has initially specified on the Project sheet.
A30: When the “Validate and Proceed” button is activated on the Project sheet, the DVM also creates/ reveals other worksheets entitled “Land”, “Costs”, “Appraisal” and “Cashflow”. These are used as follows:
A31:  | B31: The “Land” sheet records the total price to be paid for the development site; calculates the LTT (Land Transaction Tax) that is payable on that price; and allows you to add any other costs that may be appropriate to the land purchase, including legal and agents’ fees. It also allows you to split the land purchase into tranches, where that is applicable.
A32:  | B32: The “Costs” sheet is where all development costs apart from land and basic build/plot costs are input and summarised. Such costs include normal external site costs, as well as any abnormal site costs associated with the development. Community infrastructure (CIL and/or s.106 obligations) are also recorded here, as well as fees and contingency sums relating to construction costs; and marketing, letting and sales-related costs. A final section on the Costs sheet is for any grants or subsidies to be recorded (these will appear on a separate line in the final scheme appraisal).
A33:  | B33: The “Cashflow” sheet is the DVM’s “engine room”, where all data from the various input sheets is collected to create a monthly cashflow for the development as a whole. From this sheet, the cost of financing the development project is calculated. Total revenue and costs for the development are then transferred to, and summarised on, the Appraisal worksheet.
A34:  | B34: The “Appraisal” sheet pulls together all the user’s inputs to the Cashflow and summarises them in a single sheet, showing how the resultant development profit compares with a target margin that can be set by the user. This is the DVM’s principal output sheet. It also gives the user access to Sensitivity Tables to show the impact on development profit of incremental variations in the 3 core inputs to the Appraisal. It also has a facility for testing the impact of percentage changes to 7 separate factors in the Appraisal, individually or collectively.
A35: General Caveat and Disclaimer
A36: The DVM is written to work with Microsoft Excel for Office 365 (versions 2016 – 2019) running on Microsoft Windows. It is NOT written for use with Excel online or tablet/phone apps. Although as much as possible has been done to achieve backward compatibility with 2013 and 2010 versions of Excel, we CANNOT GUARANTEE that the Model will run correctly on these older versions. In addition, we cannot be responsible for issues arising from the installation and configuration of Office 365/Excel on a stand-alone PC/Laptop or on a corporate network maintained by an IT/IS Department. If you experience problems, please email admin@burrows-hutchinson.com, and we will at least see whether we can identify a simple solution. Depending on the nature of the support request, please note that charges may be incurred.
A37: If the Project sheet does not contain the Site Address, the Local Planning Authority name and Site reference relevant to the Site Address then use of this model is an infringement of copyright, held jointly by the Local Planning Authorities who commissioned it and Burrows-Hutchinson Ltd. © 2019/20 All rights reserved. The DVM is produced without warranty of any kind, either express or implied, respecting its contents; including, but not limited to, implied warranties for quality, performance or fitness for any particular purpose. The author shall not be liable to the user or any person or entity with respect to any liability, loss or damage caused or alleged to be caused directly or indirectly by this copy of the DVM.

Sheet Project
A1: Development Viability Model
B2: Public Version May 2021
C3: Version 16 | G3: 10
G4: =ResiCreated -> Yes
J5: A green background to any of the settings below indicates the default has been changed on another sheet.
A6: NB: Fields marked * are mandatory
A7: Site Name * | B7: Land North of A466 Llandogo
A8: Site Address * | B8: Land adjacent Parklands, Llandogo | J8: DEFAULT SETTINGS
A9: Postcode | J9: Land Acquisition Fees | K9: 0.015 | L9: Legal & Agency
A10: Local Planning Authority * | B10: Monmouthshire County Council | F10: LPA Site Reference * | G10: CS/0101 | J10: External Site Costs | K10: 0.15 | L10: of Build Costs
A11: Planning Reference (if applicable) | J11: Construction Fees & Contingency
A12: Scheme Description * | B12: Greenfield | J12: Resi Build | K12: 0.06
A13: Date of Appraisal * | B13: 2021-08-26 | C13: DD/MM/YYYY format | J13: Comm/Inv Build | K13: 0.05
A14: Version | J14: Other Construction | K14: 0.1
A15: Author & Organisation * | B15: John-Rhys Davies MRTPI Garry N Smith MRICS | J15: Contingency | K15: 0.05 | L15: on Total Costs
A16: Total Gross Site Area (hectares) * | B16: 0.63 | C16: =IF(GSAh<>"",IF(NDAh>GSAh,"Error",""),"") ->  | D16: 1.55673 | E16: acres Enter either | G16: Net/Gross | J16: Lettings, Sales and Marketing
A17: Total Net Developable Area (hectares) * | B17: 0.41 | D17: 1.01311 | E17: acres hectares or acres | G17: %age | H17: =IF(ISERROR(B17/B16),"",B17/B16) -> 0.6507936508 | J17: Agent's letting fee | K17: 0.1 | L17: of Annual Rent
A18: Net Developable Area (Commercial/Investment) | C18: =IF(CommNDAh<>0,IF(CommNDAh>NDAh,"Error",""),"") ->  | E18: acres | G18: Total Comm/Inv GIA m² | J18: Legal letting fees | K18: 0.05 | L18: of Annual Rent
A19: Total No. of Dwellings * | B19: 10 | C19: Enter 0 if non-residential | J19: Agent's resi sales | K19: 0.01 | L19: of Market Value
A20: ACG Band (for affordable housing) * | B20: 4 | D20: Social Rent | E20: 0.42 | G20: Intermediate | H20: 0.7 | J20: Legals on OM sales | K20: 650 | L20: per dwelling
A21: Max. Residential Sales Rate (large sites) * | B21: 10 | J21: Legals on Affordable | K21: 650 | L21: per dwelling
A22: Estate Housing Sales Rate (per outlet) * | B22: 10 | C22: units p.a. | E22: £/net ha | G22: £/net ac | J22: Finance Costs and Funding
A23: Site Value * | B23: 800000 | E23: =IF(ISERROR(B23/B17),"",B23/B17) -> 1951219.512 | G23: =IF(ISERROR(B23/D17),"",B23/D17) -> 789647.7184 | J23: Debit Interest | K23: 0.06 | L23: p.a.
A24: Valuation basis * | B24: Market Comparables | J24: Credit Interest | K24: 0.005 | L24: p.a.
A25: Any note on valuation | B25: Plots HA @ £10K per plot, MV at 25% MV | J25: Debt Funding Fees (%) | L25: (if applicable)
A26: Land Purchase Date (if applicable) | C26: MM/YYYY format | J26: Borrowing | K26: 0.6 | L26: of Capital Employed
A27: Development Start Date * | B27: 2024-08-01 | C27: MM/YYYY format | G27: Max Cashflow period (years) * | H27: 5 | J27: Repay target | K27: 1 | L27: of Borrowing
A28: Select Residential, enter Commercial or both for Mixed Use * | G28: No. of Commercial/Investment Elements | J28: Equity | K28: =1-K26 -> 0.4 | L28: of Capital Employed

Sheet SDT
A1: Standard Dwelling Types
A3: Dwelling Type | B3: Include | C3: SDT Code | D3: Class | E3: Bed/Occ | F3: Levels | G3: GIA m² | H3: GIA ft² | I3: SO | J3: Description/Developer
A4: 1-bed flat | C4: N1a | D4: Flat | E4: 1b2p | F4: 1 | G4: 50 | H4: =IF(G4>0,G4*10.764262,"") -> 538.2131 | I4: =LEFT(C4,1) -> N | J4: Nationally described space standard
A5: 2-bed flat | C5: N2a | D5: Flat | E5: 2b3p | F5: 1 | G5: 61 | H5: =IF(G5>0,G5*10.764262,"") -> 656.619982 | I5: =LEFT(C5,1) -> N | J5: Nationally described space standard
A6: 2-bed flat | C6: N2b | D6: Flat | E6: 2b4p | F6: 1 | G6: 70 | H6: =IF(G6>0,G6*10.764262,"") -> 753.49834 | I6: =LEFT(C6,1) -> N | J6: Nationally described space standard
A7: 2-bed terraced | C7: N2c | D7: Hse | E7: 2b4p | F7: 2 | G7: 83 | H7: =IF(G7>0,G7*10.764262,"") -> 893.433746 | I7: =LEFT(C7,1) -> N | J7: Nationally described space standard
A8: 3-bed flat | C8: N3a | D8: Flat | E8: 3b4p | F8: 1 | G8: 74 | H8: =IF(G8>0,G8*10.764262,"") -> 796.555388 | I8: =LEFT(C8,1) -> N | J8: Nationally described space standard
A9: 3-bed flat | C9: N3b | D9: Flat | E9: 3b5p | F9: 1 | G9: 86 | H9: =IF(G9>0,G9*10.764262,"") -> 925.726532 | I9: =LEFT(C9,1) -> N | J9: Nationally described space standard
A10: 3-bed terraced | C10: N3c | D10: Hse | E10: 3b4p | F10: 2 | G10: 86 | H10: =IF(G10>0,G10*10.764262,"") -> 925.726532 | I10: =LEFT(C10,1) -> N | J10: Nationally described space standard
A11: 3-bed detached | C11: N3d | D11: Hse | E11: 3b5p | F11: 2 | G11: 96 | H11: =IF(G11>0,G11*10.764262,"") -> 1033.369152 | I11: =LEFT(C11,1) -> N | J11: Nationally described space standard
A12: 3-bed townhouse | C12: N3e | D12: Hse | E12: 3b5p | F12: 2.5 | G12: 102 | H12: =IF(G12>0,G12*10.764262,"") -> 1097.954724 | I12: =LEFT(C12,1) -> N | J12: Nationally described space standard
A13: 4-bed detached | C13: N4a | D13: Hse | E13: 4b5p | F13: 2 | G13: 100 | H13: =IF(G13>0,G13*10.764262,"") -> 1076.4262 | I13: =LEFT(C13,1) -> N | J13: Nationally described space standard
A14: 4-bed townhouse | C14: N4b | D14: Hse | E14: 4b5p | F14: 2.5 | G14: 106 | H14: =IF(G14>0,G14*10.764262,"") -> 1141.011772 | I14: =LEFT(C14,1) -> N | J14: Nationally described space standard
A15: 4-bed detached | C15: N4c | D15: Hse | E15: 4b6p | F15: 2 | G15: 107 | H15: =IF(G15>0,G15*10.764262,"") -> 1151.776034 | I15: =LEFT(C15,1) -> N | J15: Nationally described space standard
A16: 4-bed townhouse | C16: N4d | D16: Hse | E16: 4b6p | F16: 3 | G16: 113 | H16: =IF(G16>0,G16*10.764262,"") -> 1216.361606 | I16: =LEFT(C16,1) -> N | J16: Nationally described space standard
A17: 1-bed flat | C17: A1a | D17: Flat | E17: 1b2p | F17: 1 | G17: 46 | H17: =IF(G17>0,G17*10.764262,"") -> 495.156052 | I17: =LEFT(C17,1) -> A | J17: ACG dwelling type
A18: 2-bed flat | C18: A2a | D18: Flat | E18: 2b3p | F18: 1 | G18: 59 | H18: =IF(G18>0,G18*10.764262,"") -> 635.091458 | I18: =LEFT(C18,1) -> A | J18: ACG dwelling type
A19: 2-bed bungalow | C19: A2b | D19: Bung | E19: 2b3p | F19: 1 | G19: 58 | H19: =IF(G19>0,G19*10.764262,"") -> 624.327196 | I19: =LEFT(C19,1) -> A | J19: ACG dwelling type
A20: 2-bed terraced | C20: A2c | D20: Hse | E20: 2b4p | F20: 2 | G20: 83 | H20: =IF(G20>0,G20*10.764262,"") -> 893.433746 | I20: =LEFT(C20,1) -> A | J20: ACG dwelling type
A21: 3-bed terraced | C21: A3a | D21: Hse | E21: 3b4p | F21: 2 | G21: 88 | H21: =IF(G21>0,G21*10.764262,"") -> 947.255056 | I21: =LEFT(C21,1) -> A | J21: ACG dwelling type
A22: 3-bed semi-det'd | C22: A3b | D22: Hse | E22: 3b5p | F22: 2 | G22: 94 | H22: =IF(G22>0,G22*10.764262,"") -> 1011.840628 | I22: =LEFT(C22,1) -> A | J22: ACG dwelling type
A23: 4-bed townhouse | C23: A4a | D23: Hse | E23: 4b6p | F23: 3 | G23: 110 | H23: =IF(G23>0,G23*10.764262,"") -> 1184.06882 | I23: =LEFT(C23,1) -> A | J23: ACG dwelling type
A24: 4-bed detached | C24: A4b | D24: Hse | E24: 4b7p | F24: 2 | G24: 114 | H24: =IF(G24>0,G24*10.764262,"") -> 1227.125868 | I24: =LEFT(C24,1) -> A | J24: ACG dwelling type
A25: =A24 -> 4-bed detached | B25: yes | C25: L41 | D25: Hse | E25: 4b6p | F25: 2 | G25: 110 | H25: =IF(G25>0,G25*10.764262,"") -> 1184.06882 | I25: =LEFT(C25,1) -> L | J25: =J24 -> ACG dwelling type
A26: =A25 -> 4-bed detached | B26: yes | C26: L42 | D26: Hse | E26: 4b7p | F26: 2 | G26: 118 | H26: =IF(G26>0,G26*10.764262,"") -> 1270.182916 | I26: =LEFT(C26,1) -> L | J26: =J16 -> Nationally described space standard
A27: =A26 -> 4-bed detached | B27: yes | C27: L42 | D27: Hse | E27: 4b8p | F27: 2 | G27: 150 | H27: =IF(G27>0,G27*10.764262,"") -> 1614.6393 | I27: =LEFT(C27,1) -> L | J27: =J26 -> Nationally described space standard

Sheet Resi Overview
A1: ="Residential Overview - "&SiteName -> Residential Overview - Land North of A466 Llandogo | O1: ="LPA: "&LPA&", Site Ref: "&SiteRef -> LPA: Monmouthshire County Council, Site Ref: CS/0101
A2: =TotalDwellings-SUM(A6:A206)&" Units remaining" -> 0 Units remaining | C2: =SUM(A6:A206) -> 10
A4: =IF(TotalDwellings>0,TEXT((SUMIF(H6:H206,"SR",A6:A206)+SUMIF(H6:H206,"Int",A6:A206))/TotalDwellings,"0.0%"),TEXT(0,"0.0%"))&" AH" -> 40.0% AH
X5: No. of Units | Y5: SDT Code | Z5: Dwelling | AA5: Type | AB5: No. of Levels | AC5: Unit GIA Sales m² | AD5: Element No | AE5: Tenure | AF5: Hsg Mix %age | AG5: Sale/Tfr Value | AH5: £ psm | AI5: TOTAL VALUES (GDV) | AJ5: Unit GIA Sales ft² | AK5: £ psf | AL5: Notes
A6: No. of Units | B6: SDT Code | C6: Dwelling | D6: Type | E6: No. of Levels | F6: Unit GIA Sales m² | G6: Element No | H6: Tenure | I6: Hsg Mix %age | J6: Sale/Tfr Value | K6: £ psm | L6: TOTAL VALUES (GDV) | M6: Unit GIA Sales ft² | N6: £ psf | O6: User Notes | P6: Warnings | S6: =TotalDwellings -> 10 | T6: =ACGband -> 4 | AF6: =IF(ISNUMBER(X6),X6/TotalDwellings,"") ->  | AH6: =IF(ISNUMBER(AC6),AG6/AC6,"") ->  | AI6: =IF(ISNUMBER(X6),X6*AG6,"") ->  | AJ6: =IF(ISNUMBER(AC6),AC6*10.764262,"") ->  | AK6: =IF(ISNUMBER(AJ6),AG6/AJ6,"") -> 
A7: 3 | B7: L41 | C7: =INDEX(ResiLookup,MATCH($B7,ResiList,0),2) -> Hse | D7: =INDEX(ResiLookup,MATCH($B7,ResiList,0),3) -> 4b6p | E7: =INDEX(ResiLookup,MATCH($B7,ResiList,0),4) -> 2 | F7: =INDEX(ResiLookup,MATCH($B7,ResiList,0),5) -> 110 | G7: 1 | H7: SR | I7: =IF(ISNUMBER(A7),A7/TotalDwellings,"") -> 0.3 | J7: 103446 | K7: =IF(ISNUMBER(F7),J7/F7,"") -> 940.4181818 | L7: =IF(ISNUMBER(A7),A7*J7,"") -> 310338 | M7: =IF(ISNUMBER(F7),F7*10.764262,"") -> 1184.06882 | N7: =IF(ISNUMBER(M7),J7/M7,"") -> 87.36485435
A8: 1 | B8: L41 | C8: =INDEX(ResiLookup,MATCH($B8,ResiList,0),2) -> Hse | D8: =INDEX(ResiLookup,MATCH($B8,ResiList,0),3) -> 4b6p | E8: =INDEX(ResiLookup,MATCH($B8,ResiList,0),4) -> 2 | F8: =INDEX(ResiLookup,MATCH($B8,ResiList,0),5) -> 110 | G8: 1 | H8: INT | I8: =IF(ISNUMBER(A8),A8/TotalDwellings,"") -> 0.1 | J8: 172410 | K8: =IF(ISNUMBER(F8),J8/F8,"") -> 1567.363636 | L8: =IF(ISNUMBER(A8),A8*J8,"") -> 172410 | M8: =IF(ISNUMBER(F8),F8*10.764262,"") -> 1184.06882 | N8: =IF(ISNUMBER(M8),J8/M8,"") -> 145.6080906
A9: 2 | B9: L42 | C9: =INDEX(ResiLookup,MATCH($B9,ResiList,0),2) -> Hse | D9: =INDEX(ResiLookup,MATCH($B9,ResiList,0),3) -> 4b7p | E9: =INDEX(ResiLookup,MATCH($B9,ResiList,0),4) -> 2 | F9: =INDEX(ResiLookup,MATCH($B9,ResiList,0),5) -> 118 | G9: 2 | H9: OM | I9: =IF(ISNUMBER(A9),A9/TotalDwellings,"") -> 0.2 | J9: 475000 | K9: =IF(ISNUMBER(F9),J9/F9,"") -> 4025.423729 | L9: =IF(ISNUMBER(A9),A9*J9,"") -> 950000 | M9: =IF(ISNUMBER(F9),F9*10.764262,"") -> 1270.182916 | N9: =IF(ISNUMBER(M9),J9/M9,"") -> 373.9618869
A10: 4 | B10: L42 | C10: =INDEX(ResiLookup,MATCH($B10,ResiList,0),2) -> Hse | D10: =INDEX(ResiLookup,MATCH($B10,ResiList,0),3) -> 4b7p | E10: =INDEX(ResiLookup,MATCH($B10,ResiList,0),4) -> 2 | F10: =INDEX(ResiLookup,MATCH($B10,ResiList,0),5) -> 118 | G10: 2 | H10: OM | I10: =IF(ISNUMBER(A10),A10/TotalDwellings,"") -> 0.4 | J10: 525000 | K10: =IF(ISNUMBER(F10),J10/F10,"") -> 4449.152542 | L10: =IF(ISNUMBER(A10),A10*J10,"") -> 2100000 | M10: =IF(ISNUMBER(F10),F10*10.764262,"") -> 1270.182916 | N10: =IF(ISNUMBER(M10),J10/M10,"") -> 413.3262961

Sheet Devt Planner (hidden)
A1: =IF(SiteName="","",SiteName) -> Land North of A466 Llandogo | F1: ="LPA: "&LPA&", Site Ref: "&SiteRef -> LPA: Monmouthshire County Council, Site Ref: CS/0101
A2: Element/Phase | C2: BK | D2: =DevStartDate -> 2024-08-01 | E2: =EOMONTH($D$2,E3-1) -> 2024-09-30 | F2: =EOMONTH($D$2,F3-1) -> 2024-10-31 | G2: 2024-11-30 | H2: 2024-12-31 | I2: 2025-01-31 | J2: 2025-02-28 | K2: 2025-03-31 | L2: 2025-04-30 | M2: 2025-05-31 | N2: 2025-06-30 | O2: 2025-07-31 | P2: 2025-08-31 | Q2: 2025-09-30 | R2: 2025-10-31 | S2: 2025-11-30 | T2: 2025-12-31 | U2: 2026-01-31 | V2: 2026-02-28 | W2: 2026-03-31 | X2: 2026-04-30 | Y2: 2026-05-31 | Z2: 2026-06-30 | AA2: 2026-07-31 | AB2: 2026-08-31 | AC2: 2026-09-30 | AD2: 2026-10-31 | AE2: 2026-11-30 | AF2: 2026-12-31 | AG2: 2027-01-31 | AH2: 2027-02-28 | AI2: 2027-03-31 | AJ2: 2027-04-30 | AK2: 2027-05-31 | AL2: 2027-06-30 | AM2: 2027-07-31 | AN2: 2027-08-31 | AO2: 2027-09-30 | AP2: 2027-10-31 | AQ2: 2027-11-30 | AR2: 2027-12-31 | AS2: 2028-01-31 | AT2: 2028-02-29 | AU2: 2028-03-31 | AV2: 2028-04-30 | AW2: 2028-05-31 | AX2: 2028-06-30 | AY2: 2028-07-31 | AZ2: 2028-08-31 | BA2: 2028-09-30 | BB2: 2028-10-31 | BC2: 2028-11-30 | BD2: 2028-12-31 | BE2: 2029-01-31 | BF2: 2029-02-28 | BG2: 2029-03-31 | BH2: 2029-04-30 | BI2: 2029-05-31 | BJ2: 2029-06-30 | BK2: 2029-07-31
A3: No. | C3: Month… | D3: 1 | E3: =D3+1 -> 2 | F3: =E3+1 -> 3 | G3: 4 | H3: 5 | I3: 6 | J3: 7 | K3: 8 | L3: 9 | M3: 10 | N3: 11 | O3: 12 | P3: 13 | Q3: 14 | R3: 15 | S3: 16 | T3: 17 | U3: 18 | V3: 19 | W3: 20 | X3: 21 | Y3: 22 | Z3: 23 | AA3: 24 | AB3: 25 | AC3: 26 | AD3: 27 | AE3: 28 | AF3: 29 | AG3: 30 | AH3: 31 | AI3: 32 | AJ3: 33 | AK3: 34 | AL3: 35 | AM3: 36 | AN3: 37 | AO3: 38 | AP3: 39 | AQ3: 40 | AR3: 41 | AS3: 42 | AT3: 43 | AU3: 44 | AV3: 45 | AW3: 46 | AX3: 47 | AY3: 48 | AZ3: 49 | BA3: 50 | BB3: 51 | BC3: 52 | BD3: 53 | BE3: 54 | BF3: 55 | BG3: 56 | BH3: 57 | BI3: 58 | BJ3: 59 | BK3: 60
C4: Total OM sales | D4: =SUMIF($B7:$B100,"OM Sales",D7:D100) -> 0 | E4: =SUMIF($B7:$B100,"OM Sales",E7:E100) -> 0 | F4: =SUMIF($B7:$B100,"OM Sales",F7:F100) -> 0 | G4: 0 | H4: 0 | I4: 0 | J4: 0 | K4: 0 | L4: 0 | M4: 0 | N4: 0 | O4: 0 | P4: 0 | Q4: 0 | R4: 0 | S4: 0 | T4: 0 | U4: 0 | V4: 0 | W4: 0 | X4: 0 | Y4: 0 | Z4: 0 | AA4: 0 | AB4: 0 | AC4: 0 | AD4: 0 | AE4: 0 | AF4: 0 | AG4: 0 | AH4: 0 | AI4: 0 | AJ4: 0 | AK4: 0 | AL4: 0 | AM4: 0 | AN4: 0 | AO4: 0 | AP4: 0 | AQ4: 0 | AR4: 0 | AS4: 0 | AT4: 0 | AU4: 0 | AV4: 0 | AW4: 0 | AX4: 0 | AY4: 0 | AZ4: 0 | BA4: 0 | BB4: 0 | BC4: 0 | BD4: 0 | BE4: 0 | BF4: 0 | BG4: 0 | BH4: 0 | BI4: 0 | BJ4: 0 | BK4: 0
C5: Cumulative OM Sales | D5: =D4 -> 0 | E5: =E4+D5 -> 0 | F5: =F4+E5 -> 0 | G5: 0 | H5: 0 | I5: 0 | J5: 0 | K5: 0 | L5: 0 | M5: 0 | N5: 0 | O5: 0 | P5: 0 | Q5: 0 | R5: 0 | S5: 0 | T5: 0 | U5: 0 | V5: 0 | W5: 0 | X5: 0 | Y5: 0 | Z5: 0 | AA5: 0 | AB5: 0 | AC5: 0 | AD5: 0 | AE5: 0 | AF5: 0 | AG5: 0 | AH5: 0 | AI5: 0 | AJ5: 0 | AK5: 0 | AL5: 0 | AM5: 0 | AN5: 0 | AO5: 0 | AP5: 0 | AQ5: 0 | AR5: 0 | AS5: 0 | AT5: 0 | AU5: 0 | AV5: 0 | AW5: 0 | AX5: 0 | AY5: 0 | AZ5: 0 | BA5: 0 | BB5: 0 | BC5: 0 | BD5: 0 | BE5: 0 | BF5: 0 | BG5: 0 | BH5: 0 | BI5: 0 | BJ5: 0 | BK5: 0
C6: % of Total OM Sales | D6: =IFERROR(D5/OM_Sales,0) -> 0 | E6: =IFERROR(E5/OM_Sales,0) -> 0 | F6: =IFERROR(F5/OM_Sales,0) -> 0 | G6: =IFERROR(G5/OM_Sales,0) -> 0 | H6: =IFERROR(H5/OM_Sales,0) -> 0 | I6: =IFERROR(I5/OM_Sales,0) -> 0 | J6: =IFERROR(J5/OM_Sales,0) -> 0 | K6: =IFERROR(K5/OM_Sales,0) -> 0 | L6: =IFERROR(L5/OM_Sales,0) -> 0 | M6: =IFERROR(M5/OM_Sales,0) -> 0 | N6: =IFERROR(N5/OM_Sales,0) -> 0 | O6: =IFERROR(O5/OM_Sales,0) -> 0 | P6: =IFERROR(P5/OM_Sales,0) -> 0 | Q6: =IFERROR(Q5/OM_Sales,0) -> 0 | R6: =IFERROR(R5/OM_Sales,0) -> 0 | S6: =IFERROR(S5/OM_Sales,0) -> 0 | T6: =IFERROR(T5/OM_Sales,0) -> 0 | U6: =IFERROR(U5/OM_Sales,0) -> 0 | V6: =IFERROR(V5/OM_Sales,0) -> 0 | W6: =IFERROR(W5/OM_Sales,0) -> 0 | X6: =IFERROR(X5/OM_Sales,0) -> 0 | Y6: =IFERROR(Y5/OM_Sales,0) -> 0 | Z6: =IFERROR(Z5/OM_Sales,0) -> 0 | AA6: =IFERROR(AA5/OM_Sales,0) -> 0 | AB6: =IFERROR(AB5/OM_Sales,0) -> 0 | AC6: =IFERROR(AC5/OM_Sales,0) -> 0 | AD6: =IFERROR(AD5/OM_Sales,0) -> 0 | AE6: =IFERROR(AE5/OM_Sales,0) -> 0 | AF6: =IFERROR(AF5/OM_Sales,0) -> 0 | AG6: =IFERROR(AG5/OM_Sales,0) -> 0 | AH6: =IFERROR(AH5/OM_Sales,0) -> 0 | AI6: =IFERROR(AI5/OM_Sales,0) -> 0 | AJ6: =IFERROR(AJ5/OM_Sales,0) -> 0 | AK6: =IFERROR(AK5/OM_Sales,0) -> 0 | AL6: =IFERROR(AL5/OM_Sales,0) -> 0 | AM6: =IFERROR(AM5/OM_Sales,0) -> 0 | AN6: =IFERROR(AN5/OM_Sales,0) -> 0 | AO6: =IFERROR(AO5/OM_Sales,0) -> 0 | AP6: =IFERROR(AP5/OM_Sales,0) -> 0 | AQ6: =IFERROR(AQ5/OM_Sales,0) -> 0 | AR6: =IFERROR(AR5/OM_Sales,0) -> 0 | AS6: =IFERROR(AS5/OM_Sales,0) -> 0 | AT6: =IFERROR(AT5/OM_Sales,0) -> 0 | AU6: =IFERROR(AU5/OM_Sales,0) -> 0 | AV6: =IFERROR(AV5/OM_Sales,0) -> 0 | AW6: =IFERROR(AW5/OM_Sales,0) -> 0 | AX6: =IFERROR(AX5/OM_Sales,0) -> 0 | AY6: =IFERROR(AY5/OM_Sales,0) -> 0 | AZ6: =IFERROR(AZ5/OM_Sales,0) -> 0 | BA6: =IFERROR(BA5/OM_Sales,0) -> 0 | BB6: =IFERROR(BB5/OM_Sales,0) -> 0 | BC6: =IFERROR(BC5/OM_Sales,0) -> 0 | BD6: =IFERROR(BD5/OM_Sales,0) -> 0 | BE6: =IFERROR(BE5/OM_Sales,0) -> 0 | BF6: =IFERROR(BF5/OM_Sales,0) -> 0 | BG6: =IFERROR(BG5/OM_Sales,0) -> 0 | BH6: =IFERROR(BH5/OM_Sales,0) -> 0 | BI6: =IFERROR(BI5/OM_Sales,0) -> 0 | BJ6: =IFERROR(BJ5/OM_Sales,0) -> 0 | BK6: =IFERROR(BK5/OM_Sales,0) -> 0

Sheet Resi 1
A1: Social | G1: ="Total Units for "&$AI1&": "&TotalOM -> Total Units for OM: 0 | L1: Total GIA Sales m² for OM: 0 | R1: ="Total Values for "&$AI1&": "&TEXT(OM_GDV,"£#,##0") -> Total Values for OM: £0 | AE1: 1 | AF1: =SUMIF($N$7:$N$1000,$AI1,G$7:G$1000) -> 0 | AG1: =SUMIF($N$7:$N$1000,$AI1,R$7:R$1000) -> 0 | AH1: =AG1/AF1 ->  | AI1: OM | AK1: =TotalBuildCost/SalesGIA*OM_GIA -> 0 | AL1: OM Build Cost | AU1: OM Build Cost | AV1: =OMBuild -> 0
A2: ="LPA: "&LPA -> LPA: Monmouthshire County Council | G2: ="Total Units for "&$AI2&": "&SRUnits -> Total Units for SR: 3 | L2: Total GIA Sales m² for SR: 330.0 | R2: ="Total Values for "&$AI2&": "&TEXT(AG2,"£#,##0") -> Total Values for SR: £310,338 | AF2: =SUMIF($N$7:$N$1000,$AI2,G$7:G$1000) -> 3 | AG2: =SUMIF($N$7:$N$1000,$AI2,R$7:R$1000) -> 310338 | AH2: =AG2/AF2 -> 103446 | AI2: SR | AJ2: 330 | AK2: =OMBuild/AV2 -> 0 | AL2: OM Mth Value | AU2: OM Build Period | AV2: =IF(BuildPeriod>0,BuildPeriod,CalculatedBuild) -> 8
A3: ="Site Ref: "&SiteRef -> Site Ref: CS/0101 | D3: 6 | G3: ="Total Units for "&$AI3&": "&IntUnits -> Total Units for Int: 1 | L3: Total GIA Sales m² for Int: 110.0 | R3: ="Total Values for "&$AI3&": "&TEXT(AG3,"£#,##0") -> Total Values for Int: £172,410 | AF3: =SUMIF($N$7:$N$1000,$AI3,G$7:G$1000) -> 1 | AG3: =SUMIF($N$7:$N$1000,$AI3,R$7:R$1000) -> 172410 | AH3: =AG3/AF3 -> 172410 | AI3: Int | AJ3: 110 | AU3: Cvalue | AV3: =INDEX(C_values,MATCH(AV1,BCvalues,1)) -> 
D4: =BuildStart+MAX(BuildPeriod,CalculatedBuild) -> 11 | G4: ="Total Units: "&SUM($G$7:$G$1000) -> Total Units: 4 | L4: Total GIA Sales m²: 440.0 | R4: ="Total Values (GDV): "&TEXT(SUM(R$7:R$1000),"£#,##0") -> Total Values (GDV): £482,748 | AF4: =SUM(AF1:AF3) -> 4 | AG4: =SUM(AG1:AG3) -> 482748 | AH4: =AG4/AF4 -> 120687 | AJ4: 440 | AU4: Kvalue | AV4: =INDEX(K_values,MATCH(AV1,BCvalues,1)) -> 
A5: NB: Fields marked * are mandatory | D5: =SalesStart+SalesPeriod -> 11 | V5: Month | W5: Straight Line | Y5: Weighted S-curve | AA5: Custom Spread £ | AF5: =SUM(AF2:AF3) -> 4 | AG5: =SUM(AG2:AG3) -> 482748
G6: No. of Units | H6: SDT Code | I6: Dwelling | J6: Type | K6: No. of Levels | L6: Unit GIA Sales m² | M6: Element No | N6: Tenure | O6: Hsg Mix %age | P6: Sale/Tfr Value | Q6: £ psm | R6: TOTAL VALUES (GDV) | S6: Unit GIA Sales ft² | T6: £ psf | V6: N° | W6: =IFERROR(OMBuild,0) -> 0 | X6: =IFERROR(W6/W$6,0) -> 0 | Y6: =IFERROR(OMBuild,0) -> 0 | Z6: =IFERROR(Y6/Y$6,0) -> 0 | AA6: =ROUND(W6-SUM(AA7:AA66),0) -> 0 | AB6: =IFERROR(SUM(AA7:AA66)/W6,0) -> 0 | AF6: Units | AG6: GDV | AH6: Unit Value | AJ6: GIA Sales | AK6: Build | AU6: Cum Factor | AV6: Cum S-curve % | AW6: Mthly % | AX6: Mthly Amt
A7: Sales GIA m² | B7: 440 | G7: ='Resi Overview'!A7 -> 3 | H7: ='Resi Overview'!B7 -> L41 | I7: ='Resi Overview'!C7 -> Hse | J7: ='Resi Overview'!D7 -> 4b6p | K7: ='Resi Overview'!E7 -> 2 | L7: ='Resi Overview'!F7 -> 110 | M7: ='Resi Overview'!G7 -> 1 | N7: ='Resi Overview'!H7 -> SR | O7: =G7/TotalUnits -> 0.75 | P7: ='Resi Overview'!J7 -> 103446 | Q7: ='Resi Overview'!K7 -> 940.4181818 | R7: ='Resi Overview'!L7 -> 310338 | S7: ='Resi Overview'!M7 -> 1184.06882 | T7: ='Resi Overview'!N7 -> 87.36485435 | V7: 1 | W7: =IF(V7<=BuildDuration,OMMthValue,0) -> 0 | X7: =IFERROR(W7/W$6,"") ->  | Y7: =IF(V7<=BuildDuration,AX7,0) ->  | Z7: =IFERROR(Y7/Y$6,"") ->  | AB7: =IFERROR(AA7/W$6,"") ->  | AT7: 1 | AU7: =IF(AT7<=$AV$2,AT7/$AV$2,0) -> 0.125 | AV7: =(AU7+(Cvalue*(AU7^2))-(Cvalue*AU7)-((1/Kvalue)*((6*(AU7^3))-(9*(AU7^2))+(3*AU7)))) ->  | AW7: =AV7 ->  | AX7: =$AV$1*AW7 -> 
A8: Net to Gross Ratio * | B8: 1 | C8: Build GIA m² | D8: =IF(B8="","",B7/B8) -> 440 | E8: 440 | G8: ='Resi Overview'!A8 -> 1 | H8: ='Resi Overview'!B8 -> L41 | I8: ='Resi Overview'!C8 -> Hse | J8: ='Resi Overview'!D8 -> 4b6p | K8: ='Resi Overview'!E8 -> 2 | L8: ='Resi Overview'!F8 -> 110 | M8: ='Resi Overview'!G8 -> 1 | N8: ='Resi Overview'!H8 -> INT | O8: =G8/TotalUnits -> 0.25 | P8: ='Resi Overview'!J8 -> 172410 | Q8: ='Resi Overview'!K8 -> 1567.363636 | R8: ='Resi Overview'!L8 -> 172410 | S8: ='Resi Overview'!M8 -> 1184.06882 | T8: ='Resi Overview'!N8 -> 145.6080906 | V8: 2 | W8: 0 | X8: =IFERROR(W8/W$6,"") ->  | AT8: 2 | AU8: =IF(AT8<=$AV$2,AT8/$AV$2,0) -> 0.25 | AW8: =AV8-AV7 ->  | AX8: =$AV$1*AW8 -> 
A9: Enter Build Cost Rate OR Total Build Cost * | V9: 3 | W9: 0 | X9: =IFERROR(W9/W$6,"") ->  | AT9: 3 | AU9: 0.375 | AW9: =AV9-AV8 -> 
A10: Build Cost Rate (per m²) | B10: 1100 | C10: Total Build Cost | D10: 484000 | V10: 4 | W10: 0 | X10: =IFERROR(W10/W$6,"") ->  | AT10: 4 | AU10: 0.5 | AW10: =AV10-AV9 -> 
A11: Build & Sales Timescale | E11: Select OM Build Cost Distribution: | V11: 5 | W11: 0 | AT11: 5 | AU11: 0.625
A12: Build Start * | B12: 3 | C12: month number | E12: Linear | V12: 6 | W12: 0 | AT12: 6 | AU12: 0.75
A13: Enter Build Period OR Sales Start AND Sales Overhang * (months between close of build | V13: 7 | W13: 0 | AT13: 7 | AU13: 0.875
A14: Build Period (months) | B14: 8 | C14: and final sale) | V14: 8 | W14: 0 | AT14: 8 | AU14: 1
A15: Sales Start (month number) | B15: 11 | D15: Sales Overhang (months) | V15: 9 | W15: 0 | Y15: 0 | AT15: 9 | AU15: 0
A16: Total OM Units in Element | B16: 0 | D16: Total AH Units | E16: 4 | V16: 10 | W16: 0 | Y16: 0 | AT16: 10 | AU16: 0
A17: OM Sales Rate (units/mth) | C17: % of total units | D17: Units remaining | V17: 11 | W17: 0 | Y17: 0 | AH17: Units remaining | AJ17: Cum Sales Period | AK17: Working % | AO17: Start | AP17: End | AT17: 11 | AU17: 0
A18: First month of sales | C18: =IF(ISERROR(AK18),"",IF(B18>B16,1,AK18)) ->  | D18: =OMUnits-AL18 -> 0 | E18: AH Sales Rate | V18: 12 | W18: 0 | Y18: 0 | AJ18: =1 -> 1 | AK18: =B18/$B$16 ->  | AL18: =ROUND(IF(B18>B16,B16,B18*AJ18),0) -> 0 | AM18: units | AN18: =AH1*AL18 ->  | AO18: 0 | AP18: 0 | AT18: 12 | AU18: 0
A19: Mths 2 to 6 (per mth) | C19: =IF(ISERROR(AK19),"",IF(C18+AK19>1,1-C18,AK19)) ->  | D19: =D18-AL19 -> 0 | E19: per Month | V19: 13 | W19: 0 | Y19: 0 | AH19: =IF(D19=0,ROUNDUP(D18/B19,0),"") ->  | AI19: months | AJ19: =IF(D19=0,AH19,5) ->  | AK19: =5*B19/$B$16 ->  | AL19: =ROUND(IF(B19*5>D18,D18,B19*5),0) -> 0 | AM19: units | AN19: =IF(AL19=0,0,AH1*AL19/AJ19) -> 0 | AO19: =AO18+AJ18 -> 1 | AP19: =AP18+AJ19 ->  | AT19: 13 | AU19: 0
A20: Mths 7 to 12 (per mth) | C20: =IF(ISERROR(AK20),"",IF(C18+C19+AK20>1,1-(C18+C19),AK20)) ->  | D20: =D19-AL20 -> 0 | E20: 4 | V20: 14 | W20: 0 | Y20: 0 | AH20: =IF(D20=0,ROUNDUP(D19/B20,0),"") ->  | AI20: months | AJ20: =IF(D20=0,AH20,6) ->  | AK20: =6*B20/$B$16 ->  | AL20: =ROUND(IF(B20*6>D19,D19,B20*6),0) -> 0 | AM20: units | AN20: =IF(AL20=0,0,AH1*AL20/AJ20) -> 0 | AO20: =AO19+AJ19 ->  | AP20: =AP19+AJ20 ->  | AT20: 14 | AU20: 0
A21: Post mth 12 (per mth) | C21: =IF(ISERROR(AK21),"",IF(C18+C19+C20+AK21>1,1-(C18+C19+C20),AK21)) ->  | V21: 15 | W21: 0 | Y21: 0 | AH21: =D20/B21 ->  | AI21: months | AJ21: =IF(D20=0,0,IF(D20<=B21,1,ROUND(AH21,0))) -> 0 | AK21: =6*B21/$B$16 ->  | AL21: =OMUnits-SUM(AL18:AL20) -> 0 | AM21: units | AN21: =IF(AL21=0,0,AH1*AL21/AJ21) -> 0 | AO21: =AO20+AJ20 ->  | AP21: =AP20+AJ21 ->  | AT21: 15 | AU21: 0
A22: Total OM Sales Period | B22: =IF(ISERROR(SUM(AJ18:AJ21)),0,SUM(AJ18:AJ21)) -> 0 | D22: AH Delivery Period | E22: =IF(E20=0,0,ROUNDUP(E16/E20,0)) -> 1 | V22: 16 | W22: 0 | Y22: 0 | AO22: =AO21+AJ21 ->  | AT22: 16 | AU22: 0
A23: Calculated Build Period | B23: =IF(B14<>"",0,IF(B15+B22-E15-B12<B15-B12,B15-B12,B15+B22-E15-B12)) -> 0 | D23: AH Build Period | E23: =IF(AHUnits=0,0,IF(BuildPeriod>0,BuildPeriod,ROUNDUP(SalesStart-BuildStart+AHPeriod,0))) -> 8 | V23: 17 | W23: 0 | Y23: 0 | AT23: 17 | AU23: 0
V24: 18 | W24: 0 | Y24: 0 | AT24: 18 | AU24: 0
A25: Notes: | V25: 19 | W25: 0 | Y25: 0 | AT25: 19 | AU25: 0
V26: 20 | W26: 0 | Y26: 0 | AT26: 20 | AU26: 0
V27: 21 | W27: 0 | Y27: 0 | AT27: 21 | AU27: 0
V28: 22 | W28: 0 | Y28: 0 | AT28: 22 | AU28: 0
V29: 23 | W29: 0 | Y29: 0 | AT29: 23 | AU29: 0
V30: 24 | W30: 0 | Y30: 0 | AT30: 24 | AU30: 0
V31: 25 | W31: 0 | Y31: 0 | AT31: 25 | AU31: 0
V32: 26 | W32: 0 | Y32: 0 | AT32: 26 | AU32: 0
V33: 27 | W33: 0 | Y33: 0 | AT33: 27 | AU33: 0
V34: 28 | W34: 0 | Y34: 0 | AT34: 28 | AU34: 0
V35: 29 | W35: 0 | Y35: 0 | AT35: 29 | AU35: 0
V36: 30 | W36: 0 | Y36: 0 | AT36: 30 | AU36: 0
V37: 31 | W37: 0 | Y37: 0 | AT37: 31 | AU37: 0
V38: 32 | W38: 0 | Y38: 0 | AT38: 32 | AU38: 0
V39: 33 | W39: =IF(V39<=BuildDuration,OMMthValue,0) -> 0 | Y39: =IF(V39<=BuildDuration,AX39,0) -> 0 | AT39: 33 | AU39: 0 | AV39: =(AU39+(Cvalue*(AU39^2))-(Cvalue*AU39)-((1/Kvalue)*((6*(AU39^3))-(9*(AU39^2))+(3*AU39)))) -> 
V40: 34 | W40: 0 | Y40: 0 | AT40: 34 | AU40: 0
V41: 35 | W41: 0 | Y41: 0 | AT41: 35 | AU41: 0
V42: 36 | W42: 0 | Y42: 0 | AT42: 36 | AU42: 0
V43: 37 | W43: 0 | Y43: 0 | AT43: 37 | AU43: 0
V44: 38 | W44: 0 | Y44: 0 | AT44: 38 | AU44: 0
V45: 39 | W45: 0 | Y45: 0 | AT45: 39 | AU45: 0
V46: 40 | W46: 0 | Y46: 0 | AT46: 40 | AU46: 0
V47: 41 | W47: 0 | Y47: 0 | AT47: 41 | AU47: 0
V48: 42 | W48: 0 | Y48: 0 | AT48: 42 | AU48: 0
V49: 43 | W49: 0 | Y49: 0 | AT49: 43 | AU49: 0
V50: 44 | W50: 0 | Y50: 0 | AT50: 44 | AU50: 0
V51: 45 | W51: 0 | Y51: 0 | AT51: 45 | AU51: 0
V52: 46 | W52: 0 | Y52: 0 | AT52: 46 | AU52: 0
V53: 47 | W53: 0 | Y53: 0 | AT53: 47 | AU53: 0
V54: 48 | W54: 0 | Y54: 0 | AT54: 48 | AU54: 0
V55: 49 | W55: 0 | Y55: 0 | AT55: 49 | AU55: 0
V56: 50 | W56: 0 | Y56: 0 | AT56: 50 | AU56: 0
V57: 51 | W57: 0 | Y57: 0 | AT57: 51 | AU57: 0
V58: 52 | W58: 0 | Y58: 0 | AT58: 52 | AU58: 0
V59: 53 | W59: 0 | Y59: 0 | AT59: 53 | AU59: 0
V60: 54 | W60: 0 | Y60: 0 | AT60: 54 | AU60: 0
V61: 55 | W61: 0 | Y61: 0 | AT61: 55 | AU61: 0
V62: 56 | W62: 0 | Y62: 0 | AT62: 56 | AU62: 0
V63: 57 | W63: 0 | Y63: 0 | AT63: 57 | AU63: 0
V64: 58 | W64: 0 | Y64: 0 | AT64: 58 | AU64: 0
V65: 59 | W65: 0 | Y65: 0 | AT65: 59 | AU65: 0
V66: 60 | W66: 0 | Y66: 0 | AT66: 60 | AU66: 0

Sheet Resi 2
A1: Open Market | G1: ="Total Units for "&$AI1&": "&TotalOM -> Total Units for OM: 6 | L1: Total GIA Sales m² for OM: 708.0 | R1: ="Total Values for "&$AI1&": "&TEXT(OM_GDV,"£#,##0") -> Total Values for OM: £3,050,000 | AE1: 2 | AF1: =SUMIF($N$7:$N$1000,$AI1,G$7:G$1000) -> 6 | AG1: =SUMIF($N$7:$N$1000,$AI1,R$7:R$1000) -> 3050000 | AH1: =AG1/AF1 -> 508333.3333 | AI1: OM | AJ1: 708 | AK1: =TotalBuildCost/SalesGIA*OM_GIA -> 973500 | AL1: OM Build Cost | AU1: OM Build Cost | AV1: =OMBuild -> 973500
A2: ="LPA: "&LPA -> LPA: Monmouthshire County Council | G2: ="Total Units for "&$AI2&": "&SRUnits -> Total Units for SR: 0 | L2: Total GIA Sales m² for SR: 0 | R2: ="Total Values for "&$AI2&": "&TEXT(AG2,"£#,##0") -> Total Values for SR: £0 | AF2: =SUMIF($N$7:$N$1000,$AI2,G$7:G$1000) -> 0 | AG2: =SUMIF($N$7:$N$1000,$AI2,R$7:R$1000) -> 0 | AH2: =AG2/AF2 ->  | AI2: SR | AK2: =OMBuild/AV2 -> 121687.5 | AL2: OM Mth Value | AU2: OM Build Period | AV2: =IF(BuildPeriod>0,BuildPeriod,CalculatedBuild) -> 8
A3: ="Site Ref: "&SiteRef -> Site Ref: CS/0101 | D3: 6 | G3: ="Total Units for "&$AI3&": "&IntUnits -> Total Units for Int: 0 | L3: Total GIA Sales m² for Int: 0 | R3: ="Total Values for "&$AI3&": "&TEXT(AG3,"£#,##0") -> Total Values for Int: £0 | AF3: =SUMIF($N$7:$N$1000,$AI3,G$7:G$1000) -> 0 | AG3: =SUMIF($N$7:$N$1000,$AI3,R$7:R$1000) -> 0 | AH3: =AG3/AF3 ->  | AI3: Int | AU3: Cvalue | AV3: =INDEX(C_values,MATCH(AV1,BCvalues,1)) -> 0.145
D4: =BuildStart+MAX(BuildPeriod,CalculatedBuild) -> 11 | G4: ="Total Units: "&SUM($G$7:$G$1000) -> Total Units: 6 | L4: Total GIA Sales m²: 708.0 | R4: ="Total Values (GDV): "&TEXT(SUM(R$7:R$1000),"£#,##0") -> Total Values (GDV): £3,050,000 | AF4: =SUM(AF1:AF3) -> 6 | AG4: =SUM(AG1:AG3) -> 3050000 | AH4: =AG4/AF4 -> 508333.3333 | AJ4: 708 | AU4: Kvalue | AV4: =INDEX(K_values,MATCH(AV1,BCvalues,1)) -> 3.595
A5: NB: Fields marked * are mandatory | D5: =SalesStart+SalesPeriod -> 19 | V5: Month | W5: Straight Line | Y5: Weighted S-curve | AA5: Custom Spread £ | AF5: =SUM(AF2:AF3) -> 0 | AG5: =SUM(AG2:AG3) -> 0
G6: No. of Units | H6: SDT Code | I6: Dwelling | J6: Type | K6: No. of Levels | L6: Unit GIA Sales m² | M6: Element No | N6: Tenure | O6: Hsg Mix %age | P6: Sale/Tfr Value | Q6: £ psm | R6: TOTAL VALUES (GDV) | S6: Unit GIA Sales ft² | T6: £ psf | V6: N° | W6: =IFERROR(OMBuild,0) -> 973500 | X6: =IFERROR(W6/W$6,0) -> 1 | Y6: =IFERROR(OMBuild,0) -> 973500 | Z6: =IFERROR(Y6/Y$6,0) -> 1 | AA6: =ROUND(W6-SUM(AA7:AA66),0) -> 973500 | AB6: =IFERROR(SUM(AA7:AA66)/W6,0) -> 0 | AF6: Units | AG6: GDV | AH6: Unit Value | AJ6: GIA Sales | AK6: Build | AU6: Cum Factor | AV6: Cum S-curve % | AW6: Mthly % | AX6: Mthly Amt
A7: Sales GIA m² | B7: 708 | G7: ='Resi Overview'!A9 -> 2 | H7: ='Resi Overview'!B9 -> L42 | I7: ='Resi Overview'!C9 -> Hse | J7: ='Resi Overview'!D9 -> 4b7p | K7: ='Resi Overview'!E9 -> 2 | L7: ='Resi Overview'!F9 -> 118 | M7: ='Resi Overview'!G9 -> 2 | N7: ='Resi Overview'!H9 -> OM | O7: =G7/TotalUnits -> 0.3333333333 | P7: ='Resi Overview'!J9 -> 475000 | Q7: ='Resi Overview'!K9 -> 4025.423729 | R7: ='Resi Overview'!L9 -> 950000 | S7: ='Resi Overview'!M9 -> 1270.182916 | T7: ='Resi Overview'!N9 -> 373.9618869 | V7: 1 | W7: =IF(V7<=BuildDuration,OMMthValue,0) -> 121687.5 | X7: =IFERROR(W7/W$6,"") -> 0.125 | Y7: =IF(V7<=BuildDuration,AX7,0) -> 39607.99075 | Z7: =IFERROR(Y7/Y$6,"") -> 0.04068617437 | AB7: =IFERROR(AA7/W$6,"") -> 0 | AT7: 1 | AU7: =IF(AT7<=$AV$2,AT7/$AV$2,0) -> 0.125 | AV7: =(AU7+(Cvalue*(AU7^2))-(Cvalue*AU7)-((1/Kvalue)*((6*(AU7^3))-(9*(AU7^2))+(3*AU7)))) -> 0.04068617437 | AW7: =AV7 -> 0.04068617437 | AX7: =$AV$1*AW7 -> 39607.99075
A8: Net to Gross Ratio * | B8: 1 | C8: Build GIA m² | D8: =IF(B8="","",B7/B8) -> 708 | E8: 708 | G8: ='Resi Overview'!A10 -> 4 | H8: ='Resi Overview'!B10 -> L42 | I8: ='Resi Overview'!C10 -> Hse | J8: ='Resi Overview'!D10 -> 4b7p | K8: ='Resi Overview'!E10 -> 2 | L8: ='Resi Overview'!F10 -> 118 | M8: ='Resi Overview'!G10 -> 2 | N8: ='Resi Overview'!H10 -> OM | O8: =G8/TotalUnits -> 0.6666666667 | P8: ='Resi Overview'!J10 -> 525000 | Q8: ='Resi Overview'!K10 -> 4449.152542 | R8: ='Resi Overview'!L10 -> 2100000 | S8: ='Resi Overview'!M10 -> 1270.182916 | T8: ='Resi Overview'!N10 -> 413.3262961 | V8: 2 | W8: 121687.5 | X8: =IFERROR(W8/W$6,"") -> 0.125 | Y8: 101139.5121 | Z8: 0.1038926678 | AB8: 0 | AT8: 2 | AU8: =IF(AT8<=$AV$2,AT8/$AV$2,0) -> 0.25 | AV8: 0.1445788421 | AW8: =AV8-AV7 -> 0.1038926678 | AX8: =$AV$1*AW8 -> 101139.5121
A9: Enter Build Cost Rate OR Total Build Cost * | V9: 3 | W9: 121687.5 | X9: =IFERROR(W9/W$6,"") -> 0.125 | Y9: 143630.9169 | Z9: 0.1475407467 | AB9: 0 | AT9: 3 | AU9: 0.375 | AV9: 0.2921195888 | AW9: =AV9-AV8 -> 0.1475407467 | AX9: 143630.9169
A10: Build Cost Rate (per m²) | B10: 1375 | C10: Total Build Cost | D10: 973500 | V10: 4 | W10: 121687.5 | X10: =IFERROR(W10/W$6,"") -> 0.125 | Y10: 167082.2053 | Z10: 0.1716304112 | AB10: 0 | AT10: 4 | AU10: 0.5 | AV10: 0.46375 | AW10: =AV10-AV9 -> 0.1716304112 | AX10: 167082.2053
A11: Build & Sales Timescale | E11: Select OM Build Cost Distribution: | V11: 5 | W11: 121687.5 | X11: 0.125 | Y11: 171493.3771 | Z11: 0.1761616612 | AB11: 0 | AT11: 5 | AU11: 0.625 | AV11: 0.6399116612 | AW11: 0.1761616612 | AX11: 171493.3771
A12: Build Start * | B12: 3 | C12: month number | E12: Linear | V12: 6 | W12: 121687.5 | X12: 0.125 | Y12: 156864.4325 | Z12: 0.1611344967 | AB12: 0 | AT12: 6 | AU12: 0.75 | AV12: 0.8010461579 | AW12: 0.1611344967 | AX12: 156864.4325
A13: Enter Build Period OR Sales Start AND Sales Overhang * (months between close of build | V13: 7 | W13: 121687.5 | X13: 0.125 | Y13: 123195.3714 | Z13: 0.1265489178 | AB13: 0 | AT13: 7 | AU13: 0.875 | AV13: 0.9275950756 | AW13: 0.1265489178 | AX13: 123195.3714
A14: Build Period (months) | B14: 8 | C14: and final sale) | V14: 8 | W14: 121687.5 | X14: 0.125 | Y14: 70486.19388 | Z14: 0.07240492437 | AB14: 0 | AT14: 8 | AU14: 1 | AV14: 1 | AW14: 0.07240492437 | AX14: 70486.19388
A15: Sales Start (month number) | B15: 11 | D15: Sales Overhang (months) | V15: 9 | W15: 0 | X15: 0 | Y15: 0 | Z15: 0 | AB15: 0 | AT15: 9 | AU15: 0 | AV15: 0 | AW15: -1 | AX15: -973500
A16: Total OM Units in Element | B16: 6 | D16: Total AH Units | E16: 0 | V16: 10 | W16: 0 | X16: 0 | Y16: 0 | Z16: 0 | AB16: 0 | AT16: 10 | AU16: 0 | AV16: 0 | AW16: 0 | AX16: 0
A17: OM Sales Rate (units/mth) | C17: % of total units | D17: Units remaining | V17: 11 | W17: 0 | X17: 0 | Y17: 0 | Z17: 0 | AB17: 0 | AH17: Units remaining | AJ17: Cum Sales Period | AK17: Working % | AO17: Start | AP17: End | AT17: 11 | AU17: 0 | AV17: 0 | AW17: 0 | AX17: 0
A18: First month of sales | B18: 0.8333333333 | C18: =IF(ISERROR(AK18),"",IF(B18>B16,1,AK18)) -> 0.1388888889 | D18: =OMUnits-AL18 -> 5 | E18: AH Sales Rate | V18: 12 | W18: 0 | X18: 0 | Y18: 0 | Z18: 0 | AB18: 0 | AJ18: =1 -> 1 | AK18: =B18/$B$16 -> 0.1388888889 | AL18: =ROUND(IF(B18>B16,B16,B18*AJ18),0) -> 1 | AM18: units | AN18: =AH1*AL18 -> 508333.3333 | AO18: 0 | AP18: 0 | AT18: 12 | AU18: 0 | AV18: 0 | AW18: 0 | AX18: 0
A19: Mths 2 to 6 (per mth) | B19: 0.8333333333 | C19: =IF(ISERROR(AK19),"",IF(C18+AK19>1,1-C18,AK19)) -> 0.6944444444 | D19: =D18-AL19 -> 1 | E19: per Month | V19: 13 | W19: 0 | X19: 0 | Y19: 0 | Z19: 0 | AB19: 0 | AH19: =IF(D19=0,ROUNDUP(D18/B19,0),"") ->  | AI19: months | AJ19: =IF(D19=0,AH19,5) -> 5 | AK19: =5*B19/$B$16 -> 0.6944444444 | AL19: =ROUND(IF(B19*5>D18,D18,B19*5),0) -> 4 | AM19: units | AN19: =IF(AL19=0,0,AH1*AL19/AJ19) -> 406666.6667 | AO19: =AO18+AJ18 -> 1 | AP19: =AP18+AJ19 -> 5 | AT19: 13 | AU19: 0 | AV19: 0 | AW19: 0 | AX19: 0
A20: Mths 7 to 12 (per mth) | B20: 0.8333333333 | C20: =IF(ISERROR(AK20),"",IF(C18+C19+AK20>1,1-(C18+C19),AK20)) -> 0.1666666667 | D20: =D19-AL20 -> 0 | V20: 14 | W20: 0 | X20: 0 | Y20: 0 | Z20: 0 | AB20: 0 | AH20: =IF(D20=0,ROUNDUP(D19/B20,0),"") -> 2 | AI20: months | AJ20: =IF(D20=0,AH20,6) -> 2 | AK20: =6*B20/$B$16 -> 0.8333333333 | AL20: =ROUND(IF(B20*6>D19,D19,B20*6),0) -> 1 | AM20: units | AN20: =IF(AL20=0,0,AH1*AL20/AJ20) -> 254166.6667 | AO20: =AO19+AJ19 -> 6 | AP20: =AP19+AJ20 -> 7 | AT20: 14 | AU20: 0 | AV20: 0 | AW20: 0 | AX20: 0
A21: Post mth 12 (per mth) | B21: 0.8333333333 | C21: =IF(ISERROR(AK21),"",IF(C18+C19+C20+AK21>1,1-(C18+C19+C20),AK21)) -> 0 | V21: 15 | W21: 0 | X21: 0 | Y21: 0 | Z21: 0 | AB21: 0 | AH21: =D20/B21 -> 0 | AI21: months | AJ21: =IF(D20=0,0,IF(D20<=B21,1,ROUND(AH21,0))) -> 0 | AK21: =6*B21/$B$16 -> 0.8333333333 | AL21: =OMUnits-SUM(AL18:AL20) -> 0 | AM21: units | AN21: =IF(AL21=0,0,AH1*AL21/AJ21) -> 0 | AO21: =AO20+AJ20 -> 8 | AP21: =AP20+AJ21 -> 7 | AT21: 15 | AU21: 0 | AV21: 0 | AW21: 0 | AX21: 0
A22: Total OM Sales Period | B22: =IF(ISERROR(SUM(AJ18:AJ21)),0,SUM(AJ18:AJ21)) -> 8 | D22: AH Delivery Period | E22: =IF(E20=0,0,ROUNDUP(E16/E20,0)) -> 0 | V22: 16 | W22: 0 | X22: 0 | Y22: 0 | Z22: 0 | AB22: 0 | AO22: =AO21+AJ21 -> 8 | AT22: 16 | AU22: 0 | AV22: 0 | AW22: 0 | AX22: 0
A23: Calculated Build Period | B23: =IF(B14<>"",0,IF(B15+B22-E15-B12<B15-B12,B15-B12,B15+B22-E15-B12)) -> 0 | D23: AH Build Period | E23: =IF(AHUnits=0,0,IF(BuildPeriod>0,BuildPeriod,ROUNDUP(SalesStart-BuildStart+AHPeriod,0))) -> 0 | V23: 17 | W23: 0 | X23: 0 | Y23: 0 | Z23: 0 | AB23: 0 | AT23: 17 | AU23: 0 | AV23: 0 | AW23: 0 | AX23: 0
V24: 18 | W24: 0 | X24: 0 | Y24: 0 | Z24: 0 | AB24: 0 | AT24: 18 | AU24: 0 | AV24: 0 | AW24: 0 | AX24: 0
A25: Notes: | V25: 19 | W25: 0 | X25: 0 | Y25: 0 | Z25: 0 | AB25: 0 | AT25: 19 | AU25: 0 | AV25: 0 | AW25: 0 | AX25: 0
V26: 20 | W26: 0 | X26: 0 | Y26: 0 | Z26: 0 | AB26: 0 | AT26: 20 | AU26: 0 | AV26: 0 | AW26: 0 | AX26: 0
V27: 21 | W27: 0 | X27: 0 | Y27: 0 | Z27: 0 | AB27: 0 | AT27: 21 | AU27: 0 | AV27: 0 | AW27: 0 | AX27: 0
V28: 22 | W28: 0 | X28: 0 | Y28: 0 | Z28: 0 | AB28: 0 | AT28: 22 | AU28: 0 | AV28: 0 | AW28: 0 | AX28: 0
V29: 23 | W29: 0 | X29: 0 | Y29: 0 | Z29: 0 | AB29: 0 | AT29: 23 | AU29: 0 | AV29: 0 | AW29: 0 | AX29: 0
V30: 24 | W30: 0 | X30: 0 | Y30: 0 | Z30: 0 | AB30: 0 | AT30: 24 | AU30: 0 | AV30: 0 | AW30: 0 | AX30: 0
V31: 25 | W31: 0 | X31: 0 | Y31: 0 | Z31: 0 | AB31: 0 | AT31: 25 | AU31: 0 | AV31: 0 | AW31: 0 | AX31: 0
V32: 26 | W32: 0 | X32: 0 | Y32: 0 | Z32: 0 | AB32: 0 | AT32: 26 | AU32: 0 | AV32: 0 | AW32: 0 | AX32: 0
V33: 27 | W33: 0 | X33: 0 | Y33: 0 | Z33: 0 | AB33: 0 | AT33: 27 | AU33: 0 | AV33: 0 | AW33: 0 | AX33: 0
V34: 28 | W34: 0 | X34: 0 | Y34: 0 | Z34: 0 | AB34: 0 | AT34: 28 | AU34: 0 | AV34: 0 | AW34: 0 | AX34: 0
V35: 29 | W35: 0 | X35: 0 | Y35: 0 | Z35: 0 | AB35: 0 | AT35: 29 | AU35: 0 | AV35: 0 | AW35: 0 | AX35: 0
V36: 30 | W36: 0 | X36: 0 | Y36: 0 | Z36: 0 | AB36: 0 | AT36: 30 | AU36: 0 | AV36: 0 | AW36: 0 | AX36: 0
V37: 31 | W37: 0 | X37: 0 | Y37: 0 | Z37: 0 | AB37: 0 | AT37: 31 | AU37: 0 | AV37: 0 | AW37: 0 | AX37: 0
V38: 32 | W38: 0 | X38: 0 | Y38: 0 | Z38: 0 | AB38: 0 | AT38: 32 | AU38: 0 | AV38: 0 | AW38: 0 | AX38: 0
V39: 33 | W39: =IF(V39<=BuildDuration,OMMthValue,0) -> 0 | X39: 0 | Y39: =IF(V39<=BuildDuration,AX39,0) -> 0 | Z39: 0 | AB39: 0 | AT39: 33 | AU39: 0 | AV39: =(AU39+(Cvalue*(AU39^2))-(Cvalue*AU39)-((1/Kvalue)*((6*(AU39^3))-(9*(AU39^2))+(3*AU39)))) -> 0 | AW39: 0 | AX39: 0
V40: 34 | W40: 0 | X40: 0 | Y40: 0 | Z40: 0 | AB40: 0 | AT40: 34 | AU40: 0 | AV40: 0 | AW40: 0 | AX40: 0
V41: 35 | W41: 0 | X41: 0 | Y41: 0 | Z41: 0 | AB41: 0 | AT41: 35 | AU41: 0 | AV41: 0 | AW41: 0 | AX41: 0
V42: 36 | W42: 0 | X42: 0 | Y42: 0 | Z42: 0 | AB42: 0 | AT42: 36 | AU42: 0 | AV42: 0 | AW42: 0 | AX42: 0
V43: 37 | W43: 0 | X43: 0 | Y43: 0 | Z43: 0 | AB43: 0 | AT43: 37 | AU43: 0 | AV43: 0 | AW43: 0 | AX43: 0
V44: 38 | W44: 0 | X44: 0 | Y44: 0 | Z44: 0 | AB44: 0 | AT44: 38 | AU44: 0 | AV44: 0 | AW44: 0 | AX44: 0
V45: 39 | W45: 0 | X45: 0 | Y45: 0 | Z45: 0 | AB45: 0 | AT45: 39 | AU45: 0 | AV45: 0 | AW45: 0 | AX45: 0
V46: 40 | W46: 0 | X46: 0 | Y46: 0 | Z46: 0 | AB46: 0 | AT46: 40 | AU46: 0 | AV46: 0 | AW46: 0 | AX46: 0
V47: 41 | W47: 0 | X47: 0 | Y47: 0 | Z47: 0 | AB47: 0 | AT47: 41 | AU47: 0 | AV47: 0 | AW47: 0 | AX47: 0
V48: 42 | W48: 0 | X48: 0 | Y48: 0 | Z48: 0 | AB48: 0 | AT48: 42 | AU48: 0 | AV48: 0 | AW48: 0 | AX48: 0
V49: 43 | W49: 0 | X49: 0 | Y49: 0 | Z49: 0 | AB49: 0 | AT49: 43 | AU49: 0 | AV49: 0 | AW49: 0 | AX49: 0
V50: 44 | W50: 0 | X50: 0 | Y50: 0 | Z50: 0 | AB50: 0 | AT50: 44 | AU50: 0 | AV50: 0 | AW50: 0 | AX50: 0
V51: 45 | W51: 0 | X51: 0 | Y51: 0 | Z51: 0 | AB51: 0 | AT51: 45 | AU51: 0 | AV51: 0 | AW51: 0 | AX51: 0
V52: 46 | W52: 0 | X52: 0 | Y52: 0 | Z52: 0 | AB52: 0 | AT52: 46 | AU52: 0 | AV52: 0 | AW52: 0 | AX52: 0
V53: 47 | W53: 0 | X53: 0 | Y53: 0 | Z53: 0 | AB53: 0 | AT53: 47 | AU53: 0 | AV53: 0 | AW53: 0 | AX53: 0
V54: 48 | W54: 0 | X54: 0 | Y54: 0 | Z54: 0 | AB54: 0 | AT54: 48 | AU54: 0 | AV54: 0 | AW54: 0 | AX54: 0
V55: 49 | W55: 0 | X55: 0 | Y55: 0 | Z55: 0 | AB55: 0 | AT55: 49 | AU55: 0 | AV55: 0 | AW55: 0 | AX55: 0
V56: 50 | W56: 0 | X56: 0 | Y56: 0 | Z56: 0 | AB56: 0 | AT56: 50 | AU56: 0 | AV56: 0 | AW56: 0 | AX56: 0
V57: 51 | W57: 0 | X57: 0 | Y57: 0 | Z57: 0 | AB57: 0 | AT57: 51 | AU57: 0 | AV57: 0 | AW57: 0 | AX57: 0
V58: 52 | W58: 0 | X58: 0 | Y58: 0 | Z58: 0 | AB58: 0 | AT58: 52 | AU58: 0 | AV58: 0 | AW58: 0 | AX58: 0
V59: 53 | W59: 0 | X59: 0 | Y59: 0 | Z59: 0 | AB59: 0 | AT59: 53 | AU59: 0 | AV59: 0 | AW59: 0 | AX59: 0
V60: 54 | W60: 0 | X60: 0 | Y60: 0 | Z60: 0 | AB60: 0 | AT60: 54 | AU60: 0 | AV60: 0 | AW60: 0 | AX60: 0
V61: 55 | W61: 0 | X61: 0 | Y61: 0 | Z61: 0 | AB61: 0 | AT61: 55 | AU61: 0 | AV61: 0 | AW61: 0 | AX61: 0
V62: 56 | W62: 0 | X62: 0 | Y62: 0 | Z62: 0 | AB62: 0 | AT62: 56 | AU62: 0 | AV62: 0 | AW62: 0 | AX62: 0
V63: 57 | W63: 0 | X63: 0 | Y63: 0 | Z63: 0 | AB63: 0 | AT63: 57 | AU63: 0 | AV63: 0 | AW63: 0 | AX63: 0
V64: 58 | W64: 0 | X64: 0 | Y64: 0 | Z64: 0 | AB64: 0 | AT64: 58 | AU64: 0 | AV64: 0 | AW64: 0 | AX64: 0
V65: 59 | W65: 0 | X65: 0 | Y65: 0 | Z65: 0 | AB65: 0 | AT65: 59 | AU65: 0 | AV65: 0 | AW65: 0 | AX65: 0
V66: 60 | W66: 0 | X66: 0 | Y66: 0 | Z66: 0 | AB66: 0 | AT66: 60 | AU66: 0 | AV66: 0 | AW66: 0 | AX66: 0

Sheet Resi Template (hidden)
G1: ="Total Units for "&$AI1&": "&TotalOM -> Total Units for OM: 0 | R1: ="Total Values for "&$AI1&": "&TEXT(OM_GDV,"£#,##0") -> Total Values for OM: £0 | AF1: =SUMIF($N$7:$N$1000,$AI1,G$7:G$1000) -> 0 | AG1: =SUMIF($N$7:$N$1000,$AI1,R$7:R$1000) -> 0 | AH1: =AG1/AF1 ->  | AI1: OM | AK1: =TotalBuildCost/SalesGIA*OM_GIA ->  | AL1: OM Build Cost | AU1: OM Build Cost | AV1: =OMBuild -> 
A2: ="LPA: "&LPA -> LPA: Monmouthshire County Council | G2: ="Total Units for "&$AI2&": "&SRUnits -> Total Units for SR: 0 | R2: ="Total Values for "&$AI2&": "&TEXT(AG2,"£#,##0") -> Total Values for SR: £0 | AF2: =SUMIF($N$7:$N$1000,$AI2,G$7:G$1000) -> 0 | AG2: =SUMIF($N$7:$N$1000,$AI2,R$7:R$1000) -> 0 | AH2: =AG2/AF2 ->  | AI2: SR | AK2: =OMBuild/AV2 ->  | AL2: OM Mth Value | AU2: OM Build Period | AV2: =IF(BuildPeriod>0,BuildPeriod,CalculatedBuild) -> 0
A3: ="Site Ref: "&SiteRef -> Site Ref: CS/0101 | G3: ="Total Units for "&$AI3&": "&IntUnits -> Total Units for Int: 0 | R3: ="Total Values for "&$AI3&": "&TEXT(AG3,"£#,##0") -> Total Values for Int: £0 | AF3: =SUMIF($N$7:$N$1000,$AI3,G$7:G$1000) -> 0 | AG3: =SUMIF($N$7:$N$1000,$AI3,R$7:R$1000) -> 0 | AH3: =AG3/AF3 ->  | AI3: Int | AU3: Cvalue | AV3: =INDEX(C_values,MATCH(AV1,BCvalues,1)) -> 
D4: =BuildStart+MAX(BuildPeriod,CalculatedBuild) -> 0 | G4: ="Total Units: "&SUM($G$7:$G$1000) -> Total Units: 0 | R4: ="Total Values (GDV): "&TEXT(SUM(R$7:R$1000),"£#,##0") -> Total Values (GDV): £0 | AF4: =SUM(AF1:AF3) -> 0 | AG4: =SUM(AG1:AG3) -> 0 | AH4: =AG4/AF4 ->  | AU4: Kvalue | AV4: =INDEX(K_values,MATCH(AV1,BCvalues,1)) -> 
A5: NB: Fields marked * are mandatory | D5: =SalesStart+SalesPeriod -> 0 | V5: Month | W5: Straight Line | Y5: Weighted S-curve | AA5: Custom Spread £ | AF5: =SUM(AF2:AF3) -> 0 | AG5: =SUM(AG2:AG3) -> 0
G6: No. of Units | H6: SDT Code | I6: Dwelling | J6: Type | K6: No. of Levels | L6: Unit GIA Sales m² | M6: Element No | N6: Tenure | O6: Hsg Mix %age | P6: Sale/Tfr Value | Q6: £ psm | R6: TOTAL VALUES (GDV) | S6: Unit GIA Sales ft² | T6: £ psf | V6: N° | W6: =IFERROR(OMBuild,0) -> 0 | X6: =IFERROR(W6/W$6,0) -> 0 | Y6: =IFERROR(OMBuild,0) -> 0 | Z6: =IFERROR(Y6/Y$6,0) -> 0 | AA6: =ROUND(W6-SUM(AA7:AA66),0) -> 0 | AB6: =IFERROR(SUM(AA7:AA66)/W6,0) -> 0 | AF6: Units | AG6: GDV | AH6: Unit Value | AJ6: GIA Sales | AK6: Build | AU6: Cum Factor | AV6: Cum S-curve % | AW6: Mthly % | AX6: Mthly Amt
A7: Sales GIA m² | V7: 1 | W7: =IF(V7<=BuildDuration,OMMthValue,0) -> 0 | X7: =IFERROR(W7/W$6,"") ->  | Y7: =IF(V7<=BuildDuration,AX7,0) -> 0 | Z7: =IFERROR(Y7/Y$6,"") ->  | AB7: =IFERROR(AA7/W$6,"") ->  | AT7: 1 | AU7: =IF(AT7<=$AV$2,AT7/$AV$2,0) -> 0 | AV7: =(AU7+(Cvalue*(AU7^2))-(Cvalue*AU7)-((1/Kvalue)*((6*(AU7^3))-(9*(AU7^2))+(3*AU7)))) ->  | AW7: =AV7 ->  | AX7: =$AV$1*AW7 -> 
A8: Net to Gross Ratio * | B8: 1 | C8: Build GIA m² | D8: =IF(B8="","",B7/B8) -> 0 | V8: 2 | W8: 0 | X8: =IFERROR(W8/W$6,"") ->  | Y8: 0 | AT8: 2 | AU8: =IF(AT8<=$AV$2,AT8/$AV$2,0) -> 0 | AW8: =AV8-AV7 ->  | AX8: =$AV$1*AW8 -> 
A9: Enter Build Cost Rate OR Total Build Cost * | V9: 3 | W9: 0 | X9: =IFERROR(W9/W$6,"") ->  | Y9: 0 | AT9: 3 | AU9: 0 | AW9: =AV9-AV8 -> 
A10: Build Cost Rate (per m²) | C10: Total Build Cost | V10: 4 | W10: 0 | X10: =IFERROR(W10/W$6,"") ->  | Y10: 0 | AT10: 4 | AU10: 0
A11: Build & Sales Timescale | E11: Select OM Build Cost Distribution: | V11: 5 | W11: 0 | Y11: 0 | AT11: 5 | AU11: 0
A12: Build Start * | C12: month number | E12: Linear | V12: 6 | W12: 0 | X12: =IFERROR(W12/W$6,"") ->  | Y12: 0 | AT12: 6 | AU12: 0
A13: Enter Build Period OR Sales Start AND Sales Overhang * (months between close of build | V13: 7 | W13: 0 | Y13: 0 | AT13: 7 | AU13: 0
A14: Build Period (months) | C14: and final sale) | V14: 8 | W14: 0 | Y14: 0 | AT14: 8 | AU14: 0
A15: Sales Start (month number) | D15: Sales Overhang (months) | V15: 9 | W15: 0 | Y15: 0 | AT15: 9 | AU15: 0
A16: Total OM Units in Element | D16: Total AH Units | V16: 10 | W16: 0 | Y16: 0 | AT16: 10 | AU16: 0
A17: OM Sales Rate (units/mth) | C17: % of total units | D17: Units remaining | V17: 11 | W17: 0 | Y17: 0 | AH17: Units remaining | AJ17: Cum Sales Period | AK17: Working % | AO17: Start | AP17: End | AT17: 11 | AU17: 0
A18: First month of sales | C18: =IF(ISERROR(AK18),"",IF(B18>B16,1,AK18)) ->  | D18: =OMUnits-AL18 -> 0 | E18: AH Sales Rate | V18: 12 | W18: 0 | Y18: 0 | AJ18: =1 -> 1 | AK18: =B18/$B$16 ->  | AL18: =ROUND(IF(B18>B16,B16,B18*AJ18),0) -> 0 | AM18: units | AN18: =AH1*AL18 ->  | AO18: 0 | AP18: 0 | AT18: 12 | AU18: 0
A19: Mths 2 to 6 (per mth) | C19: =IF(ISERROR(AK19),"",IF(C18+AK19>1,1-C18,AK19)) ->  | D19: =D18-AL19 -> 0 | E19: per Month | V19: 13 | W19: 0 | Y19: 0 | AH19: =IF(D19=0,ROUNDUP(D18/B19,0),"") ->  | AI19: months | AJ19: =IF(D19=0,AH19,5) ->  | AK19: =5*B19/$B$16 ->  | AL19: =ROUND(IF(B19*5>D18,D18,B19*5),0) -> 0 | AM19: units | AN19: =IF(AL19=0,0,AH1*AL19/AJ19) -> 0 | AO19: =AO18+AJ18 -> 1 | AP19: =AP18+AJ19 ->  | AT19: 13 | AU19: 0
A20: Mths 7 to 12 (per mth) | C20: =IF(ISERROR(AK20),"",IF(C18+C19+AK20>1,1-(C18+C19),AK20)) ->  | D20: =D19-AL20 -> 0 | V20: 14 | W20: 0 | Y20: 0 | AH20: =IF(D20=0,ROUNDUP(D19/B20,0),"") ->  | AI20: months | AJ20: =IF(D20=0,AH20,6) ->  | AK20: =6*B20/$B$16 ->  | AL20: =ROUND(IF(B20*6>D19,D19,B20*6),0) -> 0 | AM20: units | AN20: =IF(AL20=0,0,AH1*AL20/AJ20) -> 0 | AO20: =AO19+AJ19 ->  | AP20: =AP19+AJ20 ->  | AT20: 14 | AU20: 0
A21: Post mth 12 (per mth) | C21: =IF(ISERROR(AK21),"",IF(C18+C19+C20+AK21>1,1-(C18+C19+C20),AK21)) ->  | V21: 15 | W21: 0 | Y21: 0 | AH21: =D20/B21 ->  | AI21: months | AJ21: =IF(D20=0,0,IF(D20<=B21,1,ROUND(AH21,0))) -> 0 | AK21: =6*B21/$B$16 ->  | AL21: =OMUnits-SUM(AL18:AL20) -> 0 | AM21: units | AN21: =IF(AL21=0,0,AH1*AL21/AJ21) -> 0 | AO21: =AO20+AJ20 ->  | AP21: =AP20+AJ21 ->  | AT21: 15 | AU21: 0
A22: Total OM Sales Period | B22: =IF(ISERROR(SUM(AJ18:AJ21)),0,SUM(AJ18:AJ21)) -> 0 | D22: AH Delivery Period | E22: =IF(E20=0,0,ROUNDUP(E16/E20,0)) -> 0 | V22: 16 | W22: 0 | Y22: 0 | AO22: =AO21+AJ21 ->  | AT22: 16 | AU22: 0
A23: Calculated Build Period | B23: =IF(B14<>"",0,IF(B15+B22-E15-B12<B15-B12,B15-B12,B15+B22-E15-B12)) -> 0 | D23: AH Build Period | E23: =IF(AHUnits=0,0,IF(BuildPeriod>0,BuildPeriod,ROUNDUP(SalesStart-BuildStart+AHPeriod,0))) -> 0 | V23: 17 | W23: 0 | Y23: 0 | AT23: 17 | AU23: 0
V24: 18 | W24: 0 | Y24: 0 | AT24: 18 | AU24: 0
A25: Notes: | V25: 19 | W25: 0 | Y25: 0 | AT25: 19 | AU25: 0
V26: 20 | W26: 0 | Y26: 0 | AT26: 20 | AU26: 0
V27: 21 | W27: 0 | Y27: 0 | AT27: 21 | AU27: 0
V28: 22 | W28: 0 | Y28: 0 | AT28: 22 | AU28: 0
V29: 23 | W29: 0 | Y29: 0 | AT29: 23 | AU29: 0
V30: 24 | W30: 0 | Y30: 0 | AT30: 24 | AU30: 0
V31: 25 | W31: 0 | Y31: 0 | AT31: 25 | AU31: 0
V32: 26 | W32: 0 | Y32: 0 | AT32: 26 | AU32: 0
V33: 27 | W33: 0 | Y33: 0 | AT33: 27 | AU33: 0
V34: 28 | W34: 0 | Y34: 0 | AT34: 28 | AU34: 0
V35: 29 | W35: 0 | Y35: 0 | AT35: 29 | AU35: 0
V36: 30 | W36: 0 | Y36: 0 | AT36: 30 | AU36: 0
V37: 31 | W37: 0 | Y37: 0 | AT37: 31 | AU37: 0
V38: 32 | W38: 0 | Y38: 0 | AT38: 32 | AU38: 0
V39: 33 | W39: =IF(V39<=BuildDuration,OMMthValue,0) -> 0 | Y39: =IF(V39<=BuildDuration,AX39,0) -> 0 | Z39: =IFERROR(Y39/Y$6,"") ->  | AB39: =IFERROR(AA39/W$6,"") ->  | AT39: 33 | AU39: 0 | AV39: =(AU39+(Cvalue*(AU39^2))-(Cvalue*AU39)-((1/Kvalue)*((6*(AU39^3))-(9*(AU39^2))+(3*AU39)))) -> 
V40: 34 | W40: 0 | Y40: 0 | AT40: 34 | AU40: 0
V41: 35 | W41: 0 | Y41: 0 | AT41: 35 | AU41: 0
V42: 36 | W42: 0 | Y42: 0 | AT42: 36 | AU42: 0
V43: 37 | W43: 0 | X43: =IFERROR(W43/W$6,"") ->  | Y43: 0 | AT43: 37 | AU43: 0
V44: 38 | W44: 0 | Y44: 0 | AT44: 38 | AU44: 0
V45: 39 | W45: 0 | Y45: 0 | AT45: 39 | AU45: 0
V46: 40 | W46: 0 | Y46: 0 | AT46: 40 | AU46: 0
V47: 41 | W47: 0 | Y47: 0 | AT47: 41 | AU47: 0
V48: 42 | W48: 0 | Y48: 0 | AT48: 42 | AU48: 0
V49: 43 | W49: 0 | Y49: 0 | AT49: 43 | AU49: 0
V50: 44 | W50: 0 | Y50: 0 | AT50: 44 | AU50: 0
V51: 45 | W51: 0 | Y51: 0 | AT51: 45 | AU51: 0
V52: 46 | W52: 0 | Y52: 0 | AT52: 46 | AU52: 0
V53: 47 | W53: 0 | Y53: 0 | AT53: 47 | AU53: 0
V54: 48 | W54: 0 | Y54: 0 | AT54: 48 | AU54: 0
V55: 49 | W55: 0 | Y55: 0 | AT55: 49 | AU55: 0
V56: 50 | W56: 0 | Y56: 0 | AT56: 50 | AU56: 0
V57: 51 | W57: 0 | Y57: 0 | AT57: 51 | AU57: 0
V58: 52 | W58: 0 | Y58: 0 | AT58: 52 | AU58: 0
V59: 53 | W59: 0 | Y59: 0 | AT59: 53 | AU59: 0
V60: 54 | W60: 0 | Y60: 0 | AT60: 54 | AU60: 0
V61: 55 | W61: 0 | Y61: 0 | AT61: 55 | AU61: 0
V62: 56 | W62: 0 | Y62: 0 | AT62: 56 | AU62: 0
V63: 57 | W63: 0 | Y63: 0 | AT63: 57 | AU63: 0
V64: 58 | W64: 0 | Y64: 0 | AT64: 58 | AU64: 0
V65: 59 | W65: 0 | Y65: 0 | AT65: 59 | AU65: 0
V66: 60 | W66: 0 | Y66: 0 | AT66: 60 | AU66: 0

Sheet Comm Template (hidden)
Q1: Mth | R1: Straight Line | T1: Weighted S-curve | V1: Custom Spread £ | AB1: Cum | AC1: Cum | AH1: Total Build Cost | AI1: =CommTBC -> 0 | AM1: Value | AN1: LTT Rate | AO1: Base Fee
A2: Description * | B2: Area m² * | C2: Rate * | D2: ERV £ pa | E2: FH Values | G2: Area % | I2: Use * | Q2: N° | R2: =CommTBC -> 0 | S2: =IFERROR(R2/R$2,0) -> 0 | T2: =CommTBC -> 0 | U2: =IFERROR(T2/T$2,0) -> 0 | V2: =ROUND(R2-SUM(V3:V38),0) -> 0 | W2: =IFERROR(SUM(V3:V38)/R2,0) -> 0 | AB2: Factor | AC2: S-curve % | AD2: Mthly % | AE2: Mthly Amt | AH2: Build Period | AI2: =CommBP -> 0 | AM2: =Land!H7 -> 150000 | AN2: =Land!I7 -> 0 | AO2: 0.018
D3: =IF($I$6="Rent",B3*C3,0) -> 0 | E3: =IF($I$6="FH Value",B3*C3,0) -> 0 | G3: =IF($B$16>0,B3/$B$16,0) -> 0 | K3: ="LPA: "&LPA -> LPA: Monmouthshire County Council | Q3: 1 | R3: =IF(Q3<=$AI$2,MthValues,0) -> 0 | S3: =IFERROR(R3/R$2,0) -> 0 | T3: =IF(Q3<=$AI$2,AE3,0) -> 0 | U3: =IFERROR(T3/T$2,0) -> 0 | W3: =IFERROR(V3/R$2,"") ->  | AA3: 1 | AB3: =IF(AA3<=$AI$2,AA3/$AI$2,0) -> 0 | AC3: =(AB3+($AI$3*(AB3^2))-($AI$3*AB3)-((1/$AI$4)*((6*(AB3^3))-(9*(AB3^2))+(3*AB3)))) ->  | AD3: =AC3 ->  | AE3: =$AI$1*AD3 ->  | AH3: Cvalue | AI3: =INDEX(C_values,MATCH(AI1,BCvalues,1)) ->  | AM3: =Land!H8 -> 250000 | AN3: =Land!I8 -> 0.01 | AO3: Constants | AP3: Intervals | AQ3: Adjusted
D4: =IF($I$6="Rent",B4*C4,0) -> 0 | E4: =IF($I$6="FH Value",B4*C4,0) -> 0 | G4: =IF($B$16>0,B4/$B$16,0) -> 0 | K4: ="Site Ref: "&SiteRef -> Site Ref: CS/0101 | Q4: 2 | R4: 0 | S4: 0 | T4: =IF(Q4<=$AI$2,AE4,0) -> 0 | U4: 0 | W4: =IFERROR(V4/R$2,"") ->  | AA4: 2 | AB4: =IF(AA4<=$AI$2,AA4/$AI$2,0) -> 0 | AC4: =(AB4+($AI$3*(AB4^2))-($AI$3*AB4)-((1/$AI$4)*((6*(AB4^3))-(9*(AB4^2))+(3*AB4)))) ->  | AD4: =AC4-AC3 ->  | AE4: =$AI$1*AD4 ->  | AH4: Kvalue | AI4: =INDEX(K_values,MATCH(AI1,BCvalues,1)) ->  | AM4: =Land!H9 -> 1000000 | AN4: =Land!I9 -> 0.05 | AO4: 10768 | AP4: 12.9216 | AQ4: =AO4+((($B$13-$AO$2)*1000)*AP4) -> 10768
D5: 0 | E5: 0 | G5: 0 | I5: FH/Inv * | Q5: 3 | R5: 0 | S5: 0 | T5: 0 | U5: 0 | AA5: 3 | AB5: 0 | AD5: =AC5-AC4 ->  | AM5: =Land!H10 -> 1000000 | AN5: =Land!I10 -> 0.06 | AO5: =(((AM5*AN5)-((AM4-AM3)*AN4)-((AM3-AM2)*AN3)))/(1+AO2+AN5) -> 19944.34137 | AP5: 23.9328 | AQ5: =AO5+((($B$13-$AO$2)*1000)*AP5) -> 19944.34137
D6: 0 | E6: 0 | G6: 0 | Q6: 4 | R6: 0 | S6: 0 | T6: 0 | U6: 0 | AA6: 4 | AB6: 0 | AH6: MthValues | AI6: =CommTBC/CommBP -> 
D7: 0 | E7: 0 | G7: 0 | Q7: 5 | R7: 0 | S7: 0 | T7: 0 | U7: 0 | AA7: 5 | AB7: 0
D8: 0 | E8: 0 | G8: 0 | Q8: 6 | R8: 0 | S8: 0 | T8: 0 | U8: 0 | AA8: 6 | AB8: 0
A9: Less: Outgoings (if applicable) | D9: =IF(SUM(D3:D8)=0,0,-SUM(M10:M12)) -> 0 | G9: Costs against Gross Rent (if applicable): | Q9: 7 | R9: 0 | S9: 0 | T9: 0 | U9: 0 | AA9: 7 | AB9: 0
A10: Net Rental Value | D10: =IF(SUM(D3:D8)>0,SUM(D3:D9),0) -> 0 | G10: Void allowance | K10: 0 | L10: or | M10: =IF(K10>0,K10*SUM($D$3:$D$8),0) -> 0 | N10: £ amount | Q10: 8 | R10: 0 | S10: 0 | T10: 0 | U10: 0 | AA10: 8 | AB10: 0
A11: Net Investment Yield * | D11: Gross/Total Value | E11: =IF(SUMPRODUCT(B3:B8,C3:C8)>0,IF(B11>0,D10/B11,SUM(E3:E8)),0) -> 0 | G11: Management costs | K11: 0 | L11: or | M11: =IF(K11>0,K11*SUM($D$3:$D$8),0) -> 0 | N11: £ amount | Q11: 9 | R11: 0 | S11: 0 | T11: 0 | U11: 0 | AA11: 9 | AB11: 0
A12: Less: Purchaser's Costs | B12: LTT (est.) | C12: =IF(B11>0,IF(E14<=AM2,0,IF(E14-AM2<=(AM3-AM2),(E14-AM2)*AN3,IF(E14-AM3<=(AM4-AM3),((AM3-AM2)*AN3)+((E14-AM3)*AN4),((AM3-AM2)*AN3)+((AM4-AM3)*AN4)+(E14-AM4)*AN5))),0) -> 0 | G12: Other outgoings | K12: 0 | L12: or | M12: 0 | N12: £ amount | Q12: 10 | R12: 0 | S12: 0 | T12: 0 | U12: 0 | AA12: 10 | AB12: 0
A13: Agents & Legals @ | B13: 0.018 | C13: =IF(E14>0,E14*B13,0) -> 0 | G13: (see notes below) | Q13: 11 | R13: 0 | S13: 0 | T13: 0 | U13: 0 | AA13: 11 | AB13: 0
D14: Net Development/Investment Value | E14: =IF(B11>0,IF(AQ5+(E11/(1+B13+AN5))>=AM4,AQ5+(E11/(1+B13+AN5)),IF(AQ4+(E11/(1+B13+AN4))>=AM3,AQ4+(E11/(1+B13+AN4)),E11/(1+B13))),0) -> 0 | Q14: 12 | R14: 0 | S14: 0 | T14: 0 | U14: 0 | AA14: 12 | AB14: 0
Q15: 13 | R15: 0 | S15: 0 | T15: 0 | U15: 0 | AA15: 13 | AB15: 0
A16: Sales/Rental NIA/GIA m² | B16: =SUM(B3:B8) -> 0 | Q16: 14 | R16: 0 | S16: 0 | T16: 0 | U16: 0 | AA16: 14 | AB16: 0
A17: Net to Gross Ratio * | B17: 1 | D17: Build GIA m² | E17: =IF(B17=0,0,B16/B17) -> 0 | Q17: 15 | R17: 0 | S17: 0 | T17: 0 | U17: 0 | AA17: 15 | AB17: 0
A18: Enter Build Cost Rate OR Total Build Cost * | Q18: 16 | R18: 0 | S18: 0 | T18: 0 | U18: 0 | AA18: 16 | AB18: 0
A19: Build Cost Rate (£ per m²) | D19: Total Build Cost | Q19: 17 | R19: 0 | S19: 0 | T19: 0 | U19: 0 | AA19: 17 | AB19: 0
A20: Build, Lettings & Sales Timescale | E20: Select Build Cost Distribution: | Q20: 18 | R20: 0 | S20: 0 | T20: 0 | U20: 0 | AA20: 18 | AB20: 0 | AH20: Month N° | AI20: =CommLetStart -> 0 | AJ20: =AI20+1 -> 1 | AK20: =AJ20+1 -> 2 | AL20: 3 | AM20: 4 | AN20: 5 | AO20: 6 | AP20: 7 | AQ20: 8 | AR20: 9 | AS20: 10 | AT20: 11 | AU20: 12 | AV20: 13 | AW20: 14 | AX20: 15 | AY20: 16 | AZ20: 17 | BA20: 18 | BB20: 19 | BC20: 20 | BD20: 21 | BE20: 22 | BF20: 23 | BG20: 24 | BH20: 25 | BI20: 26 | BJ20: 27 | BK20: =BJ20+1 -> 28 | BL20: 29
A21: Build Start * (month n°) | E21: Linear | Q21: 19 | R21: 0 | S21: 0 | T21: 0 | U21: 0 | AA21: 19 | AB21: 0
A22: Build Period * (in months) | G22: T I Costs (if applicable): | Q22: 20 | R22: 0 | S22: 0 | T22: 0 | U22: 0 | AA22: 20 | AB22: 0 | AH22: Balance of Net Rent/month | AI22: =D10*(1-E24)/12 -> 0 | AK22: N°of months Spread | AL22: =CommSpread -> 1 | AN22: Monthly increment | AO22: =AI22/AL22 -> 0
A23: PC date (month n°) | B23: =IF(B22>0,(B21-1)+B22,0) -> 0 | D23: Lettings detail | G23: =IF(AND($I$6="Rent",A3>0),A3,"") ->  | Q23: 21 | R23: 0 | S23: 0 | T23: 0 | U23: 0 | AA23: 21 | AB23: 0
A24: Lettings Start (month n°) | B24: =IF(B11>0,IF(B22>0,B23+1,0),0) -> 0 | D24: First month %age | E24: 1 | Q24: 22 | R24: 0 | S24: 0 | T24: 0 | U24: 0 | AA24: 22 | AB24: 0 | AH24: Monthly rent | AI24: =(D10/12)-AI22 -> 0 | AJ24: =IF(AI24+$AO$22>$D$10/12,$D$10/12,AI24+$AO$22) -> 0 | AK24: 0 | AL24: 0 | AM24: 0 | AN24: 0 | AO24: 0 | AP24: 0 | AQ24: 0 | AR24: 0 | AS24: 0 | AT24: 0 | AU24: 0 | AV24: 0 | AW24: 0 | AX24: 0 | AY24: 0 | AZ24: 0 | BA24: 0 | BB24: 0 | BC24: 0 | BD24: 0 | BE24: 0 | BF24: 0 | BG24: 0 | BH24: 0 | BI24: 0 | BJ24: 0 | BK24: 0 | BL24: 0
A25: Sale Date (month n°) | B25: =IF(B11>0,IF(B22>0,B24+E25+1,0),IF(B22>0,B23+1,0)) -> 0 | D25: and spread (months) | E25: 1 | G25: =IF(AND($I$6="Rent",A4>0),A4,"") ->  | Q25: 23 | R25: 0 | S25: 0 | T25: 0 | U25: 0 | AA25: 23 | AB25: 0 | AG25: =CommSaleDate -> 0 | AH25: Sale cut-off | AI25: =IF(AI20<=$AG$25,AI24,0) -> 0 | AJ25: 0 | AK25: 0 | AL25: 0 | AM25: 0 | AN25: 0 | AO25: 0 | AP25: 0 | AQ25: 0 | AR25: 0 | AS25: 0 | AT25: 0 | AU25: 0 | AV25: 0 | AW25: 0 | AX25: 0 | AY25: 0 | AZ25: 0 | BA25: 0 | BB25: 0 | BC25: 0 | BD25: 0 | BE25: 0 | BF25: 0 | BG25: 0 | BH25: 0 | BI25: 0 | BJ25: 0 | BK25: 0 | BL25: 0
Q26: 24 | R26: 0 | S26: 0 | T26: 0 | U26: 0 | AA26: 24 | AB26: 0 | AH26: T I Costs offset each month | AI26: =IF(AI25<=$M$35,-AI25,(AI25-$M$35)) -> 0 | AJ26: =IF(AI26>=0,AJ25,IF(SUM($AI25:AJ25)<=$M$35,-AJ25,-($M$35-SUM($AI25:AJ25)))) -> 0 | AK26: =IF(AJ26>=0,AK25,IF(SUM($AI25:AK25)<=$M$35,-AK25,-($M$35-SUM($AI25:AK25)))) -> 0 | AL26: =IF(AK26>=0,AL25,IF(SUM($AI25:AL25)<=$M$35,-AL25,-($M$35-SUM($AI25:AL25)))) -> 0 | AM26: =IF(AL26>=0,AM25,IF(SUM($AI25:AM25)<=$M$35,-AM25,-($M$35-SUM($AI25:AM25)))) -> 0 | AN26: =IF(AM26>=0,AN25,IF(SUM($AI25:AN25)<=$M$35,-AN25,-($M$35-SUM($AI25:AN25)))) -> 0 | AO26: =IF(AN26>=0,AO25,IF(SUM($AI25:AO25)<=$M$35,-AO25,-($M$35-SUM($AI25:AO25)))) -> 0 | AP26: =IF(AO26>=0,AP25,IF(SUM($AI25:AP25)<=$M$35,-AP25,-($M$35-SUM($AI25:AP25)))) -> 0 | AQ26: =IF(AP26>=0,AQ25,IF(SUM($AI25:AQ25)<=$M$35,-AQ25,-($M$35-SUM($AI25:AQ25)))) -> 0 | AR26: =IF(AQ26>=0,AR25,IF(SUM($AI25:AR25)<=$M$35,-AR25,-($M$35-SUM($AI25:AR25)))) -> 0 | AS26: =IF(AR26>=0,AS25,IF(SUM($AI25:AS25)<=$M$35,-AS25,-($M$35-SUM($AI25:AS25)))) -> 0 | AT26: =IF(AS26>=0,AT25,IF(SUM($AI25:AT25)<=$M$35,-AT25,-($M$35-SUM($AI25:AT25)))) -> 0 | AU26: =IF(AT26>=0,AU25,IF(SUM($AI25:AU25)<=$M$35,-AU25,-($M$35-SUM($AI25:AU25)))) -> 0 | AV26: =IF(AU26>=0,AV25,IF(SUM($AI25:AV25)<=$M$35,-AV25,-($M$35-SUM($AI25:AV25)))) -> 0 | AW26: =IF(AV26>=0,AW25,IF(SUM($AI25:AW25)<=$M$35,-AW25,-($M$35-SUM($AI25:AW25)))) -> 0 | AX26: =IF(AW26>=0,AX25,IF(SUM($AI25:AX25)<=$M$35,-AX25,-($M$35-SUM($AI25:AX25)))) -> 0 | AY26: =IF(AX26>=0,AY25,IF(SUM($AI25:AY25)<=$M$35,-AY25,-($M$35-SUM($AI25:AY25)))) -> 0 | AZ26: =IF(AY26>=0,AZ25,IF(SUM($AI25:AZ25)<=$M$35,-AZ25,-($M$35-SUM($AI25:AZ25)))) -> 0 | BA26: =IF(AZ26>=0,BA25,IF(SUM($AI25:BA25)<=$M$35,-BA25,-($M$35-SUM($AI25:BA25)))) -> 0 | BB26: =IF(BA26>=0,BB25,IF(SUM($AI25:BB25)<=$M$35,-BB25,-($M$35-SUM($AI25:BB25)))) -> 0 | BC26: =IF(BB26>=0,BC25,IF(SUM($AI25:BC25)<=$M$35,-BC25,-($M$35-SUM($AI25:BC25)))) -> 0 | BD26: =IF(BC26>=0,BD25,IF(SUM($AI25:BD25)<=$M$35,-BD25,-($M$35-SUM($AI25:BD25)))) -> 0 | BE26: =IF(BD26>=0,BE25,IF(SUM($AI25:BE25)<=$M$35,-BE25,-($M$35-SUM($AI25:BE25)))) -> 0 | BF26: =IF(BE26>=0,BF25,IF(SUM($AI25:BF25)<=$M$35,-BF25,-($M$35-SUM($AI25:BF25)))) -> 0 | BG26: =IF(BF26>=0,BG25,IF(SUM($AI25:BG25)<=$M$35,-BG25,-($M$35-SUM($AI25:BG25)))) -> 0 | BH26: =IF(BG26>=0,BH25,IF(SUM($AI25:BH25)<=$M$35,-BH25,-($M$35-SUM($AI25:BH25)))) -> 0 | BI26: =IF(BH26>=0,BI25,IF(SUM($AI25:BI25)<=$M$35,-BI25,-($M$35-SUM($AI25:BI25)))) -> 0 | BJ26: =IF(BI26>=0,BJ25,IF(SUM($AI25:BJ25)<=$M$35,-BJ25,-($M$35-SUM($AI25:BJ25)))) -> 0 | BK26: =IF(BJ26>=0,BK25,IF(SUM($AI25:BK25)<=$M$35,-BK25,-($M$35-SUM($AI25:BK25)))) -> 0 | BL26: =IF(BK26>=0,BL25,IF(SUM($AI25:BL25)<=$M$35,-BL25,-($M$35-SUM($AI25:BL25)))) -> 0
A27: Notes: | G27: =IF(AND($I$6="Rent",A5>0),A5,"") ->  | Q27: 25 | R27: 0 | S27: 0 | T27: 0 | U27: 0 | AA27: 25 | AB27: 0 | AH27: Cumulative offset of T I Costs | AI27: =IF(AI26>=0,0-(AI25-AI26),SUM($AI$26:AI26)) -> 0 | AJ27: =IF(AJ26>=0,AI27-(AJ25-AJ26),SUM($AI$26:AJ26)) -> 0 | AK27: =IF(AK26>=0,AJ27-(AK25-AK26),SUM($AI$26:AK26)) -> 0 | AL27: =IF(AL26>=0,AK27-(AL25-AL26),SUM($AI$26:AL26)) -> 0 | AM27: =IF(AM26>=0,AL27-(AM25-AM26),SUM($AI$26:AM26)) -> 0 | AN27: =IF(AN26>=0,AM27-(AN25-AN26),SUM($AI$26:AN26)) -> 0 | AO27: =IF(AO26>=0,AN27-(AO25-AO26),SUM($AI$26:AO26)) -> 0 | AP27: =IF(AP26>=0,AO27-(AP25-AP26),SUM($AI$26:AP26)) -> 0 | AQ27: =IF(AQ26>=0,AP27-(AQ25-AQ26),SUM($AI$26:AQ26)) -> 0 | AR27: =IF(AR26>=0,AQ27-(AR25-AR26),SUM($AI$26:AR26)) -> 0 | AS27: =IF(AS26>=0,AR27-(AS25-AS26),SUM($AI$26:AS26)) -> 0 | AT27: =IF(AT26>=0,AS27-(AT25-AT26),SUM($AI$26:AT26)) -> 0 | AU27: =IF(AU26>=0,AT27-(AU25-AU26),SUM($AI$26:AU26)) -> 0 | AV27: =IF(AV26>=0,AU27-(AV25-AV26),SUM($AI$26:AV26)) -> 0 | AW27: =IF(AW26>=0,AV27-(AW25-AW26),SUM($AI$26:AW26)) -> 0 | AX27: =IF(AX26>=0,AW27-(AX25-AX26),SUM($AI$26:AX26)) -> 0 | AY27: =IF(AY26>=0,AX27-(AY25-AY26),SUM($AI$26:AY26)) -> 0 | AZ27: =IF(AZ26>=0,AY27-(AZ25-AZ26),SUM($AI$26:AZ26)) -> 0 | BA27: =IF(BA26>=0,AZ27-(BA25-BA26),SUM($AI$26:BA26)) -> 0 | BB27: =IF(BB26>=0,BA27-(BB25-BB26),SUM($AI$26:BB26)) -> 0 | BC27: =IF(BC26>=0,BB27-(BC25-BC26),SUM($AI$26:BC26)) -> 0 | BD27: =IF(BD26>=0,BC27-(BD25-BD26),SUM($AI$26:BD26)) -> 0 | BE27: =IF(BE26>=0,BD27-(BE25-BE26),SUM($AI$26:BE26)) -> 0 | BF27: =IF(BF26>=0,BE27-(BF25-BF26),SUM($AI$26:BF26)) -> 0 | BG27: =IF(BG26>=0,BF27-(BG25-BG26),SUM($AI$26:BG26)) -> 0 | BH27: =IF(BH26>=0,BG27-(BH25-BH26),SUM($AI$26:BH26)) -> 0 | BI27: =IF(BI26>=0,BH27-(BI25-BI26),SUM($AI$26:BI26)) -> 0 | BJ27: =IF(BJ26>=0,BI27-(BJ25-BJ26),SUM($AI$26:BJ26)) -> 0 | BK27: =IF(BK26>=0,BJ27-(BK25-BK26),SUM($AI$26:BK26)) -> 0 | BL27: =IF(BL26>=0,BK27-(BL25-BL26),SUM($AI$26:BL26)) -> 0
Q28: 26 | R28: 0 | S28: 0 | T28: 0 | U28: 0 | AA28: 26 | AB28: 0 | AH28: Remaining balance of T I Costs | AI28: =IF(AI25=0,0,$M$35+AI27) -> 0 | AJ28: =IF(AJ25=0,0,$M$35+AJ27) -> 0 | AK28: 0 | AL28: 0 | AM28: 0 | AN28: 0 | AO28: 0 | AP28: 0 | AQ28: 0 | AR28: 0 | AS28: 0 | AT28: 0 | AU28: 0 | AV28: 0 | AW28: 0 | AX28: 0 | AY28: 0 | AZ28: 0 | BA28: 0 | BB28: 0 | BC28: 0 | BD28: 0 | BE28: 0 | BF28: 0 | BG28: 0 | BH28: 0 | BI28: 0 | BJ28: 0 | BK28: 0 | BL28: 0
G29: =IF(AND($I$6="Rent",A6>0),A6,"") ->  | Q29: 27 | R29: 0 | S29: 0 | T29: 0 | U29: 0 | AA29: 27 | AB29: 0 | AH29: Early debit of T I Costs (if applicable) | AI29: =IF(AJ25=0,IF(AI28>0,-AI28,0),0) -> 0 | AJ29: =IF(AK25=0,IF(AJ28>0,-AJ28,0),0) -> 0 | AK29: 0 | AL29: 0 | AM29: 0 | AN29: 0 | AO29: 0 | AP29: 0 | AQ29: 0 | AR29: 0 | AS29: 0 | AT29: 0 | AU29: 0 | AV29: 0 | AW29: 0 | AX29: 0 | AY29: 0 | AZ29: 0 | BA29: 0 | BB29: 0 | BC29: 0 | BD29: 0 | BE29: 0 | BF29: 0 | BG29: 0 | BH29: 0 | BI29: 0 | BJ29: 0 | BK29: 0 | BL29: =IF(BM26=0,IF(BL28>0,-BL28,0),0) -> 0
Q30: 28 | R30: 0 | S30: 0 | T30: 0 | U30: 0 | AA30: 28 | AB30: 0 | AH30: Transfer to Cashflow | AI30: =IF(AI26>0,AI26,AI29) -> 0 | AJ30: =IF(AJ26>0,AJ26,AJ29) -> 0 | AK30: 0 | AL30: 0 | AM30: 0 | AN30: 0 | AO30: 0 | AP30: 0 | AQ30: 0 | AR30: 0 | AS30: 0 | AT30: 0 | AU30: 0 | AV30: 0 | AW30: 0 | AX30: 0 | AY30: 0 | AZ30: 0 | BA30: 0 | BB30: 0 | BC30: 0 | BD30: 0 | BE30: 0 | BF30: 0 | BG30: 0 | BH30: 0 | BI30: 0 | BJ30: 0 | BK30: 0 | BL30: 0
G31: =IF(AND($I$6="Rent",A7>0),A7,"") ->  | Q31: 29 | R31: 0 | S31: 0 | T31: 0 | U31: 0 | AA31: 29 | AB31: 0
Q32: 30 | R32: 0 | S32: 0 | T32: 0 | U32: 0 | AA32: 30 | AB32: 0 | AG32: =IF($I$3="Resi Inv",CstAgLet2,IF(AND($I$3="Comm'l",$I$6="Rent"),CstAgLet1,0)) -> 0 | AH32: Agents' Letting fees | AI32: =SUM($D$3:$D$8)*$AG32*$AI$24/($AI$24+$AI$22) ->  | AJ32: =SUM($D$3:$D$8)*$AG32*(AJ$24-AI$24)/($AI$24+$AI$22) -> 
G33: =IF(AND($I$6="Rent",A8>0),A8,"") ->  | Q33: 31 | R33: 0 | S33: 0 | T33: 0 | U33: 0 | AA33: 31 | AB33: 0 | AG33: =IF($I$3="Resi Inv",CstLegLet2,IF(AND($I$3="Comm'l",$I$6="Rent"),CstLegLet1,0)) -> 0 | AH33: Legal fees on Lettings | AI33: =SUM($D$3:$D$8)*$AG33*$AI$24/($AI$24+$AI$22) ->  | AJ33: =SUM($D$3:$D$8)*$AG33*(AJ$24-AI$24)/($AI$24+$AI$22) -> 
Q34: 32 | R34: 0 | S34: 0 | T34: 0 | U34: 0 | AA34: 32 | AB34: 0
K35: TOTAL | M35: =SUM(M23,M25,M27,M29,M31,M33) -> 0 | Q35: 33 | R35: 0 | S35: 0 | T35: 0 | U35: 0 | AA35: 33 | AB35: 0 | AI35: =ROUND(AI32,2)*-1 ->  | AJ35: =ROUND(AJ32,2)*-1 -> 
Q36: 34 | R36: 0 | S36: 0 | T36: 0 | U36: 0 | AA36: 34 | AB36: 0 | AI36: =ROUND(AI33,2)*-1 ->  | AJ36: =ROUND(AJ33,2)*-1 -> 
Q37: 35 | R37: 0 | S37: 0 | T37: 0 | U37: 0 | AA37: 35 | AB37: 0
Q38: 36 | R38: 0 | S38: 0 | T38: 0 | U38: 0 | AA38: 36 | AB38: 0

Sheet Land
A1: ="Site Costs - "&SiteName -> Site Costs - Land North of A466 Llandogo
A2: ="LPA: "&LPA&", Site Ref: "&SiteRef -> LPA: Monmouthshire County Council, Site Ref: CS/0101
E3: 1
A4: NB: Fields marked * are mandatory
A6: TOTAL SITE COSTS | B6: =SUM(B7:B17) -> 870500 | D6: No. of Tranches * | E6: 1 | G6: Value | I6: LTT rate
A7: Land Price/Cost | B7: =SiteValue -> 800000 | E7: (max 20) | G7: up to | H7: 150000 | I7: 0
A8: Land Transaction Tax (LTT) | B8: =IF(AND(TrancheNum>1,LinkedChoice=1),E8,IF(TrancheNum=1,E8,E21)) -> 28500 | C8: =IF(LinkedChoice=1,"Linked transactions","Transactions not linked") -> Linked transactions | E8: =IF(LandPrice<=H7,I7,IF(LandPrice-H7<=(H8-H7),(LandPrice-H7)*I8,IF(LandPrice-H8<=(H9-H8),((H8-H7)*I8)+((LandPrice-H8)*I9),((H8-H7)*I8)+((H9-H8)*I9)+(LandPrice-H9)*I10))) -> 28500 | G8: ="from "&TEXT(H7+1,"£#,##0")&" to " -> from £150,001 to | H8: 250000 | I8: 0.01
B9: Enter Amount OR % to have Amount calculated * | G9: ="from "&TEXT(H8+1,"£#,##0")&" to " -> from £250,001 to | H9: 1000000 | I9: 0.05
A10: Acquistion Fees | B10: =LandPrice*LandAcqFee -> 12000 | C10: £ Amount | D10: % | E10: =DefLAF -> 0.015 | G10: remainder above | H10: =H9 -> 1000000 | I10: 0.06
A11: Site Surveys | B11: 20000 | D11: link to Tranche no. * | E11: 1 | S11: =IF(E11>TrancheNum,INDEX($D$23:$D$42,MATCH(TrancheNum,$A$23:$A$42,0)),INDEX($D$23:$D$42,MATCH(E11,$A$23:$A$42,0))) -> 1 | T11: =IF(E11>TrancheNum,INDEX($T$23:$T$42,MATCH(TrancheNum,$A$23:$A$42,0)),INDEX($T$23:$T$42,MATCH(E11,$A$23:$A$42,0))) -> 0
A12: Planning/Promotional Costs | B12: 10000 | D12: link to Tranche no. * | E12: 1 | G12: Acquisition fees will be calculated at the %age rate in E10 or may be overwritten with a lump sum in B10. Enter any other Site Costs (such as those in A11 and A12) in rows 11 to 17; first replacing the headings in A11 to A13, if they are not relevant. | S12: =IF(E12>TrancheNum,INDEX($D$23:$D$42,MATCH(TrancheNum,$A$23:$A$42,0)),INDEX($D$23:$D$42,MATCH(E12,$A$23:$A$42,0))) -> 1 | T12: =IF(E12>TrancheNum,INDEX($T$23:$T$42,MATCH(TrancheNum,$A$23:$A$42,0)),INDEX($T$23:$T$42,MATCH(E12,$A$23:$A$42,0))) -> 0
D13: link to Tranche no. * | E13: 1 | S13: 1 | T13: 0
D14: link to Tranche no. * | E14: 1 | S14: 1 | T14: 0
D15: link to Tranche no. * | E15: 1 | S15: 1 | T15: 0
D16: link to Tranche no. * | E16: 1 | S16: 1 | T16: 0
D17: link to Tranche no. * | E17: 1 | G17: DO NOT LEAVE GAPS if you do not use all rows. | S17: 1 | T17: 0
A21: =SUM(B23:B42) -> 0 | B21: =TEXT(LandPrice-SUM(B23:B42),"£#,##0_-;-£#,##0_-") -> £800,000 | C21: Land Value difference | D21: No. of Mths before | E21: =SUM(E23:E42) -> 0 | F21: 0 | G21: 0 | H21: You can specify whether to link the land transactions for LTT purposes when you transfer to the Cashflow.
A22: Tranche No. | B22: Value (£) * | C22: Element * | D22: Build Start * | E22: LTT (£) | F22: Acq. Fees | G22: Total Cost
A23: 1 | D23: 1 | E23: =IF(B23<=$H$7,$I$7,IF(B23-$H$7<=($H$8-$H$7),(B23-$H$7)*$I$8,IF(B23-$H$8<=($H$9-$H$8),(($H$8-$H$7)*$I$8)+((B23-$H$8)*$I$9),(($H$8-$H$7)*$I$8)+(($H$9-$H$8)*$I$9)+(B23-$H$9)*$I$10))) -> 0 | F23: =IF(LandPrice=0,0,AcquisitionFee*B23/LandPrice) -> 0 | G23: =B23+E23+F23 -> 0 | H23: =$E$8*I23 -> 0 | I23: =IF(B23>0,B23/LandPrice,0) -> 0
A24: 2 | D24: 3 | E24: =IF(B24<=$H$7,$I$7,IF(B24-$H$7<=($H$8-$H$7),(B24-$H$7)*$I$8,IF(B24-$H$8<=($H$9-$H$8),(($H$8-$H$7)*$I$8)+((B24-$H$8)*$I$9),(($H$8-$H$7)*$I$8)+(($H$9-$H$8)*$I$9)+(B24-$H$9)*$I$10))) -> 0 | F24: =IF(LandPrice=0,0,AcquisitionFee*B24/LandPrice) -> 0 | G24: =B24+E24+F24 -> 0 | H24: =$E$8*I24 -> 0 | I24: =IF(B24>0,B24/LandPrice,0) -> 0
A25: 3
A26: 4
A27: 5
A28: 6
A29: 7
A30: 8
A31: 9
A32: 10
A33: 11
A34: 12
A35: 13
A36: 14
A37: 15
A38: 16
A39: 17
A40: 18
A41: 19
A42: 20

Sheet Costs
A1: ="Costs - "&SiteName -> Costs - Land North of A466 Llandogo
A2: ="LPA: "&LPA&", Site Ref: "&SiteRef -> LPA: Monmouthshire County Council, Site Ref: CS/0101 | G2: =IF(ISERROR(CFBuildMin),"","NB: Build Costs start in month "&CFBuildMin&" and end in month "&CFBuildMax) -> NB: Build Costs start in month 3 and end in month 10
G3: =IF(ISERROR(CFSalesMin),"","OM Resi Sales start in month "&CFSalesMin&" and end in month "&CFSalesMax) -> OM Resi Sales start in month 11 and end in month 18
A4: COMMUNITY INFRASTRUCTURE | B4: =SUM(B5:B22) -> 70000 | C4: Total CIL/s106 | E4: =IF(TotalDwellings=0,0,B4/TotalDwellings) -> 7000 | F4: /dwelling | G4: Linked to: | H4: Month | K4: Notes
A5: Primary Education | B5: =E5*TotalDwellings -> 0 | D5: cost per dwelling | G5: Sales
A6: Secondary Education | B6: =E6*TotalDwellings -> 0 | D6: cost per dwelling | G6: Sales
A7: Other Education | B7: =E7*TotalDwellings -> 0 | D7: cost per dwelling | G7: Sales
A8: Active Travel | G8: Sales
A9: Highway Measures | G9: Sales
A10: Public Transport | G10: Sales
A11: Public Open Space (POS) | G11: Sales
A12: Leisure/Recreation (excl POS) | G12: Sales
A13: Biodiversity/Nature Conservation | G13: Sales
A14: Other Planning Obligations | B14: 70000 | G14: Sales
G15: Sales
G16: Sales
G17: Sales
G18: Sales
G19: Sales
A20: CIL Residential | B20: =C20*E20 -> 0 | D20: m² @ | G20: Build
A21: CIL Retail | B21: =C21*E21 -> 0 | D21: m² @ | G21: Build
A22: CIL Commercial | B22: 0 | D22: m² @ | G22: Build
G24: Link to Build Costs | H24: Start Month | I24: Duration (months) | K24: Notes
A25: NORMAL SITE COSTS | B25: =SUM(B26:B37) -> 233625 | C25: =IF(NDAa=0,0,B25/NDAa) -> 230601.8103 | D25: /net acre | E25: =IF(TotalDwellings=0,0,B25/TotalDwellings) -> 23362.5 | F25: /dwelling
A26: Site Preparation/Clearance | C26: £ Amount | G26: =IF(AND(H26>0,I26>0),"No","Yes") -> Yes | J26: =IF(I26=0,0,B26/I26) -> 0
A27: External Site Costs | B27: =E27*T27 -> 218625 | C27: £ Amount | D27: or % | E27: =DefESC -> 0.15 | F27: of Build Costs | G27: Yes | J27: 0 | T27: =ABS(TotalBC) -> 1457500
A28: Extra Bldg Regs requirements | B28: 15000 | C28: £ Amount | D28: or £ | F28: per dwelling | G28: Yes | J28: 0 | T28: =TotalDwellings -> 10
A29: Major Internal Roads (if any) | B29: =E29*$T$29 -> 0 | C29: £ Amount | D29: or £ | F29: per net acre | G29: Yes | J29: 0 | T29: =NDAa -> 1.01311
A30: Active Travel Routes | B30: =E30*$T$29 -> 0 | C30: £ Amount | D30: or £ | F30: per net acre | G30: Yes | J30: 0
A31: SUDS | B31: =E31*$T$29 -> 0 | C31: £ Amount | D31: or £ | F31: per net acre | G31: Yes | J31: 0
B32: 0 | C32: £ Amount | D32: or £ | F32: per net acre | G32: Yes | J32: 0
B33: 0 | C33: £ Amount | D33: or £ | F33: per net acre | G33: Yes | J33: 0
B34: 0 | C34: £ Amount | D34: or £ | F34: per net acre | G34: Yes | J34: 0
B35: 0 | C35: £ Amount | D35: or £ | F35: per net acre | G35: Yes | J35: 0
B36: 0 | C36: £ Amount | D36: or £ | F36: per net acre | G36: Yes | J36: 0
B37: 0 | C37: £ Amount | D37: or £ | F37: per net acre | G37: Yes | J37: 0
G39: Link to Build Costs | H39: Start Month | I39: Duration (months) | K39: Notes
A40: ABNORMAL SITE COSTS | B40: =SUM(B41:B60) -> 0 | C40: =IF(NDAa=0,0,B40/NDAa) -> 0 | D40: /net acre | E40: =IF(TotalDwellings=0,0,B40/TotalDwellings) -> 0 | F40: /dwelling
A41: Groundworks | C41: £ Amount | G41: =IF(AND(H41>0,I41>0),"No","Yes") -> Yes | J41: =IF(I41=0,0,B41/I41) -> 0
A42: Remediation/decontamination | C42: £ Amount | G42: =IF(AND(H42>0,I42>0),"No","Yes") -> Yes | J42: =IF(I42=0,0,B42/I42) -> 0
A43: Mine workings | C43: £ Amount | G43: Yes | J43: 0
A44: Archaeology | C44: £ Amount | G44: Yes | J44: 0
A45: Costs re: terrain/topography | C45: £ Amount | G45: Yes | J45: 0
A46: Strategic Landscaping/POS | C46: £ Amount | G46: Yes | J46: 0
A47: Other Abnormal Site Costs | C47: £ Amount | G47: Yes | J47: 0
C48: £ Amount | G48: Yes | J48: 0
C49: £ Amount | G49: Yes | J49: 0
C50: £ Amount | G50: Yes | J50: 0
C51: £ Amount | G51: Yes | J51: 0
C52: £ Amount | G52: Yes | J52: 0
C53: £ Amount | G53: Yes | J53: 0
C54: £ Amount | G54: Yes | J54: 0
C55: £ Amount | G55: Yes | J55: 0
C56: £ Amount | G56: Yes | J56: 0
C57: £ Amount | G57: Yes | J57: 0
C58: £ Amount | G58: Yes | J58: 0
C59: £ Amount | G59: Yes | J59: 0
C60: £ Amount | G60: Yes | J60: 0
G62: Link to Build Costs | H62: Start Month | I62: Duration (months) | K62: Notes
A63: CONSTRUCTION FEES & CONTINGENCY | C63: Enter Amount OR Percentage
A64: Fees on Resi Build Costs | B64: =E64*T64 -> 101467.5 | C64: £ Amount | D64: % | E64: =DefRCF -> 0.06 | G64: =IF(AND(H64>0,I64>0),"No","Yes") -> Yes | J64: =IF(I64=0,0,B64/I64) -> 0 | T64: =ABS(Cashflow!B211) -> 1691125
A65: Fees on Commercial Build Costs | B65: =E65*T65 -> 0 | C65: £ Amount | D65: % | E65: =DefCIB -> 0.05 | G65: =IF(AND(H65>0,I65>0),"No","Yes") -> Yes | J65: 0 | T65: =ABS(Cashflow!B218) -> 0
A66: Fees on other Construction Costs | B66: =E66*T66 -> 0 | C66: £ Amount | D66: % | E66: =DefOCF -> 0.1 | G66: Yes | J66: 0 | T66: =ABS(Cashflow!B213) -> 0
A67: Contingency | B67: =E67*T67 -> 89629.625 | C67: £ Amount | D67: % | E67: =DefCon -> 0.05 | G67: Yes | J67: 0 | T67: =ABS(Cashflow!B215) -> 1792592.5
G69: Link to Sales | H69: Start Month | I69: Duration (months) | K69: Notes
A70: LETTING/SALE FEES & MARKETING COSTS | C70: Enter Amount OR Percentage | G70: =IF(ISERROR(CFSalesMin),"","NB: OM Resi Sales start in month "&CFSalesMin&" and end in month "&CFSalesMax) -> NB: OM Resi Sales start in month 11 and end in month 18
A71: Agency Commission on OM sales | E71: % | F71: =DefARS -> 0.01 | H71: always linked to OM sales
A72: Marketing/promotion costs | B72: 25000 | C72: £ Amount | E72: % | G72: =IF(AND(H72>0,I72>0),"No","Yes") -> Yes | J72: =IF(I72=0,0,B72/I72) -> 0 | T72: =Cashflow!B206 -> 3050000
A73: Legal Fees on OM Resi Sales | B73: =F73*T73 -> 3900 | C73: £ Amount | E73: cost per dwelling | F73: =DefOMS -> 650 | H73: always linked to OM sales | T73: =OM_Sales -> 6
A74: Legal Fees on AH Transfers | B74: =F74*T74 -> 2600 | C74: £ Amount | E74: cost per dwelling | F74: =DefAHT -> 650 | H74: always linked to AH transfers | T74: =AH_Transfers -> 4
G75: =IF(ISERROR(CFCommMin),"","NB: Commercial Sales start in month "&CFCommMin&" and end in month "&CFCommMax) -> 
A76: Agents' letting fees (Commercial) | C76: £ Amount | E76: % | F76: =DefALF -> 0.1 | H76: If you change these % you must click the UPDATE button on a Comm-Inv sheet to transfer the updated values to the Cashflow. | T76: =ABS(Cashflow!B106) -> 0
A77: Legal fees on Commercial Lettings | C77: £ Amount | E77: % | F77: =DefLLF -> 0.05 | T77: =ABS(Cashflow!B107) -> 0
A78: Agents' letting fees (Residential) | C78: £ Amount | E78: % | F78: =DefALF -> 0.1 | T78: =ABS(Cashflow!B108) -> 0
A79: Legal fees on Residential Lettings | C79: £ Amount | E79: % | F79: =DefLLF -> 0.05 | T79: =ABS(Cashflow!B109) -> 0
A80: Agents' sale fees (investment) | E80: % | H80: always linked to Comm-Inv sale
A81: Legal fees (investment sale) | E81: % | H81: always linked to Comm-Inv sale
A82: Marketing/promotion costs | B82: =F82*T82 -> 0 | C82: £ Amount | E82: % | G82: =IF(AND(H82>0,I82>0),"No","Yes") -> Yes | J82: =IF(I82=0,0,B82/I82) -> 0 | T82: =Cashflow!B216 -> 0
G84: Link to Build Costs | H84: Start Month | I84: Duration (months) | K84: Notes
A85: CAPITAL GRANTS / SUBSIDY | B85: =SUM(B86:B95) -> 0
C86: £ Amount | G86: =IF(AND(H86>0,I86>0),"No","Yes") -> Yes | J86: =IF(I86=0,0,B86/I86) -> 0
C87: £ Amount | G87: =IF(AND(H87>0,I87>0),"No","Yes") -> Yes | J87: 0
C88: £ Amount | G88: Yes | J88: 0
C89: £ Amount | G89: Yes | J89: 0
C90: £ Amount | G90: Yes | J90: 0
C91: £ Amount | G91: Yes | J91: 0
C92: £ Amount | G92: Yes | J92: 0
C93: £ Amount | G93: Yes | J93: 0
C94: £ Amount | G94: Yes | J94: 0
C95: £ Amount | G95: Yes | J95: 0

Sheet Appraisal
C3: Financial Viability Appraisal - Summary | L3: Primary Data, KPI's and Sensitivity Testing
C5: Gross Development Value | E5: Units (N°) | H5: % GDV | L5: Total Site Value | M5: =SiteValue -> 800000
C6: Open Market Housing | E6: =OM_Sales -> 6 | G6: =Cashflow!B206 -> 3050000 | H6: =IF(G$12>0,G6/G$12,"") -> 0.8633505702 | L6: Net Developable Area | N6: =NDAa -> 1.01311 | O6: acres | Q6: =NDAh -> 0.41 | R6: hectares
C7: Affordable Housing | D7: =IF(E8=0,0,E7/E8) -> 0.4 | E7: =AH_Transfers -> 4 | G7: =Cashflow!B208 -> 482748 | H7: =IF(G$12>0,G7/G$12,"") -> 0.1366494298 | L7: Site Value /ac and /ha | M7: =IF(N6>0,$M$5/N6,"") -> 789647.7184 | O7: per net acre | P7: =IF(Q6>0,$M$5/Q6,"") -> 1951219.512 | R7: per net ha
C8: RESIDENTIAL GDV | E8: =SUM(E6:E7) -> 10 | G8: =SUM(G6:G7) -> 3532748 | L8: Abnormal /
C9: Commercial/Investment NDV | G9: =Cashflow!B216 -> 0 | H9: =IF(G$12>0,G9/G$12,"") -> 0 | L9: Strategic Site Costs | M9: =IF(N6>0,$G$19/N6,"") -> 0 | O9: per net acre | P9: =IF(Q6>0,$G$19/Q6,"") -> 0 | R9: per net ha
C10: TOTAL SALES REVENUE | G10: =SUM(G8:G9) -> 3532748 | L10: Development Densities
C11: Other Revenue (Grant or Income) | G11: =Cashflow!B114+Cashflow!B4 -> 0 | L11: Residential | N11: =IF($E$8>0,$E$8/(NDAh-CommNDAh),"") -> 24.3902439 | O11: dwellings/net ha | Q11: =IF($E$8>0,$E$8/(NDAa-CommNDAa),"") -> 9.87059648 | R11: dwellings/acre
C12: TOTAL DEVELOPMENT REVENUE | G12: =SUM(G10:G11) -> 3532748 | H12: =IF(G$12>0,G12/G$12,"") -> 1 | M12: =IF(Total_GIA_TOT>0,Total_GIA_TOT/(NDAh-CommNDAh),"") -> 2800 | O12: sqm/net hectare
D13: NDA | E13: £/ac | L13: =IF(CommNDAh>0," Commercial/Investment Plot Ratio","") ->  | N13: =IF(CommNDAh>0,CommTotGIA/(CommNDAh*10000),"") -> 
C14: Land (incl acquisition costs) | D14: =NDAa -> 1.01311 | E14: =IF(D14>0,ABS(Cashflow!B28)/D14,0) -> 789647.7184 | G14: =ABS(SUM(Cashflow!B28:B30)) -> 840500 | H14: =IF(G$12>0,G14/G$12,"") -> 0.2379167719 | L14: Average Residential Values | O14: £ psm | P14: £ psf | Q14: N° | R14: % | S14: GIA sqm
C15: Survey & Planning Costs | G15: =ABS(SUM(Cashflow!B31:B37)) -> 30000 | H15: 0.008491972821 | L15: Open Market dwellings | M15: =IF(E6>0,G6/E6,0) -> 508333.3334 | O15: =IF(E6>0,G6/S15,0) -> 4307.909605 | P15: =IF(E6>0,O15/10.764262,0) -> 400.2048264 | Q15: =IF(E6>0,E6,0) -> 6 | R15: =IF(E6>0,IF(E7>0,"",Q15/E6),"") ->  | S15: =IF(OM_GIA_TOT>0,OM_GIA_TOT,0) -> 708
C16: Community Infrastructure | D16: £/unit | E16: =IF(E$8>0,IF(G16>0,G16/E$8,""),"") -> 7000 | G16: =ABS(Cashflow!B39) -> 70000 | H16: 0.01981460325 | L16: Affordable - social rent | M16: =IF(SR_Values>0,SR_Values/Q16,0) -> 103446 | O16: =IF(SR_Values>0,SR_Values/S16,0) -> 940.4181818 | P16: =IF(SR_Values>0,O16/10.764262,0) -> 87.36485435 | Q16: =IF(SR_Units>0,SR_Units,0) -> 3 | R16: =IF(E$7>0,Q16/E$7,0) -> 0.75 | S16: =IF(SR_GIA_TOT>0,SR_GIA_TOT,0) -> 330
C17: Physical Infrastructure | L17: Affordable - intermediate | M17: =IF(Int_Values>0,Int_Values/Q17,0) -> 172410 | O17: =IF(Int_Values>0,Int_Values/S17,0) -> 1567.363636 | P17: =IF(Int_Values>0,O17/10.764262,0) -> 145.6080906 | Q17: =IF(Int_Units>0,Int_Units,0) -> 1 | R17: =IF(E$7>0,Q17/E$7,0) -> 0.25 | S17: =IF(Int_GIA_TOT>0,Int_GIA_TOT,0) -> 110
C18: Normal On-Site Works | D18: £/unit | E18: =IF(E$8>0,IF(G18>0,G18/E$8,""),"") ->  | G18: =ABS(Cashflow!B59-SUM(Cashflow!B61:B62)) -> 0 | H18: 0
C19: Abnormal Works/Costs | D19: £/unit | E19: =IF(E$8>0,IF(G19>0,G19/E$8,""),"") ->  | G19: =ABS(Cashflow!B73) -> 0 | H19: 0 | L19: Sensitivity Testing Facility
C20: Professional Fees | E20: =IF(SUM(G18:G19)>0,G20/SUM(G18:G19),"") ->  | G20: =ABS(Cashflow!B98) -> 0 | H20: 0 | L20: Open Market Housing | M20: 1 | O20: (open market sales only)
C21: Housing Construction | L21: Affordable Housing | M21: 1 | O21: (affordable housing values)
C22: Build & External Costs | D22: £/unit | E22: =IF(E$8>0,IF(G22>0,G22/E$8,""),"") -> 169112.5 | G22: =ABS(SUM(TotalBC,Cashflow!B61:B62)) -> 1691125 | H22: 0.4786995845 | L22: Commercial NDV | M22: 1 | O22: (all non-residential values)
C23: Professional Fees | E23: =IF(G22>0,G23/G22,"") -> 0.06 | G23: =ABS(Cashflow!B96) -> 101467.5 | H23: 0.02872197507 | L23: Housing Construction | M23: 1 | O23: (housebuilding & normal external costs)
C24: Commercial/Investment Construction | L24: Commercial/Investment | M24: 1 | O24: (non-residential construction costs)
C25: Building Costs | G25: =ABS(Cashflow!B218) -> 0 | H25: 0 | L25: Physical Infrastructure | M25: 1 | O25: (abnormal & other normal site costs)
C26: Professional Fees | E26: =IF(G25>0,G26/G25,"") ->  | G26: =ABS(Cashflow!B97) -> 0 | H26: 0 | L26: Community Infrastructure | M26: 1 | O26: (CIL and/or s.106 obligations except AH)
C27: All Construction Contingency | E27: =IF(ISERROR(G27/SUM(G18:G26)),"",G27/SUM(G18:G26)) -> 0.05 | G27: =ABS(Cashflow!B99) -> 89629.625 | H27: 0.02537107798
C28: Sale, Letting & Marketing Costs | G28: =ABS(Cashflow!B101) -> 62000 | H28: 0.01755007716 | L28: Percentage Profit on GDV | N28: =H32 -> 0.1509172251 | O28: (blended margin)
C29: Finance Costs | G29: =ABS(SUM(Cashflow!B133,Cashflow!C136,Cashflow!B139)) -> 114873.3501 | H29: =IF(G$12>0,G29/G$12,"") -> 0.03251671223 | L29: Percentage Profit on Cost | N29: =IF(G30>0,G32/G30,"") -> 0.1777414753
C30: TOTAL DEVELOPMENT COST | G30: =SUM(G14:G29) -> 2999595.475 | L30: Peak Borrowing | M30: =ABS(Cashflow!B134) -> 1695574.576 | Q30: Interest Cover | R30: =IF(M32>0,G32/(M32*CFDebit/12),"") -> 37.58181774 | S30: months
C31: =IFERROR(ABS(((((AH_TotalBC*(1+CstExt))-(CstEBR*E7/E8))*(1+E23)))*(1+E27)),0) -> 626173.8 | L31: Peak Equity Requirement | M31: =ABS(Cashflow!B140) -> 1141715.141 | Q31: IRR (before Finance Costs) | R31: =IFERROR(IRR(Cashflow!C128:MX128)*12,"") -> 0.2867547793
E32: Profit | G32: =G12-G30 -> 533152.5251 | H32: =IF(G$12>0,G32/G$12,"") -> 0.1509172251 | L32: Total Equity & borrowing | M32: =SUM(M30:M31) -> 2837289.717 | Q32: Profit on Capital Employed | R32: =IF(M32>0,G32/M32,"N/A") -> 0.1879090887
E35: Surplus/(Shortfall) in Profit | G35: =G32-E36 -> 38082.09705 | H35: =IF(E36>0,G35/E36,"") -> 0.07692258493
D36: against Benchmark/Target | E36: =SUM(E37:E39) -> 495070.428 | G36: made up of:
D37: on open mkt housing sales | E37: =ABS(G6*H37) -> 457500 | G37: target return | H37: 0.15 | L37: ="Site Name: "&IF(SiteName="","",SiteName) -> Site Name: Land North of A466 Llandogo
D38: on affordable housing cost | E38: =AH_ConCost*H38 -> 37570.428 | G38: target return | H38: 0.06 | L38: ="LPA: "&LPA&", Site Ref: "&SiteRef -> LPA: Monmouthshire County Council, Site Ref: CS/0101
D39: on non-residential NDV | E39: =ABS(G9*H39) -> 0 | G39: target return | H39: 0.15 | L39: ="Version: "&IF(Version="","",Version) -> Version:
B41: NB: This appraisal is not a formal valuation and should not be relied upon as such | H41: =AppraisalDate -> 2021-08-26 | S41: © MSWWR / SEWSPG / BURROWS-HUTCHINSON LTD

Sheet Sensitivity (hidden)
A1: Sensitivity Tables - Profit on GDV | F1: =IF(SiteName="","",SiteName) -> Land North of A466 Llandogo | G1: =IF(LPA="","",LPA) -> Monmouthshire County Council | H1: =IF(SiteRef="","",SiteRef) -> CS/0101 | Q1: Sensitivity Tables - Profit on Cost
A2: =ACGband -> 4 | B2: Resi GDV / Build Costs | E2: Variation in Residential Gross Development Value | R2: Resi GDV / Build Costs | U2: Variation in Residential Gross Development Value
B3: Development Profit (£) | E3: -0.1 | F3: -0.07 | G3: -0.04 | H3: -0.02 | I3: -0.01 | J3: 0 | K3: 0.01 | L3: 0.02 | M3: 0.04 | N3: 0.07 | O3: 0.1 | R3: Development Profit (£) | U3: =E3 -> -0.1 | V3: -0.07 | W3: -0.04 | X3: -0.02 | Y3: -0.01 | Z3: 0 | AA3: 0.01 | AB3: 0.02 | AC3: =M3 -> 0.04 | AD3: =N3 -> 0.07 | AE3: =O3 -> 0.1
D4: =BG32 -> 533152.5251 | E4: =$J$4*(1+E3) -> 0 | F4: 0 | G4: 0 | H4: 0 | I4: =$J$4*(1+I3) -> 0 | J4: 0 | K4: =$J$4*(1+K3) -> 0 | L4: =$J$4*(1+L3) -> 0 | M4: 0 | N4: 0 | O4: 0
B5: Variation in Build + External Costs | C5: -0.1 | D5: =D$10*(1+C5) -> 0 | E5: -1308470.475 | F5: -1308470.475 | G5: -1308470.475 | H5: -1308470.475 | I5: -1308470.475 | J5: -1308470.475 | K5: -1308470.475 | L5: -1308470.475 | M5: -1308470.475 | N5: -1308470.475 | O5: -1308470.475 | R5: Variation in Build + External Costs | S5: =C5 -> -0.1 | U5: =E5 -> -1308470.475 | V5: -1308470.475 | W5: -1308470.475 | X5: -1308470.475 | Y5: -1308470.475 | Z5: -1308470.475 | AA5: -1308470.475 | AB5: -1308470.475 | AC5: -1308470.475 | AD5: -1308470.475 | AE5: -1308470.475 | BC5: Gross Development Value | BE5: Units (N°)
C6: -0.07 | D6: 0 | E6: -1308470.475 | F6: -1308470.475 | G6: -1308470.475 | H6: -1308470.475 | I6: -1308470.475 | J6: -1308470.475 | K6: -1308470.475 | L6: -1308470.475 | M6: -1308470.475 | N6: -1308470.475 | O6: -1308470.475 | S6: =C6 -> -0.07 | U6: =E6 -> -1308470.475 | V6: =F6 -> -1308470.475 | W6: =G6 -> -1308470.475 | X6: =H6 -> -1308470.475 | Y6: =I6 -> -1308470.475 | Z6: =J6 -> -1308470.475 | AA6: =K6 -> -1308470.475 | AB6: =L6 -> -1308470.475 | AC6: =M6 -> -1308470.475 | AD6: =N6 -> -1308470.475 | AE6: =O6 -> -1308470.475 | BC6: Open Market Housing | BE6: =OM_Sales -> 6 | BG6: =Cashflow!B206 -> 3050000
C7: -0.04 | D7: 0 | E7: -1308470.475 | F7: -1308470.475 | G7: -1308470.475 | H7: -1308470.475 | I7: -1308470.475 | J7: -1308470.475 | K7: -1308470.475 | L7: -1308470.475 | M7: -1308470.475 | N7: -1308470.475 | O7: -1308470.475 | S7: -0.04 | U7: -1308470.475 | V7: -1308470.475 | W7: -1308470.475 | X7: -1308470.475 | Y7: -1308470.475 | Z7: -1308470.475 | AA7: -1308470.475 | AB7: -1308470.475 | AC7: -1308470.475 | AD7: -1308470.475 | AE7: -1308470.475 | BC7: Affordable Housing | BD7: =IF(BE8=0,0,BE7/BE8) -> 0.4 | BE7: =AH_Transfers -> 4 | BG7: =Cashflow!B208 -> 482748
C8: -0.02 | D8: 0 | E8: -1308470.475 | F8: -1308470.475 | G8: -1308470.475 | H8: -1308470.475 | I8: -1308470.475 | J8: -1308470.475 | K8: -1308470.475 | L8: -1308470.475 | M8: -1308470.475 | N8: -1308470.475 | O8: -1308470.475 | S8: -0.02 | U8: -1308470.475 | V8: -1308470.475 | W8: -1308470.475 | X8: -1308470.475 | Y8: -1308470.475 | Z8: -1308470.475 | AA8: -1308470.475 | AB8: -1308470.475 | AC8: -1308470.475 | AD8: -1308470.475 | AE8: -1308470.475 | BC8: RESIDENTIAL GDV | BE8: =SUM(BE6:BE7) -> 10 | BG8: =SUM(BG6:BG7) -> 3532748
C9: -0.01 | D9: =D$10*(1+C9) -> 0 | E9: -1308470.475 | F9: -1308470.475 | G9: -1308470.475 | H9: -1308470.475 | I9: -1308470.475 | J9: -1308470.475 | K9: -1308470.475 | L9: -1308470.475 | M9: -1308470.475 | N9: -1308470.475 | O9: -1308470.475 | S9: -0.01 | U9: -1308470.475 | V9: -1308470.475 | W9: -1308470.475 | X9: -1308470.475 | Y9: -1308470.475 | Z9: -1308470.475 | AA9: -1308470.475 | AB9: -1308470.475 | AC9: -1308470.475 | AD9: -1308470.475 | AE9: -1308470.475 | BC9: Commercial NDV | BG9: =Cashflow!B216 -> 0
C10: 0 | D10: 0 | E10: -1308470.475 | F10: -1308470.475 | G10: -1308470.475 | H10: -1308470.475 | I10: -1308470.475 | J10: -1308470.475 | K10: -1308470.475 | L10: -1308470.475 | M10: -1308470.475 | N10: -1308470.475 | O10: -1308470.475 | S10: 0 | U10: -1308470.475 | V10: -1308470.475 | W10: -1308470.475 | X10: -1308470.475 | Y10: -1308470.475 | Z10: -1308470.475 | AA10: -1308470.475 | AB10: -1308470.475 | AC10: -1308470.475 | AD10: -1308470.475 | AE10: -1308470.475 | BC10: TOTAL SALES REVENUE | BG10: =SUM(BG8:BG9) -> 3532748 | BH10: =IF(BG$12>0,BG12/BG$12,"") -> 1
C11: 0.01 | D11: =D$10*(1+C11) -> 0 | E11: -1308470.475 | F11: -1308470.475 | G11: -1308470.475 | H11: -1308470.475 | I11: -1308470.475 | J11: -1308470.475 | K11: -1308470.475 | L11: -1308470.475 | M11: -1308470.475 | N11: -1308470.475 | O11: -1308470.475 | S11: 0.01 | U11: -1308470.475 | V11: -1308470.475 | W11: -1308470.475 | X11: -1308470.475 | Y11: -1308470.475 | Z11: -1308470.475 | AA11: -1308470.475 | AB11: -1308470.475 | AC11: -1308470.475 | AD11: -1308470.475 | AE11: -1308470.475 | BC11: Other Revenue (Grant or Income) | BG11: =Cashflow!B114+Cashflow!B4 -> 0
C12: 0.02 | D12: =D$10*(1+C12) -> 0 | E12: -1308470.475 | F12: -1308470.475 | G12: -1308470.475 | H12: -1308470.475 | I12: -1308470.475 | J12: -1308470.475 | K12: -1308470.475 | L12: -1308470.475 | M12: -1308470.475 | N12: -1308470.475 | O12: -1308470.475 | S12: 0.02 | U12: -1308470.475 | V12: -1308470.475 | W12: -1308470.475 | X12: -1308470.475 | Y12: -1308470.475 | Z12: -1308470.475 | AA12: -1308470.475 | AB12: -1308470.475 | AC12: -1308470.475 | AD12: -1308470.475 | AE12: -1308470.475 | BC12: TOTAL DEVELOPMENT REVENUE | BG12: =SUM(BG10:BG11) -> 3532748
C13: 0.04 | D13: 0 | E13: -1308470.475 | F13: -1308470.475 | G13: -1308470.475 | H13: -1308470.475 | I13: -1308470.475 | J13: -1308470.475 | K13: -1308470.475 | L13: -1308470.475 | M13: -1308470.475 | N13: -1308470.475 | O13: -1308470.475 | S13: 0.04 | U13: -1308470.475 | V13: -1308470.475 | W13: -1308470.475 | X13: -1308470.475 | Y13: -1308470.475 | Z13: -1308470.475 | AA13: -1308470.475 | AB13: -1308470.475 | AC13: -1308470.475 | AD13: -1308470.475 | AE13: -1308470.475 | BD13: NDA | BE13: £/ac
C14: 0.07 | D14: 0 | E14: -1308470.475 | F14: -1308470.475 | G14: -1308470.475 | H14: -1308470.475 | I14: -1308470.475 | J14: -1308470.475 | K14: -1308470.475 | L14: -1308470.475 | M14: -1308470.475 | N14: -1308470.475 | O14: -1308470.475 | S14: 0.07 | U14: -1308470.475 | V14: -1308470.475 | W14: -1308470.475 | X14: -1308470.475 | Y14: -1308470.475 | Z14: -1308470.475 | AA14: -1308470.475 | AB14: -1308470.475 | AC14: -1308470.475 | AD14: -1308470.475 | AE14: -1308470.475 | BC14: Land (incl acquisition costs) | BD14: =NDAa -> 1.01311 | BE14: =IF(BD14>0,ABS(Cashflow!B28)/BD14,0) -> 789647.7184 | BG14: =ABS(SUM(Cashflow!B28:B30)) -> 840500 | BH14: =IF(BG$10>0,BG14/BG$10,"") -> 0.2379167719
C15: 0.1 | D15: 0 | E15: -1308470.475 | F15: -1308470.475 | G15: -1308470.475 | H15: -1308470.475 | I15: -1308470.475 | J15: -1308470.475 | K15: -1308470.475 | L15: -1308470.475 | M15: -1308470.475 | N15: -1308470.475 | O15: -1308470.475 | S15: 0.1 | U15: -1308470.475 | V15: -1308470.475 | W15: -1308470.475 | X15: -1308470.475 | Y15: -1308470.475 | Z15: -1308470.475 | AA15: -1308470.475 | AB15: -1308470.475 | AC15: -1308470.475 | AD15: -1308470.475 | AE15: -1308470.475 | BC15: Survey & Planning Costs | BG15: =ABS(SUM(Cashflow!B31:B37)) -> 30000 | BH15: =IF(BG$10>0,BG15/BG$10,"") -> 0.008491972821
E16: Variation in Residential Gross Development Value | U16: Variation in Residential Gross Development Value | BC16: Community Infrastructure | BD16: £/unit | BE16: =IF(BE$8>0,IF(BG16>0,BG16/BE$8,""),"") -> 7000 | BG16: =ABS(Cashflow!B39) -> 70000 | BH16: 0.01981460325
B17: Profit on GDV (%) | E17: =E$3 -> -0.1 | F17: =F$3 -> -0.07 | G17: -0.04 | H17: -0.02 | I17: -0.01 | J17: 0 | K17: 0.01 | L17: 0.02 | M17: 0.04 | N17: 0.07 | O17: 0.1 | R17: Profit on Cost (%) | U17: =U$3 -> -0.1 | V17: =V$3 -> -0.07 | W17: -0.04 | X17: -0.02 | Y17: -0.01 | Z17: 0 | AA17: 0.01 | AB17: 0.02 | AC17: 0.04 | AD17: 0.07 | AE17: 0.1 | BC17: Physical Infrastructure
B18: Variation in Build + External Costs | C18: =C5 -> -0.1 | E18: =IF($BG$12>0,E5/$BG$12,0) -> -0.3703831904 | F18: =IF($BG$12>0,F5/$BG$12,0) -> -0.3703831904 | G18: -0.3703831904 | H18: -0.3703831904 | I18: -0.3703831904 | J18: -0.3703831904 | K18: -0.3703831904 | L18: -0.3703831904 | M18: -0.3703831904 | N18: -0.3703831904 | O18: =IF($BG$12>0,O5/$BG$12,0) -> -0.3703831904 | R18: Variation in Build + External Costs | S18: =S5 -> -0.1 | U18: =IF($BG$30>0,U5/$BG$30,0) -> -0.4362156451 | V18: -0.4362156451 | W18: -0.4362156451 | X18: -0.4362156451 | Y18: -0.4362156451 | Z18: -0.4362156451 | AA18: -0.4362156451 | AB18: -0.4362156451 | AC18: -0.4362156451 | AD18: -0.4362156451 | AE18: -0.4362156451 | BC18: Normal On-Site Works | BD18: £/unit | BE18: =IF(BE$8>0,IF(BG18>0,BG18/BE$8,""),"") ->  | BG18: =ABS(Cashflow!B59-SUM(Cashflow!B61:B62)) -> 0
C19: =C6 -> -0.07 | E19: =IF($BG$12>0,E6/$BG$12,0) -> -0.3703831904 | F19: -0.3703831904 | G19: -0.3703831904 | H19: -0.3703831904 | I19: -0.3703831904 | J19: -0.3703831904 | K19: -0.3703831904 | L19: -0.3703831904 | M19: -0.3703831904 | N19: -0.3703831904 | O19: -0.3703831904 | S19: =S6 -> -0.07 | U19: =IF($BG$30>0,U6/$BG$30,0) -> -0.4362156451 | V19: -0.4362156451 | W19: -0.4362156451 | X19: -0.4362156451 | Y19: -0.4362156451 | Z19: -0.4362156451 | AA19: -0.4362156451 | AB19: -0.4362156451 | AC19: -0.4362156451 | AD19: -0.4362156451 | AE19: -0.4362156451 | BC19: Abnormal Works/Costs | BD19: £/unit | BE19: =IF(BE$8>0,IF(BG19>0,BG19/BE$8,""),"") ->  | BG19: =ABS(Cashflow!B73) -> 0 | BH19: =IF(BG$10>0,BG19/BG$10,"") -> 0
C20: -0.04 | E20: =IF($BG$12>0,E7/$BG$12,0) -> -0.3703831904 | F20: -0.3703831904 | G20: -0.3703831904 | H20: -0.3703831904 | I20: -0.3703831904 | J20: -0.3703831904 | K20: -0.3703831904 | L20: -0.3703831904 | M20: -0.3703831904 | N20: -0.3703831904 | O20: -0.3703831904 | S20: -0.04 | U20: =IF($BG$30>0,U7/$BG$30,0) -> -0.4362156451 | V20: -0.4362156451 | W20: -0.4362156451 | X20: -0.4362156451 | Y20: -0.4362156451 | Z20: -0.4362156451 | AA20: -0.4362156451 | AB20: -0.4362156451 | AC20: -0.4362156451 | AD20: -0.4362156451 | AE20: -0.4362156451 | BC20: Professional Fees | BE20: =IF(BG20>0,BG20/SUM(BG18:BG19),"") ->  | BG20: =ABS(Cashflow!B98) -> 0 | BH20: 0
C21: -0.02 | E21: =IF($BG$12>0,E8/$BG$12,0) -> -0.3703831904 | F21: -0.3703831904 | G21: -0.3703831904 | H21: -0.3703831904 | I21: -0.3703831904 | J21: -0.3703831904 | K21: -0.3703831904 | L21: -0.3703831904 | M21: -0.3703831904 | N21: -0.3703831904 | O21: -0.3703831904 | S21: -0.02 | U21: =IF($BG$30>0,U8/$BG$30,0) -> -0.4362156451 | V21: -0.4362156451 | W21: -0.4362156451 | X21: -0.4362156451 | Y21: -0.4362156451 | Z21: -0.4362156451 | AA21: -0.4362156451 | AB21: -0.4362156451 | AC21: -0.4362156451 | AD21: -0.4362156451 | AE21: -0.4362156451 | BC21: Housing Construction
C22: -0.01 | E22: =IF($BG$12>0,E9/$BG$12,0) -> -0.3703831904 | F22: -0.3703831904 | G22: -0.3703831904 | H22: -0.3703831904 | I22: -0.3703831904 | J22: -0.3703831904 | K22: -0.3703831904 | L22: -0.3703831904 | M22: -0.3703831904 | N22: -0.3703831904 | O22: -0.3703831904 | S22: -0.01 | U22: =IF($BG$30>0,U9/$BG$30,0) -> -0.4362156451 | V22: -0.4362156451 | W22: -0.4362156451 | X22: -0.4362156451 | Y22: -0.4362156451 | Z22: -0.4362156451 | AA22: -0.4362156451 | AB22: -0.4362156451 | AC22: -0.4362156451 | AD22: -0.4362156451 | AE22: -0.4362156451 | BC22: Build & External Costs | BD22: £/unit | BE22: =IF(BE$8>0,IF(BG22>0,BG22/BE$8,""),"") -> 169112.5 | BG22: =ABS(SUM(TotalBC,Cashflow!B61:B62)) -> 1691125 | BH22: 0.4786995845
C23: 0 | E23: =IF($BG$12>0,E10/$BG$12,0) -> -0.3703831904 | F23: -0.3703831904 | G23: -0.3703831904 | H23: -0.3703831904 | I23: -0.3703831904 | J23: -0.3703831904 | K23: -0.3703831904 | L23: -0.3703831904 | M23: -0.3703831904 | N23: -0.3703831904 | O23: -0.3703831904 | S23: 0 | U23: =IF($BG$30>0,U10/$BG$30,0) -> -0.4362156451 | V23: -0.4362156451 | W23: -0.4362156451 | X23: -0.4362156451 | Y23: -0.4362156451 | Z23: -0.4362156451 | AA23: -0.4362156451 | AB23: -0.4362156451 | AC23: -0.4362156451 | AD23: -0.4362156451 | AE23: -0.4362156451 | BC23: Professional Fees | BE23: =IF(BG23>0,BG23/BG22,"") -> 0.06 | BG23: =ABS(Cashflow!B96) -> 101467.5 | BH23: 0.02872197507
C24: 0.01 | E24: =IF($BG$12>0,E11/$BG$12,0) -> -0.3703831904 | F24: -0.3703831904 | G24: -0.3703831904 | H24: -0.3703831904 | I24: -0.3703831904 | J24: -0.3703831904 | K24: -0.3703831904 | L24: -0.3703831904 | M24: -0.3703831904 | N24: -0.3703831904 | O24: -0.3703831904 | S24: 0.01 | U24: =IF($BG$30>0,U11/$BG$30,0) -> -0.4362156451 | V24: -0.4362156451 | W24: -0.4362156451 | X24: -0.4362156451 | Y24: -0.4362156451 | Z24: -0.4362156451 | AA24: -0.4362156451 | AB24: -0.4362156451 | AC24: -0.4362156451 | AD24: -0.4362156451 | AE24: -0.4362156451 | BC24: Commercial/Investment Construction
C25: 0.02 | E25: =IF($BG$12>0,E12/$BG$12,0) -> -0.3703831904 | F25: -0.3703831904 | G25: -0.3703831904 | H25: -0.3703831904 | I25: -0.3703831904 | J25: -0.3703831904 | K25: -0.3703831904 | L25: -0.3703831904 | M25: -0.3703831904 | N25: -0.3703831904 | O25: -0.3703831904 | S25: 0.02 | U25: =IF($BG$30>0,U12/$BG$30,0) -> -0.4362156451 | V25: -0.4362156451 | W25: -0.4362156451 | X25: -0.4362156451 | Y25: -0.4362156451 | Z25: -0.4362156451 | AA25: -0.4362156451 | AB25: -0.4362156451 | AC25: -0.4362156451 | AD25: -0.4362156451 | AE25: -0.4362156451 | BC25: Building Costs | BG25: =ABS(Cashflow!B218) -> 0
C26: 0.04 | E26: =IF($BG$12>0,E13/$BG$12,0) -> -0.3703831904 | F26: -0.3703831904 | G26: -0.3703831904 | H26: -0.3703831904 | I26: -0.3703831904 | J26: -0.3703831904 | K26: -0.3703831904 | L26: -0.3703831904 | M26: -0.3703831904 | N26: -0.3703831904 | O26: -0.3703831904 | S26: 0.04 | U26: =IF($BG$30>0,U13/$BG$30,0) -> -0.4362156451 | V26: -0.4362156451 | W26: -0.4362156451 | X26: -0.4362156451 | Y26: -0.4362156451 | Z26: -0.4362156451 | AA26: -0.4362156451 | AB26: -0.4362156451 | AC26: -0.4362156451 | AD26: -0.4362156451 | AE26: -0.4362156451 | BC26: Professional Fees | BG26: =ABS(Cashflow!B97) -> 0
C27: 0.07 | E27: =IF($BG$12>0,E14/$BG$12,0) -> -0.3703831904 | F27: -0.3703831904 | G27: -0.3703831904 | H27: -0.3703831904 | I27: -0.3703831904 | J27: -0.3703831904 | K27: -0.3703831904 | L27: -0.3703831904 | M27: -0.3703831904 | N27: -0.3703831904 | O27: -0.3703831904 | S27: 0.07 | U27: =IF($BG$30>0,U14/$BG$30,0) -> -0.4362156451 | V27: -0.4362156451 | W27: -0.4362156451 | X27: -0.4362156451 | Y27: -0.4362156451 | Z27: -0.4362156451 | AA27: -0.4362156451 | AB27: -0.4362156451 | AC27: -0.4362156451 | AD27: -0.4362156451 | AE27: -0.4362156451 | BC27: All Construction Contingency | BE27: =IF(ISERROR(BG27/SUM(BG18:BG23)),"",BG27/SUM(BG18:BG23)) -> 0.05 | BG27: =ABS(Cashflow!B99) -> 89629.625 | BH27: =IF(BG$10>0,BG27/BG$10,"") -> 0.02537107798
C28: 0.1 | E28: =IF($BG$12>0,E15/$BG$12,0) -> -0.3703831904 | F28: =IF($BG$12>0,F15/$BG$12,0) -> -0.3703831904 | G28: -0.3703831904 | H28: -0.3703831904 | I28: -0.3703831904 | J28: -0.3703831904 | K28: -0.3703831904 | L28: -0.3703831904 | M28: -0.3703831904 | N28: -0.3703831904 | O28: =IF($BG$12>0,O15/$BG$12,0) -> -0.3703831904 | S28: 0.1 | U28: =IF($BG$30>0,U15/$BG$30,0) -> -0.4362156451 | V28: -0.4362156451 | W28: -0.4362156451 | X28: -0.4362156451 | Y28: -0.4362156451 | Z28: -0.4362156451 | AA28: -0.4362156451 | AB28: -0.4362156451 | AC28: -0.4362156451 | AD28: -0.4362156451 | AE28: -0.4362156451 | BC28: Sale, Letting & Marketing Costs | BG28: =ABS(Cashflow!B101) -> 62000 | BH28: 0.01755007716
BC29: Finance Costs | BG29: =ABS(SUM(Cashflow!B133,Cashflow!C136,Cashflow!B139)) -> 114873.3501 | BH29: 0.03251671223
B30: Resi GDV / Site Value | E30: Variation in Residential Gross Development Value | R30: Resi GDV / Site Value | BC30: TOTAL DEVELOPMENT COST | BG30: =SUM(BG14:BG29) -> 2999595.475
B31: Development Profit (£) | E31: =E$3 -> -0.1 | F31: =F$3 -> -0.07 | G31: -0.04 | H31: -0.02 | I31: -0.01 | J31: 0 | K31: 0.01 | L31: 0.02 | M31: 0.04 | N31: 0.07 | O31: 0.1 | R31: Development Profit (£) | U31: =U$3 -> -0.1 | V31: =V$3 -> -0.07 | W31: -0.04 | X31: -0.02 | Y31: -0.01 | Z31: 0 | AA31: 0.01 | AB31: 0.02 | AC31: 0.04 | AD31: 0.07 | AE31: 0.1
D32: =BG32 -> 533152.5251 | E32: =$J$32*(1+E31) -> 0 | F32: =$J$32*(1+F31) -> 0 | G32: =$J$32*(1+G31) -> 0 | H32: =$J$32*(1+H31) -> 0 | I32: =$J$32*(1+I31) -> 0 | J32: 0 | K32: =$J$32*(1+K31) -> 0 | L32: =$J$32*(1+L31) -> 0 | M32: =$J$32*(1+M31) -> 0 | N32: =$J$32*(1+N31) -> 0 | O32: =$J$32*(1+O31) -> 0 | BE32: Profit | BG32: =BG12-BG30 -> 533152.5251
B33: Variation in Site Value (including Acquisition Costs) | C33: -0.15 | D33: =D$37*(1+C33) -> 0 | E33: -2159095.475 | F33: -2159095.475 | G33: -2159095.475 | H33: -2159095.475 | I33: -2159095.475 | J33: -2159095.475 | K33: -2159095.475 | L33: -2159095.475 | M33: -2159095.475 | N33: -2159095.475 | O33: -2159095.475 | R33: Variation in Site Value (including Acquisition Costs) | S33: =C33 -> -0.15 | U33: =E33 -> -2159095.475 | V33: -2159095.475 | W33: -2159095.475 | X33: -2159095.475 | Y33: -2159095.475 | Z33: -2159095.475 | AA33: -2159095.475 | AB33: -2159095.475 | AC33: -2159095.475 | AD33: -2159095.475 | AE33: -2159095.475
C34: -0.1 | D34: =D$37*(1+C34) -> 0 | E34: -2159095.475 | F34: -2159095.475 | G34: -2159095.475 | H34: -2159095.475 | I34: -2159095.475 | J34: -2159095.475 | K34: -2159095.475 | L34: -2159095.475 | M34: -2159095.475 | N34: -2159095.475 | O34: -2159095.475 | S34: =C34 -> -0.1 | U34: =E34 -> -2159095.475 | V34: =F34 -> -2159095.475 | W34: =G34 -> -2159095.475 | X34: =H34 -> -2159095.475 | Y34: =I34 -> -2159095.475 | Z34: =J34 -> -2159095.475 | AA34: =K34 -> -2159095.475 | AB34: =L34 -> -2159095.475 | AC34: =M34 -> -2159095.475 | AD34: =N34 -> -2159095.475 | AE34: =O34 -> -2159095.475
C35: -0.05 | D35: =D$37*(1+C35) -> 0 | E35: -2159095.475 | F35: -2159095.475 | G35: -2159095.475 | H35: -2159095.475 | I35: -2159095.475 | J35: -2159095.475 | K35: -2159095.475 | L35: -2159095.475 | M35: -2159095.475 | N35: -2159095.475 | O35: -2159095.475 | S35: -0.05 | U35: -2159095.475 | V35: -2159095.475 | W35: -2159095.475 | X35: -2159095.475 | Y35: -2159095.475 | Z35: -2159095.475 | AA35: -2159095.475 | AB35: -2159095.475 | AC35: -2159095.475 | AD35: -2159095.475 | AE35: -2159095.475
C36: -0.02 | D36: =D$37*(1+C36) -> 0 | E36: -2159095.475 | F36: -2159095.475 | G36: -2159095.475 | H36: -2159095.475 | I36: -2159095.475 | J36: -2159095.475 | K36: -2159095.475 | L36: -2159095.475 | M36: -2159095.475 | N36: -2159095.475 | O36: -2159095.475 | S36: -0.02 | U36: -2159095.475 | V36: -2159095.475 | W36: -2159095.475 | X36: -2159095.475 | Y36: -2159095.475 | Z36: -2159095.475 | AA36: -2159095.475 | AB36: -2159095.475 | AC36: -2159095.475 | AD36: -2159095.475 | AE36: -2159095.475
C37: 0 | D37: 0 | E37: -2159095.475 | F37: -2159095.475 | G37: -2159095.475 | H37: -2159095.475 | I37: -2159095.475 | J37: -2159095.475 | K37: -2159095.475 | L37: -2159095.475 | M37: -2159095.475 | N37: -2159095.475 | O37: -2159095.475 | S37: 0 | U37: -2159095.475 | V37: -2159095.475 | W37: -2159095.475 | X37: -2159095.475 | Y37: -2159095.475 | Z37: -2159095.475 | AA37: -2159095.475 | AB37: -2159095.475 | AC37: -2159095.475 | AD37: -2159095.475 | AE37: -2159095.475
C38: 0.02 | D38: =D$37*(1+C38) -> 0 | E38: -2159095.475 | F38: -2159095.475 | G38: -2159095.475 | H38: -2159095.475 | I38: -2159095.475 | J38: -2159095.475 | K38: -2159095.475 | L38: -2159095.475 | M38: -2159095.475 | N38: -2159095.475 | O38: -2159095.475 | S38: 0.02 | U38: -2159095.475 | V38: -2159095.475 | W38: -2159095.475 | X38: -2159095.475 | Y38: -2159095.475 | Z38: -2159095.475 | AA38: -2159095.475 | AB38: -2159095.475 | AC38: -2159095.475 | AD38: -2159095.475 | AE38: -2159095.475
C39: 0.05 | D39: =D$37*(1+C39) -> 0 | E39: -2159095.475 | F39: -2159095.475 | G39: -2159095.475 | H39: -2159095.475 | I39: -2159095.475 | J39: -2159095.475 | K39: -2159095.475 | L39: -2159095.475 | M39: -2159095.475 | N39: -2159095.475 | O39: -2159095.475 | S39: 0.05 | U39: -2159095.475 | V39: -2159095.475 | W39: -2159095.475 | X39: -2159095.475 | Y39: -2159095.475 | Z39: -2159095.475 | AA39: -2159095.475 | AB39: -2159095.475 | AC39: -2159095.475 | AD39: -2159095.475 | AE39: -2159095.475
C40: 0.1 | D40: =D$37*(1+C40) -> 0 | E40: -2159095.475 | F40: -2159095.475 | G40: -2159095.475 | H40: -2159095.475 | I40: -2159095.475 | J40: -2159095.475 | K40: -2159095.475 | L40: -2159095.475 | M40: -2159095.475 | N40: -2159095.475 | O40: -2159095.475 | S40: 0.1 | U40: -2159095.475 | V40: -2159095.475 | W40: -2159095.475 | X40: -2159095.475 | Y40: -2159095.475 | Z40: -2159095.475 | AA40: -2159095.475 | AB40: -2159095.475 | AC40: -2159095.475 | AD40: -2159095.475 | AE40: -2159095.475
C41: 0.15 | D41: =D$37*(1+C41) -> 0 | E41: -2159095.475 | F41: -2159095.475 | G41: -2159095.475 | H41: -2159095.475 | I41: -2159095.475 | J41: -2159095.475 | K41: -2159095.475 | L41: -2159095.475 | M41: -2159095.475 | N41: -2159095.475 | O41: -2159095.475 | S41: 0.15 | U41: -2159095.475 | V41: -2159095.475 | W41: -2159095.475 | X41: -2159095.475 | Y41: -2159095.475 | Z41: -2159095.475 | AA41: -2159095.475 | AB41: -2159095.475 | AC41: -2159095.475 | AD41: -2159095.475 | AE41: -2159095.475
E42: Variation in Residential Gross Development Value | U42: Variation in Residential Gross Development Value
B43: Profit on GDV (%) | E43: =E$3 -> -0.1 | F43: =F$3 -> -0.07 | G43: -0.04 | H43: -0.02 | I43: -0.01 | J43: 0 | K43: 0.01 | L43: 0.02 | M43: 0.04 | N43: 0.07 | O43: 0.1 | R43: Profit on Cost (%) | U43: =U$3 -> -0.1 | V43: =V$3 -> -0.07 | W43: -0.04 | X43: -0.02 | Y43: -0.01 | Z43: 0 | AA43: 0.01 | AB43: 0.02 | AC43: 0.04 | AD43: 0.07 | AE43: 0.1
B44: Variation in Site Value (including Acquisition Costs) | C44: =C33 -> -0.15 | E44: =IF($BG$12>0,E33/$BG$12,0) -> -0.6111660031 | F44: =IF($BG$12>0,F33/$BG$12,0) -> -0.6111660031 | G44: -0.6111660031 | H44: -0.6111660031 | I44: -0.6111660031 | J44: -0.6111660031 | K44: -0.6111660031 | L44: -0.6111660031 | M44: -0.6111660031 | N44: -0.6111660031 | O44: =IF($BG$12>0,O33/$BG$12,0) -> -0.6111660031 | R44: Variation in Site Value (including Acquisition Costs) | S44: =S33 -> -0.15 | U44: =IF($BG$30>0,U33/$BG$30,0) -> -0.7197955501 | V44: =IF($BG$30>0,V33/$BG$30,0) -> -0.7197955501 | W44: -0.7197955501 | X44: -0.7197955501 | Y44: -0.7197955501 | Z44: -0.7197955501 | AA44: -0.7197955501 | AB44: -0.7197955501 | AC44: -0.7197955501 | AD44: -0.7197955501 | AE44: -0.7197955501
C45: =C34 -> -0.1 | E45: =IF($BG$12>0,E34/$BG$12,0) -> -0.6111660031 | F45: -0.6111660031 | G45: -0.6111660031 | H45: -0.6111660031 | I45: -0.6111660031 | J45: -0.6111660031 | K45: -0.6111660031 | L45: -0.6111660031 | M45: -0.6111660031 | N45: -0.6111660031 | O45: -0.6111660031 | S45: =S34 -> -0.1 | U45: =IF($BG$30>0,U34/$BG$30,0) -> -0.7197955501 | V45: -0.7197955501 | W45: -0.7197955501 | X45: -0.7197955501 | Y45: -0.7197955501 | Z45: -0.7197955501 | AA45: -0.7197955501 | AB45: -0.7197955501 | AC45: -0.7197955501 | AD45: -0.7197955501 | AE45: -0.7197955501
C46: =C35 -> -0.05 | E46: =IF($BG$12>0,E35/$BG$12,0) -> -0.6111660031 | F46: -0.6111660031 | G46: -0.6111660031 | H46: -0.6111660031 | I46: -0.6111660031 | J46: -0.6111660031 | K46: -0.6111660031 | L46: -0.6111660031 | M46: -0.6111660031 | N46: -0.6111660031 | O46: -0.6111660031 | S46: -0.05 | U46: =IF($BG$30>0,U35/$BG$30,0) -> -0.7197955501 | V46: -0.7197955501 | W46: -0.7197955501 | X46: -0.7197955501 | Y46: -0.7197955501 | Z46: -0.7197955501 | AA46: -0.7197955501 | AB46: -0.7197955501 | AC46: -0.7197955501 | AD46: -0.7197955501 | AE46: -0.7197955501
C47: =C36 -> -0.02 | E47: =IF($BG$12>0,E36/$BG$12,0) -> -0.6111660031 | F47: -0.6111660031 | G47: -0.6111660031 | H47: -0.6111660031 | I47: -0.6111660031 | J47: -0.6111660031 | K47: -0.6111660031 | L47: -0.6111660031 | M47: -0.6111660031 | N47: -0.6111660031 | O47: -0.6111660031 | S47: -0.02 | U47: =IF($BG$30>0,U36/$BG$30,0) -> -0.7197955501 | V47: -0.7197955501 | W47: -0.7197955501 | X47: -0.7197955501 | Y47: -0.7197955501 | Z47: -0.7197955501 | AA47: -0.7197955501 | AB47: -0.7197955501 | AC47: -0.7197955501 | AD47: -0.7197955501 | AE47: -0.7197955501
C48: =C37 -> 0 | E48: =IF($BG$12>0,E37/$BG$12,0) -> -0.6111660031 | F48: -0.6111660031 | G48: -0.6111660031 | H48: -0.6111660031 | I48: -0.6111660031 | J48: -0.6111660031 | K48: -0.6111660031 | L48: -0.6111660031 | M48: -0.6111660031 | N48: -0.6111660031 | O48: -0.6111660031 | S48: 0 | U48: =IF($BG$30>0,U37/$BG$30,0) -> -0.7197955501 | V48: -0.7197955501 | W48: -0.7197955501 | X48: -0.7197955501 | Y48: -0.7197955501 | Z48: -0.7197955501 | AA48: -0.7197955501 | AB48: -0.7197955501 | AC48: -0.7197955501 | AD48: -0.7197955501 | AE48: -0.7197955501
C49: =C38 -> 0.02 | E49: =IF($BG$12>0,E38/$BG$12,0) -> -0.6111660031 | F49: -0.6111660031 | G49: -0.6111660031 | H49: -0.6111660031 | I49: -0.6111660031 | J49: -0.6111660031 | K49: -0.6111660031 | L49: -0.6111660031 | M49: -0.6111660031 | N49: -0.6111660031 | O49: -0.6111660031 | S49: 0.02 | U49: =IF($BG$30>0,U38/$BG$30,0) -> -0.7197955501 | V49: -0.7197955501 | W49: -0.7197955501 | X49: -0.7197955501 | Y49: -0.7197955501 | Z49: -0.7197955501 | AA49: -0.7197955501 | AB49: -0.7197955501 | AC49: -0.7197955501 | AD49: -0.7197955501 | AE49: -0.7197955501
C50: 0.05 | E50: =IF($BG$12>0,E39/$BG$12,0) -> -0.6111660031 | F50: -0.6111660031 | G50: -0.6111660031 | H50: -0.6111660031 | I50: -0.6111660031 | J50: -0.6111660031 | K50: -0.6111660031 | L50: -0.6111660031 | M50: -0.6111660031 | N50: -0.6111660031 | O50: -0.6111660031 | S50: 0.05 | U50: =IF($BG$30>0,U39/$BG$30,0) -> -0.7197955501 | V50: -0.7197955501 | W50: -0.7197955501 | X50: -0.7197955501 | Y50: -0.7197955501 | Z50: -0.7197955501 | AA50: -0.7197955501 | AB50: -0.7197955501 | AC50: -0.7197955501 | AD50: -0.7197955501 | AE50: -0.7197955501
C51: 0.1 | E51: =IF($BG$12>0,E40/$BG$12,0) -> -0.6111660031 | F51: -0.6111660031 | G51: -0.6111660031 | H51: -0.6111660031 | I51: -0.6111660031 | J51: -0.6111660031 | K51: -0.6111660031 | L51: -0.6111660031 | M51: -0.6111660031 | N51: -0.6111660031 | O51: -0.6111660031 | S51: 0.1 | U51: =IF($BG$30>0,U40/$BG$30,0) -> -0.7197955501 | V51: -0.7197955501 | W51: -0.7197955501 | X51: =IF($BG$30>0,X40/$BG$30,0) -> -0.7197955501 | Y51: -0.7197955501 | Z51: -0.7197955501 | AA51: -0.7197955501 | AB51: -0.7197955501 | AC51: -0.7197955501 | AD51: -0.7197955501 | AE51: -0.7197955501
C52: 0.15 | E52: =IF($BG$12>0,E41/$BG$12,0) -> -0.6111660031 | F52: =IF($BG$12>0,F41/$BG$12,0) -> -0.6111660031 | G52: -0.6111660031 | H52: -0.6111660031 | I52: -0.6111660031 | J52: -0.6111660031 | K52: -0.6111660031 | L52: -0.6111660031 | M52: -0.6111660031 | N52: -0.6111660031 | O52: =IF($BG$12>0,O41/$BG$12,0) -> -0.6111660031 | S52: 0.15 | U52: =IF($BG$30>0,U41/$BG$30,0) -> -0.7197955501 | V52: -0.7197955501 | W52: -0.7197955501 | X52: -0.7197955501 | Y52: -0.7197955501 | Z52: -0.7197955501 | AA52: -0.7197955501 | AB52: -0.7197955501 | AC52: -0.7197955501 | AD52: -0.7197955501 | AE52: -0.7197955501
B54: OM Values /AH %age | E54: Variations in Percentage of Affordable Housing (assuming same split between Social Rent and Intermediate tenures as appears on Appraisal sheet) | R54: OM Values /AH %age | U54: Variations in Percentage of Affordable Housing (assuming same split between Social Rent and Intermediate tenures as appears on Appraisal sheet)
B55: Profit on GDV (%) | E55: -0.1 | F55: -0.07 | G55: -0.04 | H55: -0.02 | I55: -0.01 | J55: 0 | K55: 0.01 | L55: 0.02 | M55: 0.04 | N55: 0.07 | O55: 0.1 | R55: Profit on Cost (%) | U55: =E55 -> -0.1 | V55: =F55 -> -0.07 | W55: -0.04 | X55: -0.02 | Y55: -0.01 | Z55: =J55 -> 0 | AA55: =K55 -> 0.01 | AB55: =L55 -> 0.02 | AC55: 0.04 | AD55: 0.07 | AE55: 0.1
D56: =IFERROR(BH67,0) -> 0.1509172251 | E56: =$J$56+E55 -> -0.1 | F56: -0.07 | G56: -0.04 | H56: -0.02 | I56: =$J$56+I55 -> -0.01 | J56: 0 | K56: =$J$56+K55 -> 0.01 | L56: =$J$56+L55 -> 0.02 | M56: 0.04 | N56: 0.07 | O56: 0.1 | T56: =IF(ISERROR(BG58/BG65),0,BG58/BG65) -> 1.016803774 | U56: =$Z$56+U55 -> -0.1 | V56: =$Z$56+V55 -> -0.07 | W56: -0.04 | X56: -0.02 | Y56: =$Z$56+Y55 -> -0.01 | Z56: =J56 -> 0 | AA56: =$Z$56+AA55 -> 0.01 | AB56: =$Z$56+AB55 -> 0.02 | AC56: 0.04 | AD56: 0.07 | AE56: 0.1
B57: Variation in OM Residential Values | C57: -0.05 | D57: =$D$62*(1+C57) -> 0 | E57: 0 | F57: 0 | G57: 0 | H57: 0 | I57: 0 | J57: 0 | K57: 0 | L57: 0 | M57: 0 | N57: -23.85433788 | O57: -23.85433788 | R57: Variation in OM Residential Values | S57: =C57 -> -0.05 | T57: =$T$62*(1+S57) -> 0 | U57: 0 | V57: 0 | W57: 0 | X57: 0 | Y57: 0 | Z57: 0 | AA57: 0 | AB57: 0 | AC57: 0 | AD57: 0 | AE57: 0 | BC57: Gross Development Value | BE57: Units (N°) | BJ57: Avge Unit Value
C58: -0.04 | D58: =$D$62*(1+C58) -> 0 | E58: 0 | F58: 0 | G58: 0 | H58: 0 | I58: 0 | J58: 0 | K58: 0 | L58: 0 | M58: 0 | N58: -23.85433788 | O58: -23.85433788 | S58: =C58 -> -0.04 | T58: 0 | U58: 0 | V58: 0 | W58: 0 | X58: 0 | Y58: 0 | Z58: 0 | AA58: 0 | AB58: 0 | AC58: 0 | AD58: 0 | AE58: 0 | BC58: Open Market Housing | BE58: =BE60-BE59 -> 6 | BG58: =BE58*BJ58 -> 3050000 | BJ58: =Appraisal!M15 -> 508333.3334
C59: -0.03 | D59: 0 | E59: 0 | F59: 0 | G59: 0 | H59: 0 | I59: 0 | J59: 0 | K59: 0 | L59: 0 | M59: 0 | N59: -23.85433788 | O59: -23.85433788 | S59: -0.03 | T59: 0 | U59: 0 | V59: 0 | W59: 0 | X59: 0 | Y59: 0 | Z59: 0 | AA59: 0 | AB59: 0 | AC59: 0 | AD59: 0 | AE59: 0 | BC59: Affordable Housing | BD59: =BD7 -> 0.4 | BE59: =ROUND(BD59*BE60,0) -> 4 | BG59: =BE59*BJ59 -> 482748 | BJ59: =BG7/BE7 -> 120687
C60: -0.02 | D60: 0 | E60: 0 | F60: 0 | G60: 0 | H60: 0 | I60: 0 | J60: 0 | K60: 0 | L60: 0 | M60: 0 | N60: -23.85433788 | O60: -23.85433788 | S60: -0.02 | T60: 0 | U60: 0 | V60: 0 | W60: 0 | X60: 0 | Y60: 0 | Z60: 0 | AA60: 0 | AB60: 0 | AC60: 0 | AD60: 0 | AE60: 0 | BC60: RESIDENTIAL GDV | BE60: =BE8 -> 10 | BG60: =SUM(BG58:BG59) -> 3532748
C61: -0.01 | D61: 0 | E61: 0 | F61: 0 | G61: 0 | H61: 0 | I61: 0 | J61: 0 | K61: 0 | L61: 0 | M61: 0 | N61: -23.85433788 | O61: -23.85433788 | S61: -0.01 | T61: =$T$62*(1+S61) -> 0 | U61: 0 | V61: 0 | W61: 0 | X61: 0 | Y61: 0 | Z61: 0 | AA61: 0 | AB61: 0 | AC61: 0 | AD61: 0 | AE61: 0 | BC61: Commercial NDV | BG61: =BG9 -> 0
C62: 0 | D62: 0 | E62: 0 | F62: 0 | G62: 0 | H62: 0 | I62: 0 | J62: 0 | K62: 0 | L62: 0 | M62: 0 | N62: -23.85433788 | O62: -23.85433788 | S62: =C62 -> 0 | T62: =D62 -> 0 | U62: 0 | V62: 0 | W62: 0 | X62: 0 | Y62: 0 | Z62: 0 | AA62: 0 | AB62: 0 | AC62: 0 | AD62: 0 | AE62: 0 | BC62: TOTAL SALES REVENUE | BG62: =SUM(BG60:BG61) -> 3532748
C63: 0.01 | D63: 0 | E63: 0 | F63: 0 | G63: 0 | H63: 0 | I63: 0 | J63: 0 | K63: 0 | L63: 0 | M63: 0 | N63: -23.85433788 | O63: -23.85433788 | S63: =C63 -> 0.01 | T63: =$T$62*(1+S63) -> 0 | U63: 0 | V63: 0 | W63: 0 | X63: 0 | Y63: 0 | Z63: 0 | AA63: 0 | AB63: 0 | AC63: 0 | AD63: 0 | AE63: 0 | BC63: Other Revenue (Grant or Income) | BG63: =BG11 -> 0
C64: 0.02 | D64: 0 | E64: 0 | F64: 0 | G64: 0 | H64: 0 | I64: 0 | J64: 0 | K64: 0 | L64: 0 | M64: 0 | N64: -23.85433788 | O64: -23.85433788 | S64: =C64 -> 0.02 | T64: =$T$62*(1+S64) -> 0 | U64: 0 | V64: 0 | W64: 0 | X64: 0 | Y64: 0 | Z64: 0 | AA64: 0 | AB64: 0 | AC64: 0 | AD64: 0 | AE64: 0 | BC64: TOTAL DEVELOPMENT REVENUE | BG64: =SUM(BG62:BG63) -> 3532748
C65: 0.03 | D65: 0 | E65: 0 | F65: 0 | G65: 0 | H65: 0 | I65: 0 | J65: 0 | K65: 0 | L65: 0 | M65: 0 | N65: -23.85433788 | O65: -23.85433788 | S65: 0.03 | T65: 0 | U65: 0 | V65: 0 | W65: 0 | X65: 0 | Y65: 0 | Z65: 0 | AA65: 0 | AB65: 0 | AC65: 0 | AD65: 0 | AE65: 0 | BC65: TOTAL DEVELOPMENT COSTS | BG65: =BG30 -> 2999595.475
C66: 0.04 | D66: 0 | E66: 0 | F66: 0 | G66: 0 | H66: 0 | I66: 0 | J66: 0 | K66: 0 | L66: 0 | M66: 0 | N66: -23.85433788 | O66: -23.85433788 | S66: 0.04 | T66: 0 | U66: 0 | V66: 0 | W66: 0 | X66: 0 | Y66: 0 | Z66: 0 | AA66: 0 | AB66: 0 | AC66: 0 | AD66: 0 | AE66: 0
C67: 0.05 | D67: 0 | E67: 0 | F67: 0 | G67: 0 | H67: 0 | I67: 0 | J67: 0 | K67: 0 | L67: 0 | M67: 0 | N67: -23.85433788 | O67: -23.85433788 | S67: 0.05 | T67: 0 | U67: 0 | V67: 0 | W67: 0 | X67: 0 | Y67: 0 | Z67: 0 | AA67: 0 | AB67: 0 | AC67: 0 | AD67: 0 | AE67: 0 | BE67: Profit | BG67: =BG64-BG65 -> 533152.5251 | BH67: =IF(BG$60>0,BG67/BG$60,0) -> 0.1509172251
B69: Aff Hsg %age | C69: =Appraisal!D7 -> 0.4 | E69: Changes in the Proportions of Social Rented and Intermediate Tenure | R69: Aff Hsg %age | S69: =Appraisal!D7 -> 0.4 | U69: Changes in the Proportions of Social Rented and Intermediate Tenure
B70: Social Rented | C70: =Appraisal!R16 -> 0.75 | E70: 0 | F70: 0.1 | G70: 0.2 | H70: 0.3 | I70: 0.4 | J70: 0.5 | K70: 0.6 | L70: 0.7 | M70: 0.8 | N70: 0.9 | O70: 1 | R70: Social Rented | S70: =Appraisal!R16 -> 0.75 | U70: 0 | V70: 0.1 | W70: 0.2 | X70: 0.3 | Y70: 0.4 | Z70: 0.5 | AA70: 0.6 | AB70: 0.7 | AC70: 0.8 | AD70: 0.9 | AE70: 1 | BC70: Gross Development Value | BE70: Units (N°) | BH70: % GDV | BJ70: Avge Unit Value
B71: Intermediate | C71: =Appraisal!R17 -> 0.25 | E71: =1-E70 -> 1 | F71: =1-F70 -> 0.9 | G71: 0.8 | H71: 0.7 | I71: 0.6 | J71: 0.5 | K71: 0.4 | L71: 0.3 | M71: 0.2 | N71: 0.1 | O71: 0 | R71: Intermediate | S71: =Appraisal!R17 -> 0.25 | U71: =1-U70 -> 1 | V71: =1-V70 -> 0.9 | W71: 0.8 | X71: 0.7 | Y71: 0.6 | Z71: 0.5 | AA71: 0.4 | AB71: 0.3 | AC71: 0.2 | AD71: 0.1 | AE71: 0 | BC71: Open Market Housing | BE71: =OM_Sales -> 6 | BG71: =BG6 -> 3050000
B72: Development Profit (£) | E72: =$E76 -> 50404.52508 | F72: =$E77 -> 50404.52508 | G72: =$E78 -> 50404.52508 | H72: =$E79 -> 50404.52508 | I72: =$E80 -> 50404.52508 | J72: =$E81 -> 50404.52508 | K72: =$E82 -> 50404.52508 | L72: =$E83 -> 50404.52508 | M72: =$E84 -> 50404.52508 | N72: =$E85 -> 50404.52508 | O72: =$E86 -> 50404.52508 | R72: Development Profit (£) | U72: =$E76 -> 50404.52508 | V72: =$E77 -> 50404.52508 | W72: =$E78 -> 50404.52508 | X72: =$E79 -> 50404.52508 | Y72: =$E80 -> 50404.52508 | Z72: =$E81 -> 50404.52508 | AA72: =$E82 -> 50404.52508 | AB72: =$E83 -> 50404.52508 | AC72: =$E84 -> 50404.52508 | AD72: =$E85 -> 50404.52508 | AE72: =$E86 -> 50404.52508 | BC72: AH - Social Rented | BD72: =Appraisal!R16 -> 0.75 | BE72: =BD72*$BE$7 -> 3 | BG72: =BE72*BJ72 -> 0 | BI72: SR
B73: Profit on GDV (%) | E73: =IFERROR(E72/$BG$74,0) -> 0.01652607379 | F73: =IFERROR(F72/$BG$74,0) -> 0.01652607379 | G73: 0.01652607379 | H73: 0.01652607379 | I73: 0.01652607379 | J73: 0.01652607379 | K73: 0.01652607379 | L73: 0.01652607379 | M73: 0.01652607379 | N73: 0.01652607379 | O73: =IFERROR(O72/$BG$74,0) -> 0.01652607379 | R73: Profit on Cost (%) | U73: =IFERROR(U72/$BG$65,0) -> 0.01680377421 | V73: =IFERROR(V72/$BG$65,0) -> 0.01680377421 | W73: 0.01680377421 | X73: 0.01680377421 | Y73: 0.01680377421 | Z73: 0.01680377421 | AA73: 0.01680377421 | AB73: 0.01680377421 | AC73: =IFERROR(AC72/$BG$65,0) -> 0.01680377421 | AD73: =IFERROR(AD72/$BG$65,0) -> 0.01680377421 | AE73: =IFERROR(AE72/$BG$65,0) -> 0.01680377421 | BC73: AH - Intermediate | BD73: =1-BD72 -> 0.25 | BE73: =BE7-BE72 -> 1 | BG73: =BE73*BJ73 -> 0 | BI73: Int
BC74: RESIDENTIAL GDV | BE74: =SUM(BE71:BE73) -> 10 | BG74: =SUM(BG71:BG73) -> 3050000
E75: =BG81 -> 50404.52508 | BC75: Commercial NDV | BG75: =BG9 -> 0 | BI75: SR | BJ75: =Appraisal!M16 -> 103446
D76: 0 | E76: 50404.52508 | BC76: TOTAL SALES REVENUE | BG76: =SUM(BG74:BG75) -> 3050000 | BI76: Int | BJ76: =Appraisal!M17 -> 172410
D77: 0.1 | E77: 50404.52508 | BC77: Other Revenue (Grant or Income) | BG77: =BG11 -> 0 | BI77: SR% | BJ77: =SRpcent -> 0.42
D78: 0.2 | E78: 50404.52508 | BC78: TOTAL DEVELOPMENT REVENUE | BG78: =SUM(BG76:BG77) -> 3050000 | BI78: Int% | BJ78: =Intpcent -> 0.7
D79: 0.3 | E79: 50404.52508 | BC79: TOTAL DEVELOPMENT COSTS | BG79: =BG30 -> 2999595.475
D80: 0.4 | E80: 50404.52508
D81: 0.5 | E81: 50404.52508 | BE81: Profit | BG81: =BG78-BG79 -> 50404.52508 | BH81: =IF(BG$74>0,BG81/BG$74,0) -> 0.01652607379
D82: 0.6 | E82: 50404.52508
D83: 0.7 | E83: 50404.52508
D84: 0.8 | E84: 50404.52508
D85: 0.9 | E85: 50404.52508
D86: 1 | E86: 50404.52508

Sheet Cashflow
A1: ="Cashflow - "&SiteName -> Cashflow - Land North of A466 Llandogo | C1: ="LPA: "&LPA&", Site Ref: "&SiteRef -> LPA: Monmouthshire County Council, Site Ref: CS/0101
A2: =SUMIF(A14:A20,"AH Units",B14:B20) -> -484000 | B2: =CommCreated -> 0
A3: =ResiCreated -> Yes | B3: Total | C3: =DevStartDate -> 2024-08-01 | D3: =EOMONTH($C$3,D4-1) -> 2024-09-30 | E3: =EOMONTH($C$3,E4-1) -> 2024-10-31 | F3: 2024-11-30 | G3: 2024-12-31 | H3: 2025-01-31 | I3: 2025-02-28 | J3: 2025-03-31 | K3: 2025-04-30 | L3: 2025-05-31 | M3: 2025-06-30 | N3: 2025-07-31 | O3: 2025-08-31 | P3: 2025-09-30 | Q3: 2025-10-31 | R3: 2025-11-30 | S3: 2025-12-31 | T3: 2026-01-31 | U3: 2026-02-28 | V3: 2026-03-31 | W3: 2026-04-30 | X3: 2026-05-31 | Y3: 2026-06-30 | Z3: 2026-07-31 | AA3: 2026-08-31 | AB3: 2026-09-30 | AC3: 2026-10-31 | AD3: 2026-11-30 | AE3: 2026-12-31 | AF3: 2027-01-31 | AG3: 2027-02-28 | AH3: 2027-03-31 | AI3: 2027-04-30 | AJ3: 2027-05-31 | AK3: 2027-06-30 | AL3: 2027-07-31 | AM3: 2027-08-31 | AN3: 2027-09-30 | AO3: 2027-10-31 | AP3: 2027-11-30 | AQ3: 2027-12-31 | AR3: 2028-01-31 | AS3: 2028-02-29 | AT3: 2028-03-31 | AU3: 2028-04-30 | AV3: 2028-05-31 | AW3: 2028-06-30 | AX3: 2028-07-31 | AY3: 2028-08-31 | AZ3: 2028-09-30 | BA3: 2028-10-31 | BB3: 2028-11-30 | BC3: 2028-12-31 | BD3: 2029-01-31 | BE3: 2029-02-28 | BF3: 2029-03-31 | BG3: 2029-04-30 | BH3: 2029-05-31 | BI3: 2029-06-30 | BJ3: 2029-07-31
A4: =_xlfn.ISFORMULA(Costs!B27) -> TRUE | B4: =SUMIF(A22:A26,"Net Rental Income",B22:B26) -> 0 | C4: 1 | D4: =C4+1 -> 2 | E4: =D4+1 -> 3 | F4: 4 | G4: 5 | H4: 6 | I4: 7 | J4: 8 | K4: 9 | L4: 10 | M4: 11 | N4: 12 | O4: 13 | P4: 14 | Q4: 15 | R4: 16 | S4: 17 | T4: 18 | U4: 19 | V4: 20 | W4: 21 | X4: 22 | Y4: 23 | Z4: 24 | AA4: 25 | AB4: 26 | AC4: 27 | AD4: 28 | AE4: 29 | AF4: 30 | AG4: 31 | AH4: 32 | AI4: 33 | AJ4: 34 | AK4: 35 | AL4: 36 | AM4: 37 | AN4: 38 | AO4: 39 | AP4: 40 | AQ4: 41 | AR4: 42 | AS4: 43 | AT4: 44 | AU4: 45 | AV4: 46 | AW4: 47 | AX4: 48 | AY4: 49 | AZ4: 50 | BA4: 51 | BB4: 52 | BC4: 53 | BD4: 54 | BE4: 55 | BF4: 56 | BG4: 57 | BH4: 58 | BI4: 59 | BJ4: 60
A5: RESIDENTIAL SALES | B5: =SUM(B6:B12) -> 3532748 | C5: =SUM(C6:C12) -> 0 | D5: =SUM(D6:D12) -> 0 | E5: =SUM(E6:E12) -> 0 | F5: =SUM(F6:F12) -> 0 | G5: =SUM(G6:G12) -> 0 | H5: =SUM(H6:H12) -> 0 | I5: =SUM(I6:I12) -> 0 | J5: =SUM(J6:J12) -> 0 | K5: =SUM(K6:K12) -> 0 | L5: =SUM(L6:L12) -> 0 | M5: =SUM(M6:M12) -> 991081.3333 | N5: =SUM(N6:N12) -> 406666.6667 | O5: =SUM(O6:O12) -> 406666.6667 | P5: =SUM(P6:P12) -> 406666.6667 | Q5: =SUM(Q6:Q12) -> 406666.6667 | R5: =SUM(R6:R12) -> 406666.6667 | S5: =SUM(S6:S12) -> 254166.6667 | T5: =SUM(T6:T12) -> 254166.6667 | U5: =SUM(U6:U12) -> 0 | V5: =SUM(V6:V12) -> 0 | W5: =SUM(W6:W12) -> 0 | X5: =SUM(X6:X12) -> 0 | Y5: =SUM(Y6:Y12) -> 0 | Z5: =SUM(Z6:Z12) -> 0 | AA5: =SUM(AA6:AA12) -> 0 | AB5: =SUM(AB6:AB12) -> 0 | AC5: =SUM(AC6:AC12) -> 0 | AD5: =SUM(AD6:AD12) -> 0 | AE5: =SUM(AE6:AE12) -> 0 | AF5: =SUM(AF6:AF12) -> 0 | AG5: =SUM(AG6:AG12) -> 0 | AH5: =SUM(AH6:AH12) -> 0 | AI5: =SUM(AI6:AI12) -> 0 | AJ5: =SUM(AJ6:AJ12) -> 0 | AK5: =SUM(AK6:AK12) -> 0 | AL5: =SUM(AL6:AL12) -> 0 | AM5: =SUM(AM6:AM12) -> 0 | AN5: =SUM(AN6:AN12) -> 0 | AO5: =SUM(AO6:AO12) -> 0 | AP5: =SUM(AP6:AP12) -> 0 | AQ5: =SUM(AQ6:AQ12) -> 0 | AR5: =SUM(AR6:AR12) -> 0 | AS5: =SUM(AS6:AS12) -> 0 | AT5: =SUM(AT6:AT12) -> 0 | AU5: =SUM(AU6:AU12) -> 0 | AV5: =SUM(AV6:AV12) -> 0 | AW5: =SUM(AW6:AW12) -> 0 | AX5: =SUM(AX6:AX12) -> 0 | AY5: =SUM(AY6:AY12) -> 0 | AZ5: =SUM(AZ6:AZ12) -> 0 | BA5: =SUM(BA6:BA12) -> 0 | BB5: =SUM(BB6:BB12) -> 0 | BC5: =SUM(BC6:BC12) -> 0 | BD5: =SUM(BD6:BD12) -> 0 | BE5: =SUM(BE6:BE12) -> 0 | BF5: =SUM(BF6:BF12) -> 0 | BG5: =SUM(BG6:BG12) -> 0 | BH5: =SUM(BH6:BH12) -> 0 | BI5: =SUM(BI6:BI12) -> 0 | BJ5: =SUM(BJ6:BJ12) -> 0
A6: ='Resi 1'!$A$1 -> Social
A7: OM Dwellings | B7: =SUM(C7:BJ7) -> 0
A8: AH Units | B8: =SUM(C8:BJ8) -> 482748 | M8: =482748*Appraisal!$M$21 -> 482748
A9: ='Resi 2'!$A$1 -> Open Market
A10: OM Dwellings | B10: =SUM(C10:BJ10) -> 3050000 | M10: =508333.3333*Appraisal!$M$20 -> 508333.3333 | N10: =406666.6667*Appraisal!$M$20 -> 406666.6667 | O10: =406666.6667*Appraisal!$M$20 -> 406666.6667 | P10: =406666.6667*Appraisal!$M$20 -> 406666.6667 | Q10: =406666.6667*Appraisal!$M$20 -> 406666.6667 | R10: =406666.6667*Appraisal!$M$20 -> 406666.6667 | S10: =254166.6667*Appraisal!$M$20 -> 254166.6667 | T10: =254166.6667*Appraisal!$M$20 -> 254166.6667
A11: AH Units | B11: =SUM(C11:BJ11) -> 0
A13: RESIDENTIAL BUILD COSTS | B13: =SUM(B14:B20) -> -1457500 | C13: =SUM(C14:C20) -> 0 | D13: =SUM(D14:D20) -> 0 | E13: =SUM(E14:E20) -> -182187.5 | F13: =SUM(F14:F20) -> -182187.5 | G13: =SUM(G14:G20) -> -182187.5 | H13: =SUM(H14:H20) -> -182187.5 | I13: =SUM(I14:I20) -> -182187.5 | J13: =SUM(J14:J20) -> -182187.5 | K13: =SUM(K14:K20) -> -182187.5 | L13: =SUM(L14:L20) -> -182187.5 | M13: =SUM(M14:M20) -> 0 | N13: =SUM(N14:N20) -> 0 | O13: =SUM(O14:O20) -> 0 | P13: =SUM(P14:P20) -> 0 | Q13: =SUM(Q14:Q20) -> 0 | R13: =SUM(R14:R20) -> 0 | S13: =SUM(S14:S20) -> 0 | T13: =SUM(T14:T20) -> 0 | U13: =SUM(U14:U20) -> 0 | V13: =SUM(V14:V20) -> 0 | W13: =SUM(W14:W20) -> 0 | X13: =SUM(X14:X20) -> 0 | Y13: =SUM(Y14:Y20) -> 0 | Z13: =SUM(Z14:Z20) -> 0 | AA13: =SUM(AA14:AA20) -> 0 | AB13: =SUM(AB14:AB20) -> 0 | AC13: =SUM(AC14:AC20) -> 0 | AD13: =SUM(AD14:AD20) -> 0 | AE13: =SUM(AE14:AE20) -> 0 | AF13: =SUM(AF14:AF20) -> 0 | AG13: =SUM(AG14:AG20) -> 0 | AH13: =SUM(AH14:AH20) -> 0 | AI13: =SUM(AI14:AI20) -> 0 | AJ13: =SUM(AJ14:AJ20) -> 0 | AK13: =SUM(AK14:AK20) -> 0 | AL13: =SUM(AL14:AL20) -> 0 | AM13: =SUM(AM14:AM20) -> 0 | AN13: =SUM(AN14:AN20) -> 0 | AO13: =SUM(AO14:AO20) -> 0 | AP13: =SUM(AP14:AP20) -> 0 | AQ13: =SUM(AQ14:AQ20) -> 0 | AR13: =SUM(AR14:AR20) -> 0 | AS13: =SUM(AS14:AS20) -> 0 | AT13: =SUM(AT14:AT20) -> 0 | AU13: =SUM(AU14:AU20) -> 0 | AV13: =SUM(AV14:AV20) -> 0 | AW13: =SUM(AW14:AW20) -> 0 | AX13: =SUM(AX14:AX20) -> 0 | AY13: =SUM(AY14:AY20) -> 0 | AZ13: =SUM(AZ14:AZ20) -> 0 | BA13: =SUM(BA14:BA20) -> 0 | BB13: =SUM(BB14:BB20) -> 0 | BC13: =SUM(BC14:BC20) -> 0 | BD13: =SUM(BD14:BD20) -> 0 | BE13: =SUM(BE14:BE20) -> 0 | BF13: =SUM(BF14:BF20) -> 0 | BG13: =SUM(BG14:BG20) -> 0 | BH13: =SUM(BH14:BH20) -> 0 | BI13: =SUM(BI14:BI20) -> 0 | BJ13: =SUM(BJ14:BJ20) -> 0
A14: ='Resi 1'!$A$1 -> Social
A15: OM Dwellings | B15: =SUM(C15:BJ15) -> 0
A16: AH Units | B16: =SUM(C16:BJ16) -> -484000 | E16: =-60500*Appraisal!$M$23 -> -60500 | F16: =-60500*Appraisal!$M$23 -> -60500 | G16: =-60500*Appraisal!$M$23 -> -60500 | H16: =-60500*Appraisal!$M$23 -> -60500 | I16: =-60500*Appraisal!$M$23 -> -60500 | J16: =-60500*Appraisal!$M$23 -> -60500 | K16: =-60500*Appraisal!$M$23 -> -60500 | L16: =-60500*Appraisal!$M$23 -> -60500
A17: ='Resi 2'!$A$1 -> Open Market
A18: OM Dwellings | B18: =SUM(C18:BJ18) -> -973500 | E18: =121687.5*-1*Appraisal!$M$23 -> -121687.5 | F18: =121687.5*-1*Appraisal!$M$23 -> -121687.5 | G18: =121687.5*-1*Appraisal!$M$23 -> -121687.5 | H18: =121687.5*-1*Appraisal!$M$23 -> -121687.5 | I18: =121687.5*-1*Appraisal!$M$23 -> -121687.5 | J18: =121687.5*-1*Appraisal!$M$23 -> -121687.5 | K18: =121687.5*-1*Appraisal!$M$23 -> -121687.5 | L18: =121687.5*-1*Appraisal!$M$23 -> -121687.5
A19: AH Units | B19: =SUM(C19:BJ19) -> 0
A21: COMMERCIAL/INVESTMENT | B21: =SUM(B22:B26) -> 0 | C21: =SUM(C22:C26) -> 0 | D21: =SUM(D22:D26) -> 0 | E21: 0 | F21: 0 | G21: 0 | H21: 0 | I21: 0 | J21: 0 | K21: 0 | L21: 0 | M21: 0 | N21: 0 | O21: 0 | P21: 0 | Q21: 0 | R21: 0 | S21: 0 | T21: 0 | U21: 0 | V21: 0 | W21: 0 | X21: 0 | Y21: 0 | Z21: 0 | AA21: 0 | AB21: 0 | AC21: 0 | AD21: 0 | AE21: 0 | AF21: 0 | AG21: 0 | AH21: 0 | AI21: 0 | AJ21: 0 | AK21: 0 | AL21: 0 | AM21: 0 | AN21: 0 | AO21: 0 | AP21: 0 | AQ21: 0 | AR21: 0 | AS21: 0 | AT21: 0 | AU21: 0 | AV21: 0 | AW21: 0 | AX21: 0 | AY21: 0 | AZ21: 0 | BA21: 0 | BB21: 0 | BC21: 0 | BD21: 0 | BE21: 0 | BF21: 0 | BG21: 0 | BH21: 0 | BI21: 0 | BJ21: 0
A23: Sales Revenue
A24: Net Rental Income
A25: Build Costs
A27: TOTAL SITE COSTS | B27: =SUM(B28:B37) -> -870500 | C27: =SUM(C28:C37) -> -870500 | D27: =SUM(D28:D37) -> 0 | E27: 0 | F27: 0 | G27: 0 | H27: 0 | I27: 0 | J27: 0 | K27: 0 | L27: 0 | M27: 0 | N27: 0 | O27: 0 | P27: 0 | Q27: 0 | R27: 0 | S27: 0 | T27: 0 | U27: 0 | V27: 0 | W27: 0 | X27: 0 | Y27: 0 | Z27: 0 | AA27: 0 | AB27: 0 | AC27: 0 | AD27: 0 | AE27: 0 | AF27: 0 | AG27: 0 | AH27: 0 | AI27: 0 | AJ27: 0 | AK27: 0 | AL27: 0 | AM27: 0 | AN27: 0 | AO27: 0 | AP27: 0 | AQ27: 0 | AR27: 0 | AS27: 0 | AT27: 0 | AU27: 0 | AV27: 0 | AW27: 0 | AX27: 0 | AY27: 0 | AZ27: 0 | BA27: 0 | BB27: 0 | BC27: 0 | BD27: 0 | BE27: 0 | BF27: 0 | BG27: 0 | BH27: 0 | BI27: 0 | BJ27: 0
A28: =Land!A7 -> Land Price/Cost | B28: =SUM(C28:BJ28) -> -800000 | C28: =-Land!B7 -> -800000
A29: =Land!A8 -> Land Transaction Tax (LTT) | B29: =SUM(C29:BJ29) -> -28500 | C29: =-Land!B8 -> -28500
A30: =Land!A10 -> Acquistion Fees | B30: -12000 | C30: =-Land!B10 -> -12000
A31: =Land!A11 -> Site Surveys | B31: -20000 | C31: =-Land!B11 -> -20000
A32: =Land!A12 -> Planning/Promotional Costs | B32: -10000 | C32: =-Land!B12 -> -10000
A33: =Land!A13 -> 0 | B33: 0 | C33: =-Land!B13 -> 0
A34: =Land!A14 -> 0 | B34: 0 | C34: =-Land!B14 -> 0
A35: =Land!A15 -> 0 | B35: 0 | C35: =-Land!B15 -> 0
A36: =Land!A16 -> 0 | B36: 0 | C36: =-Land!B16 -> 0
A37: =Land!A17 -> 0 | B37: 0 | C37: =-Land!B17 -> 0
A39: COMMUNITY INFRASTRUCTURE | B39: =SUM(B40:B57) -> -70000 | C39: =SUM(C40:C57) -> 0 | D39: =SUM(D40:D57) -> 0 | E39: 0 | F39: 0 | G39: 0 | H39: 0 | I39: 0 | J39: 0 | K39: 0 | L39: 0 | M39: -19637.88341 | N39: -8057.938655 | O39: -8057.938655 | P39: -8057.938655 | Q39: -8057.938655 | R39: -8057.938655 | S39: -5036.21166 | T39: -5036.21166 | U39: 0 | V39: 0 | W39: 0 | X39: 0 | Y39: 0 | Z39: 0 | AA39: 0 | AB39: 0 | AC39: 0 | AD39: 0 | AE39: 0 | AF39: 0 | AG39: 0 | AH39: 0 | AI39: 0 | AJ39: 0 | AK39: 0 | AL39: 0 | AM39: 0 | AN39: 0 | AO39: 0 | AP39: 0 | AQ39: 0 | AR39: 0 | AS39: 0 | AT39: 0 | AU39: 0 | AV39: 0 | AW39: 0 | AX39: 0 | AY39: 0 | AZ39: 0 | BA39: 0 | BB39: 0 | BC39: 0 | BD39: 0 | BE39: 0 | BF39: 0 | BG39: 0 | BH39: 0 | BI39: 0 | BJ39: 0
A40: =Costs!A5 -> Primary Education | B40: =SUM(C40:BJ40) -> 0 | C40: =IF(Costs!$G5="Sales",IF(C$210>0,-Costs!$B5*C$210,0),IF(Costs!$G5="Build",IF(C$212>0,-Costs!$B5*C$212,0),IF(Costs!$G5="Single",IF(Costs!$H5=C$4,-Costs!$B5,0),0)))*Appraisal!$M$26 -> 0 | D40: =IF(Costs!$G5="Sales",IF(D$210>0,-Costs!$B5*D$210,0),IF(Costs!$G5="Build",IF(D$212>0,-Costs!$B5*D$212,0),IF(Costs!$G5="Single",IF(Costs!$H5=D$4,-Costs!$B5,0),0)))*Appraisal!$M$26 -> 0 | E40: =IF(Costs!$G5="Sales",IF(E$210>0,-Costs!$B5*E$210,0),IF(Costs!$G5="Build",IF(E$212>0,-Costs!$B5*E$212,0),IF(Costs!$G5="Single",IF(Costs!$H5=E$4,-Costs!$B5,0),0)))*Appraisal!$M$26 -> 0 | F40: =IF(Costs!$G5="Sales",IF(F$210>0,-Costs!$B5*F$210,0),IF(Costs!$G5="Build",IF(F$212>0,-Costs!$B5*F$212,0),IF(Costs!$G5="Single",IF(Costs!$H5=F$4,-Costs!$B5,0),0)))*Appraisal!$M$26 -> 0 | G40: =IF(Costs!$G5="Sales",IF(G$210>0,-Costs!$B5*G$210,0),IF(Costs!$G5="Build",IF(G$212>0,-Costs!$B5*G$212,0),IF(Costs!$G5="Single",IF(Costs!$H5=G$4,-Costs!$B5,0),0)))*Appraisal!$M$26 -> 0 | H40: =IF(Costs!$G5="Sales",IF(H$210>0,-Costs!$B5*H$210,0),IF(Costs!$G5="Build",IF(H$212>0,-Costs!$B5*H$212,0),IF(Costs!$G5="Single",IF(Costs!$H5=H$4,-Costs!$B5,0),0)))*Appraisal!$M$26 -> 0 | I40: =IF(Costs!$G5="Sales",IF(I$210>0,-Costs!$B5*I$210,0),IF(Costs!$G5="Build",IF(I$212>0,-Costs!$B5*I$212,0),IF(Costs!$G5="Single",IF(Costs!$H5=I$4,-Costs!$B5,0),0)))*Appraisal!$M$26 -> 0 | J40: =IF(Costs!$G5="Sales",IF(J$210>0,-Costs!$B5*J$210,0),IF(Costs!$G5="Build",IF(J$212>0,-Costs!$B5*J$212,0),IF(Costs!$G5="Single",IF(Costs!$H5=J$4,-Costs!$B5,0),0)))*Appraisal!$M$26 -> 0 | K40: =IF(Costs!$G5="Sales",IF(K$210>0,-Costs!$B5*K$210,0),IF(Costs!$G5="Build",IF(K$212>0,-Costs!$B5*K$212,0),IF(Costs!$G5="Single",IF(Costs!$H5=K$4,-Costs!$B5,0),0)))*Appraisal!$M$26 -> 0 | L40: =IF(Costs!$G5="Sales",IF(L$210>0,-Costs!$B5*L$210,0),IF(Costs!$G5="Build",IF(L$212>0,-Costs!$B5*L$212,0),IF(Costs!$G5="Single",IF(Costs!$H5=L$4,-Costs!$B5,0),0)))*Appraisal!$M$26 -> 0 | M40: =IF(Costs!$G5="Sales",IF(M$210>0,-Costs!$B5*M$210,0),IF(Costs!$G5="Build",IF(M$212>0,-Costs!$B5*M$212,0),IF(Costs!$G5="Single",IF(Costs!$H5=M$4,-Costs!$B5,0),0)))*Appraisal!$M$26 -> 0 | N40: =IF(Costs!$G5="Sales",IF(N$210>0,-Costs!$B5*N$210,0),IF(Costs!$G5="Build",IF(N$212>0,-Costs!$B5*N$212,0),IF(Costs!$G5="Single",IF(Costs!$H5=N$4,-Costs!$B5,0),0)))*Appraisal!$M$26 -> 0 | O40: =IF(Costs!$G5="Sales",IF(O$210>0,-Costs!$B5*O$210,0),IF(Costs!$G5="Build",IF(O$212>0,-Costs!$B5*O$212,0),IF(Costs!$G5="Single",IF(Costs!$H5=O$4,-Costs!$B5,0),0)))*Appraisal!$M$26 -> 0 | P40: =IF(Costs!$G5="Sales",IF(P$210>0,-Costs!$B5*P$210,0),IF(Costs!$G5="Build",IF(P$212>0,-Costs!$B5*P$212,0),IF(Costs!$G5="Single",IF(Costs!$H5=P$4,-Costs!$B5,0),0)))*Appraisal!$M$26 -> 0 | Q40: =IF(Costs!$G5="Sales",IF(Q$210>0,-Costs!$B5*Q$210,0),IF(Costs!$G5="Build",IF(Q$212>0,-Costs!$B5*Q$212,0),IF(Costs!$G5="Single",IF(Costs!$H5=Q$4,-Costs!$B5,0),0)))*Appraisal!$M$26 -> 0 | R40: =IF(Costs!$G5="Sales",IF(R$210>0,-Costs!$B5*R$210,0),IF(Costs!$G5="Build",IF(R$212>0,-Costs!$B5*R$212,0),IF(Costs!$G5="Single",IF(Costs!$H5=R$4,-Costs!$B5,0),0)))*Appraisal!$M$26 -> 0 | S40: =IF(Costs!$G5="Sales",IF(S$210>0,-Costs!$B5*S$210,0),IF(Costs!$G5="Build",IF(S$212>0,-Costs!$B5*S$212,0),IF(Costs!$G5="Single",IF(Costs!$H5=S$4,-Costs!$B5,0),0)))*Appraisal!$M$26 -> 0 | T40: =IF(Costs!$G5="Sales",IF(T$210>0,-Costs!$B5*T$210,0),IF(Costs!$G5="Build",IF(T$212>0,-Costs!$B5*T$212,0),IF(Costs!$G5="Single",IF(Costs!$H5=T$4,-Costs!$B5,0),0)))*Appraisal!$M$26 -> 0 | U40: =IF(Costs!$G5="Sales",IF(U$210>0,-Costs!$B5*U$210,0),IF(Costs!$G5="Build",IF(U$212>0,-Costs!$B5*U$212,0),IF(Costs!$G5="Single",IF(Costs!$H5=U$4,-Costs!$B5,0),0)))*Appraisal!$M$26 -> 0 | V40: =IF(Costs!$G5="Sales",IF(V$210>0,-Costs!$B5*V$210,0),IF(Costs!$G5="Build",IF(V$212>0,-Costs!$B5*V$212,0),IF(Costs!$G5="Single",IF(Costs!$H5=V$4,-Costs!$B5,0),0)))*Appraisal!$M$26 -> 0 | W40: =IF(Costs!$G5="Sales",IF(W$210>0,-Costs!$B5*W$210,0),IF(Costs!$G5="Build",IF(W$212>0,-Costs!$B5*W$212,0),IF(Costs!$G5="Single",IF(Costs!$H5=W$4,-Costs!$B5,0),0)))*Appraisal!$M$26 -> 0 | X40: =IF(Costs!$G5="Sales",IF(X$210>0,-Costs!$B5*X$210,0),IF(Costs!$G5="Build",IF(X$212>0,-Costs!$B5*X$212,0),IF(Costs!$G5="Single",IF(Costs!$H5=X$4,-Costs!$B5,0),0)))*Appraisal!$M$26 -> 0 | Y40: =IF(Costs!$G5="Sales",IF(Y$210>0,-Costs!$B5*Y$210,0),IF(Costs!$G5="Build",IF(Y$212>0,-Costs!$B5*Y$212,0),IF(Costs!$G5="Single",IF(Costs!$H5=Y$4,-Costs!$B5,0),0)))*Appraisal!$M$26 -> 0 | Z40: =IF(Costs!$G5="Sales",IF(Z$210>0,-Costs!$B5*Z$210,0),IF(Costs!$G5="Build",IF(Z$212>0,-Costs!$B5*Z$212,0),IF(Costs!$G5="Single",IF(Costs!$H5=Z$4,-Costs!$B5,0),0)))*Appraisal!$M$26 -> 0 | AA40: =IF(Costs!$G5="Sales",IF(AA$210>0,-Costs!$B5*AA$210,0),IF(Costs!$G5="Build",IF(AA$212>0,-Costs!$B5*AA$212,0),IF(Costs!$G5="Single",IF(Costs!$H5=AA$4,-Costs!$B5,0),0)))*Appraisal!$M$26 -> 0 | AB40: =IF(Costs!$G5="Sales",IF(AB$210>0,-Costs!$B5*AB$210,0),IF(Costs!$G5="Build",IF(AB$212>0,-Costs!$B5*AB$212,0),IF(Costs!$G5="Single",IF(Costs!$H5=AB$4,-Costs!$B5,0),0)))*Appraisal!$M$26 -> 0 | AC40: =IF(Costs!$G5="Sales",IF(AC$210>0,-Costs!$B5*AC$210,0),IF(Costs!$G5="Build",IF(AC$212>0,-Costs!$B5*AC$212,0),IF(Costs!$G5="Single",IF(Costs!$H5=AC$4,-Costs!$B5,0),0)))*Appraisal!$M$26 -> 0 | AD40: =IF(Costs!$G5="Sales",IF(AD$210>0,-Costs!$B5*AD$210,0),IF(Costs!$G5="Build",IF(AD$212>0,-Costs!$B5*AD$212,0),IF(Costs!$G5="Single",IF(Costs!$H5=AD$4,-Costs!$B5,0),0)))*Appraisal!$M$26 -> 0 | AE40: =IF(Costs!$G5="Sales",IF(AE$210>0,-Costs!$B5*AE$210,0),IF(Costs!$G5="Build",IF(AE$212>0,-Costs!$B5*AE$212,0),IF(Costs!$G5="Single",IF(Costs!$H5=AE$4,-Costs!$B5,0),0)))*Appraisal!$M$26 -> 0 | AF40: =IF(Costs!$G5="Sales",IF(AF$210>0,-Costs!$B5*AF$210,0),IF(Costs!$G5="Build",IF(AF$212>0,-Costs!$B5*AF$212,0),IF(Costs!$G5="Single",IF(Costs!$H5=AF$4,-Costs!$B5,0),0)))*Appraisal!$M$26 -> 0 | AG40: =IF(Costs!$G5="Sales",IF(AG$210>0,-Costs!$B5*AG$210,0),IF(Costs!$G5="Build",IF(AG$212>0,-Costs!$B5*AG$212,0),IF(Costs!$G5="Single",IF(Costs!$H5=AG$4,-Costs!$B5,0),0)))*Appraisal!$M$26 -> 0 | AH40: =IF(Costs!$G5="Sales",IF(AH$210>0,-Costs!$B5*AH$210,0),IF(Costs!$G5="Build",IF(AH$212>0,-Costs!$B5*AH$212,0),IF(Costs!$G5="Single",IF(Costs!$H5=AH$4,-Costs!$B5,0),0)))*Appraisal!$M$26 -> 0 | AI40: =IF(Costs!$G5="Sales",IF(AI$210>0,-Costs!$B5*AI$210,0),IF(Costs!$G5="Build",IF(AI$212>0,-Costs!$B5*AI$212,0),IF(Costs!$G5="Single",IF(Costs!$H5=AI$4,-Costs!$B5,0),0)))*Appraisal!$M$26 -> 0 | AJ40: =IF(Costs!$G5="Sales",IF(AJ$210>0,-Costs!$B5*AJ$210,0),IF(Costs!$G5="Build",IF(AJ$212>0,-Costs!$B5*AJ$212,0),IF(Costs!$G5="Single",IF(Costs!$H5=AJ$4,-Costs!$B5,0),0)))*Appraisal!$M$26 -> 0 | AK40: =IF(Costs!$G5="Sales",IF(AK$210>0,-Costs!$B5*AK$210,0),IF(Costs!$G5="Build",IF(AK$212>0,-Costs!$B5*AK$212,0),IF(Costs!$G5="Single",IF(Costs!$H5=AK$4,-Costs!$B5,0),0)))*Appraisal!$M$26 -> 0 | AL40: =IF(Costs!$G5="Sales",IF(AL$210>0,-Costs!$B5*AL$210,0),IF(Costs!$G5="Build",IF(AL$212>0,-Costs!$B5*AL$212,0),IF(Costs!$G5="Single",IF(Costs!$H5=AL$4,-Costs!$B5,0),0)))*Appraisal!$M$26 -> 0 | AM40: =IF(Costs!$G5="Sales",IF(AM$210>0,-Costs!$B5*AM$210,0),IF(Costs!$G5="Build",IF(AM$212>0,-Costs!$B5*AM$212,0),IF(Costs!$G5="Single",IF(Costs!$H5=AM$4,-Costs!$B5,0),0)))*Appraisal!$M$26 -> 0 | AN40: =IF(Costs!$G5="Sales",IF(AN$210>0,-Costs!$B5*AN$210,0),IF(Costs!$G5="Build",IF(AN$212>0,-Costs!$B5*AN$212,0),IF(Costs!$G5="Single",IF(Costs!$H5=AN$4,-Costs!$B5,0),0)))*Appraisal!$M$26 -> 0 | AO40: =IF(Costs!$G5="Sales",IF(AO$210>0,-Costs!$B5*AO$210,0),IF(Costs!$G5="Build",IF(AO$212>0,-Costs!$B5*AO$212,0),IF(Costs!$G5="Single",IF(Costs!$H5=AO$4,-Costs!$B5,0),0)))*Appraisal!$M$26 -> 0 | AP40: =IF(Costs!$G5="Sales",IF(AP$210>0,-Costs!$B5*AP$210,0),IF(Costs!$G5="Build",IF(AP$212>0,-Costs!$B5*AP$212,0),IF(Costs!$G5="Single",IF(Costs!$H5=AP$4,-Costs!$B5,0),0)))*Appraisal!$M$26 -> 0 | AQ40: =IF(Costs!$G5="Sales",IF(AQ$210>0,-Costs!$B5*AQ$210,0),IF(Costs!$G5="Build",IF(AQ$212>0,-Costs!$B5*AQ$212,0),IF(Costs!$G5="Single",IF(Costs!$H5=AQ$4,-Costs!$B5,0),0)))*Appraisal!$M$26 -> 0 | AR40: =IF(Costs!$G5="Sales",IF(AR$210>0,-Costs!$B5*AR$210,0),IF(Costs!$G5="Build",IF(AR$212>0,-Costs!$B5*AR$212,0),IF(Costs!$G5="Single",IF(Costs!$H5=AR$4,-Costs!$B5,0),0)))*Appraisal!$M$26 -> 0 | AS40: =IF(Costs!$G5="Sales",IF(AS$210>0,-Costs!$B5*AS$210,0),IF(Costs!$G5="Build",IF(AS$212>0,-Costs!$B5*AS$212,0),IF(Costs!$G5="Single",IF(Costs!$H5=AS$4,-Costs!$B5,0),0)))*Appraisal!$M$26 -> 0 | AT40: =IF(Costs!$G5="Sales",IF(AT$210>0,-Costs!$B5*AT$210,0),IF(Costs!$G5="Build",IF(AT$212>0,-Costs!$B5*AT$212,0),IF(Costs!$G5="Single",IF(Costs!$H5=AT$4,-Costs!$B5,0),0)))*Appraisal!$M$26 -> 0 | AU40: =IF(Costs!$G5="Sales",IF(AU$210>0,-Costs!$B5*AU$210,0),IF(Costs!$G5="Build",IF(AU$212>0,-Costs!$B5*AU$212,0),IF(Costs!$G5="Single",IF(Costs!$H5=AU$4,-Costs!$B5,0),0)))*Appraisal!$M$26 -> 0 | AV40: =IF(Costs!$G5="Sales",IF(AV$210>0,-Costs!$B5*AV$210,0),IF(Costs!$G5="Build",IF(AV$212>0,-Costs!$B5*AV$212,0),IF(Costs!$G5="Single",IF(Costs!$H5=AV$4,-Costs!$B5,0),0)))*Appraisal!$M$26 -> 0 | AW40: =IF(Costs!$G5="Sales",IF(AW$210>0,-Costs!$B5*AW$210,0),IF(Costs!$G5="Build",IF(AW$212>0,-Costs!$B5*AW$212,0),IF(Costs!$G5="Single",IF(Costs!$H5=AW$4,-Costs!$B5,0),0)))*Appraisal!$M$26 -> 0 | AX40: =IF(Costs!$G5="Sales",IF(AX$210>0,-Costs!$B5*AX$210,0),IF(Costs!$G5="Build",IF(AX$212>0,-Costs!$B5*AX$212,0),IF(Costs!$G5="Single",IF(Costs!$H5=AX$4,-Costs!$B5,0),0)))*Appraisal!$M$26 -> 0 | AY40: =IF(Costs!$G5="Sales",IF(AY$210>0,-Costs!$B5*AY$210,0),IF(Costs!$G5="Build",IF(AY$212>0,-Costs!$B5*AY$212,0),IF(Costs!$G5="Single",IF(Costs!$H5=AY$4,-Costs!$B5,0),0)))*Appraisal!$M$26 -> 0 | AZ40: =IF(Costs!$G5="Sales",IF(AZ$210>0,-Costs!$B5*AZ$210,0),IF(Costs!$G5="Build",IF(AZ$212>0,-Costs!$B5*AZ$212,0),IF(Costs!$G5="Single",IF(Costs!$H5=AZ$4,-Costs!$B5,0),0)))*Appraisal!$M$26 -> 0 | BA40: =IF(Costs!$G5="Sales",IF(BA$210>0,-Costs!$B5*BA$210,0),IF(Costs!$G5="Build",IF(BA$212>0,-Costs!$B5*BA$212,0),IF(Costs!$G5="Single",IF(Costs!$H5=BA$4,-Costs!$B5,0),0)))*Appraisal!$M$26 -> 0 | BB40: =IF(Costs!$G5="Sales",IF(BB$210>0,-Costs!$B5*BB$210,0),IF(Costs!$G5="Build",IF(BB$212>0,-Costs!$B5*BB$212,0),IF(Costs!$G5="Single",IF(Costs!$H5=BB$4,-Costs!$B5,0),0)))*Appraisal!$M$26 -> 0 | BC40: =IF(Costs!$G5="Sales",IF(BC$210>0,-Costs!$B5*BC$210,0),IF(Costs!$G5="Build",IF(BC$212>0,-Costs!$B5*BC$212,0),IF(Costs!$G5="Single",IF(Costs!$H5=BC$4,-Costs!$B5,0),0)))*Appraisal!$M$26 -> 0 | BD40: =IF(Costs!$G5="Sales",IF(BD$210>0,-Costs!$B5*BD$210,0),IF(Costs!$G5="Build",IF(BD$212>0,-Costs!$B5*BD$212,0),IF(Costs!$G5="Single",IF(Costs!$H5=BD$4,-Costs!$B5,0),0)))*Appraisal!$M$26 -> 0 | BE40: =IF(Costs!$G5="Sales",IF(BE$210>0,-Costs!$B5*BE$210,0),IF(Costs!$G5="Build",IF(BE$212>0,-Costs!$B5*BE$212,0),IF(Costs!$G5="Single",IF(Costs!$H5=BE$4,-Costs!$B5,0),0)))*Appraisal!$M$26 -> 0 | BF40: =IF(Costs!$G5="Sales",IF(BF$210>0,-Costs!$B5*BF$210,0),IF(Costs!$G5="Build",IF(BF$212>0,-Costs!$B5*BF$212,0),IF(Costs!$G5="Single",IF(Costs!$H5=BF$4,-Costs!$B5,0),0)))*Appraisal!$M$26 -> 0 | BG40: =IF(Costs!$G5="Sales",IF(BG$210>0,-Costs!$B5*BG$210,0),IF(Costs!$G5="Build",IF(BG$212>0,-Costs!$B5*BG$212,0),IF(Costs!$G5="Single",IF(Costs!$H5=BG$4,-Costs!$B5,0),0)))*Appraisal!$M$26 -> 0 | BH40: =IF(Costs!$G5="Sales",IF(BH$210>0,-Costs!$B5*BH$210,0),IF(Costs!$G5="Build",IF(BH$212>0,-Costs!$B5*BH$212,0),IF(Costs!$G5="Single",IF(Costs!$H5=BH$4,-Costs!$B5,0),0)))*Appraisal!$M$26 -> 0 | BI40: =IF(Costs!$G5="Sales",IF(BI$210>0,-Costs!$B5*BI$210,0),IF(Costs!$G5="Build",IF(BI$212>0,-Costs!$B5*BI$212,0),IF(Costs!$G5="Single",IF(Costs!$H5=BI$4,-Costs!$B5,0),0)))*Appraisal!$M$26 -> 0 | BJ40: =IF(Costs!$G5="Sales",IF(BJ$210>0,-Costs!$B5*BJ$210,0),IF(Costs!$G5="Build",IF(BJ$212>0,-Costs!$B5*BJ$212,0),IF(Costs!$G5="Single",IF(Costs!$H5=BJ$4,-Costs!$B5,0),0)))*Appraisal!$M$26 -> 0
A41: =Costs!A6 -> Secondary Education | B41: =SUM(C41:BJ41) -> 0 | C41: =IF(Costs!$G6="Sales",IF(C$210>0,-Costs!$B6*C$210,0),IF(Costs!$G6="Build",IF(C$212>0,-Costs!$B6*C$212,0),IF(Costs!$G6="Single",IF(Costs!$H6=C$4,-Costs!$B6,0),0)))*Appraisal!$M$26 -> 0 | D41: =IF(Costs!$G6="Sales",IF(D$210>0,-Costs!$B6*D$210,0),IF(Costs!$G6="Build",IF(D$212>0,-Costs!$B6*D$212,0),IF(Costs!$G6="Single",IF(Costs!$H6=D$4,-Costs!$B6,0),0)))*Appraisal!$M$26 -> 0 | E41: =IF(Costs!$G6="Sales",IF(E$210>0,-Costs!$B6*E$210,0),IF(Costs!$G6="Build",IF(E$212>0,-Costs!$B6*E$212,0),IF(Costs!$G6="Single",IF(Costs!$H6=E$4,-Costs!$B6,0),0)))*Appraisal!$M$26 -> 0 | F41: =IF(Costs!$G6="Sales",IF(F$210>0,-Costs!$B6*F$210,0),IF(Costs!$G6="Build",IF(F$212>0,-Costs!$B6*F$212,0),IF(Costs!$G6="Single",IF(Costs!$H6=F$4,-Costs!$B6,0),0)))*Appraisal!$M$26 -> 0 | G41: =IF(Costs!$G6="Sales",IF(G$210>0,-Costs!$B6*G$210,0),IF(Costs!$G6="Build",IF(G$212>0,-Costs!$B6*G$212,0),IF(Costs!$G6="Single",IF(Costs!$H6=G$4,-Costs!$B6,0),0)))*Appraisal!$M$26 -> 0 | H41: =IF(Costs!$G6="Sales",IF(H$210>0,-Costs!$B6*H$210,0),IF(Costs!$G6="Build",IF(H$212>0,-Costs!$B6*H$212,0),IF(Costs!$G6="Single",IF(Costs!$H6=H$4,-Costs!$B6,0),0)))*Appraisal!$M$26 -> 0 | I41: =IF(Costs!$G6="Sales",IF(I$210>0,-Costs!$B6*I$210,0),IF(Costs!$G6="Build",IF(I$212>0,-Costs!$B6*I$212,0),IF(Costs!$G6="Single",IF(Costs!$H6=I$4,-Costs!$B6,0),0)))*Appraisal!$M$26 -> 0 | J41: =IF(Costs!$G6="Sales",IF(J$210>0,-Costs!$B6*J$210,0),IF(Costs!$G6="Build",IF(J$212>0,-Costs!$B6*J$212,0),IF(Costs!$G6="Single",IF(Costs!$H6=J$4,-Costs!$B6,0),0)))*Appraisal!$M$26 -> 0 | K41: =IF(Costs!$G6="Sales",IF(K$210>0,-Costs!$B6*K$210,0),IF(Costs!$G6="Build",IF(K$212>0,-Costs!$B6*K$212,0),IF(Costs!$G6="Single",IF(Costs!$H6=K$4,-Costs!$B6,0),0)))*Appraisal!$M$26 -> 0 | L41: =IF(Costs!$G6="Sales",IF(L$210>0,-Costs!$B6*L$210,0),IF(Costs!$G6="Build",IF(L$212>0,-Costs!$B6*L$212,0),IF(Costs!$G6="Single",IF(Costs!$H6=L$4,-Costs!$B6,0),0)))*Appraisal!$M$26 -> 0 | M41: =IF(Costs!$G6="Sales",IF(M$210>0,-Costs!$B6*M$210,0),IF(Costs!$G6="Build",IF(M$212>0,-Costs!$B6*M$212,0),IF(Costs!$G6="Single",IF(Costs!$H6=M$4,-Costs!$B6,0),0)))*Appraisal!$M$26 -> 0 | N41: =IF(Costs!$G6="Sales",IF(N$210>0,-Costs!$B6*N$210,0),IF(Costs!$G6="Build",IF(N$212>0,-Costs!$B6*N$212,0),IF(Costs!$G6="Single",IF(Costs!$H6=N$4,-Costs!$B6,0),0)))*Appraisal!$M$26 -> 0 | O41: =IF(Costs!$G6="Sales",IF(O$210>0,-Costs!$B6*O$210,0),IF(Costs!$G6="Build",IF(O$212>0,-Costs!$B6*O$212,0),IF(Costs!$G6="Single",IF(Costs!$H6=O$4,-Costs!$B6,0),0)))*Appraisal!$M$26 -> 0 | P41: =IF(Costs!$G6="Sales",IF(P$210>0,-Costs!$B6*P$210,0),IF(Costs!$G6="Build",IF(P$212>0,-Costs!$B6*P$212,0),IF(Costs!$G6="Single",IF(Costs!$H6=P$4,-Costs!$B6,0),0)))*Appraisal!$M$26 -> 0 | Q41: =IF(Costs!$G6="Sales",IF(Q$210>0,-Costs!$B6*Q$210,0),IF(Costs!$G6="Build",IF(Q$212>0,-Costs!$B6*Q$212,0),IF(Costs!$G6="Single",IF(Costs!$H6=Q$4,-Costs!$B6,0),0)))*Appraisal!$M$26 -> 0 | R41: =IF(Costs!$G6="Sales",IF(R$210>0,-Costs!$B6*R$210,0),IF(Costs!$G6="Build",IF(R$212>0,-Costs!$B6*R$212,0),IF(Costs!$G6="Single",IF(Costs!$H6=R$4,-Costs!$B6,0),0)))*Appraisal!$M$26 -> 0 | S41: =IF(Costs!$G6="Sales",IF(S$210>0,-Costs!$B6*S$210,0),IF(Costs!$G6="Build",IF(S$212>0,-Costs!$B6*S$212,0),IF(Costs!$G6="Single",IF(Costs!$H6=S$4,-Costs!$B6,0),0)))*Appraisal!$M$26 -> 0 | T41: =IF(Costs!$G6="Sales",IF(T$210>0,-Costs!$B6*T$210,0),IF(Costs!$G6="Build",IF(T$212>0,-Costs!$B6*T$212,0),IF(Costs!$G6="Single",IF(Costs!$H6=T$4,-Costs!$B6,0),0)))*Appraisal!$M$26 -> 0 | U41: =IF(Costs!$G6="Sales",IF(U$210>0,-Costs!$B6*U$210,0),IF(Costs!$G6="Build",IF(U$212>0,-Costs!$B6*U$212,0),IF(Costs!$G6="Single",IF(Costs!$H6=U$4,-Costs!$B6,0),0)))*Appraisal!$M$26 -> 0 | V41: =IF(Costs!$G6="Sales",IF(V$210>0,-Costs!$B6*V$210,0),IF(Costs!$G6="Build",IF(V$212>0,-Costs!$B6*V$212,0),IF(Costs!$G6="Single",IF(Costs!$H6=V$4,-Costs!$B6,0),0)))*Appraisal!$M$26 -> 0 | W41: =IF(Costs!$G6="Sales",IF(W$210>0,-Costs!$B6*W$210,0),IF(Costs!$G6="Build",IF(W$212>0,-Costs!$B6*W$212,0),IF(Costs!$G6="Single",IF(Costs!$H6=W$4,-Costs!$B6,0),0)))*Appraisal!$M$26 -> 0 | X41: =IF(Costs!$G6="Sales",IF(X$210>0,-Costs!$B6*X$210,0),IF(Costs!$G6="Build",IF(X$212>0,-Costs!$B6*X$212,0),IF(Costs!$G6="Single",IF(Costs!$H6=X$4,-Costs!$B6,0),0)))*Appraisal!$M$26 -> 0 | Y41: =IF(Costs!$G6="Sales",IF(Y$210>0,-Costs!$B6*Y$210,0),IF(Costs!$G6="Build",IF(Y$212>0,-Costs!$B6*Y$212,0),IF(Costs!$G6="Single",IF(Costs!$H6=Y$4,-Costs!$B6,0),0)))*Appraisal!$M$26 -> 0 | Z41: =IF(Costs!$G6="Sales",IF(Z$210>0,-Costs!$B6*Z$210,0),IF(Costs!$G6="Build",IF(Z$212>0,-Costs!$B6*Z$212,0),IF(Costs!$G6="Single",IF(Costs!$H6=Z$4,-Costs!$B6,0),0)))*Appraisal!$M$26 -> 0 | AA41: =IF(Costs!$G6="Sales",IF(AA$210>0,-Costs!$B6*AA$210,0),IF(Costs!$G6="Build",IF(AA$212>0,-Costs!$B6*AA$212,0),IF(Costs!$G6="Single",IF(Costs!$H6=AA$4,-Costs!$B6,0),0)))*Appraisal!$M$26 -> 0 | AB41: =IF(Costs!$G6="Sales",IF(AB$210>0,-Costs!$B6*AB$210,0),IF(Costs!$G6="Build",IF(AB$212>0,-Costs!$B6*AB$212,0),IF(Costs!$G6="Single",IF(Costs!$H6=AB$4,-Costs!$B6,0),0)))*Appraisal!$M$26 -> 0 | AC41: =IF(Costs!$G6="Sales",IF(AC$210>0,-Costs!$B6*AC$210,0),IF(Costs!$G6="Build",IF(AC$212>0,-Costs!$B6*AC$212,0),IF(Costs!$G6="Single",IF(Costs!$H6=AC$4,-Costs!$B6,0),0)))*Appraisal!$M$26 -> 0 | AD41: =IF(Costs!$G6="Sales",IF(AD$210>0,-Costs!$B6*AD$210,0),IF(Costs!$G6="Build",IF(AD$212>0,-Costs!$B6*AD$212,0),IF(Costs!$G6="Single",IF(Costs!$H6=AD$4,-Costs!$B6,0),0)))*Appraisal!$M$26 -> 0 | AE41: =IF(Costs!$G6="Sales",IF(AE$210>0,-Costs!$B6*AE$210,0),IF(Costs!$G6="Build",IF(AE$212>0,-Costs!$B6*AE$212,0),IF(Costs!$G6="Single",IF(Costs!$H6=AE$4,-Costs!$B6,0),0)))*Appraisal!$M$26 -> 0 | AF41: =IF(Costs!$G6="Sales",IF(AF$210>0,-Costs!$B6*AF$210,0),IF(Costs!$G6="Build",IF(AF$212>0,-Costs!$B6*AF$212,0),IF(Costs!$G6="Single",IF(Costs!$H6=AF$4,-Costs!$B6,0),0)))*Appraisal!$M$26 -> 0 | AG41: =IF(Costs!$G6="Sales",IF(AG$210>0,-Costs!$B6*AG$210,0),IF(Costs!$G6="Build",IF(AG$212>0,-Costs!$B6*AG$212,0),IF(Costs!$G6="Single",IF(Costs!$H6=AG$4,-Costs!$B6,0),0)))*Appraisal!$M$26 -> 0 | AH41: =IF(Costs!$G6="Sales",IF(AH$210>0,-Costs!$B6*AH$210,0),IF(Costs!$G6="Build",IF(AH$212>0,-Costs!$B6*AH$212,0),IF(Costs!$G6="Single",IF(Costs!$H6=AH$4,-Costs!$B6,0),0)))*Appraisal!$M$26 -> 0 | AI41: =IF(Costs!$G6="Sales",IF(AI$210>0,-Costs!$B6*AI$210,0),IF(Costs!$G6="Build",IF(AI$212>0,-Costs!$B6*AI$212,0),IF(Costs!$G6="Single",IF(Costs!$H6=AI$4,-Costs!$B6,0),0)))*Appraisal!$M$26 -> 0 | AJ41: =IF(Costs!$G6="Sales",IF(AJ$210>0,-Costs!$B6*AJ$210,0),IF(Costs!$G6="Build",IF(AJ$212>0,-Costs!$B6*AJ$212,0),IF(Costs!$G6="Single",IF(Costs!$H6=AJ$4,-Costs!$B6,0),0)))*Appraisal!$M$26 -> 0 | AK41: =IF(Costs!$G6="Sales",IF(AK$210>0,-Costs!$B6*AK$210,0),IF(Costs!$G6="Build",IF(AK$212>0,-Costs!$B6*AK$212,0),IF(Costs!$G6="Single",IF(Costs!$H6=AK$4,-Costs!$B6,0),0)))*Appraisal!$M$26 -> 0 | AL41: =IF(Costs!$G6="Sales",IF(AL$210>0,-Costs!$B6*AL$210,0),IF(Costs!$G6="Build",IF(AL$212>0,-Costs!$B6*AL$212,0),IF(Costs!$G6="Single",IF(Costs!$H6=AL$4,-Costs!$B6,0),0)))*Appraisal!$M$26 -> 0 | AM41: =IF(Costs!$G6="Sales",IF(AM$210>0,-Costs!$B6*AM$210,0),IF(Costs!$G6="Build",IF(AM$212>0,-Costs!$B6*AM$212,0),IF(Costs!$G6="Single",IF(Costs!$H6=AM$4,-Costs!$B6,0),0)))*Appraisal!$M$26 -> 0 | AN41: =IF(Costs!$G6="Sales",IF(AN$210>0,-Costs!$B6*AN$210,0),IF(Costs!$G6="Build",IF(AN$212>0,-Costs!$B6*AN$212,0),IF(Costs!$G6="Single",IF(Costs!$H6=AN$4,-Costs!$B6,0),0)))*Appraisal!$M$26 -> 0 | AO41: =IF(Costs!$G6="Sales",IF(AO$210>0,-Costs!$B6*AO$210,0),IF(Costs!$G6="Build",IF(AO$212>0,-Costs!$B6*AO$212,0),IF(Costs!$G6="Single",IF(Costs!$H6=AO$4,-Costs!$B6,0),0)))*Appraisal!$M$26 -> 0 | AP41: =IF(Costs!$G6="Sales",IF(AP$210>0,-Costs!$B6*AP$210,0),IF(Costs!$G6="Build",IF(AP$212>0,-Costs!$B6*AP$212,0),IF(Costs!$G6="Single",IF(Costs!$H6=AP$4,-Costs!$B6,0),0)))*Appraisal!$M$26 -> 0 | AQ41: =IF(Costs!$G6="Sales",IF(AQ$210>0,-Costs!$B6*AQ$210,0),IF(Costs!$G6="Build",IF(AQ$212>0,-Costs!$B6*AQ$212,0),IF(Costs!$G6="Single",IF(Costs!$H6=AQ$4,-Costs!$B6,0),0)))*Appraisal!$M$26 -> 0 | AR41: =IF(Costs!$G6="Sales",IF(AR$210>0,-Costs!$B6*AR$210,0),IF(Costs!$G6="Build",IF(AR$212>0,-Costs!$B6*AR$212,0),IF(Costs!$G6="Single",IF(Costs!$H6=AR$4,-Costs!$B6,0),0)))*Appraisal!$M$26 -> 0 | AS41: =IF(Costs!$G6="Sales",IF(AS$210>0,-Costs!$B6*AS$210,0),IF(Costs!$G6="Build",IF(AS$212>0,-Costs!$B6*AS$212,0),IF(Costs!$G6="Single",IF(Costs!$H6=AS$4,-Costs!$B6,0),0)))*Appraisal!$M$26 -> 0 | AT41: =IF(Costs!$G6="Sales",IF(AT$210>0,-Costs!$B6*AT$210,0),IF(Costs!$G6="Build",IF(AT$212>0,-Costs!$B6*AT$212,0),IF(Costs!$G6="Single",IF(Costs!$H6=AT$4,-Costs!$B6,0),0)))*Appraisal!$M$26 -> 0 | AU41: =IF(Costs!$G6="Sales",IF(AU$210>0,-Costs!$B6*AU$210,0),IF(Costs!$G6="Build",IF(AU$212>0,-Costs!$B6*AU$212,0),IF(Costs!$G6="Single",IF(Costs!$H6=AU$4,-Costs!$B6,0),0)))*Appraisal!$M$26 -> 0 | AV41: =IF(Costs!$G6="Sales",IF(AV$210>0,-Costs!$B6*AV$210,0),IF(Costs!$G6="Build",IF(AV$212>0,-Costs!$B6*AV$212,0),IF(Costs!$G6="Single",IF(Costs!$H6=AV$4,-Costs!$B6,0),0)))*Appraisal!$M$26 -> 0 | AW41: =IF(Costs!$G6="Sales",IF(AW$210>0,-Costs!$B6*AW$210,0),IF(Costs!$G6="Build",IF(AW$212>0,-Costs!$B6*AW$212,0),IF(Costs!$G6="Single",IF(Costs!$H6=AW$4,-Costs!$B6,0),0)))*Appraisal!$M$26 -> 0 | AX41: =IF(Costs!$G6="Sales",IF(AX$210>0,-Costs!$B6*AX$210,0),IF(Costs!$G6="Build",IF(AX$212>0,-Costs!$B6*AX$212,0),IF(Costs!$G6="Single",IF(Costs!$H6=AX$4,-Costs!$B6,0),0)))*Appraisal!$M$26 -> 0 | AY41: =IF(Costs!$G6="Sales",IF(AY$210>0,-Costs!$B6*AY$210,0),IF(Costs!$G6="Build",IF(AY$212>0,-Costs!$B6*AY$212,0),IF(Costs!$G6="Single",IF(Costs!$H6=AY$4,-Costs!$B6,0),0)))*Appraisal!$M$26 -> 0 | AZ41: =IF(Costs!$G6="Sales",IF(AZ$210>0,-Costs!$B6*AZ$210,0),IF(Costs!$G6="Build",IF(AZ$212>0,-Costs!$B6*AZ$212,0),IF(Costs!$G6="Single",IF(Costs!$H6=AZ$4,-Costs!$B6,0),0)))*Appraisal!$M$26 -> 0 | BA41: =IF(Costs!$G6="Sales",IF(BA$210>0,-Costs!$B6*BA$210,0),IF(Costs!$G6="Build",IF(BA$212>0,-Costs!$B6*BA$212,0),IF(Costs!$G6="Single",IF(Costs!$H6=BA$4,-Costs!$B6,0),0)))*Appraisal!$M$26 -> 0 | BB41: =IF(Costs!$G6="Sales",IF(BB$210>0,-Costs!$B6*BB$210,0),IF(Costs!$G6="Build",IF(BB$212>0,-Costs!$B6*BB$212,0),IF(Costs!$G6="Single",IF(Costs!$H6=BB$4,-Costs!$B6,0),0)))*Appraisal!$M$26 -> 0 | BC41: =IF(Costs!$G6="Sales",IF(BC$210>0,-Costs!$B6*BC$210,0),IF(Costs!$G6="Build",IF(BC$212>0,-Costs!$B6*BC$212,0),IF(Costs!$G6="Single",IF(Costs!$H6=BC$4,-Costs!$B6,0),0)))*Appraisal!$M$26 -> 0 | BD41: =IF(Costs!$G6="Sales",IF(BD$210>0,-Costs!$B6*BD$210,0),IF(Costs!$G6="Build",IF(BD$212>0,-Costs!$B6*BD$212,0),IF(Costs!$G6="Single",IF(Costs!$H6=BD$4,-Costs!$B6,0),0)))*Appraisal!$M$26 -> 0 | BE41: =IF(Costs!$G6="Sales",IF(BE$210>0,-Costs!$B6*BE$210,0),IF(Costs!$G6="Build",IF(BE$212>0,-Costs!$B6*BE$212,0),IF(Costs!$G6="Single",IF(Costs!$H6=BE$4,-Costs!$B6,0),0)))*Appraisal!$M$26 -> 0 | BF41: =IF(Costs!$G6="Sales",IF(BF$210>0,-Costs!$B6*BF$210,0),IF(Costs!$G6="Build",IF(BF$212>0,-Costs!$B6*BF$212,0),IF(Costs!$G6="Single",IF(Costs!$H6=BF$4,-Costs!$B6,0),0)))*Appraisal!$M$26 -> 0 | BG41: =IF(Costs!$G6="Sales",IF(BG$210>0,-Costs!$B6*BG$210,0),IF(Costs!$G6="Build",IF(BG$212>0,-Costs!$B6*BG$212,0),IF(Costs!$G6="Single",IF(Costs!$H6=BG$4,-Costs!$B6,0),0)))*Appraisal!$M$26 -> 0 | BH41: =IF(Costs!$G6="Sales",IF(BH$210>0,-Costs!$B6*BH$210,0),IF(Costs!$G6="Build",IF(BH$212>0,-Costs!$B6*BH$212,0),IF(Costs!$G6="Single",IF(Costs!$H6=BH$4,-Costs!$B6,0),0)))*Appraisal!$M$26 -> 0 | BI41: =IF(Costs!$G6="Sales",IF(BI$210>0,-Costs!$B6*BI$210,0),IF(Costs!$G6="Build",IF(BI$212>0,-Costs!$B6*BI$212,0),IF(Costs!$G6="Single",IF(Costs!$H6=BI$4,-Costs!$B6,0),0)))*Appraisal!$M$26 -> 0 | BJ41: =IF(Costs!$G6="Sales",IF(BJ$210>0,-Costs!$B6*BJ$210,0),IF(Costs!$G6="Build",IF(BJ$212>0,-Costs!$B6*BJ$212,0),IF(Costs!$G6="Single",IF(Costs!$H6=BJ$4,-Costs!$B6,0),0)))*Appraisal!$M$26 -> 0
A42: =Costs!A7 -> Other Education | B42: 0 | C42: =IF(Costs!$G7="Sales",IF(C$210>0,-Costs!$B7*C$210,0),IF(Costs!$G7="Build",IF(C$212>0,-Costs!$B7*C$212,0),IF(Costs!$G7="Single",IF(Costs!$H7=C$4,-Costs!$B7,0),0)))*Appraisal!$M$26 -> 0 | D42: =IF(Costs!$G7="Sales",IF(D$210>0,-Costs!$B7*D$210,0),IF(Costs!$G7="Build",IF(D$212>0,-Costs!$B7*D$212,0),IF(Costs!$G7="Single",IF(Costs!$H7=D$4,-Costs!$B7,0),0)))*Appraisal!$M$26 -> 0 | E42: =IF(Costs!$G7="Sales",IF(E$210>0,-Costs!$B7*E$210,0),IF(Costs!$G7="Build",IF(E$212>0,-Costs!$B7*E$212,0),IF(Costs!$G7="Single",IF(Costs!$H7=E$4,-Costs!$B7,0),0)))*Appraisal!$M$26 -> 0 | F42: =IF(Costs!$G7="Sales",IF(F$210>0,-Costs!$B7*F$210,0),IF(Costs!$G7="Build",IF(F$212>0,-Costs!$B7*F$212,0),IF(Costs!$G7="Single",IF(Costs!$H7=F$4,-Costs!$B7,0),0)))*Appraisal!$M$26 -> 0 | G42: =IF(Costs!$G7="Sales",IF(G$210>0,-Costs!$B7*G$210,0),IF(Costs!$G7="Build",IF(G$212>0,-Costs!$B7*G$212,0),IF(Costs!$G7="Single",IF(Costs!$H7=G$4,-Costs!$B7,0),0)))*Appraisal!$M$26 -> 0 | H42: =IF(Costs!$G7="Sales",IF(H$210>0,-Costs!$B7*H$210,0),IF(Costs!$G7="Build",IF(H$212>0,-Costs!$B7*H$212,0),IF(Costs!$G7="Single",IF(Costs!$H7=H$4,-Costs!$B7,0),0)))*Appraisal!$M$26 -> 0 | I42: =IF(Costs!$G7="Sales",IF(I$210>0,-Costs!$B7*I$210,0),IF(Costs!$G7="Build",IF(I$212>0,-Costs!$B7*I$212,0),IF(Costs!$G7="Single",IF(Costs!$H7=I$4,-Costs!$B7,0),0)))*Appraisal!$M$26 -> 0 | J42: =IF(Costs!$G7="Sales",IF(J$210>0,-Costs!$B7*J$210,0),IF(Costs!$G7="Build",IF(J$212>0,-Costs!$B7*J$212,0),IF(Costs!$G7="Single",IF(Costs!$H7=J$4,-Costs!$B7,0),0)))*Appraisal!$M$26 -> 0 | K42: =IF(Costs!$G7="Sales",IF(K$210>0,-Costs!$B7*K$210,0),IF(Costs!$G7="Build",IF(K$212>0,-Costs!$B7*K$212,0),IF(Costs!$G7="Single",IF(Costs!$H7=K$4,-Costs!$B7,0),0)))*Appraisal!$M$26 -> 0 | L42: =IF(Costs!$G7="Sales",IF(L$210>0,-Costs!$B7*L$210,0),IF(Costs!$G7="Build",IF(L$212>0,-Costs!$B7*L$212,0),IF(Costs!$G7="Single",IF(Costs!$H7=L$4,-Costs!$B7,0),0)))*Appraisal!$M$26 -> 0 | M42: =IF(Costs!$G7="Sales",IF(M$210>0,-Costs!$B7*M$210,0),IF(Costs!$G7="Build",IF(M$212>0,-Costs!$B7*M$212,0),IF(Costs!$G7="Single",IF(Costs!$H7=M$4,-Costs!$B7,0),0)))*Appraisal!$M$26 -> 0 | N42: =IF(Costs!$G7="Sales",IF(N$210>0,-Costs!$B7*N$210,0),IF(Costs!$G7="Build",IF(N$212>0,-Costs!$B7*N$212,0),IF(Costs!$G7="Single",IF(Costs!$H7=N$4,-Costs!$B7,0),0)))*Appraisal!$M$26 -> 0 | O42: =IF(Costs!$G7="Sales",IF(O$210>0,-Costs!$B7*O$210,0),IF(Costs!$G7="Build",IF(O$212>0,-Costs!$B7*O$212,0),IF(Costs!$G7="Single",IF(Costs!$H7=O$4,-Costs!$B7,0),0)))*Appraisal!$M$26 -> 0 | P42: =IF(Costs!$G7="Sales",IF(P$210>0,-Costs!$B7*P$210,0),IF(Costs!$G7="Build",IF(P$212>0,-Costs!$B7*P$212,0),IF(Costs!$G7="Single",IF(Costs!$H7=P$4,-Costs!$B7,0),0)))*Appraisal!$M$26 -> 0 | Q42: =IF(Costs!$G7="Sales",IF(Q$210>0,-Costs!$B7*Q$210,0),IF(Costs!$G7="Build",IF(Q$212>0,-Costs!$B7*Q$212,0),IF(Costs!$G7="Single",IF(Costs!$H7=Q$4,-Costs!$B7,0),0)))*Appraisal!$M$26 -> 0 | R42: =IF(Costs!$G7="Sales",IF(R$210>0,-Costs!$B7*R$210,0),IF(Costs!$G7="Build",IF(R$212>0,-Costs!$B7*R$212,0),IF(Costs!$G7="Single",IF(Costs!$H7=R$4,-Costs!$B7,0),0)))*Appraisal!$M$26 -> 0 | S42: =IF(Costs!$G7="Sales",IF(S$210>0,-Costs!$B7*S$210,0),IF(Costs!$G7="Build",IF(S$212>0,-Costs!$B7*S$212,0),IF(Costs!$G7="Single",IF(Costs!$H7=S$4,-Costs!$B7,0),0)))*Appraisal!$M$26 -> 0 | T42: =IF(Costs!$G7="Sales",IF(T$210>0,-Costs!$B7*T$210,0),IF(Costs!$G7="Build",IF(T$212>0,-Costs!$B7*T$212,0),IF(Costs!$G7="Single",IF(Costs!$H7=T$4,-Costs!$B7,0),0)))*Appraisal!$M$26 -> 0 | U42: =IF(Costs!$G7="Sales",IF(U$210>0,-Costs!$B7*U$210,0),IF(Costs!$G7="Build",IF(U$212>0,-Costs!$B7*U$212,0),IF(Costs!$G7="Single",IF(Costs!$H7=U$4,-Costs!$B7,0),0)))*Appraisal!$M$26 -> 0 | V42: =IF(Costs!$G7="Sales",IF(V$210>0,-Costs!$B7*V$210,0),IF(Costs!$G7="Build",IF(V$212>0,-Costs!$B7*V$212,0),IF(Costs!$G7="Single",IF(Costs!$H7=V$4,-Costs!$B7,0),0)))*Appraisal!$M$26 -> 0 | W42: =IF(Costs!$G7="Sales",IF(W$210>0,-Costs!$B7*W$210,0),IF(Costs!$G7="Build",IF(W$212>0,-Costs!$B7*W$212,0),IF(Costs!$G7="Single",IF(Costs!$H7=W$4,-Costs!$B7,0),0)))*Appraisal!$M$26 -> 0 | X42: =IF(Costs!$G7="Sales",IF(X$210>0,-Costs!$B7*X$210,0),IF(Costs!$G7="Build",IF(X$212>0,-Costs!$B7*X$212,0),IF(Costs!$G7="Single",IF(Costs!$H7=X$4,-Costs!$B7,0),0)))*Appraisal!$M$26 -> 0 | Y42: =IF(Costs!$G7="Sales",IF(Y$210>0,-Costs!$B7*Y$210,0),IF(Costs!$G7="Build",IF(Y$212>0,-Costs!$B7*Y$212,0),IF(Costs!$G7="Single",IF(Costs!$H7=Y$4,-Costs!$B7,0),0)))*Appraisal!$M$26 -> 0 | Z42: =IF(Costs!$G7="Sales",IF(Z$210>0,-Costs!$B7*Z$210,0),IF(Costs!$G7="Build",IF(Z$212>0,-Costs!$B7*Z$212,0),IF(Costs!$G7="Single",IF(Costs!$H7=Z$4,-Costs!$B7,0),0)))*Appraisal!$M$26 -> 0 | AA42: =IF(Costs!$G7="Sales",IF(AA$210>0,-Costs!$B7*AA$210,0),IF(Costs!$G7="Build",IF(AA$212>0,-Costs!$B7*AA$212,0),IF(Costs!$G7="Single",IF(Costs!$H7=AA$4,-Costs!$B7,0),0)))*Appraisal!$M$26 -> 0 | AB42: =IF(Costs!$G7="Sales",IF(AB$210>0,-Costs!$B7*AB$210,0),IF(Costs!$G7="Build",IF(AB$212>0,-Costs!$B7*AB$212,0),IF(Costs!$G7="Single",IF(Costs!$H7=AB$4,-Costs!$B7,0),0)))*Appraisal!$M$26 -> 0 | AC42: =IF(Costs!$G7="Sales",IF(AC$210>0,-Costs!$B7*AC$210,0),IF(Costs!$G7="Build",IF(AC$212>0,-Costs!$B7*AC$212,0),IF(Costs!$G7="Single",IF(Costs!$H7=AC$4,-Costs!$B7,0),0)))*Appraisal!$M$26 -> 0 | AD42: =IF(Costs!$G7="Sales",IF(AD$210>0,-Costs!$B7*AD$210,0),IF(Costs!$G7="Build",IF(AD$212>0,-Costs!$B7*AD$212,0),IF(Costs!$G7="Single",IF(Costs!$H7=AD$4,-Costs!$B7,0),0)))*Appraisal!$M$26 -> 0 | AE42: =IF(Costs!$G7="Sales",IF(AE$210>0,-Costs!$B7*AE$210,0),IF(Costs!$G7="Build",IF(AE$212>0,-Costs!$B7*AE$212,0),IF(Costs!$G7="Single",IF(Costs!$H7=AE$4,-Costs!$B7,0),0)))*Appraisal!$M$26 -> 0 | AF42: =IF(Costs!$G7="Sales",IF(AF$210>0,-Costs!$B7*AF$210,0),IF(Costs!$G7="Build",IF(AF$212>0,-Costs!$B7*AF$212,0),IF(Costs!$G7="Single",IF(Costs!$H7=AF$4,-Costs!$B7,0),0)))*Appraisal!$M$26 -> 0 | AG42: =IF(Costs!$G7="Sales",IF(AG$210>0,-Costs!$B7*AG$210,0),IF(Costs!$G7="Build",IF(AG$212>0,-Costs!$B7*AG$212,0),IF(Costs!$G7="Single",IF(Costs!$H7=AG$4,-Costs!$B7,0),0)))*Appraisal!$M$26 -> 0 | AH42: =IF(Costs!$G7="Sales",IF(AH$210>0,-Costs!$B7*AH$210,0),IF(Costs!$G7="Build",IF(AH$212>0,-Costs!$B7*AH$212,0),IF(Costs!$G7="Single",IF(Costs!$H7=AH$4,-Costs!$B7,0),0)))*Appraisal!$M$26 -> 0 | AI42: =IF(Costs!$G7="Sales",IF(AI$210>0,-Costs!$B7*AI$210,0),IF(Costs!$G7="Build",IF(AI$212>0,-Costs!$B7*AI$212,0),IF(Costs!$G7="Single",IF(Costs!$H7=AI$4,-Costs!$B7,0),0)))*Appraisal!$M$26 -> 0 | AJ42: =IF(Costs!$G7="Sales",IF(AJ$210>0,-Costs!$B7*AJ$210,0),IF(Costs!$G7="Build",IF(AJ$212>0,-Costs!$B7*AJ$212,0),IF(Costs!$G7="Single",IF(Costs!$H7=AJ$4,-Costs!$B7,0),0)))*Appraisal!$M$26 -> 0 | AK42: =IF(Costs!$G7="Sales",IF(AK$210>0,-Costs!$B7*AK$210,0),IF(Costs!$G7="Build",IF(AK$212>0,-Costs!$B7*AK$212,0),IF(Costs!$G7="Single",IF(Costs!$H7=AK$4,-Costs!$B7,0),0)))*Appraisal!$M$26 -> 0 | AL42: =IF(Costs!$G7="Sales",IF(AL$210>0,-Costs!$B7*AL$210,0),IF(Costs!$G7="Build",IF(AL$212>0,-Costs!$B7*AL$212,0),IF(Costs!$G7="Single",IF(Costs!$H7=AL$4,-Costs!$B7,0),0)))*Appraisal!$M$26 -> 0 | AM42: =IF(Costs!$G7="Sales",IF(AM$210>0,-Costs!$B7*AM$210,0),IF(Costs!$G7="Build",IF(AM$212>0,-Costs!$B7*AM$212,0),IF(Costs!$G7="Single",IF(Costs!$H7=AM$4,-Costs!$B7,0),0)))*Appraisal!$M$26 -> 0 | AN42: =IF(Costs!$G7="Sales",IF(AN$210>0,-Costs!$B7*AN$210,0),IF(Costs!$G7="Build",IF(AN$212>0,-Costs!$B7*AN$212,0),IF(Costs!$G7="Single",IF(Costs!$H7=AN$4,-Costs!$B7,0),0)))*Appraisal!$M$26 -> 0 | AO42: =IF(Costs!$G7="Sales",IF(AO$210>0,-Costs!$B7*AO$210,0),IF(Costs!$G7="Build",IF(AO$212>0,-Costs!$B7*AO$212,0),IF(Costs!$G7="Single",IF(Costs!$H7=AO$4,-Costs!$B7,0),0)))*Appraisal!$M$26 -> 0 | AP42: =IF(Costs!$G7="Sales",IF(AP$210>0,-Costs!$B7*AP$210,0),IF(Costs!$G7="Build",IF(AP$212>0,-Costs!$B7*AP$212,0),IF(Costs!$G7="Single",IF(Costs!$H7=AP$4,-Costs!$B7,0),0)))*Appraisal!$M$26 -> 0 | AQ42: =IF(Costs!$G7="Sales",IF(AQ$210>0,-Costs!$B7*AQ$210,0),IF(Costs!$G7="Build",IF(AQ$212>0,-Costs!$B7*AQ$212,0),IF(Costs!$G7="Single",IF(Costs!$H7=AQ$4,-Costs!$B7,0),0)))*Appraisal!$M$26 -> 0 | AR42: =IF(Costs!$G7="Sales",IF(AR$210>0,-Costs!$B7*AR$210,0),IF(Costs!$G7="Build",IF(AR$212>0,-Costs!$B7*AR$212,0),IF(Costs!$G7="Single",IF(Costs!$H7=AR$4,-Costs!$B7,0),0)))*Appraisal!$M$26 -> 0 | AS42: =IF(Costs!$G7="Sales",IF(AS$210>0,-Costs!$B7*AS$210,0),IF(Costs!$G7="Build",IF(AS$212>0,-Costs!$B7*AS$212,0),IF(Costs!$G7="Single",IF(Costs!$H7=AS$4,-Costs!$B7,0),0)))*Appraisal!$M$26 -> 0 | AT42: =IF(Costs!$G7="Sales",IF(AT$210>0,-Costs!$B7*AT$210,0),IF(Costs!$G7="Build",IF(AT$212>0,-Costs!$B7*AT$212,0),IF(Costs!$G7="Single",IF(Costs!$H7=AT$4,-Costs!$B7,0),0)))*Appraisal!$M$26 -> 0 | AU42: =IF(Costs!$G7="Sales",IF(AU$210>0,-Costs!$B7*AU$210,0),IF(Costs!$G7="Build",IF(AU$212>0,-Costs!$B7*AU$212,0),IF(Costs!$G7="Single",IF(Costs!$H7=AU$4,-Costs!$B7,0),0)))*Appraisal!$M$26 -> 0 | AV42: =IF(Costs!$G7="Sales",IF(AV$210>0,-Costs!$B7*AV$210,0),IF(Costs!$G7="Build",IF(AV$212>0,-Costs!$B7*AV$212,0),IF(Costs!$G7="Single",IF(Costs!$H7=AV$4,-Costs!$B7,0),0)))*Appraisal!$M$26 -> 0 | AW42: =IF(Costs!$G7="Sales",IF(AW$210>0,-Costs!$B7*AW$210,0),IF(Costs!$G7="Build",IF(AW$212>0,-Costs!$B7*AW$212,0),IF(Costs!$G7="Single",IF(Costs!$H7=AW$4,-Costs!$B7,0),0)))*Appraisal!$M$26 -> 0 | AX42: =IF(Costs!$G7="Sales",IF(AX$210>0,-Costs!$B7*AX$210,0),IF(Costs!$G7="Build",IF(AX$212>0,-Costs!$B7*AX$212,0),IF(Costs!$G7="Single",IF(Costs!$H7=AX$4,-Costs!$B7,0),0)))*Appraisal!$M$26 -> 0 | AY42: =IF(Costs!$G7="Sales",IF(AY$210>0,-Costs!$B7*AY$210,0),IF(Costs!$G7="Build",IF(AY$212>0,-Costs!$B7*AY$212,0),IF(Costs!$G7="Single",IF(Costs!$H7=AY$4,-Costs!$B7,0),0)))*Appraisal!$M$26 -> 0 | AZ42: =IF(Costs!$G7="Sales",IF(AZ$210>0,-Costs!$B7*AZ$210,0),IF(Costs!$G7="Build",IF(AZ$212>0,-Costs!$B7*AZ$212,0),IF(Costs!$G7="Single",IF(Costs!$H7=AZ$4,-Costs!$B7,0),0)))*Appraisal!$M$26 -> 0 | BA42: =IF(Costs!$G7="Sales",IF(BA$210>0,-Costs!$B7*BA$210,0),IF(Costs!$G7="Build",IF(BA$212>0,-Costs!$B7*BA$212,0),IF(Costs!$G7="Single",IF(Costs!$H7=BA$4,-Costs!$B7,0),0)))*Appraisal!$M$26 -> 0 | BB42: =IF(Costs!$G7="Sales",IF(BB$210>0,-Costs!$B7*BB$210,0),IF(Costs!$G7="Build",IF(BB$212>0,-Costs!$B7*BB$212,0),IF(Costs!$G7="Single",IF(Costs!$H7=BB$4,-Costs!$B7,0),0)))*Appraisal!$M$26 -> 0 | BC42: =IF(Costs!$G7="Sales",IF(BC$210>0,-Costs!$B7*BC$210,0),IF(Costs!$G7="Build",IF(BC$212>0,-Costs!$B7*BC$212,0),IF(Costs!$G7="Single",IF(Costs!$H7=BC$4,-Costs!$B7,0),0)))*Appraisal!$M$26 -> 0 | BD42: =IF(Costs!$G7="Sales",IF(BD$210>0,-Costs!$B7*BD$210,0),IF(Costs!$G7="Build",IF(BD$212>0,-Costs!$B7*BD$212,0),IF(Costs!$G7="Single",IF(Costs!$H7=BD$4,-Costs!$B7,0),0)))*Appraisal!$M$26 -> 0 | BE42: =IF(Costs!$G7="Sales",IF(BE$210>0,-Costs!$B7*BE$210,0),IF(Costs!$G7="Build",IF(BE$212>0,-Costs!$B7*BE$212,0),IF(Costs!$G7="Single",IF(Costs!$H7=BE$4,-Costs!$B7,0),0)))*Appraisal!$M$26 -> 0 | BF42: =IF(Costs!$G7="Sales",IF(BF$210>0,-Costs!$B7*BF$210,0),IF(Costs!$G7="Build",IF(BF$212>0,-Costs!$B7*BF$212,0),IF(Costs!$G7="Single",IF(Costs!$H7=BF$4,-Costs!$B7,0),0)))*Appraisal!$M$26 -> 0 | BG42: =IF(Costs!$G7="Sales",IF(BG$210>0,-Costs!$B7*BG$210,0),IF(Costs!$G7="Build",IF(BG$212>0,-Costs!$B7*BG$212,0),IF(Costs!$G7="Single",IF(Costs!$H7=BG$4,-Costs!$B7,0),0)))*Appraisal!$M$26 -> 0 | BH42: =IF(Costs!$G7="Sales",IF(BH$210>0,-Costs!$B7*BH$210,0),IF(Costs!$G7="Build",IF(BH$212>0,-Costs!$B7*BH$212,0),IF(Costs!$G7="Single",IF(Costs!$H7=BH$4,-Costs!$B7,0),0)))*Appraisal!$M$26 -> 0 | BI42: =IF(Costs!$G7="Sales",IF(BI$210>0,-Costs!$B7*BI$210,0),IF(Costs!$G7="Build",IF(BI$212>0,-Costs!$B7*BI$212,0),IF(Costs!$G7="Single",IF(Costs!$H7=BI$4,-Costs!$B7,0),0)))*Appraisal!$M$26 -> 0 | BJ42: =IF(Costs!$G7="Sales",IF(BJ$210>0,-Costs!$B7*BJ$210,0),IF(Costs!$G7="Build",IF(BJ$212>0,-Costs!$B7*BJ$212,0),IF(Costs!$G7="Single",IF(Costs!$H7=BJ$4,-Costs!$B7,0),0)))*Appraisal!$M$26 -> 0
A43: =Costs!A8 -> Active Travel | B43: 0 | C43: =IF(Costs!$G8="Sales",IF(C$210>0,-Costs!$B8*C$210,0),IF(Costs!$G8="Build",IF(C$212>0,-Costs!$B8*C$212,0),IF(Costs!$G8="Single",IF(Costs!$H8=C$4,-Costs!$B8,0),0)))*Appraisal!$M$26 -> 0 | D43: =IF(Costs!$G8="Sales",IF(D$210>0,-Costs!$B8*D$210,0),IF(Costs!$G8="Build",IF(D$212>0,-Costs!$B8*D$212,0),IF(Costs!$G8="Single",IF(Costs!$H8=D$4,-Costs!$B8,0),0)))*Appraisal!$M$26 -> 0 | E43: =IF(Costs!$G8="Sales",IF(E$210>0,-Costs!$B8*E$210,0),IF(Costs!$G8="Build",IF(E$212>0,-Costs!$B8*E$212,0),IF(Costs!$G8="Single",IF(Costs!$H8=E$4,-Costs!$B8,0),0)))*Appraisal!$M$26 -> 0 | F43: =IF(Costs!$G8="Sales",IF(F$210>0,-Costs!$B8*F$210,0),IF(Costs!$G8="Build",IF(F$212>0,-Costs!$B8*F$212,0),IF(Costs!$G8="Single",IF(Costs!$H8=F$4,-Costs!$B8,0),0)))*Appraisal!$M$26 -> 0 | G43: =IF(Costs!$G8="Sales",IF(G$210>0,-Costs!$B8*G$210,0),IF(Costs!$G8="Build",IF(G$212>0,-Costs!$B8*G$212,0),IF(Costs!$G8="Single",IF(Costs!$H8=G$4,-Costs!$B8,0),0)))*Appraisal!$M$26 -> 0 | H43: =IF(Costs!$G8="Sales",IF(H$210>0,-Costs!$B8*H$210,0),IF(Costs!$G8="Build",IF(H$212>0,-Costs!$B8*H$212,0),IF(Costs!$G8="Single",IF(Costs!$H8=H$4,-Costs!$B8,0),0)))*Appraisal!$M$26 -> 0 | I43: =IF(Costs!$G8="Sales",IF(I$210>0,-Costs!$B8*I$210,0),IF(Costs!$G8="Build",IF(I$212>0,-Costs!$B8*I$212,0),IF(Costs!$G8="Single",IF(Costs!$H8=I$4,-Costs!$B8,0),0)))*Appraisal!$M$26 -> 0 | J43: =IF(Costs!$G8="Sales",IF(J$210>0,-Costs!$B8*J$210,0),IF(Costs!$G8="Build",IF(J$212>0,-Costs!$B8*J$212,0),IF(Costs!$G8="Single",IF(Costs!$H8=J$4,-Costs!$B8,0),0)))*Appraisal!$M$26 -> 0 | K43: =IF(Costs!$G8="Sales",IF(K$210>0,-Costs!$B8*K$210,0),IF(Costs!$G8="Build",IF(K$212>0,-Costs!$B8*K$212,0),IF(Costs!$G8="Single",IF(Costs!$H8=K$4,-Costs!$B8,0),0)))*Appraisal!$M$26 -> 0 | L43: =IF(Costs!$G8="Sales",IF(L$210>0,-Costs!$B8*L$210,0),IF(Costs!$G8="Build",IF(L$212>0,-Costs!$B8*L$212,0),IF(Costs!$G8="Single",IF(Costs!$H8=L$4,-Costs!$B8,0),0)))*Appraisal!$M$26 -> 0 | M43: =IF(Costs!$G8="Sales",IF(M$210>0,-Costs!$B8*M$210,0),IF(Costs!$G8="Build",IF(M$212>0,-Costs!$B8*M$212,0),IF(Costs!$G8="Single",IF(Costs!$H8=M$4,-Costs!$B8,0),0)))*Appraisal!$M$26 -> 0 | N43: =IF(Costs!$G8="Sales",IF(N$210>0,-Costs!$B8*N$210,0),IF(Costs!$G8="Build",IF(N$212>0,-Costs!$B8*N$212,0),IF(Costs!$G8="Single",IF(Costs!$H8=N$4,-Costs!$B8,0),0)))*Appraisal!$M$26 -> 0 | O43: =IF(Costs!$G8="Sales",IF(O$210>0,-Costs!$B8*O$210,0),IF(Costs!$G8="Build",IF(O$212>0,-Costs!$B8*O$212,0),IF(Costs!$G8="Single",IF(Costs!$H8=O$4,-Costs!$B8,0),0)))*Appraisal!$M$26 -> 0 | P43: =IF(Costs!$G8="Sales",IF(P$210>0,-Costs!$B8*P$210,0),IF(Costs!$G8="Build",IF(P$212>0,-Costs!$B8*P$212,0),IF(Costs!$G8="Single",IF(Costs!$H8=P$4,-Costs!$B8,0),0)))*Appraisal!$M$26 -> 0 | Q43: =IF(Costs!$G8="Sales",IF(Q$210>0,-Costs!$B8*Q$210,0),IF(Costs!$G8="Build",IF(Q$212>0,-Costs!$B8*Q$212,0),IF(Costs!$G8="Single",IF(Costs!$H8=Q$4,-Costs!$B8,0),0)))*Appraisal!$M$26 -> 0 | R43: =IF(Costs!$G8="Sales",IF(R$210>0,-Costs!$B8*R$210,0),IF(Costs!$G8="Build",IF(R$212>0,-Costs!$B8*R$212,0),IF(Costs!$G8="Single",IF(Costs!$H8=R$4,-Costs!$B8,0),0)))*Appraisal!$M$26 -> 0 | S43: =IF(Costs!$G8="Sales",IF(S$210>0,-Costs!$B8*S$210,0),IF(Costs!$G8="Build",IF(S$212>0,-Costs!$B8*S$212,0),IF(Costs!$G8="Single",IF(Costs!$H8=S$4,-Costs!$B8,0),0)))*Appraisal!$M$26 -> 0 | T43: =IF(Costs!$G8="Sales",IF(T$210>0,-Costs!$B8*T$210,0),IF(Costs!$G8="Build",IF(T$212>0,-Costs!$B8*T$212,0),IF(Costs!$G8="Single",IF(Costs!$H8=T$4,-Costs!$B8,0),0)))*Appraisal!$M$26 -> 0 | U43: =IF(Costs!$G8="Sales",IF(U$210>0,-Costs!$B8*U$210,0),IF(Costs!$G8="Build",IF(U$212>0,-Costs!$B8*U$212,0),IF(Costs!$G8="Single",IF(Costs!$H8=U$4,-Costs!$B8,0),0)))*Appraisal!$M$26 -> 0 | V43: =IF(Costs!$G8="Sales",IF(V$210>0,-Costs!$B8*V$210,0),IF(Costs!$G8="Build",IF(V$212>0,-Costs!$B8*V$212,0),IF(Costs!$G8="Single",IF(Costs!$H8=V$4,-Costs!$B8,0),0)))*Appraisal!$M$26 -> 0 | W43: =IF(Costs!$G8="Sales",IF(W$210>0,-Costs!$B8*W$210,0),IF(Costs!$G8="Build",IF(W$212>0,-Costs!$B8*W$212,0),IF(Costs!$G8="Single",IF(Costs!$H8=W$4,-Costs!$B8,0),0)))*Appraisal!$M$26 -> 0 | X43: =IF(Costs!$G8="Sales",IF(X$210>0,-Costs!$B8*X$210,0),IF(Costs!$G8="Build",IF(X$212>0,-Costs!$B8*X$212,0),IF(Costs!$G8="Single",IF(Costs!$H8=X$4,-Costs!$B8,0),0)))*Appraisal!$M$26 -> 0 | Y43: =IF(Costs!$G8="Sales",IF(Y$210>0,-Costs!$B8*Y$210,0),IF(Costs!$G8="Build",IF(Y$212>0,-Costs!$B8*Y$212,0),IF(Costs!$G8="Single",IF(Costs!$H8=Y$4,-Costs!$B8,0),0)))*Appraisal!$M$26 -> 0 | Z43: =IF(Costs!$G8="Sales",IF(Z$210>0,-Costs!$B8*Z$210,0),IF(Costs!$G8="Build",IF(Z$212>0,-Costs!$B8*Z$212,0),IF(Costs!$G8="Single",IF(Costs!$H8=Z$4,-Costs!$B8,0),0)))*Appraisal!$M$26 -> 0 | AA43: =IF(Costs!$G8="Sales",IF(AA$210>0,-Costs!$B8*AA$210,0),IF(Costs!$G8="Build",IF(AA$212>0,-Costs!$B8*AA$212,0),IF(Costs!$G8="Single",IF(Costs!$H8=AA$4,-Costs!$B8,0),0)))*Appraisal!$M$26 -> 0 | AB43: =IF(Costs!$G8="Sales",IF(AB$210>0,-Costs!$B8*AB$210,0),IF(Costs!$G8="Build",IF(AB$212>0,-Costs!$B8*AB$212,0),IF(Costs!$G8="Single",IF(Costs!$H8=AB$4,-Costs!$B8,0),0)))*Appraisal!$M$26 -> 0 | AC43: =IF(Costs!$G8="Sales",IF(AC$210>0,-Costs!$B8*AC$210,0),IF(Costs!$G8="Build",IF(AC$212>0,-Costs!$B8*AC$212,0),IF(Costs!$G8="Single",IF(Costs!$H8=AC$4,-Costs!$B8,0),0)))*Appraisal!$M$26 -> 0 | AD43: =IF(Costs!$G8="Sales",IF(AD$210>0,-Costs!$B8*AD$210,0),IF(Costs!$G8="Build",IF(AD$212>0,-Costs!$B8*AD$212,0),IF(Costs!$G8="Single",IF(Costs!$H8=AD$4,-Costs!$B8,0),0)))*Appraisal!$M$26 -> 0 | AE43: =IF(Costs!$G8="Sales",IF(AE$210>0,-Costs!$B8*AE$210,0),IF(Costs!$G8="Build",IF(AE$212>0,-Costs!$B8*AE$212,0),IF(Costs!$G8="Single",IF(Costs!$H8=AE$4,-Costs!$B8,0),0)))*Appraisal!$M$26 -> 0 | AF43: =IF(Costs!$G8="Sales",IF(AF$210>0,-Costs!$B8*AF$210,0),IF(Costs!$G8="Build",IF(AF$212>0,-Costs!$B8*AF$212,0),IF(Costs!$G8="Single",IF(Costs!$H8=AF$4,-Costs!$B8,0),0)))*Appraisal!$M$26 -> 0 | AG43: =IF(Costs!$G8="Sales",IF(AG$210>0,-Costs!$B8*AG$210,0),IF(Costs!$G8="Build",IF(AG$212>0,-Costs!$B8*AG$212,0),IF(Costs!$G8="Single",IF(Costs!$H8=AG$4,-Costs!$B8,0),0)))*Appraisal!$M$26 -> 0 | AH43: =IF(Costs!$G8="Sales",IF(AH$210>0,-Costs!$B8*AH$210,0),IF(Costs!$G8="Build",IF(AH$212>0,-Costs!$B8*AH$212,0),IF(Costs!$G8="Single",IF(Costs!$H8=AH$4,-Costs!$B8,0),0)))*Appraisal!$M$26 -> 0 | AI43: =IF(Costs!$G8="Sales",IF(AI$210>0,-Costs!$B8*AI$210,0),IF(Costs!$G8="Build",IF(AI$212>0,-Costs!$B8*AI$212,0),IF(Costs!$G8="Single",IF(Costs!$H8=AI$4,-Costs!$B8,0),0)))*Appraisal!$M$26 -> 0 | AJ43: =IF(Costs!$G8="Sales",IF(AJ$210>0,-Costs!$B8*AJ$210,0),IF(Costs!$G8="Build",IF(AJ$212>0,-Costs!$B8*AJ$212,0),IF(Costs!$G8="Single",IF(Costs!$H8=AJ$4,-Costs!$B8,0),0)))*Appraisal!$M$26 -> 0 | AK43: =IF(Costs!$G8="Sales",IF(AK$210>0,-Costs!$B8*AK$210,0),IF(Costs!$G8="Build",IF(AK$212>0,-Costs!$B8*AK$212,0),IF(Costs!$G8="Single",IF(Costs!$H8=AK$4,-Costs!$B8,0),0)))*Appraisal!$M$26 -> 0 | AL43: =IF(Costs!$G8="Sales",IF(AL$210>0,-Costs!$B8*AL$210,0),IF(Costs!$G8="Build",IF(AL$212>0,-Costs!$B8*AL$212,0),IF(Costs!$G8="Single",IF(Costs!$H8=AL$4,-Costs!$B8,0),0)))*Appraisal!$M$26 -> 0 | AM43: =IF(Costs!$G8="Sales",IF(AM$210>0,-Costs!$B8*AM$210,0),IF(Costs!$G8="Build",IF(AM$212>0,-Costs!$B8*AM$212,0),IF(Costs!$G8="Single",IF(Costs!$H8=AM$4,-Costs!$B8,0),0)))*Appraisal!$M$26 -> 0 | AN43: =IF(Costs!$G8="Sales",IF(AN$210>0,-Costs!$B8*AN$210,0),IF(Costs!$G8="Build",IF(AN$212>0,-Costs!$B8*AN$212,0),IF(Costs!$G8="Single",IF(Costs!$H8=AN$4,-Costs!$B8,0),0)))*Appraisal!$M$26 -> 0 | AO43: =IF(Costs!$G8="Sales",IF(AO$210>0,-Costs!$B8*AO$210,0),IF(Costs!$G8="Build",IF(AO$212>0,-Costs!$B8*AO$212,0),IF(Costs!$G8="Single",IF(Costs!$H8=AO$4,-Costs!$B8,0),0)))*Appraisal!$M$26 -> 0 | AP43: =IF(Costs!$G8="Sales",IF(AP$210>0,-Costs!$B8*AP$210,0),IF(Costs!$G8="Build",IF(AP$212>0,-Costs!$B8*AP$212,0),IF(Costs!$G8="Single",IF(Costs!$H8=AP$4,-Costs!$B8,0),0)))*Appraisal!$M$26 -> 0 | AQ43: =IF(Costs!$G8="Sales",IF(AQ$210>0,-Costs!$B8*AQ$210,0),IF(Costs!$G8="Build",IF(AQ$212>0,-Costs!$B8*AQ$212,0),IF(Costs!$G8="Single",IF(Costs!$H8=AQ$4,-Costs!$B8,0),0)))*Appraisal!$M$26 -> 0 | AR43: =IF(Costs!$G8="Sales",IF(AR$210>0,-Costs!$B8*AR$210,0),IF(Costs!$G8="Build",IF(AR$212>0,-Costs!$B8*AR$212,0),IF(Costs!$G8="Single",IF(Costs!$H8=AR$4,-Costs!$B8,0),0)))*Appraisal!$M$26 -> 0 | AS43: =IF(Costs!$G8="Sales",IF(AS$210>0,-Costs!$B8*AS$210,0),IF(Costs!$G8="Build",IF(AS$212>0,-Costs!$B8*AS$212,0),IF(Costs!$G8="Single",IF(Costs!$H8=AS$4,-Costs!$B8,0),0)))*Appraisal!$M$26 -> 0 | AT43: =IF(Costs!$G8="Sales",IF(AT$210>0,-Costs!$B8*AT$210,0),IF(Costs!$G8="Build",IF(AT$212>0,-Costs!$B8*AT$212,0),IF(Costs!$G8="Single",IF(Costs!$H8=AT$4,-Costs!$B8,0),0)))*Appraisal!$M$26 -> 0 | AU43: =IF(Costs!$G8="Sales",IF(AU$210>0,-Costs!$B8*AU$210,0),IF(Costs!$G8="Build",IF(AU$212>0,-Costs!$B8*AU$212,0),IF(Costs!$G8="Single",IF(Costs!$H8=AU$4,-Costs!$B8,0),0)))*Appraisal!$M$26 -> 0 | AV43: =IF(Costs!$G8="Sales",IF(AV$210>0,-Costs!$B8*AV$210,0),IF(Costs!$G8="Build",IF(AV$212>0,-Costs!$B8*AV$212,0),IF(Costs!$G8="Single",IF(Costs!$H8=AV$4,-Costs!$B8,0),0)))*Appraisal!$M$26 -> 0 | AW43: =IF(Costs!$G8="Sales",IF(AW$210>0,-Costs!$B8*AW$210,0),IF(Costs!$G8="Build",IF(AW$212>0,-Costs!$B8*AW$212,0),IF(Costs!$G8="Single",IF(Costs!$H8=AW$4,-Costs!$B8,0),0)))*Appraisal!$M$26 -> 0 | AX43: =IF(Costs!$G8="Sales",IF(AX$210>0,-Costs!$B8*AX$210,0),IF(Costs!$G8="Build",IF(AX$212>0,-Costs!$B8*AX$212,0),IF(Costs!$G8="Single",IF(Costs!$H8=AX$4,-Costs!$B8,0),0)))*Appraisal!$M$26 -> 0 | AY43: =IF(Costs!$G8="Sales",IF(AY$210>0,-Costs!$B8*AY$210,0),IF(Costs!$G8="Build",IF(AY$212>0,-Costs!$B8*AY$212,0),IF(Costs!$G8="Single",IF(Costs!$H8=AY$4,-Costs!$B8,0),0)))*Appraisal!$M$26 -> 0 | AZ43: =IF(Costs!$G8="Sales",IF(AZ$210>0,-Costs!$B8*AZ$210,0),IF(Costs!$G8="Build",IF(AZ$212>0,-Costs!$B8*AZ$212,0),IF(Costs!$G8="Single",IF(Costs!$H8=AZ$4,-Costs!$B8,0),0)))*Appraisal!$M$26 -> 0 | BA43: =IF(Costs!$G8="Sales",IF(BA$210>0,-Costs!$B8*BA$210,0),IF(Costs!$G8="Build",IF(BA$212>0,-Costs!$B8*BA$212,0),IF(Costs!$G8="Single",IF(Costs!$H8=BA$4,-Costs!$B8,0),0)))*Appraisal!$M$26 -> 0 | BB43: =IF(Costs!$G8="Sales",IF(BB$210>0,-Costs!$B8*BB$210,0),IF(Costs!$G8="Build",IF(BB$212>0,-Costs!$B8*BB$212,0),IF(Costs!$G8="Single",IF(Costs!$H8=BB$4,-Costs!$B8,0),0)))*Appraisal!$M$26 -> 0 | BC43: =IF(Costs!$G8="Sales",IF(BC$210>0,-Costs!$B8*BC$210,0),IF(Costs!$G8="Build",IF(BC$212>0,-Costs!$B8*BC$212,0),IF(Costs!$G8="Single",IF(Costs!$H8=BC$4,-Costs!$B8,0),0)))*Appraisal!$M$26 -> 0 | BD43: =IF(Costs!$G8="Sales",IF(BD$210>0,-Costs!$B8*BD$210,0),IF(Costs!$G8="Build",IF(BD$212>0,-Costs!$B8*BD$212,0),IF(Costs!$G8="Single",IF(Costs!$H8=BD$4,-Costs!$B8,0),0)))*Appraisal!$M$26 -> 0 | BE43: =IF(Costs!$G8="Sales",IF(BE$210>0,-Costs!$B8*BE$210,0),IF(Costs!$G8="Build",IF(BE$212>0,-Costs!$B8*BE$212,0),IF(Costs!$G8="Single",IF(Costs!$H8=BE$4,-Costs!$B8,0),0)))*Appraisal!$M$26 -> 0 | BF43: =IF(Costs!$G8="Sales",IF(BF$210>0,-Costs!$B8*BF$210,0),IF(Costs!$G8="Build",IF(BF$212>0,-Costs!$B8*BF$212,0),IF(Costs!$G8="Single",IF(Costs!$H8=BF$4,-Costs!$B8,0),0)))*Appraisal!$M$26 -> 0 | BG43: =IF(Costs!$G8="Sales",IF(BG$210>0,-Costs!$B8*BG$210,0),IF(Costs!$G8="Build",IF(BG$212>0,-Costs!$B8*BG$212,0),IF(Costs!$G8="Single",IF(Costs!$H8=BG$4,-Costs!$B8,0),0)))*Appraisal!$M$26 -> 0 | BH43: =IF(Costs!$G8="Sales",IF(BH$210>0,-Costs!$B8*BH$210,0),IF(Costs!$G8="Build",IF(BH$212>0,-Costs!$B8*BH$212,0),IF(Costs!$G8="Single",IF(Costs!$H8=BH$4,-Costs!$B8,0),0)))*Appraisal!$M$26 -> 0 | BI43: =IF(Costs!$G8="Sales",IF(BI$210>0,-Costs!$B8*BI$210,0),IF(Costs!$G8="Build",IF(BI$212>0,-Costs!$B8*BI$212,0),IF(Costs!$G8="Single",IF(Costs!$H8=BI$4,-Costs!$B8,0),0)))*Appraisal!$M$26 -> 0 | BJ43: =IF(Costs!$G8="Sales",IF(BJ$210>0,-Costs!$B8*BJ$210,0),IF(Costs!$G8="Build",IF(BJ$212>0,-Costs!$B8*BJ$212,0),IF(Costs!$G8="Single",IF(Costs!$H8=BJ$4,-Costs!$B8,0),0)))*Appraisal!$M$26 -> 0
A44: =Costs!A9 -> Highway Measures | B44: 0 | C44: =IF(Costs!$G9="Sales",IF(C$210>0,-Costs!$B9*C$210,0),IF(Costs!$G9="Build",IF(C$212>0,-Costs!$B9*C$212,0),IF(Costs!$G9="Single",IF(Costs!$H9=C$4,-Costs!$B9,0),0)))*Appraisal!$M$26 -> 0 | D44: =IF(Costs!$G9="Sales",IF(D$210>0,-Costs!$B9*D$210,0),IF(Costs!$G9="Build",IF(D$212>0,-Costs!$B9*D$212,0),IF(Costs!$G9="Single",IF(Costs!$H9=D$4,-Costs!$B9,0),0)))*Appraisal!$M$26 -> 0 | E44: =IF(Costs!$G9="Sales",IF(E$210>0,-Costs!$B9*E$210,0),IF(Costs!$G9="Build",IF(E$212>0,-Costs!$B9*E$212,0),IF(Costs!$G9="Single",IF(Costs!$H9=E$4,-Costs!$B9,0),0)))*Appraisal!$M$26 -> 0 | F44: =IF(Costs!$G9="Sales",IF(F$210>0,-Costs!$B9*F$210,0),IF(Costs!$G9="Build",IF(F$212>0,-Costs!$B9*F$212,0),IF(Costs!$G9="Single",IF(Costs!$H9=F$4,-Costs!$B9,0),0)))*Appraisal!$M$26 -> 0 | G44: =IF(Costs!$G9="Sales",IF(G$210>0,-Costs!$B9*G$210,0),IF(Costs!$G9="Build",IF(G$212>0,-Costs!$B9*G$212,0),IF(Costs!$G9="Single",IF(Costs!$H9=G$4,-Costs!$B9,0),0)))*Appraisal!$M$26 -> 0 | H44: =IF(Costs!$G9="Sales",IF(H$210>0,-Costs!$B9*H$210,0),IF(Costs!$G9="Build",IF(H$212>0,-Costs!$B9*H$212,0),IF(Costs!$G9="Single",IF(Costs!$H9=H$4,-Costs!$B9,0),0)))*Appraisal!$M$26 -> 0 | I44: =IF(Costs!$G9="Sales",IF(I$210>0,-Costs!$B9*I$210,0),IF(Costs!$G9="Build",IF(I$212>0,-Costs!$B9*I$212,0),IF(Costs!$G9="Single",IF(Costs!$H9=I$4,-Costs!$B9,0),0)))*Appraisal!$M$26 -> 0 | J44: =IF(Costs!$G9="Sales",IF(J$210>0,-Costs!$B9*J$210,0),IF(Costs!$G9="Build",IF(J$212>0,-Costs!$B9*J$212,0),IF(Costs!$G9="Single",IF(Costs!$H9=J$4,-Costs!$B9,0),0)))*Appraisal!$M$26 -> 0 | K44: =IF(Costs!$G9="Sales",IF(K$210>0,-Costs!$B9*K$210,0),IF(Costs!$G9="Build",IF(K$212>0,-Costs!$B9*K$212,0),IF(Costs!$G9="Single",IF(Costs!$H9=K$4,-Costs!$B9,0),0)))*Appraisal!$M$26 -> 0 | L44: =IF(Costs!$G9="Sales",IF(L$210>0,-Costs!$B9*L$210,0),IF(Costs!$G9="Build",IF(L$212>0,-Costs!$B9*L$212,0),IF(Costs!$G9="Single",IF(Costs!$H9=L$4,-Costs!$B9,0),0)))*Appraisal!$M$26 -> 0 | M44: =IF(Costs!$G9="Sales",IF(M$210>0,-Costs!$B9*M$210,0),IF(Costs!$G9="Build",IF(M$212>0,-Costs!$B9*M$212,0),IF(Costs!$G9="Single",IF(Costs!$H9=M$4,-Costs!$B9,0),0)))*Appraisal!$M$26 -> 0 | N44: =IF(Costs!$G9="Sales",IF(N$210>0,-Costs!$B9*N$210,0),IF(Costs!$G9="Build",IF(N$212>0,-Costs!$B9*N$212,0),IF(Costs!$G9="Single",IF(Costs!$H9=N$4,-Costs!$B9,0),0)))*Appraisal!$M$26 -> 0 | O44: =IF(Costs!$G9="Sales",IF(O$210>0,-Costs!$B9*O$210,0),IF(Costs!$G9="Build",IF(O$212>0,-Costs!$B9*O$212,0),IF(Costs!$G9="Single",IF(Costs!$H9=O$4,-Costs!$B9,0),0)))*Appraisal!$M$26 -> 0 | P44: =IF(Costs!$G9="Sales",IF(P$210>0,-Costs!$B9*P$210,0),IF(Costs!$G9="Build",IF(P$212>0,-Costs!$B9*P$212,0),IF(Costs!$G9="Single",IF(Costs!$H9=P$4,-Costs!$B9,0),0)))*Appraisal!$M$26 -> 0 | Q44: =IF(Costs!$G9="Sales",IF(Q$210>0,-Costs!$B9*Q$210,0),IF(Costs!$G9="Build",IF(Q$212>0,-Costs!$B9*Q$212,0),IF(Costs!$G9="Single",IF(Costs!$H9=Q$4,-Costs!$B9,0),0)))*Appraisal!$M$26 -> 0 | R44: =IF(Costs!$G9="Sales",IF(R$210>0,-Costs!$B9*R$210,0),IF(Costs!$G9="Build",IF(R$212>0,-Costs!$B9*R$212,0),IF(Costs!$G9="Single",IF(Costs!$H9=R$4,-Costs!$B9,0),0)))*Appraisal!$M$26 -> 0 | S44: =IF(Costs!$G9="Sales",IF(S$210>0,-Costs!$B9*S$210,0),IF(Costs!$G9="Build",IF(S$212>0,-Costs!$B9*S$212,0),IF(Costs!$G9="Single",IF(Costs!$H9=S$4,-Costs!$B9,0),0)))*Appraisal!$M$26 -> 0 | T44: =IF(Costs!$G9="Sales",IF(T$210>0,-Costs!$B9*T$210,0),IF(Costs!$G9="Build",IF(T$212>0,-Costs!$B9*T$212,0),IF(Costs!$G9="Single",IF(Costs!$H9=T$4,-Costs!$B9,0),0)))*Appraisal!$M$26 -> 0 | U44: =IF(Costs!$G9="Sales",IF(U$210>0,-Costs!$B9*U$210,0),IF(Costs!$G9="Build",IF(U$212>0,-Costs!$B9*U$212,0),IF(Costs!$G9="Single",IF(Costs!$H9=U$4,-Costs!$B9,0),0)))*Appraisal!$M$26 -> 0 | V44: =IF(Costs!$G9="Sales",IF(V$210>0,-Costs!$B9*V$210,0),IF(Costs!$G9="Build",IF(V$212>0,-Costs!$B9*V$212,0),IF(Costs!$G9="Single",IF(Costs!$H9=V$4,-Costs!$B9,0),0)))*Appraisal!$M$26 -> 0 | W44: =IF(Costs!$G9="Sales",IF(W$210>0,-Costs!$B9*W$210,0),IF(Costs!$G9="Build",IF(W$212>0,-Costs!$B9*W$212,0),IF(Costs!$G9="Single",IF(Costs!$H9=W$4,-Costs!$B9,0),0)))*Appraisal!$M$26 -> 0 | X44: =IF(Costs!$G9="Sales",IF(X$210>0,-Costs!$B9*X$210,0),IF(Costs!$G9="Build",IF(X$212>0,-Costs!$B9*X$212,0),IF(Costs!$G9="Single",IF(Costs!$H9=X$4,-Costs!$B9,0),0)))*Appraisal!$M$26 -> 0 | Y44: =IF(Costs!$G9="Sales",IF(Y$210>0,-Costs!$B9*Y$210,0),IF(Costs!$G9="Build",IF(Y$212>0,-Costs!$B9*Y$212,0),IF(Costs!$G9="Single",IF(Costs!$H9=Y$4,-Costs!$B9,0),0)))*Appraisal!$M$26 -> 0 | Z44: =IF(Costs!$G9="Sales",IF(Z$210>0,-Costs!$B9*Z$210,0),IF(Costs!$G9="Build",IF(Z$212>0,-Costs!$B9*Z$212,0),IF(Costs!$G9="Single",IF(Costs!$H9=Z$4,-Costs!$B9,0),0)))*Appraisal!$M$26 -> 0 | AA44: =IF(Costs!$G9="Sales",IF(AA$210>0,-Costs!$B9*AA$210,0),IF(Costs!$G9="Build",IF(AA$212>0,-Costs!$B9*AA$212,0),IF(Costs!$G9="Single",IF(Costs!$H9=AA$4,-Costs!$B9,0),0)))*Appraisal!$M$26 -> 0 | AB44: =IF(Costs!$G9="Sales",IF(AB$210>0,-Costs!$B9*AB$210,0),IF(Costs!$G9="Build",IF(AB$212>0,-Costs!$B9*AB$212,0),IF(Costs!$G9="Single",IF(Costs!$H9=AB$4,-Costs!$B9,0),0)))*Appraisal!$M$26 -> 0 | AC44: =IF(Costs!$G9="Sales",IF(AC$210>0,-Costs!$B9*AC$210,0),IF(Costs!$G9="Build",IF(AC$212>0,-Costs!$B9*AC$212,0),IF(Costs!$G9="Single",IF(Costs!$H9=AC$4,-Costs!$B9,0),0)))*Appraisal!$M$26 -> 0 | AD44: =IF(Costs!$G9="Sales",IF(AD$210>0,-Costs!$B9*AD$210,0),IF(Costs!$G9="Build",IF(AD$212>0,-Costs!$B9*AD$212,0),IF(Costs!$G9="Single",IF(Costs!$H9=AD$4,-Costs!$B9,0),0)))*Appraisal!$M$26 -> 0 | AE44: =IF(Costs!$G9="Sales",IF(AE$210>0,-Costs!$B9*AE$210,0),IF(Costs!$G9="Build",IF(AE$212>0,-Costs!$B9*AE$212,0),IF(Costs!$G9="Single",IF(Costs!$H9=AE$4,-Costs!$B9,0),0)))*Appraisal!$M$26 -> 0 | AF44: =IF(Costs!$G9="Sales",IF(AF$210>0,-Costs!$B9*AF$210,0),IF(Costs!$G9="Build",IF(AF$212>0,-Costs!$B9*AF$212,0),IF(Costs!$G9="Single",IF(Costs!$H9=AF$4,-Costs!$B9,0),0)))*Appraisal!$M$26 -> 0 | AG44: =IF(Costs!$G9="Sales",IF(AG$210>0,-Costs!$B9*AG$210,0),IF(Costs!$G9="Build",IF(AG$212>0,-Costs!$B9*AG$212,0),IF(Costs!$G9="Single",IF(Costs!$H9=AG$4,-Costs!$B9,0),0)))*Appraisal!$M$26 -> 0 | AH44: =IF(Costs!$G9="Sales",IF(AH$210>0,-Costs!$B9*AH$210,0),IF(Costs!$G9="Build",IF(AH$212>0,-Costs!$B9*AH$212,0),IF(Costs!$G9="Single",IF(Costs!$H9=AH$4,-Costs!$B9,0),0)))*Appraisal!$M$26 -> 0 | AI44: =IF(Costs!$G9="Sales",IF(AI$210>0,-Costs!$B9*AI$210,0),IF(Costs!$G9="Build",IF(AI$212>0,-Costs!$B9*AI$212,0),IF(Costs!$G9="Single",IF(Costs!$H9=AI$4,-Costs!$B9,0),0)))*Appraisal!$M$26 -> 0 | AJ44: =IF(Costs!$G9="Sales",IF(AJ$210>0,-Costs!$B9*AJ$210,0),IF(Costs!$G9="Build",IF(AJ$212>0,-Costs!$B9*AJ$212,0),IF(Costs!$G9="Single",IF(Costs!$H9=AJ$4,-Costs!$B9,0),0)))*Appraisal!$M$26 -> 0 | AK44: =IF(Costs!$G9="Sales",IF(AK$210>0,-Costs!$B9*AK$210,0),IF(Costs!$G9="Build",IF(AK$212>0,-Costs!$B9*AK$212,0),IF(Costs!$G9="Single",IF(Costs!$H9=AK$4,-Costs!$B9,0),0)))*Appraisal!$M$26 -> 0 | AL44: =IF(Costs!$G9="Sales",IF(AL$210>0,-Costs!$B9*AL$210,0),IF(Costs!$G9="Build",IF(AL$212>0,-Costs!$B9*AL$212,0),IF(Costs!$G9="Single",IF(Costs!$H9=AL$4,-Costs!$B9,0),0)))*Appraisal!$M$26 -> 0 | AM44: =IF(Costs!$G9="Sales",IF(AM$210>0,-Costs!$B9*AM$210,0),IF(Costs!$G9="Build",IF(AM$212>0,-Costs!$B9*AM$212,0),IF(Costs!$G9="Single",IF(Costs!$H9=AM$4,-Costs!$B9,0),0)))*Appraisal!$M$26 -> 0 | AN44: =IF(Costs!$G9="Sales",IF(AN$210>0,-Costs!$B9*AN$210,0),IF(Costs!$G9="Build",IF(AN$212>0,-Costs!$B9*AN$212,0),IF(Costs!$G9="Single",IF(Costs!$H9=AN$4,-Costs!$B9,0),0)))*Appraisal!$M$26 -> 0 | AO44: =IF(Costs!$G9="Sales",IF(AO$210>0,-Costs!$B9*AO$210,0),IF(Costs!$G9="Build",IF(AO$212>0,-Costs!$B9*AO$212,0),IF(Costs!$G9="Single",IF(Costs!$H9=AO$4,-Costs!$B9,0),0)))*Appraisal!$M$26 -> 0 | AP44: =IF(Costs!$G9="Sales",IF(AP$210>0,-Costs!$B9*AP$210,0),IF(Costs!$G9="Build",IF(AP$212>0,-Costs!$B9*AP$212,0),IF(Costs!$G9="Single",IF(Costs!$H9=AP$4,-Costs!$B9,0),0)))*Appraisal!$M$26 -> 0 | AQ44: =IF(Costs!$G9="Sales",IF(AQ$210>0,-Costs!$B9*AQ$210,0),IF(Costs!$G9="Build",IF(AQ$212>0,-Costs!$B9*AQ$212,0),IF(Costs!$G9="Single",IF(Costs!$H9=AQ$4,-Costs!$B9,0),0)))*Appraisal!$M$26 -> 0 | AR44: =IF(Costs!$G9="Sales",IF(AR$210>0,-Costs!$B9*AR$210,0),IF(Costs!$G9="Build",IF(AR$212>0,-Costs!$B9*AR$212,0),IF(Costs!$G9="Single",IF(Costs!$H9=AR$4,-Costs!$B9,0),0)))*Appraisal!$M$26 -> 0 | AS44: =IF(Costs!$G9="Sales",IF(AS$210>0,-Costs!$B9*AS$210,0),IF(Costs!$G9="Build",IF(AS$212>0,-Costs!$B9*AS$212,0),IF(Costs!$G9="Single",IF(Costs!$H9=AS$4,-Costs!$B9,0),0)))*Appraisal!$M$26 -> 0 | AT44: =IF(Costs!$G9="Sales",IF(AT$210>0,-Costs!$B9*AT$210,0),IF(Costs!$G9="Build",IF(AT$212>0,-Costs!$B9*AT$212,0),IF(Costs!$G9="Single",IF(Costs!$H9=AT$4,-Costs!$B9,0),0)))*Appraisal!$M$26 -> 0 | AU44: =IF(Costs!$G9="Sales",IF(AU$210>0,-Costs!$B9*AU$210,0),IF(Costs!$G9="Build",IF(AU$212>0,-Costs!$B9*AU$212,0),IF(Costs!$G9="Single",IF(Costs!$H9=AU$4,-Costs!$B9,0),0)))*Appraisal!$M$26 -> 0 | AV44: =IF(Costs!$G9="Sales",IF(AV$210>0,-Costs!$B9*AV$210,0),IF(Costs!$G9="Build",IF(AV$212>0,-Costs!$B9*AV$212,0),IF(Costs!$G9="Single",IF(Costs!$H9=AV$4,-Costs!$B9,0),0)))*Appraisal!$M$26 -> 0 | AW44: =IF(Costs!$G9="Sales",IF(AW$210>0,-Costs!$B9*AW$210,0),IF(Costs!$G9="Build",IF(AW$212>0,-Costs!$B9*AW$212,0),IF(Costs!$G9="Single",IF(Costs!$H9=AW$4,-Costs!$B9,0),0)))*Appraisal!$M$26 -> 0 | AX44: =IF(Costs!$G9="Sales",IF(AX$210>0,-Costs!$B9*AX$210,0),IF(Costs!$G9="Build",IF(AX$212>0,-Costs!$B9*AX$212,0),IF(Costs!$G9="Single",IF(Costs!$H9=AX$4,-Costs!$B9,0),0)))*Appraisal!$M$26 -> 0 | AY44: =IF(Costs!$G9="Sales",IF(AY$210>0,-Costs!$B9*AY$210,0),IF(Costs!$G9="Build",IF(AY$212>0,-Costs!$B9*AY$212,0),IF(Costs!$G9="Single",IF(Costs!$H9=AY$4,-Costs!$B9,0),0)))*Appraisal!$M$26 -> 0 | AZ44: =IF(Costs!$G9="Sales",IF(AZ$210>0,-Costs!$B9*AZ$210,0),IF(Costs!$G9="Build",IF(AZ$212>0,-Costs!$B9*AZ$212,0),IF(Costs!$G9="Single",IF(Costs!$H9=AZ$4,-Costs!$B9,0),0)))*Appraisal!$M$26 -> 0 | BA44: =IF(Costs!$G9="Sales",IF(BA$210>0,-Costs!$B9*BA$210,0),IF(Costs!$G9="Build",IF(BA$212>0,-Costs!$B9*BA$212,0),IF(Costs!$G9="Single",IF(Costs!$H9=BA$4,-Costs!$B9,0),0)))*Appraisal!$M$26 -> 0 | BB44: =IF(Costs!$G9="Sales",IF(BB$210>0,-Costs!$B9*BB$210,0),IF(Costs!$G9="Build",IF(BB$212>0,-Costs!$B9*BB$212,0),IF(Costs!$G9="Single",IF(Costs!$H9=BB$4,-Costs!$B9,0),0)))*Appraisal!$M$26 -> 0 | BC44: =IF(Costs!$G9="Sales",IF(BC$210>0,-Costs!$B9*BC$210,0),IF(Costs!$G9="Build",IF(BC$212>0,-Costs!$B9*BC$212,0),IF(Costs!$G9="Single",IF(Costs!$H9=BC$4,-Costs!$B9,0),0)))*Appraisal!$M$26 -> 0 | BD44: =IF(Costs!$G9="Sales",IF(BD$210>0,-Costs!$B9*BD$210,0),IF(Costs!$G9="Build",IF(BD$212>0,-Costs!$B9*BD$212,0),IF(Costs!$G9="Single",IF(Costs!$H9=BD$4,-Costs!$B9,0),0)))*Appraisal!$M$26 -> 0 | BE44: =IF(Costs!$G9="Sales",IF(BE$210>0,-Costs!$B9*BE$210,0),IF(Costs!$G9="Build",IF(BE$212>0,-Costs!$B9*BE$212,0),IF(Costs!$G9="Single",IF(Costs!$H9=BE$4,-Costs!$B9,0),0)))*Appraisal!$M$26 -> 0 | BF44: =IF(Costs!$G9="Sales",IF(BF$210>0,-Costs!$B9*BF$210,0),IF(Costs!$G9="Build",IF(BF$212>0,-Costs!$B9*BF$212,0),IF(Costs!$G9="Single",IF(Costs!$H9=BF$4,-Costs!$B9,0),0)))*Appraisal!$M$26 -> 0 | BG44: =IF(Costs!$G9="Sales",IF(BG$210>0,-Costs!$B9*BG$210,0),IF(Costs!$G9="Build",IF(BG$212>0,-Costs!$B9*BG$212,0),IF(Costs!$G9="Single",IF(Costs!$H9=BG$4,-Costs!$B9,0),0)))*Appraisal!$M$26 -> 0 | BH44: =IF(Costs!$G9="Sales",IF(BH$210>0,-Costs!$B9*BH$210,0),IF(Costs!$G9="Build",IF(BH$212>0,-Costs!$B9*BH$212,0),IF(Costs!$G9="Single",IF(Costs!$H9=BH$4,-Costs!$B9,0),0)))*Appraisal!$M$26 -> 0 | BI44: =IF(Costs!$G9="Sales",IF(BI$210>0,-Costs!$B9*BI$210,0),IF(Costs!$G9="Build",IF(BI$212>0,-Costs!$B9*BI$212,0),IF(Costs!$G9="Single",IF(Costs!$H9=BI$4,-Costs!$B9,0),0)))*Appraisal!$M$26 -> 0 | BJ44: =IF(Costs!$G9="Sales",IF(BJ$210>0,-Costs!$B9*BJ$210,0),IF(Costs!$G9="Build",IF(BJ$212>0,-Costs!$B9*BJ$212,0),IF(Costs!$G9="Single",IF(Costs!$H9=BJ$4,-Costs!$B9,0),0)))*Appraisal!$M$26 -> 0
A45: =Costs!A10 -> Public Transport | B45: 0 | C45: =IF(Costs!$G10="Sales",IF(C$210>0,-Costs!$B10*C$210,0),IF(Costs!$G10="Build",IF(C$212>0,-Costs!$B10*C$212,0),IF(Costs!$G10="Single",IF(Costs!$H10=C$4,-Costs!$B10,0),0)))*Appraisal!$M$26 -> 0 | D45: =IF(Costs!$G10="Sales",IF(D$210>0,-Costs!$B10*D$210,0),IF(Costs!$G10="Build",IF(D$212>0,-Costs!$B10*D$212,0),IF(Costs!$G10="Single",IF(Costs!$H10=D$4,-Costs!$B10,0),0)))*Appraisal!$M$26 -> 0 | E45: =IF(Costs!$G10="Sales",IF(E$210>0,-Costs!$B10*E$210,0),IF(Costs!$G10="Build",IF(E$212>0,-Costs!$B10*E$212,0),IF(Costs!$G10="Single",IF(Costs!$H10=E$4,-Costs!$B10,0),0)))*Appraisal!$M$26 -> 0 | F45: =IF(Costs!$G10="Sales",IF(F$210>0,-Costs!$B10*F$210,0),IF(Costs!$G10="Build",IF(F$212>0,-Costs!$B10*F$212,0),IF(Costs!$G10="Single",IF(Costs!$H10=F$4,-Costs!$B10,0),0)))*Appraisal!$M$26 -> 0 | G45: =IF(Costs!$G10="Sales",IF(G$210>0,-Costs!$B10*G$210,0),IF(Costs!$G10="Build",IF(G$212>0,-Costs!$B10*G$212,0),IF(Costs!$G10="Single",IF(Costs!$H10=G$4,-Costs!$B10,0),0)))*Appraisal!$M$26 -> 0 | H45: =IF(Costs!$G10="Sales",IF(H$210>0,-Costs!$B10*H$210,0),IF(Costs!$G10="Build",IF(H$212>0,-Costs!$B10*H$212,0),IF(Costs!$G10="Single",IF(Costs!$H10=H$4,-Costs!$B10,0),0)))*Appraisal!$M$26 -> 0 | I45: =IF(Costs!$G10="Sales",IF(I$210>0,-Costs!$B10*I$210,0),IF(Costs!$G10="Build",IF(I$212>0,-Costs!$B10*I$212,0),IF(Costs!$G10="Single",IF(Costs!$H10=I$4,-Costs!$B10,0),0)))*Appraisal!$M$26 -> 0 | J45: =IF(Costs!$G10="Sales",IF(J$210>0,-Costs!$B10*J$210,0),IF(Costs!$G10="Build",IF(J$212>0,-Costs!$B10*J$212,0),IF(Costs!$G10="Single",IF(Costs!$H10=J$4,-Costs!$B10,0),0)))*Appraisal!$M$26 -> 0 | K45: =IF(Costs!$G10="Sales",IF(K$210>0,-Costs!$B10*K$210,0),IF(Costs!$G10="Build",IF(K$212>0,-Costs!$B10*K$212,0),IF(Costs!$G10="Single",IF(Costs!$H10=K$4,-Costs!$B10,0),0)))*Appraisal!$M$26 -> 0 | L45: =IF(Costs!$G10="Sales",IF(L$210>0,-Costs!$B10*L$210,0),IF(Costs!$G10="Build",IF(L$212>0,-Costs!$B10*L$212,0),IF(Costs!$G10="Single",IF(Costs!$H10=L$4,-Costs!$B10,0),0)))*Appraisal!$M$26 -> 0 | M45: =IF(Costs!$G10="Sales",IF(M$210>0,-Costs!$B10*M$210,0),IF(Costs!$G10="Build",IF(M$212>0,-Costs!$B10*M$212,0),IF(Costs!$G10="Single",IF(Costs!$H10=M$4,-Costs!$B10,0),0)))*Appraisal!$M$26 -> 0 | N45: =IF(Costs!$G10="Sales",IF(N$210>0,-Costs!$B10*N$210,0),IF(Costs!$G10="Build",IF(N$212>0,-Costs!$B10*N$212,0),IF(Costs!$G10="Single",IF(Costs!$H10=N$4,-Costs!$B10,0),0)))*Appraisal!$M$26 -> 0 | O45: =IF(Costs!$G10="Sales",IF(O$210>0,-Costs!$B10*O$210,0),IF(Costs!$G10="Build",IF(O$212>0,-Costs!$B10*O$212,0),IF(Costs!$G10="Single",IF(Costs!$H10=O$4,-Costs!$B10,0),0)))*Appraisal!$M$26 -> 0 | P45: =IF(Costs!$G10="Sales",IF(P$210>0,-Costs!$B10*P$210,0),IF(Costs!$G10="Build",IF(P$212>0,-Costs!$B10*P$212,0),IF(Costs!$G10="Single",IF(Costs!$H10=P$4,-Costs!$B10,0),0)))*Appraisal!$M$26 -> 0 | Q45: =IF(Costs!$G10="Sales",IF(Q$210>0,-Costs!$B10*Q$210,0),IF(Costs!$G10="Build",IF(Q$212>0,-Costs!$B10*Q$212,0),IF(Costs!$G10="Single",IF(Costs!$H10=Q$4,-Costs!$B10,0),0)))*Appraisal!$M$26 -> 0 | R45: =IF(Costs!$G10="Sales",IF(R$210>0,-Costs!$B10*R$210,0),IF(Costs!$G10="Build",IF(R$212>0,-Costs!$B10*R$212,0),IF(Costs!$G10="Single",IF(Costs!$H10=R$4,-Costs!$B10,0),0)))*Appraisal!$M$26 -> 0 | S45: =IF(Costs!$G10="Sales",IF(S$210>0,-Costs!$B10*S$210,0),IF(Costs!$G10="Build",IF(S$212>0,-Costs!$B10*S$212,0),IF(Costs!$G10="Single",IF(Costs!$H10=S$4,-Costs!$B10,0),0)))*Appraisal!$M$26 -> 0 | T45: =IF(Costs!$G10="Sales",IF(T$210>0,-Costs!$B10*T$210,0),IF(Costs!$G10="Build",IF(T$212>0,-Costs!$B10*T$212,0),IF(Costs!$G10="Single",IF(Costs!$H10=T$4,-Costs!$B10,0),0)))*Appraisal!$M$26 -> 0 | U45: =IF(Costs!$G10="Sales",IF(U$210>0,-Costs!$B10*U$210,0),IF(Costs!$G10="Build",IF(U$212>0,-Costs!$B10*U$212,0),IF(Costs!$G10="Single",IF(Costs!$H10=U$4,-Costs!$B10,0),0)))*Appraisal!$M$26 -> 0 | V45: =IF(Costs!$G10="Sales",IF(V$210>0,-Costs!$B10*V$210,0),IF(Costs!$G10="Build",IF(V$212>0,-Costs!$B10*V$212,0),IF(Costs!$G10="Single",IF(Costs!$H10=V$4,-Costs!$B10,0),0)))*Appraisal!$M$26 -> 0 | W45: =IF(Costs!$G10="Sales",IF(W$210>0,-Costs!$B10*W$210,0),IF(Costs!$G10="Build",IF(W$212>0,-Costs!$B10*W$212,0),IF(Costs!$G10="Single",IF(Costs!$H10=W$4,-Costs!$B10,0),0)))*Appraisal!$M$26 -> 0 | X45: =IF(Costs!$G10="Sales",IF(X$210>0,-Costs!$B10*X$210,0),IF(Costs!$G10="Build",IF(X$212>0,-Costs!$B10*X$212,0),IF(Costs!$G10="Single",IF(Costs!$H10=X$4,-Costs!$B10,0),0)))*Appraisal!$M$26 -> 0 | Y45: =IF(Costs!$G10="Sales",IF(Y$210>0,-Costs!$B10*Y$210,0),IF(Costs!$G10="Build",IF(Y$212>0,-Costs!$B10*Y$212,0),IF(Costs!$G10="Single",IF(Costs!$H10=Y$4,-Costs!$B10,0),0)))*Appraisal!$M$26 -> 0 | Z45: =IF(Costs!$G10="Sales",IF(Z$210>0,-Costs!$B10*Z$210,0),IF(Costs!$G10="Build",IF(Z$212>0,-Costs!$B10*Z$212,0),IF(Costs!$G10="Single",IF(Costs!$H10=Z$4,-Costs!$B10,0),0)))*Appraisal!$M$26 -> 0 | AA45: =IF(Costs!$G10="Sales",IF(AA$210>0,-Costs!$B10*AA$210,0),IF(Costs!$G10="Build",IF(AA$212>0,-Costs!$B10*AA$212,0),IF(Costs!$G10="Single",IF(Costs!$H10=AA$4,-Costs!$B10,0),0)))*Appraisal!$M$26 -> 0 | AB45: =IF(Costs!$G10="Sales",IF(AB$210>0,-Costs!$B10*AB$210,0),IF(Costs!$G10="Build",IF(AB$212>0,-Costs!$B10*AB$212,0),IF(Costs!$G10="Single",IF(Costs!$H10=AB$4,-Costs!$B10,0),0)))*Appraisal!$M$26 -> 0 | AC45: =IF(Costs!$G10="Sales",IF(AC$210>0,-Costs!$B10*AC$210,0),IF(Costs!$G10="Build",IF(AC$212>0,-Costs!$B10*AC$212,0),IF(Costs!$G10="Single",IF(Costs!$H10=AC$4,-Costs!$B10,0),0)))*Appraisal!$M$26 -> 0 | AD45: =IF(Costs!$G10="Sales",IF(AD$210>0,-Costs!$B10*AD$210,0),IF(Costs!$G10="Build",IF(AD$212>0,-Costs!$B10*AD$212,0),IF(Costs!$G10="Single",IF(Costs!$H10=AD$4,-Costs!$B10,0),0)))*Appraisal!$M$26 -> 0 | AE45: =IF(Costs!$G10="Sales",IF(AE$210>0,-Costs!$B10*AE$210,0),IF(Costs!$G10="Build",IF(AE$212>0,-Costs!$B10*AE$212,0),IF(Costs!$G10="Single",IF(Costs!$H10=AE$4,-Costs!$B10,0),0)))*Appraisal!$M$26 -> 0 | AF45: =IF(Costs!$G10="Sales",IF(AF$210>0,-Costs!$B10*AF$210,0),IF(Costs!$G10="Build",IF(AF$212>0,-Costs!$B10*AF$212,0),IF(Costs!$G10="Single",IF(Costs!$H10=AF$4,-Costs!$B10,0),0)))*Appraisal!$M$26 -> 0 | AG45: =IF(Costs!$G10="Sales",IF(AG$210>0,-Costs!$B10*AG$210,0),IF(Costs!$G10="Build",IF(AG$212>0,-Costs!$B10*AG$212,0),IF(Costs!$G10="Single",IF(Costs!$H10=AG$4,-Costs!$B10,0),0)))*Appraisal!$M$26 -> 0 | AH45: =IF(Costs!$G10="Sales",IF(AH$210>0,-Costs!$B10*AH$210,0),IF(Costs!$G10="Build",IF(AH$212>0,-Costs!$B10*AH$212,0),IF(Costs!$G10="Single",IF(Costs!$H10=AH$4,-Costs!$B10,0),0)))*Appraisal!$M$26 -> 0 | AI45: =IF(Costs!$G10="Sales",IF(AI$210>0,-Costs!$B10*AI$210,0),IF(Costs!$G10="Build",IF(AI$212>0,-Costs!$B10*AI$212,0),IF(Costs!$G10="Single",IF(Costs!$H10=AI$4,-Costs!$B10,0),0)))*Appraisal!$M$26 -> 0 | AJ45: =IF(Costs!$G10="Sales",IF(AJ$210>0,-Costs!$B10*AJ$210,0),IF(Costs!$G10="Build",IF(AJ$212>0,-Costs!$B10*AJ$212,0),IF(Costs!$G10="Single",IF(Costs!$H10=AJ$4,-Costs!$B10,0),0)))*Appraisal!$M$26 -> 0 | AK45: =IF(Costs!$G10="Sales",IF(AK$210>0,-Costs!$B10*AK$210,0),IF(Costs!$G10="Build",IF(AK$212>0,-Costs!$B10*AK$212,0),IF(Costs!$G10="Single",IF(Costs!$H10=AK$4,-Costs!$B10,0),0)))*Appraisal!$M$26 -> 0 | AL45: =IF(Costs!$G10="Sales",IF(AL$210>0,-Costs!$B10*AL$210,0),IF(Costs!$G10="Build",IF(AL$212>0,-Costs!$B10*AL$212,0),IF(Costs!$G10="Single",IF(Costs!$H10=AL$4,-Costs!$B10,0),0)))*Appraisal!$M$26 -> 0 | AM45: =IF(Costs!$G10="Sales",IF(AM$210>0,-Costs!$B10*AM$210,0),IF(Costs!$G10="Build",IF(AM$212>0,-Costs!$B10*AM$212,0),IF(Costs!$G10="Single",IF(Costs!$H10=AM$4,-Costs!$B10,0),0)))*Appraisal!$M$26 -> 0 | AN45: =IF(Costs!$G10="Sales",IF(AN$210>0,-Costs!$B10*AN$210,0),IF(Costs!$G10="Build",IF(AN$212>0,-Costs!$B10*AN$212,0),IF(Costs!$G10="Single",IF(Costs!$H10=AN$4,-Costs!$B10,0),0)))*Appraisal!$M$26 -> 0 | AO45: =IF(Costs!$G10="Sales",IF(AO$210>0,-Costs!$B10*AO$210,0),IF(Costs!$G10="Build",IF(AO$212>0,-Costs!$B10*AO$212,0),IF(Costs!$G10="Single",IF(Costs!$H10=AO$4,-Costs!$B10,0),0)))*Appraisal!$M$26 -> 0 | AP45: =IF(Costs!$G10="Sales",IF(AP$210>0,-Costs!$B10*AP$210,0),IF(Costs!$G10="Build",IF(AP$212>0,-Costs!$B10*AP$212,0),IF(Costs!$G10="Single",IF(Costs!$H10=AP$4,-Costs!$B10,0),0)))*Appraisal!$M$26 -> 0 | AQ45: =IF(Costs!$G10="Sales",IF(AQ$210>0,-Costs!$B10*AQ$210,0),IF(Costs!$G10="Build",IF(AQ$212>0,-Costs!$B10*AQ$212,0),IF(Costs!$G10="Single",IF(Costs!$H10=AQ$4,-Costs!$B10,0),0)))*Appraisal!$M$26 -> 0 | AR45: =IF(Costs!$G10="Sales",IF(AR$210>0,-Costs!$B10*AR$210,0),IF(Costs!$G10="Build",IF(AR$212>0,-Costs!$B10*AR$212,0),IF(Costs!$G10="Single",IF(Costs!$H10=AR$4,-Costs!$B10,0),0)))*Appraisal!$M$26 -> 0 | AS45: =IF(Costs!$G10="Sales",IF(AS$210>0,-Costs!$B10*AS$210,0),IF(Costs!$G10="Build",IF(AS$212>0,-Costs!$B10*AS$212,0),IF(Costs!$G10="Single",IF(Costs!$H10=AS$4,-Costs!$B10,0),0)))*Appraisal!$M$26 -> 0 | AT45: =IF(Costs!$G10="Sales",IF(AT$210>0,-Costs!$B10*AT$210,0),IF(Costs!$G10="Build",IF(AT$212>0,-Costs!$B10*AT$212,0),IF(Costs!$G10="Single",IF(Costs!$H10=AT$4,-Costs!$B10,0),0)))*Appraisal!$M$26 -> 0 | AU45: =IF(Costs!$G10="Sales",IF(AU$210>0,-Costs!$B10*AU$210,0),IF(Costs!$G10="Build",IF(AU$212>0,-Costs!$B10*AU$212,0),IF(Costs!$G10="Single",IF(Costs!$H10=AU$4,-Costs!$B10,0),0)))*Appraisal!$M$26 -> 0 | AV45: =IF(Costs!$G10="Sales",IF(AV$210>0,-Costs!$B10*AV$210,0),IF(Costs!$G10="Build",IF(AV$212>0,-Costs!$B10*AV$212,0),IF(Costs!$G10="Single",IF(Costs!$H10=AV$4,-Costs!$B10,0),0)))*Appraisal!$M$26 -> 0 | AW45: =IF(Costs!$G10="Sales",IF(AW$210>0,-Costs!$B10*AW$210,0),IF(Costs!$G10="Build",IF(AW$212>0,-Costs!$B10*AW$212,0),IF(Costs!$G10="Single",IF(Costs!$H10=AW$4,-Costs!$B10,0),0)))*Appraisal!$M$26 -> 0 | AX45: =IF(Costs!$G10="Sales",IF(AX$210>0,-Costs!$B10*AX$210,0),IF(Costs!$G10="Build",IF(AX$212>0,-Costs!$B10*AX$212,0),IF(Costs!$G10="Single",IF(Costs!$H10=AX$4,-Costs!$B10,0),0)))*Appraisal!$M$26 -> 0 | AY45: =IF(Costs!$G10="Sales",IF(AY$210>0,-Costs!$B10*AY$210,0),IF(Costs!$G10="Build",IF(AY$212>0,-Costs!$B10*AY$212,0),IF(Costs!$G10="Single",IF(Costs!$H10=AY$4,-Costs!$B10,0),0)))*Appraisal!$M$26 -> 0 | AZ45: =IF(Costs!$G10="Sales",IF(AZ$210>0,-Costs!$B10*AZ$210,0),IF(Costs!$G10="Build",IF(AZ$212>0,-Costs!$B10*AZ$212,0),IF(Costs!$G10="Single",IF(Costs!$H10=AZ$4,-Costs!$B10,0),0)))*Appraisal!$M$26 -> 0 | BA45: =IF(Costs!$G10="Sales",IF(BA$210>0,-Costs!$B10*BA$210,0),IF(Costs!$G10="Build",IF(BA$212>0,-Costs!$B10*BA$212,0),IF(Costs!$G10="Single",IF(Costs!$H10=BA$4,-Costs!$B10,0),0)))*Appraisal!$M$26 -> 0 | BB45: =IF(Costs!$G10="Sales",IF(BB$210>0,-Costs!$B10*BB$210,0),IF(Costs!$G10="Build",IF(BB$212>0,-Costs!$B10*BB$212,0),IF(Costs!$G10="Single",IF(Costs!$H10=BB$4,-Costs!$B10,0),0)))*Appraisal!$M$26 -> 0 | BC45: =IF(Costs!$G10="Sales",IF(BC$210>0,-Costs!$B10*BC$210,0),IF(Costs!$G10="Build",IF(BC$212>0,-Costs!$B10*BC$212,0),IF(Costs!$G10="Single",IF(Costs!$H10=BC$4,-Costs!$B10,0),0)))*Appraisal!$M$26 -> 0 | BD45: =IF(Costs!$G10="Sales",IF(BD$210>0,-Costs!$B10*BD$210,0),IF(Costs!$G10="Build",IF(BD$212>0,-Costs!$B10*BD$212,0),IF(Costs!$G10="Single",IF(Costs!$H10=BD$4,-Costs!$B10,0),0)))*Appraisal!$M$26 -> 0 | BE45: =IF(Costs!$G10="Sales",IF(BE$210>0,-Costs!$B10*BE$210,0),IF(Costs!$G10="Build",IF(BE$212>0,-Costs!$B10*BE$212,0),IF(Costs!$G10="Single",IF(Costs!$H10=BE$4,-Costs!$B10,0),0)))*Appraisal!$M$26 -> 0 | BF45: =IF(Costs!$G10="Sales",IF(BF$210>0,-Costs!$B10*BF$210,0),IF(Costs!$G10="Build",IF(BF$212>0,-Costs!$B10*BF$212,0),IF(Costs!$G10="Single",IF(Costs!$H10=BF$4,-Costs!$B10,0),0)))*Appraisal!$M$26 -> 0 | BG45: =IF(Costs!$G10="Sales",IF(BG$210>0,-Costs!$B10*BG$210,0),IF(Costs!$G10="Build",IF(BG$212>0,-Costs!$B10*BG$212,0),IF(Costs!$G10="Single",IF(Costs!$H10=BG$4,-Costs!$B10,0),0)))*Appraisal!$M$26 -> 0 | BH45: =IF(Costs!$G10="Sales",IF(BH$210>0,-Costs!$B10*BH$210,0),IF(Costs!$G10="Build",IF(BH$212>0,-Costs!$B10*BH$212,0),IF(Costs!$G10="Single",IF(Costs!$H10=BH$4,-Costs!$B10,0),0)))*Appraisal!$M$26 -> 0 | BI45: =IF(Costs!$G10="Sales",IF(BI$210>0,-Costs!$B10*BI$210,0),IF(Costs!$G10="Build",IF(BI$212>0,-Costs!$B10*BI$212,0),IF(Costs!$G10="Single",IF(Costs!$H10=BI$4,-Costs!$B10,0),0)))*Appraisal!$M$26 -> 0 | BJ45: =IF(Costs!$G10="Sales",IF(BJ$210>0,-Costs!$B10*BJ$210,0),IF(Costs!$G10="Build",IF(BJ$212>0,-Costs!$B10*BJ$212,0),IF(Costs!$G10="Single",IF(Costs!$H10=BJ$4,-Costs!$B10,0),0)))*Appraisal!$M$26 -> 0
A46: =Costs!A11 -> Public Open Space (POS) | B46: 0 | C46: =IF(Costs!$G11="Sales",IF(C$210>0,-Costs!$B11*C$210,0),IF(Costs!$G11="Build",IF(C$212>0,-Costs!$B11*C$212,0),IF(Costs!$G11="Single",IF(Costs!$H11=C$4,-Costs!$B11,0),0)))*Appraisal!$M$26 -> 0 | D46: =IF(Costs!$G11="Sales",IF(D$210>0,-Costs!$B11*D$210,0),IF(Costs!$G11="Build",IF(D$212>0,-Costs!$B11*D$212,0),IF(Costs!$G11="Single",IF(Costs!$H11=D$4,-Costs!$B11,0),0)))*Appraisal!$M$26 -> 0 | E46: =IF(Costs!$G11="Sales",IF(E$210>0,-Costs!$B11*E$210,0),IF(Costs!$G11="Build",IF(E$212>0,-Costs!$B11*E$212,0),IF(Costs!$G11="Single",IF(Costs!$H11=E$4,-Costs!$B11,0),0)))*Appraisal!$M$26 -> 0 | F46: =IF(Costs!$G11="Sales",IF(F$210>0,-Costs!$B11*F$210,0),IF(Costs!$G11="Build",IF(F$212>0,-Costs!$B11*F$212,0),IF(Costs!$G11="Single",IF(Costs!$H11=F$4,-Costs!$B11,0),0)))*Appraisal!$M$26 -> 0 | G46: =IF(Costs!$G11="Sales",IF(G$210>0,-Costs!$B11*G$210,0),IF(Costs!$G11="Build",IF(G$212>0,-Costs!$B11*G$212,0),IF(Costs!$G11="Single",IF(Costs!$H11=G$4,-Costs!$B11,0),0)))*Appraisal!$M$26 -> 0 | H46: =IF(Costs!$G11="Sales",IF(H$210>0,-Costs!$B11*H$210,0),IF(Costs!$G11="Build",IF(H$212>0,-Costs!$B11*H$212,0),IF(Costs!$G11="Single",IF(Costs!$H11=H$4,-Costs!$B11,0),0)))*Appraisal!$M$26 -> 0 | I46: =IF(Costs!$G11="Sales",IF(I$210>0,-Costs!$B11*I$210,0),IF(Costs!$G11="Build",IF(I$212>0,-Costs!$B11*I$212,0),IF(Costs!$G11="Single",IF(Costs!$H11=I$4,-Costs!$B11,0),0)))*Appraisal!$M$26 -> 0 | J46: =IF(Costs!$G11="Sales",IF(J$210>0,-Costs!$B11*J$210,0),IF(Costs!$G11="Build",IF(J$212>0,-Costs!$B11*J$212,0),IF(Costs!$G11="Single",IF(Costs!$H11=J$4,-Costs!$B11,0),0)))*Appraisal!$M$26 -> 0 | K46: =IF(Costs!$G11="Sales",IF(K$210>0,-Costs!$B11*K$210,0),IF(Costs!$G11="Build",IF(K$212>0,-Costs!$B11*K$212,0),IF(Costs!$G11="Single",IF(Costs!$H11=K$4,-Costs!$B11,0),0)))*Appraisal!$M$26 -> 0 | L46: =IF(Costs!$G11="Sales",IF(L$210>0,-Costs!$B11*L$210,0),IF(Costs!$G11="Build",IF(L$212>0,-Costs!$B11*L$212,0),IF(Costs!$G11="Single",IF(Costs!$H11=L$4,-Costs!$B11,0),0)))*Appraisal!$M$26 -> 0 | M46: =IF(Costs!$G11="Sales",IF(M$210>0,-Costs!$B11*M$210,0),IF(Costs!$G11="Build",IF(M$212>0,-Costs!$B11*M$212,0),IF(Costs!$G11="Single",IF(Costs!$H11=M$4,-Costs!$B11,0),0)))*Appraisal!$M$26 -> 0 | N46: =IF(Costs!$G11="Sales",IF(N$210>0,-Costs!$B11*N$210,0),IF(Costs!$G11="Build",IF(N$212>0,-Costs!$B11*N$212,0),IF(Costs!$G11="Single",IF(Costs!$H11=N$4,-Costs!$B11,0),0)))*Appraisal!$M$26 -> 0 | O46: =IF(Costs!$G11="Sales",IF(O$210>0,-Costs!$B11*O$210,0),IF(Costs!$G11="Build",IF(O$212>0,-Costs!$B11*O$212,0),IF(Costs!$G11="Single",IF(Costs!$H11=O$4,-Costs!$B11,0),0)))*Appraisal!$M$26 -> 0 | P46: =IF(Costs!$G11="Sales",IF(P$210>0,-Costs!$B11*P$210,0),IF(Costs!$G11="Build",IF(P$212>0,-Costs!$B11*P$212,0),IF(Costs!$G11="Single",IF(Costs!$H11=P$4,-Costs!$B11,0),0)))*Appraisal!$M$26 -> 0 | Q46: =IF(Costs!$G11="Sales",IF(Q$210>0,-Costs!$B11*Q$210,0),IF(Costs!$G11="Build",IF(Q$212>0,-Costs!$B11*Q$212,0),IF(Costs!$G11="Single",IF(Costs!$H11=Q$4,-Costs!$B11,0),0)))*Appraisal!$M$26 -> 0 | R46: =IF(Costs!$G11="Sales",IF(R$210>0,-Costs!$B11*R$210,0),IF(Costs!$G11="Build",IF(R$212>0,-Costs!$B11*R$212,0),IF(Costs!$G11="Single",IF(Costs!$H11=R$4,-Costs!$B11,0),0)))*Appraisal!$M$26 -> 0 | S46: =IF(Costs!$G11="Sales",IF(S$210>0,-Costs!$B11*S$210,0),IF(Costs!$G11="Build",IF(S$212>0,-Costs!$B11*S$212,0),IF(Costs!$G11="Single",IF(Costs!$H11=S$4,-Costs!$B11,0),0)))*Appraisal!$M$26 -> 0 | T46: =IF(Costs!$G11="Sales",IF(T$210>0,-Costs!$B11*T$210,0),IF(Costs!$G11="Build",IF(T$212>0,-Costs!$B11*T$212,0),IF(Costs!$G11="Single",IF(Costs!$H11=T$4,-Costs!$B11,0),0)))*Appraisal!$M$26 -> 0 | U46: =IF(Costs!$G11="Sales",IF(U$210>0,-Costs!$B11*U$210,0),IF(Costs!$G11="Build",IF(U$212>0,-Costs!$B11*U$212,0),IF(Costs!$G11="Single",IF(Costs!$H11=U$4,-Costs!$B11,0),0)))*Appraisal!$M$26 -> 0 | V46: =IF(Costs!$G11="Sales",IF(V$210>0,-Costs!$B11*V$210,0),IF(Costs!$G11="Build",IF(V$212>0,-Costs!$B11*V$212,0),IF(Costs!$G11="Single",IF(Costs!$H11=V$4,-Costs!$B11,0),0)))*Appraisal!$M$26 -> 0 | W46: =IF(Costs!$G11="Sales",IF(W$210>0,-Costs!$B11*W$210,0),IF(Costs!$G11="Build",IF(W$212>0,-Costs!$B11*W$212,0),IF(Costs!$G11="Single",IF(Costs!$H11=W$4,-Costs!$B11,0),0)))*Appraisal!$M$26 -> 0 | X46: =IF(Costs!$G11="Sales",IF(X$210>0,-Costs!$B11*X$210,0),IF(Costs!$G11="Build",IF(X$212>0,-Costs!$B11*X$212,0),IF(Costs!$G11="Single",IF(Costs!$H11=X$4,-Costs!$B11,0),0)))*Appraisal!$M$26 -> 0 | Y46: =IF(Costs!$G11="Sales",IF(Y$210>0,-Costs!$B11*Y$210,0),IF(Costs!$G11="Build",IF(Y$212>0,-Costs!$B11*Y$212,0),IF(Costs!$G11="Single",IF(Costs!$H11=Y$4,-Costs!$B11,0),0)))*Appraisal!$M$26 -> 0 | Z46: =IF(Costs!$G11="Sales",IF(Z$210>0,-Costs!$B11*Z$210,0),IF(Costs!$G11="Build",IF(Z$212>0,-Costs!$B11*Z$212,0),IF(Costs!$G11="Single",IF(Costs!$H11=Z$4,-Costs!$B11,0),0)))*Appraisal!$M$26 -> 0 | AA46: =IF(Costs!$G11="Sales",IF(AA$210>0,-Costs!$B11*AA$210,0),IF(Costs!$G11="Build",IF(AA$212>0,-Costs!$B11*AA$212,0),IF(Costs!$G11="Single",IF(Costs!$H11=AA$4,-Costs!$B11,0),0)))*Appraisal!$M$26 -> 0 | AB46: =IF(Costs!$G11="Sales",IF(AB$210>0,-Costs!$B11*AB$210,0),IF(Costs!$G11="Build",IF(AB$212>0,-Costs!$B11*AB$212,0),IF(Costs!$G11="Single",IF(Costs!$H11=AB$4,-Costs!$B11,0),0)))*Appraisal!$M$26 -> 0 | AC46: =IF(Costs!$G11="Sales",IF(AC$210>0,-Costs!$B11*AC$210,0),IF(Costs!$G11="Build",IF(AC$212>0,-Costs!$B11*AC$212,0),IF(Costs!$G11="Single",IF(Costs!$H11=AC$4,-Costs!$B11,0),0)))*Appraisal!$M$26 -> 0 | AD46: =IF(Costs!$G11="Sales",IF(AD$210>0,-Costs!$B11*AD$210,0),IF(Costs!$G11="Build",IF(AD$212>0,-Costs!$B11*AD$212,0),IF(Costs!$G11="Single",IF(Costs!$H11=AD$4,-Costs!$B11,0),0)))*Appraisal!$M$26 -> 0 | AE46: =IF(Costs!$G11="Sales",IF(AE$210>0,-Costs!$B11*AE$210,0),IF(Costs!$G11="Build",IF(AE$212>0,-Costs!$B11*AE$212,0),IF(Costs!$G11="Single",IF(Costs!$H11=AE$4,-Costs!$B11,0),0)))*Appraisal!$M$26 -> 0 | AF46: =IF(Costs!$G11="Sales",IF(AF$210>0,-Costs!$B11*AF$210,0),IF(Costs!$G11="Build",IF(AF$212>0,-Costs!$B11*AF$212,0),IF(Costs!$G11="Single",IF(Costs!$H11=AF$4,-Costs!$B11,0),0)))*Appraisal!$M$26 -> 0 | AG46: =IF(Costs!$G11="Sales",IF(AG$210>0,-Costs!$B11*AG$210,0),IF(Costs!$G11="Build",IF(AG$212>0,-Costs!$B11*AG$212,0),IF(Costs!$G11="Single",IF(Costs!$H11=AG$4,-Costs!$B11,0),0)))*Appraisal!$M$26 -> 0 | AH46: =IF(Costs!$G11="Sales",IF(AH$210>0,-Costs!$B11*AH$210,0),IF(Costs!$G11="Build",IF(AH$212>0,-Costs!$B11*AH$212,0),IF(Costs!$G11="Single",IF(Costs!$H11=AH$4,-Costs!$B11,0),0)))*Appraisal!$M$26 -> 0 | AI46: =IF(Costs!$G11="Sales",IF(AI$210>0,-Costs!$B11*AI$210,0),IF(Costs!$G11="Build",IF(AI$212>0,-Costs!$B11*AI$212,0),IF(Costs!$G11="Single",IF(Costs!$H11=AI$4,-Costs!$B11,0),0)))*Appraisal!$M$26 -> 0 | AJ46: =IF(Costs!$G11="Sales",IF(AJ$210>0,-Costs!$B11*AJ$210,0),IF(Costs!$G11="Build",IF(AJ$212>0,-Costs!$B11*AJ$212,0),IF(Costs!$G11="Single",IF(Costs!$H11=AJ$4,-Costs!$B11,0),0)))*Appraisal!$M$26 -> 0 | AK46: =IF(Costs!$G11="Sales",IF(AK$210>0,-Costs!$B11*AK$210,0),IF(Costs!$G11="Build",IF(AK$212>0,-Costs!$B11*AK$212,0),IF(Costs!$G11="Single",IF(Costs!$H11=AK$4,-Costs!$B11,0),0)))*Appraisal!$M$26 -> 0 | AL46: =IF(Costs!$G11="Sales",IF(AL$210>0,-Costs!$B11*AL$210,0),IF(Costs!$G11="Build",IF(AL$212>0,-Costs!$B11*AL$212,0),IF(Costs!$G11="Single",IF(Costs!$H11=AL$4,-Costs!$B11,0),0)))*Appraisal!$M$26 -> 0 | AM46: =IF(Costs!$G11="Sales",IF(AM$210>0,-Costs!$B11*AM$210,0),IF(Costs!$G11="Build",IF(AM$212>0,-Costs!$B11*AM$212,0),IF(Costs!$G11="Single",IF(Costs!$H11=AM$4,-Costs!$B11,0),0)))*Appraisal!$M$26 -> 0 | AN46: =IF(Costs!$G11="Sales",IF(AN$210>0,-Costs!$B11*AN$210,0),IF(Costs!$G11="Build",IF(AN$212>0,-Costs!$B11*AN$212,0),IF(Costs!$G11="Single",IF(Costs!$H11=AN$4,-Costs!$B11,0),0)))*Appraisal!$M$26 -> 0 | AO46: =IF(Costs!$G11="Sales",IF(AO$210>0,-Costs!$B11*AO$210,0),IF(Costs!$G11="Build",IF(AO$212>0,-Costs!$B11*AO$212,0),IF(Costs!$G11="Single",IF(Costs!$H11=AO$4,-Costs!$B11,0),0)))*Appraisal!$M$26 -> 0 | AP46: =IF(Costs!$G11="Sales",IF(AP$210>0,-Costs!$B11*AP$210,0),IF(Costs!$G11="Build",IF(AP$212>0,-Costs!$B11*AP$212,0),IF(Costs!$G11="Single",IF(Costs!$H11=AP$4,-Costs!$B11,0),0)))*Appraisal!$M$26 -> 0 | AQ46: =IF(Costs!$G11="Sales",IF(AQ$210>0,-Costs!$B11*AQ$210,0),IF(Costs!$G11="Build",IF(AQ$212>0,-Costs!$B11*AQ$212,0),IF(Costs!$G11="Single",IF(Costs!$H11=AQ$4,-Costs!$B11,0),0)))*Appraisal!$M$26 -> 0 | AR46: =IF(Costs!$G11="Sales",IF(AR$210>0,-Costs!$B11*AR$210,0),IF(Costs!$G11="Build",IF(AR$212>0,-Costs!$B11*AR$212,0),IF(Costs!$G11="Single",IF(Costs!$H11=AR$4,-Costs!$B11,0),0)))*Appraisal!$M$26 -> 0 | AS46: =IF(Costs!$G11="Sales",IF(AS$210>0,-Costs!$B11*AS$210,0),IF(Costs!$G11="Build",IF(AS$212>0,-Costs!$B11*AS$212,0),IF(Costs!$G11="Single",IF(Costs!$H11=AS$4,-Costs!$B11,0),0)))*Appraisal!$M$26 -> 0 | AT46: =IF(Costs!$G11="Sales",IF(AT$210>0,-Costs!$B11*AT$210,0),IF(Costs!$G11="Build",IF(AT$212>0,-Costs!$B11*AT$212,0),IF(Costs!$G11="Single",IF(Costs!$H11=AT$4,-Costs!$B11,0),0)))*Appraisal!$M$26 -> 0 | AU46: =IF(Costs!$G11="Sales",IF(AU$210>0,-Costs!$B11*AU$210,0),IF(Costs!$G11="Build",IF(AU$212>0,-Costs!$B11*AU$212,0),IF(Costs!$G11="Single",IF(Costs!$H11=AU$4,-Costs!$B11,0),0)))*Appraisal!$M$26 -> 0 | AV46: =IF(Costs!$G11="Sales",IF(AV$210>0,-Costs!$B11*AV$210,0),IF(Costs!$G11="Build",IF(AV$212>0,-Costs!$B11*AV$212,0),IF(Costs!$G11="Single",IF(Costs!$H11=AV$4,-Costs!$B11,0),0)))*Appraisal!$M$26 -> 0 | AW46: =IF(Costs!$G11="Sales",IF(AW$210>0,-Costs!$B11*AW$210,0),IF(Costs!$G11="Build",IF(AW$212>0,-Costs!$B11*AW$212,0),IF(Costs!$G11="Single",IF(Costs!$H11=AW$4,-Costs!$B11,0),0)))*Appraisal!$M$26 -> 0 | AX46: =IF(Costs!$G11="Sales",IF(AX$210>0,-Costs!$B11*AX$210,0),IF(Costs!$G11="Build",IF(AX$212>0,-Costs!$B11*AX$212,0),IF(Costs!$G11="Single",IF(Costs!$H11=AX$4,-Costs!$B11,0),0)))*Appraisal!$M$26 -> 0 | AY46: =IF(Costs!$G11="Sales",IF(AY$210>0,-Costs!$B11*AY$210,0),IF(Costs!$G11="Build",IF(AY$212>0,-Costs!$B11*AY$212,0),IF(Costs!$G11="Single",IF(Costs!$H11=AY$4,-Costs!$B11,0),0)))*Appraisal!$M$26 -> 0 | AZ46: =IF(Costs!$G11="Sales",IF(AZ$210>0,-Costs!$B11*AZ$210,0),IF(Costs!$G11="Build",IF(AZ$212>0,-Costs!$B11*AZ$212,0),IF(Costs!$G11="Single",IF(Costs!$H11=AZ$4,-Costs!$B11,0),0)))*Appraisal!$M$26 -> 0 | BA46: =IF(Costs!$G11="Sales",IF(BA$210>0,-Costs!$B11*BA$210,0),IF(Costs!$G11="Build",IF(BA$212>0,-Costs!$B11*BA$212,0),IF(Costs!$G11="Single",IF(Costs!$H11=BA$4,-Costs!$B11,0),0)))*Appraisal!$M$26 -> 0 | BB46: =IF(Costs!$G11="Sales",IF(BB$210>0,-Costs!$B11*BB$210,0),IF(Costs!$G11="Build",IF(BB$212>0,-Costs!$B11*BB$212,0),IF(Costs!$G11="Single",IF(Costs!$H11=BB$4,-Costs!$B11,0),0)))*Appraisal!$M$26 -> 0 | BC46: =IF(Costs!$G11="Sales",IF(BC$210>0,-Costs!$B11*BC$210,0),IF(Costs!$G11="Build",IF(BC$212>0,-Costs!$B11*BC$212,0),IF(Costs!$G11="Single",IF(Costs!$H11=BC$4,-Costs!$B11,0),0)))*Appraisal!$M$26 -> 0 | BD46: =IF(Costs!$G11="Sales",IF(BD$210>0,-Costs!$B11*BD$210,0),IF(Costs!$G11="Build",IF(BD$212>0,-Costs!$B11*BD$212,0),IF(Costs!$G11="Single",IF(Costs!$H11=BD$4,-Costs!$B11,0),0)))*Appraisal!$M$26 -> 0 | BE46: =IF(Costs!$G11="Sales",IF(BE$210>0,-Costs!$B11*BE$210,0),IF(Costs!$G11="Build",IF(BE$212>0,-Costs!$B11*BE$212,0),IF(Costs!$G11="Single",IF(Costs!$H11=BE$4,-Costs!$B11,0),0)))*Appraisal!$M$26 -> 0 | BF46: =IF(Costs!$G11="Sales",IF(BF$210>0,-Costs!$B11*BF$210,0),IF(Costs!$G11="Build",IF(BF$212>0,-Costs!$B11*BF$212,0),IF(Costs!$G11="Single",IF(Costs!$H11=BF$4,-Costs!$B11,0),0)))*Appraisal!$M$26 -> 0 | BG46: =IF(Costs!$G11="Sales",IF(BG$210>0,-Costs!$B11*BG$210,0),IF(Costs!$G11="Build",IF(BG$212>0,-Costs!$B11*BG$212,0),IF(Costs!$G11="Single",IF(Costs!$H11=BG$4,-Costs!$B11,0),0)))*Appraisal!$M$26 -> 0 | BH46: =IF(Costs!$G11="Sales",IF(BH$210>0,-Costs!$B11*BH$210,0),IF(Costs!$G11="Build",IF(BH$212>0,-Costs!$B11*BH$212,0),IF(Costs!$G11="Single",IF(Costs!$H11=BH$4,-Costs!$B11,0),0)))*Appraisal!$M$26 -> 0 | BI46: =IF(Costs!$G11="Sales",IF(BI$210>0,-Costs!$B11*BI$210,0),IF(Costs!$G11="Build",IF(BI$212>0,-Costs!$B11*BI$212,0),IF(Costs!$G11="Single",IF(Costs!$H11=BI$4,-Costs!$B11,0),0)))*Appraisal!$M$26 -> 0 | BJ46: =IF(Costs!$G11="Sales",IF(BJ$210>0,-Costs!$B11*BJ$210,0),IF(Costs!$G11="Build",IF(BJ$212>0,-Costs!$B11*BJ$212,0),IF(Costs!$G11="Single",IF(Costs!$H11=BJ$4,-Costs!$B11,0),0)))*Appraisal!$M$26 -> 0
A47: =Costs!A12 -> Leisure/Recreation (excl POS) | B47: 0 | C47: =IF(Costs!$G12="Sales",IF(C$210>0,-Costs!$B12*C$210,0),IF(Costs!$G12="Build",IF(C$212>0,-Costs!$B12*C$212,0),IF(Costs!$G12="Single",IF(Costs!$H12=C$4,-Costs!$B12,0),0)))*Appraisal!$M$26 -> 0 | D47: =IF(Costs!$G12="Sales",IF(D$210>0,-Costs!$B12*D$210,0),IF(Costs!$G12="Build",IF(D$212>0,-Costs!$B12*D$212,0),IF(Costs!$G12="Single",IF(Costs!$H12=D$4,-Costs!$B12,0),0)))*Appraisal!$M$26 -> 0 | E47: =IF(Costs!$G12="Sales",IF(E$210>0,-Costs!$B12*E$210,0),IF(Costs!$G12="Build",IF(E$212>0,-Costs!$B12*E$212,0),IF(Costs!$G12="Single",IF(Costs!$H12=E$4,-Costs!$B12,0),0)))*Appraisal!$M$26 -> 0 | F47: =IF(Costs!$G12="Sales",IF(F$210>0,-Costs!$B12*F$210,0),IF(Costs!$G12="Build",IF(F$212>0,-Costs!$B12*F$212,0),IF(Costs!$G12="Single",IF(Costs!$H12=F$4,-Costs!$B12,0),0)))*Appraisal!$M$26 -> 0 | G47: =IF(Costs!$G12="Sales",IF(G$210>0,-Costs!$B12*G$210,0),IF(Costs!$G12="Build",IF(G$212>0,-Costs!$B12*G$212,0),IF(Costs!$G12="Single",IF(Costs!$H12=G$4,-Costs!$B12,0),0)))*Appraisal!$M$26 -> 0 | H47: =IF(Costs!$G12="Sales",IF(H$210>0,-Costs!$B12*H$210,0),IF(Costs!$G12="Build",IF(H$212>0,-Costs!$B12*H$212,0),IF(Costs!$G12="Single",IF(Costs!$H12=H$4,-Costs!$B12,0),0)))*Appraisal!$M$26 -> 0 | I47: =IF(Costs!$G12="Sales",IF(I$210>0,-Costs!$B12*I$210,0),IF(Costs!$G12="Build",IF(I$212>0,-Costs!$B12*I$212,0),IF(Costs!$G12="Single",IF(Costs!$H12=I$4,-Costs!$B12,0),0)))*Appraisal!$M$26 -> 0 | J47: =IF(Costs!$G12="Sales",IF(J$210>0,-Costs!$B12*J$210,0),IF(Costs!$G12="Build",IF(J$212>0,-Costs!$B12*J$212,0),IF(Costs!$G12="Single",IF(Costs!$H12=J$4,-Costs!$B12,0),0)))*Appraisal!$M$26 -> 0 | K47: =IF(Costs!$G12="Sales",IF(K$210>0,-Costs!$B12*K$210,0),IF(Costs!$G12="Build",IF(K$212>0,-Costs!$B12*K$212,0),IF(Costs!$G12="Single",IF(Costs!$H12=K$4,-Costs!$B12,0),0)))*Appraisal!$M$26 -> 0 | L47: =IF(Costs!$G12="Sales",IF(L$210>0,-Costs!$B12*L$210,0),IF(Costs!$G12="Build",IF(L$212>0,-Costs!$B12*L$212,0),IF(Costs!$G12="Single",IF(Costs!$H12=L$4,-Costs!$B12,0),0)))*Appraisal!$M$26 -> 0 | M47: =IF(Costs!$G12="Sales",IF(M$210>0,-Costs!$B12*M$210,0),IF(Costs!$G12="Build",IF(M$212>0,-Costs!$B12*M$212,0),IF(Costs!$G12="Single",IF(Costs!$H12=M$4,-Costs!$B12,0),0)))*Appraisal!$M$26 -> 0 | N47: =IF(Costs!$G12="Sales",IF(N$210>0,-Costs!$B12*N$210,0),IF(Costs!$G12="Build",IF(N$212>0,-Costs!$B12*N$212,0),IF(Costs!$G12="Single",IF(Costs!$H12=N$4,-Costs!$B12,0),0)))*Appraisal!$M$26 -> 0 | O47: =IF(Costs!$G12="Sales",IF(O$210>0,-Costs!$B12*O$210,0),IF(Costs!$G12="Build",IF(O$212>0,-Costs!$B12*O$212,0),IF(Costs!$G12="Single",IF(Costs!$H12=O$4,-Costs!$B12,0),0)))*Appraisal!$M$26 -> 0 | P47: =IF(Costs!$G12="Sales",IF(P$210>0,-Costs!$B12*P$210,0),IF(Costs!$G12="Build",IF(P$212>0,-Costs!$B12*P$212,0),IF(Costs!$G12="Single",IF(Costs!$H12=P$4,-Costs!$B12,0),0)))*Appraisal!$M$26 -> 0 | Q47: =IF(Costs!$G12="Sales",IF(Q$210>0,-Costs!$B12*Q$210,0),IF(Costs!$G12="Build",IF(Q$212>0,-Costs!$B12*Q$212,0),IF(Costs!$G12="Single",IF(Costs!$H12=Q$4,-Costs!$B12,0),0)))*Appraisal!$M$26 -> 0 | R47: =IF(Costs!$G12="Sales",IF(R$210>0,-Costs!$B12*R$210,0),IF(Costs!$G12="Build",IF(R$212>0,-Costs!$B12*R$212,0),IF(Costs!$G12="Single",IF(Costs!$H12=R$4,-Costs!$B12,0),0)))*Appraisal!$M$26 -> 0 | S47: =IF(Costs!$G12="Sales",IF(S$210>0,-Costs!$B12*S$210,0),IF(Costs!$G12="Build",IF(S$212>0,-Costs!$B12*S$212,0),IF(Costs!$G12="Single",IF(Costs!$H12=S$4,-Costs!$B12,0),0)))*Appraisal!$M$26 -> 0 | T47: =IF(Costs!$G12="Sales",IF(T$210>0,-Costs!$B12*T$210,0),IF(Costs!$G12="Build",IF(T$212>0,-Costs!$B12*T$212,0),IF(Costs!$G12="Single",IF(Costs!$H12=T$4,-Costs!$B12,0),0)))*Appraisal!$M$26 -> 0 | U47: =IF(Costs!$G12="Sales",IF(U$210>0,-Costs!$B12*U$210,0),IF(Costs!$G12="Build",IF(U$212>0,-Costs!$B12*U$212,0),IF(Costs!$G12="Single",IF(Costs!$H12=U$4,-Costs!$B12,0),0)))*Appraisal!$M$26 -> 0 | V47: =IF(Costs!$G12="Sales",IF(V$210>0,-Costs!$B12*V$210,0),IF(Costs!$G12="Build",IF(V$212>0,-Costs!$B12*V$212,0),IF(Costs!$G12="Single",IF(Costs!$H12=V$4,-Costs!$B12,0),0)))*Appraisal!$M$26 -> 0 | W47: =IF(Costs!$G12="Sales",IF(W$210>0,-Costs!$B12*W$210,0),IF(Costs!$G12="Build",IF(W$212>0,-Costs!$B12*W$212,0),IF(Costs!$G12="Single",IF(Costs!$H12=W$4,-Costs!$B12,0),0)))*Appraisal!$M$26 -> 0 | X47: =IF(Costs!$G12="Sales",IF(X$210>0,-Costs!$B12*X$210,0),IF(Costs!$G12="Build",IF(X$212>0,-Costs!$B12*X$212,0),IF(Costs!$G12="Single",IF(Costs!$H12=X$4,-Costs!$B12,0),0)))*Appraisal!$M$26 -> 0 | Y47: =IF(Costs!$G12="Sales",IF(Y$210>0,-Costs!$B12*Y$210,0),IF(Costs!$G12="Build",IF(Y$212>0,-Costs!$B12*Y$212,0),IF(Costs!$G12="Single",IF(Costs!$H12=Y$4,-Costs!$B12,0),0)))*Appraisal!$M$26 -> 0 | Z47: =IF(Costs!$G12="Sales",IF(Z$210>0,-Costs!$B12*Z$210,0),IF(Costs!$G12="Build",IF(Z$212>0,-Costs!$B12*Z$212,0),IF(Costs!$G12="Single",IF(Costs!$H12=Z$4,-Costs!$B12,0),0)))*Appraisal!$M$26 -> 0 | AA47: =IF(Costs!$G12="Sales",IF(AA$210>0,-Costs!$B12*AA$210,0),IF(Costs!$G12="Build",IF(AA$212>0,-Costs!$B12*AA$212,0),IF(Costs!$G12="Single",IF(Costs!$H12=AA$4,-Costs!$B12,0),0)))*Appraisal!$M$26 -> 0 | AB47: =IF(Costs!$G12="Sales",IF(AB$210>0,-Costs!$B12*AB$210,0),IF(Costs!$G12="Build",IF(AB$212>0,-Costs!$B12*AB$212,0),IF(Costs!$G12="Single",IF(Costs!$H12=AB$4,-Costs!$B12,0),0)))*Appraisal!$M$26 -> 0 | AC47: =IF(Costs!$G12="Sales",IF(AC$210>0,-Costs!$B12*AC$210,0),IF(Costs!$G12="Build",IF(AC$212>0,-Costs!$B12*AC$212,0),IF(Costs!$G12="Single",IF(Costs!$H12=AC$4,-Costs!$B12,0),0)))*Appraisal!$M$26 -> 0 | AD47: =IF(Costs!$G12="Sales",IF(AD$210>0,-Costs!$B12*AD$210,0),IF(Costs!$G12="Build",IF(AD$212>0,-Costs!$B12*AD$212,0),IF(Costs!$G12="Single",IF(Costs!$H12=AD$4,-Costs!$B12,0),0)))*Appraisal!$M$26 -> 0 | AE47: =IF(Costs!$G12="Sales",IF(AE$210>0,-Costs!$B12*AE$210,0),IF(Costs!$G12="Build",IF(AE$212>0,-Costs!$B12*AE$212,0),IF(Costs!$G12="Single",IF(Costs!$H12=AE$4,-Costs!$B12,0),0)))*Appraisal!$M$26 -> 0 | AF47: =IF(Costs!$G12="Sales",IF(AF$210>0,-Costs!$B12*AF$210,0),IF(Costs!$G12="Build",IF(AF$212>0,-Costs!$B12*AF$212,0),IF(Costs!$G12="Single",IF(Costs!$H12=AF$4,-Costs!$B12,0),0)))*Appraisal!$M$26 -> 0 | AG47: =IF(Costs!$G12="Sales",IF(AG$210>0,-Costs!$B12*AG$210,0),IF(Costs!$G12="Build",IF(AG$212>0,-Costs!$B12*AG$212,0),IF(Costs!$G12="Single",IF(Costs!$H12=AG$4,-Costs!$B12,0),0)))*Appraisal!$M$26 -> 0 | AH47: =IF(Costs!$G12="Sales",IF(AH$210>0,-Costs!$B12*AH$210,0),IF(Costs!$G12="Build",IF(AH$212>0,-Costs!$B12*AH$212,0),IF(Costs!$G12="Single",IF(Costs!$H12=AH$4,-Costs!$B12,0),0)))*Appraisal!$M$26 -> 0 | AI47: =IF(Costs!$G12="Sales",IF(AI$210>0,-Costs!$B12*AI$210,0),IF(Costs!$G12="Build",IF(AI$212>0,-Costs!$B12*AI$212,0),IF(Costs!$G12="Single",IF(Costs!$H12=AI$4,-Costs!$B12,0),0)))*Appraisal!$M$26 -> 0 | AJ47: =IF(Costs!$G12="Sales",IF(AJ$210>0,-Costs!$B12*AJ$210,0),IF(Costs!$G12="Build",IF(AJ$212>0,-Costs!$B12*AJ$212,0),IF(Costs!$G12="Single",IF(Costs!$H12=AJ$4,-Costs!$B12,0),0)))*Appraisal!$M$26 -> 0 | AK47: =IF(Costs!$G12="Sales",IF(AK$210>0,-Costs!$B12*AK$210,0),IF(Costs!$G12="Build",IF(AK$212>0,-Costs!$B12*AK$212,0),IF(Costs!$G12="Single",IF(Costs!$H12=AK$4,-Costs!$B12,0),0)))*Appraisal!$M$26 -> 0 | AL47: =IF(Costs!$G12="Sales",IF(AL$210>0,-Costs!$B12*AL$210,0),IF(Costs!$G12="Build",IF(AL$212>0,-Costs!$B12*AL$212,0),IF(Costs!$G12="Single",IF(Costs!$H12=AL$4,-Costs!$B12,0),0)))*Appraisal!$M$26 -> 0 | AM47: =IF(Costs!$G12="Sales",IF(AM$210>0,-Costs!$B12*AM$210,0),IF(Costs!$G12="Build",IF(AM$212>0,-Costs!$B12*AM$212,0),IF(Costs!$G12="Single",IF(Costs!$H12=AM$4,-Costs!$B12,0),0)))*Appraisal!$M$26 -> 0 | AN47: =IF(Costs!$G12="Sales",IF(AN$210>0,-Costs!$B12*AN$210,0),IF(Costs!$G12="Build",IF(AN$212>0,-Costs!$B12*AN$212,0),IF(Costs!$G12="Single",IF(Costs!$H12=AN$4,-Costs!$B12,0),0)))*Appraisal!$M$26 -> 0 | AO47: =IF(Costs!$G12="Sales",IF(AO$210>0,-Costs!$B12*AO$210,0),IF(Costs!$G12="Build",IF(AO$212>0,-Costs!$B12*AO$212,0),IF(Costs!$G12="Single",IF(Costs!$H12=AO$4,-Costs!$B12,0),0)))*Appraisal!$M$26 -> 0 | AP47: =IF(Costs!$G12="Sales",IF(AP$210>0,-Costs!$B12*AP$210,0),IF(Costs!$G12="Build",IF(AP$212>0,-Costs!$B12*AP$212,0),IF(Costs!$G12="Single",IF(Costs!$H12=AP$4,-Costs!$B12,0),0)))*Appraisal!$M$26 -> 0 | AQ47: =IF(Costs!$G12="Sales",IF(AQ$210>0,-Costs!$B12*AQ$210,0),IF(Costs!$G12="Build",IF(AQ$212>0,-Costs!$B12*AQ$212,0),IF(Costs!$G12="Single",IF(Costs!$H12=AQ$4,-Costs!$B12,0),0)))*Appraisal!$M$26 -> 0 | AR47: =IF(Costs!$G12="Sales",IF(AR$210>0,-Costs!$B12*AR$210,0),IF(Costs!$G12="Build",IF(AR$212>0,-Costs!$B12*AR$212,0),IF(Costs!$G12="Single",IF(Costs!$H12=AR$4,-Costs!$B12,0),0)))*Appraisal!$M$26 -> 0 | AS47: =IF(Costs!$G12="Sales",IF(AS$210>0,-Costs!$B12*AS$210,0),IF(Costs!$G12="Build",IF(AS$212>0,-Costs!$B12*AS$212,0),IF(Costs!$G12="Single",IF(Costs!$H12=AS$4,-Costs!$B12,0),0)))*Appraisal!$M$26 -> 0 | AT47: =IF(Costs!$G12="Sales",IF(AT$210>0,-Costs!$B12*AT$210,0),IF(Costs!$G12="Build",IF(AT$212>0,-Costs!$B12*AT$212,0),IF(Costs!$G12="Single",IF(Costs!$H12=AT$4,-Costs!$B12,0),0)))*Appraisal!$M$26 -> 0 | AU47: =IF(Costs!$G12="Sales",IF(AU$210>0,-Costs!$B12*AU$210,0),IF(Costs!$G12="Build",IF(AU$212>0,-Costs!$B12*AU$212,0),IF(Costs!$G12="Single",IF(Costs!$H12=AU$4,-Costs!$B12,0),0)))*Appraisal!$M$26 -> 0 | AV47: =IF(Costs!$G12="Sales",IF(AV$210>0,-Costs!$B12*AV$210,0),IF(Costs!$G12="Build",IF(AV$212>0,-Costs!$B12*AV$212,0),IF(Costs!$G12="Single",IF(Costs!$H12=AV$4,-Costs!$B12,0),0)))*Appraisal!$M$26 -> 0 | AW47: =IF(Costs!$G12="Sales",IF(AW$210>0,-Costs!$B12*AW$210,0),IF(Costs!$G12="Build",IF(AW$212>0,-Costs!$B12*AW$212,0),IF(Costs!$G12="Single",IF(Costs!$H12=AW$4,-Costs!$B12,0),0)))*Appraisal!$M$26 -> 0 | AX47: =IF(Costs!$G12="Sales",IF(AX$210>0,-Costs!$B12*AX$210,0),IF(Costs!$G12="Build",IF(AX$212>0,-Costs!$B12*AX$212,0),IF(Costs!$G12="Single",IF(Costs!$H12=AX$4,-Costs!$B12,0),0)))*Appraisal!$M$26 -> 0 | AY47: =IF(Costs!$G12="Sales",IF(AY$210>0,-Costs!$B12*AY$210,0),IF(Costs!$G12="Build",IF(AY$212>0,-Costs!$B12*AY$212,0),IF(Costs!$G12="Single",IF(Costs!$H12=AY$4,-Costs!$B12,0),0)))*Appraisal!$M$26 -> 0 | AZ47: =IF(Costs!$G12="Sales",IF(AZ$210>0,-Costs!$B12*AZ$210,0),IF(Costs!$G12="Build",IF(AZ$212>0,-Costs!$B12*AZ$212,0),IF(Costs!$G12="Single",IF(Costs!$H12=AZ$4,-Costs!$B12,0),0)))*Appraisal!$M$26 -> 0 | BA47: =IF(Costs!$G12="Sales",IF(BA$210>0,-Costs!$B12*BA$210,0),IF(Costs!$G12="Build",IF(BA$212>0,-Costs!$B12*BA$212,0),IF(Costs!$G12="Single",IF(Costs!$H12=BA$4,-Costs!$B12,0),0)))*Appraisal!$M$26 -> 0 | BB47: =IF(Costs!$G12="Sales",IF(BB$210>0,-Costs!$B12*BB$210,0),IF(Costs!$G12="Build",IF(BB$212>0,-Costs!$B12*BB$212,0),IF(Costs!$G12="Single",IF(Costs!$H12=BB$4,-Costs!$B12,0),0)))*Appraisal!$M$26 -> 0 | BC47: =IF(Costs!$G12="Sales",IF(BC$210>0,-Costs!$B12*BC$210,0),IF(Costs!$G12="Build",IF(BC$212>0,-Costs!$B12*BC$212,0),IF(Costs!$G12="Single",IF(Costs!$H12=BC$4,-Costs!$B12,0),0)))*Appraisal!$M$26 -> 0 | BD47: =IF(Costs!$G12="Sales",IF(BD$210>0,-Costs!$B12*BD$210,0),IF(Costs!$G12="Build",IF(BD$212>0,-Costs!$B12*BD$212,0),IF(Costs!$G12="Single",IF(Costs!$H12=BD$4,-Costs!$B12,0),0)))*Appraisal!$M$26 -> 0 | BE47: =IF(Costs!$G12="Sales",IF(BE$210>0,-Costs!$B12*BE$210,0),IF(Costs!$G12="Build",IF(BE$212>0,-Costs!$B12*BE$212,0),IF(Costs!$G12="Single",IF(Costs!$H12=BE$4,-Costs!$B12,0),0)))*Appraisal!$M$26 -> 0 | BF47: =IF(Costs!$G12="Sales",IF(BF$210>0,-Costs!$B12*BF$210,0),IF(Costs!$G12="Build",IF(BF$212>0,-Costs!$B12*BF$212,0),IF(Costs!$G12="Single",IF(Costs!$H12=BF$4,-Costs!$B12,0),0)))*Appraisal!$M$26 -> 0 | BG47: =IF(Costs!$G12="Sales",IF(BG$210>0,-Costs!$B12*BG$210,0),IF(Costs!$G12="Build",IF(BG$212>0,-Costs!$B12*BG$212,0),IF(Costs!$G12="Single",IF(Costs!$H12=BG$4,-Costs!$B12,0),0)))*Appraisal!$M$26 -> 0 | BH47: =IF(Costs!$G12="Sales",IF(BH$210>0,-Costs!$B12*BH$210,0),IF(Costs!$G12="Build",IF(BH$212>0,-Costs!$B12*BH$212,0),IF(Costs!$G12="Single",IF(Costs!$H12=BH$4,-Costs!$B12,0),0)))*Appraisal!$M$26 -> 0 | BI47: =IF(Costs!$G12="Sales",IF(BI$210>0,-Costs!$B12*BI$210,0),IF(Costs!$G12="Build",IF(BI$212>0,-Costs!$B12*BI$212,0),IF(Costs!$G12="Single",IF(Costs!$H12=BI$4,-Costs!$B12,0),0)))*Appraisal!$M$26 -> 0 | BJ47: =IF(Costs!$G12="Sales",IF(BJ$210>0,-Costs!$B12*BJ$210,0),IF(Costs!$G12="Build",IF(BJ$212>0,-Costs!$B12*BJ$212,0),IF(Costs!$G12="Single",IF(Costs!$H12=BJ$4,-Costs!$B12,0),0)))*Appraisal!$M$26 -> 0
A48: =Costs!A13 -> Biodiversity/Nature Conservation | B48: 0 | C48: =IF(Costs!$G13="Sales",IF(C$210>0,-Costs!$B13*C$210,0),IF(Costs!$G13="Build",IF(C$212>0,-Costs!$B13*C$212,0),IF(Costs!$G13="Single",IF(Costs!$H13=C$4,-Costs!$B13,0),0)))*Appraisal!$M$26 -> 0 | D48: =IF(Costs!$G13="Sales",IF(D$210>0,-Costs!$B13*D$210,0),IF(Costs!$G13="Build",IF(D$212>0,-Costs!$B13*D$212,0),IF(Costs!$G13="Single",IF(Costs!$H13=D$4,-Costs!$B13,0),0)))*Appraisal!$M$26 -> 0 | E48: =IF(Costs!$G13="Sales",IF(E$210>0,-Costs!$B13*E$210,0),IF(Costs!$G13="Build",IF(E$212>0,-Costs!$B13*E$212,0),IF(Costs!$G13="Single",IF(Costs!$H13=E$4,-Costs!$B13,0),0)))*Appraisal!$M$26 -> 0 | F48: =IF(Costs!$G13="Sales",IF(F$210>0,-Costs!$B13*F$210,0),IF(Costs!$G13="Build",IF(F$212>0,-Costs!$B13*F$212,0),IF(Costs!$G13="Single",IF(Costs!$H13=F$4,-Costs!$B13,0),0)))*Appraisal!$M$26 -> 0 | G48: =IF(Costs!$G13="Sales",IF(G$210>0,-Costs!$B13*G$210,0),IF(Costs!$G13="Build",IF(G$212>0,-Costs!$B13*G$212,0),IF(Costs!$G13="Single",IF(Costs!$H13=G$4,-Costs!$B13,0),0)))*Appraisal!$M$26 -> 0 | H48: =IF(Costs!$G13="Sales",IF(H$210>0,-Costs!$B13*H$210,0),IF(Costs!$G13="Build",IF(H$212>0,-Costs!$B13*H$212,0),IF(Costs!$G13="Single",IF(Costs!$H13=H$4,-Costs!$B13,0),0)))*Appraisal!$M$26 -> 0 | I48: =IF(Costs!$G13="Sales",IF(I$210>0,-Costs!$B13*I$210,0),IF(Costs!$G13="Build",IF(I$212>0,-Costs!$B13*I$212,0),IF(Costs!$G13="Single",IF(Costs!$H13=I$4,-Costs!$B13,0),0)))*Appraisal!$M$26 -> 0 | J48: =IF(Costs!$G13="Sales",IF(J$210>0,-Costs!$B13*J$210,0),IF(Costs!$G13="Build",IF(J$212>0,-Costs!$B13*J$212,0),IF(Costs!$G13="Single",IF(Costs!$H13=J$4,-Costs!$B13,0),0)))*Appraisal!$M$26 -> 0 | K48: =IF(Costs!$G13="Sales",IF(K$210>0,-Costs!$B13*K$210,0),IF(Costs!$G13="Build",IF(K$212>0,-Costs!$B13*K$212,0),IF(Costs!$G13="Single",IF(Costs!$H13=K$4,-Costs!$B13,0),0)))*Appraisal!$M$26 -> 0 | L48: =IF(Costs!$G13="Sales",IF(L$210>0,-Costs!$B13*L$210,0),IF(Costs!$G13="Build",IF(L$212>0,-Costs!$B13*L$212,0),IF(Costs!$G13="Single",IF(Costs!$H13=L$4,-Costs!$B13,0),0)))*Appraisal!$M$26 -> 0 | M48: =IF(Costs!$G13="Sales",IF(M$210>0,-Costs!$B13*M$210,0),IF(Costs!$G13="Build",IF(M$212>0,-Costs!$B13*M$212,0),IF(Costs!$G13="Single",IF(Costs!$H13=M$4,-Costs!$B13,0),0)))*Appraisal!$M$26 -> 0 | N48: =IF(Costs!$G13="Sales",IF(N$210>0,-Costs!$B13*N$210,0),IF(Costs!$G13="Build",IF(N$212>0,-Costs!$B13*N$212,0),IF(Costs!$G13="Single",IF(Costs!$H13=N$4,-Costs!$B13,0),0)))*Appraisal!$M$26 -> 0 | O48: =IF(Costs!$G13="Sales",IF(O$210>0,-Costs!$B13*O$210,0),IF(Costs!$G13="Build",IF(O$212>0,-Costs!$B13*O$212,0),IF(Costs!$G13="Single",IF(Costs!$H13=O$4,-Costs!$B13,0),0)))*Appraisal!$M$26 -> 0 | P48: =IF(Costs!$G13="Sales",IF(P$210>0,-Costs!$B13*P$210,0),IF(Costs!$G13="Build",IF(P$212>0,-Costs!$B13*P$212,0),IF(Costs!$G13="Single",IF(Costs!$H13=P$4,-Costs!$B13,0),0)))*Appraisal!$M$26 -> 0 | Q48: =IF(Costs!$G13="Sales",IF(Q$210>0,-Costs!$B13*Q$210,0),IF(Costs!$G13="Build",IF(Q$212>0,-Costs!$B13*Q$212,0),IF(Costs!$G13="Single",IF(Costs!$H13=Q$4,-Costs!$B13,0),0)))*Appraisal!$M$26 -> 0 | R48: =IF(Costs!$G13="Sales",IF(R$210>0,-Costs!$B13*R$210,0),IF(Costs!$G13="Build",IF(R$212>0,-Costs!$B13*R$212,0),IF(Costs!$G13="Single",IF(Costs!$H13=R$4,-Costs!$B13,0),0)))*Appraisal!$M$26 -> 0 | S48: =IF(Costs!$G13="Sales",IF(S$210>0,-Costs!$B13*S$210,0),IF(Costs!$G13="Build",IF(S$212>0,-Costs!$B13*S$212,0),IF(Costs!$G13="Single",IF(Costs!$H13=S$4,-Costs!$B13,0),0)))*Appraisal!$M$26 -> 0 | T48: =IF(Costs!$G13="Sales",IF(T$210>0,-Costs!$B13*T$210,0),IF(Costs!$G13="Build",IF(T$212>0,-Costs!$B13*T$212,0),IF(Costs!$G13="Single",IF(Costs!$H13=T$4,-Costs!$B13,0),0)))*Appraisal!$M$26 -> 0 | U48: =IF(Costs!$G13="Sales",IF(U$210>0,-Costs!$B13*U$210,0),IF(Costs!$G13="Build",IF(U$212>0,-Costs!$B13*U$212,0),IF(Costs!$G13="Single",IF(Costs!$H13=U$4,-Costs!$B13,0),0)))*Appraisal!$M$26 -> 0 | V48: =IF(Costs!$G13="Sales",IF(V$210>0,-Costs!$B13*V$210,0),IF(Costs!$G13="Build",IF(V$212>0,-Costs!$B13*V$212,0),IF(Costs!$G13="Single",IF(Costs!$H13=V$4,-Costs!$B13,0),0)))*Appraisal!$M$26 -> 0 | W48: =IF(Costs!$G13="Sales",IF(W$210>0,-Costs!$B13*W$210,0),IF(Costs!$G13="Build",IF(W$212>0,-Costs!$B13*W$212,0),IF(Costs!$G13="Single",IF(Costs!$H13=W$4,-Costs!$B13,0),0)))*Appraisal!$M$26 -> 0 | X48: =IF(Costs!$G13="Sales",IF(X$210>0,-Costs!$B13*X$210,0),IF(Costs!$G13="Build",IF(X$212>0,-Costs!$B13*X$212,0),IF(Costs!$G13="Single",IF(Costs!$H13=X$4,-Costs!$B13,0),0)))*Appraisal!$M$26 -> 0 | Y48: =IF(Costs!$G13="Sales",IF(Y$210>0,-Costs!$B13*Y$210,0),IF(Costs!$G13="Build",IF(Y$212>0,-Costs!$B13*Y$212,0),IF(Costs!$G13="Single",IF(Costs!$H13=Y$4,-Costs!$B13,0),0)))*Appraisal!$M$26 -> 0 | Z48: =IF(Costs!$G13="Sales",IF(Z$210>0,-Costs!$B13*Z$210,0),IF(Costs!$G13="Build",IF(Z$212>0,-Costs!$B13*Z$212,0),IF(Costs!$G13="Single",IF(Costs!$H13=Z$4,-Costs!$B13,0),0)))*Appraisal!$M$26 -> 0 | AA48: =IF(Costs!$G13="Sales",IF(AA$210>0,-Costs!$B13*AA$210,0),IF(Costs!$G13="Build",IF(AA$212>0,-Costs!$B13*AA$212,0),IF(Costs!$G13="Single",IF(Costs!$H13=AA$4,-Costs!$B13,0),0)))*Appraisal!$M$26 -> 0 | AB48: =IF(Costs!$G13="Sales",IF(AB$210>0,-Costs!$B13*AB$210,0),IF(Costs!$G13="Build",IF(AB$212>0,-Costs!$B13*AB$212,0),IF(Costs!$G13="Single",IF(Costs!$H13=AB$4,-Costs!$B13,0),0)))*Appraisal!$M$26 -> 0 | AC48: =IF(Costs!$G13="Sales",IF(AC$210>0,-Costs!$B13*AC$210,0),IF(Costs!$G13="Build",IF(AC$212>0,-Costs!$B13*AC$212,0),IF(Costs!$G13="Single",IF(Costs!$H13=AC$4,-Costs!$B13,0),0)))*Appraisal!$M$26 -> 0 | AD48: =IF(Costs!$G13="Sales",IF(AD$210>0,-Costs!$B13*AD$210,0),IF(Costs!$G13="Build",IF(AD$212>0,-Costs!$B13*AD$212,0),IF(Costs!$G13="Single",IF(Costs!$H13=AD$4,-Costs!$B13,0),0)))*Appraisal!$M$26 -> 0 | AE48: =IF(Costs!$G13="Sales",IF(AE$210>0,-Costs!$B13*AE$210,0),IF(Costs!$G13="Build",IF(AE$212>0,-Costs!$B13*AE$212,0),IF(Costs!$G13="Single",IF(Costs!$H13=AE$4,-Costs!$B13,0),0)))*Appraisal!$M$26 -> 0 | AF48: =IF(Costs!$G13="Sales",IF(AF$210>0,-Costs!$B13*AF$210,0),IF(Costs!$G13="Build",IF(AF$212>0,-Costs!$B13*AF$212,0),IF(Costs!$G13="Single",IF(Costs!$H13=AF$4,-Costs!$B13,0),0)))*Appraisal!$M$26 -> 0 | AG48: =IF(Costs!$G13="Sales",IF(AG$210>0,-Costs!$B13*AG$210,0),IF(Costs!$G13="Build",IF(AG$212>0,-Costs!$B13*AG$212,0),IF(Costs!$G13="Single",IF(Costs!$H13=AG$4,-Costs!$B13,0),0)))*Appraisal!$M$26 -> 0 | AH48: =IF(Costs!$G13="Sales",IF(AH$210>0,-Costs!$B13*AH$210,0),IF(Costs!$G13="Build",IF(AH$212>0,-Costs!$B13*AH$212,0),IF(Costs!$G13="Single",IF(Costs!$H13=AH$4,-Costs!$B13,0),0)))*Appraisal!$M$26 -> 0 | AI48: =IF(Costs!$G13="Sales",IF(AI$210>0,-Costs!$B13*AI$210,0),IF(Costs!$G13="Build",IF(AI$212>0,-Costs!$B13*AI$212,0),IF(Costs!$G13="Single",IF(Costs!$H13=AI$4,-Costs!$B13,0),0)))*Appraisal!$M$26 -> 0 | AJ48: =IF(Costs!$G13="Sales",IF(AJ$210>0,-Costs!$B13*AJ$210,0),IF(Costs!$G13="Build",IF(AJ$212>0,-Costs!$B13*AJ$212,0),IF(Costs!$G13="Single",IF(Costs!$H13=AJ$4,-Costs!$B13,0),0)))*Appraisal!$M$26 -> 0 | AK48: =IF(Costs!$G13="Sales",IF(AK$210>0,-Costs!$B13*AK$210,0),IF(Costs!$G13="Build",IF(AK$212>0,-Costs!$B13*AK$212,0),IF(Costs!$G13="Single",IF(Costs!$H13=AK$4,-Costs!$B13,0),0)))*Appraisal!$M$26 -> 0 | AL48: =IF(Costs!$G13="Sales",IF(AL$210>0,-Costs!$B13*AL$210,0),IF(Costs!$G13="Build",IF(AL$212>0,-Costs!$B13*AL$212,0),IF(Costs!$G13="Single",IF(Costs!$H13=AL$4,-Costs!$B13,0),0)))*Appraisal!$M$26 -> 0 | AM48: =IF(Costs!$G13="Sales",IF(AM$210>0,-Costs!$B13*AM$210,0),IF(Costs!$G13="Build",IF(AM$212>0,-Costs!$B13*AM$212,0),IF(Costs!$G13="Single",IF(Costs!$H13=AM$4,-Costs!$B13,0),0)))*Appraisal!$M$26 -> 0 | AN48: =IF(Costs!$G13="Sales",IF(AN$210>0,-Costs!$B13*AN$210,0),IF(Costs!$G13="Build",IF(AN$212>0,-Costs!$B13*AN$212,0),IF(Costs!$G13="Single",IF(Costs!$H13=AN$4,-Costs!$B13,0),0)))*Appraisal!$M$26 -> 0 | AO48: =IF(Costs!$G13="Sales",IF(AO$210>0,-Costs!$B13*AO$210,0),IF(Costs!$G13="Build",IF(AO$212>0,-Costs!$B13*AO$212,0),IF(Costs!$G13="Single",IF(Costs!$H13=AO$4,-Costs!$B13,0),0)))*Appraisal!$M$26 -> 0 | AP48: =IF(Costs!$G13="Sales",IF(AP$210>0,-Costs!$B13*AP$210,0),IF(Costs!$G13="Build",IF(AP$212>0,-Costs!$B13*AP$212,0),IF(Costs!$G13="Single",IF(Costs!$H13=AP$4,-Costs!$B13,0),0)))*Appraisal!$M$26 -> 0 | AQ48: =IF(Costs!$G13="Sales",IF(AQ$210>0,-Costs!$B13*AQ$210,0),IF(Costs!$G13="Build",IF(AQ$212>0,-Costs!$B13*AQ$212,0),IF(Costs!$G13="Single",IF(Costs!$H13=AQ$4,-Costs!$B13,0),0)))*Appraisal!$M$26 -> 0 | AR48: =IF(Costs!$G13="Sales",IF(AR$210>0,-Costs!$B13*AR$210,0),IF(Costs!$G13="Build",IF(AR$212>0,-Costs!$B13*AR$212,0),IF(Costs!$G13="Single",IF(Costs!$H13=AR$4,-Costs!$B13,0),0)))*Appraisal!$M$26 -> 0 | AS48: =IF(Costs!$G13="Sales",IF(AS$210>0,-Costs!$B13*AS$210,0),IF(Costs!$G13="Build",IF(AS$212>0,-Costs!$B13*AS$212,0),IF(Costs!$G13="Single",IF(Costs!$H13=AS$4,-Costs!$B13,0),0)))*Appraisal!$M$26 -> 0 | AT48: =IF(Costs!$G13="Sales",IF(AT$210>0,-Costs!$B13*AT$210,0),IF(Costs!$G13="Build",IF(AT$212>0,-Costs!$B13*AT$212,0),IF(Costs!$G13="Single",IF(Costs!$H13=AT$4,-Costs!$B13,0),0)))*Appraisal!$M$26 -> 0 | AU48: =IF(Costs!$G13="Sales",IF(AU$210>0,-Costs!$B13*AU$210,0),IF(Costs!$G13="Build",IF(AU$212>0,-Costs!$B13*AU$212,0),IF(Costs!$G13="Single",IF(Costs!$H13=AU$4,-Costs!$B13,0),0)))*Appraisal!$M$26 -> 0 | AV48: =IF(Costs!$G13="Sales",IF(AV$210>0,-Costs!$B13*AV$210,0),IF(Costs!$G13="Build",IF(AV$212>0,-Costs!$B13*AV$212,0),IF(Costs!$G13="Single",IF(Costs!$H13=AV$4,-Costs!$B13,0),0)))*Appraisal!$M$26 -> 0 | AW48: =IF(Costs!$G13="Sales",IF(AW$210>0,-Costs!$B13*AW$210,0),IF(Costs!$G13="Build",IF(AW$212>0,-Costs!$B13*AW$212,0),IF(Costs!$G13="Single",IF(Costs!$H13=AW$4,-Costs!$B13,0),0)))*Appraisal!$M$26 -> 0 | AX48: =IF(Costs!$G13="Sales",IF(AX$210>0,-Costs!$B13*AX$210,0),IF(Costs!$G13="Build",IF(AX$212>0,-Costs!$B13*AX$212,0),IF(Costs!$G13="Single",IF(Costs!$H13=AX$4,-Costs!$B13,0),0)))*Appraisal!$M$26 -> 0 | AY48: =IF(Costs!$G13="Sales",IF(AY$210>0,-Costs!$B13*AY$210,0),IF(Costs!$G13="Build",IF(AY$212>0,-Costs!$B13*AY$212,0),IF(Costs!$G13="Single",IF(Costs!$H13=AY$4,-Costs!$B13,0),0)))*Appraisal!$M$26 -> 0 | AZ48: =IF(Costs!$G13="Sales",IF(AZ$210>0,-Costs!$B13*AZ$210,0),IF(Costs!$G13="Build",IF(AZ$212>0,-Costs!$B13*AZ$212,0),IF(Costs!$G13="Single",IF(Costs!$H13=AZ$4,-Costs!$B13,0),0)))*Appraisal!$M$26 -> 0 | BA48: =IF(Costs!$G13="Sales",IF(BA$210>0,-Costs!$B13*BA$210,0),IF(Costs!$G13="Build",IF(BA$212>0,-Costs!$B13*BA$212,0),IF(Costs!$G13="Single",IF(Costs!$H13=BA$4,-Costs!$B13,0),0)))*Appraisal!$M$26 -> 0 | BB48: =IF(Costs!$G13="Sales",IF(BB$210>0,-Costs!$B13*BB$210,0),IF(Costs!$G13="Build",IF(BB$212>0,-Costs!$B13*BB$212,0),IF(Costs!$G13="Single",IF(Costs!$H13=BB$4,-Costs!$B13,0),0)))*Appraisal!$M$26 -> 0 | BC48: =IF(Costs!$G13="Sales",IF(BC$210>0,-Costs!$B13*BC$210,0),IF(Costs!$G13="Build",IF(BC$212>0,-Costs!$B13*BC$212,0),IF(Costs!$G13="Single",IF(Costs!$H13=BC$4,-Costs!$B13,0),0)))*Appraisal!$M$26 -> 0 | BD48: =IF(Costs!$G13="Sales",IF(BD$210>0,-Costs!$B13*BD$210,0),IF(Costs!$G13="Build",IF(BD$212>0,-Costs!$B13*BD$212,0),IF(Costs!$G13="Single",IF(Costs!$H13=BD$4,-Costs!$B13,0),0)))*Appraisal!$M$26 -> 0 | BE48: =IF(Costs!$G13="Sales",IF(BE$210>0,-Costs!$B13*BE$210,0),IF(Costs!$G13="Build",IF(BE$212>0,-Costs!$B13*BE$212,0),IF(Costs!$G13="Single",IF(Costs!$H13=BE$4,-Costs!$B13,0),0)))*Appraisal!$M$26 -> 0 | BF48: =IF(Costs!$G13="Sales",IF(BF$210>0,-Costs!$B13*BF$210,0),IF(Costs!$G13="Build",IF(BF$212>0,-Costs!$B13*BF$212,0),IF(Costs!$G13="Single",IF(Costs!$H13=BF$4,-Costs!$B13,0),0)))*Appraisal!$M$26 -> 0 | BG48: =IF(Costs!$G13="Sales",IF(BG$210>0,-Costs!$B13*BG$210,0),IF(Costs!$G13="Build",IF(BG$212>0,-Costs!$B13*BG$212,0),IF(Costs!$G13="Single",IF(Costs!$H13=BG$4,-Costs!$B13,0),0)))*Appraisal!$M$26 -> 0 | BH48: =IF(Costs!$G13="Sales",IF(BH$210>0,-Costs!$B13*BH$210,0),IF(Costs!$G13="Build",IF(BH$212>0,-Costs!$B13*BH$212,0),IF(Costs!$G13="Single",IF(Costs!$H13=BH$4,-Costs!$B13,0),0)))*Appraisal!$M$26 -> 0 | BI48: =IF(Costs!$G13="Sales",IF(BI$210>0,-Costs!$B13*BI$210,0),IF(Costs!$G13="Build",IF(BI$212>0,-Costs!$B13*BI$212,0),IF(Costs!$G13="Single",IF(Costs!$H13=BI$4,-Costs!$B13,0),0)))*Appraisal!$M$26 -> 0 | BJ48: =IF(Costs!$G13="Sales",IF(BJ$210>0,-Costs!$B13*BJ$210,0),IF(Costs!$G13="Build",IF(BJ$212>0,-Costs!$B13*BJ$212,0),IF(Costs!$G13="Single",IF(Costs!$H13=BJ$4,-Costs!$B13,0),0)))*Appraisal!$M$26 -> 0
A49: =Costs!A14 -> Other Planning Obligations | B49: -70000 | C49: =IF(Costs!$G14="Sales",IF(C$210>0,-Costs!$B14*C$210,0),IF(Costs!$G14="Build",IF(C$212>0,-Costs!$B14*C$212,0),IF(Costs!$G14="Single",IF(Costs!$H14=C$4,-Costs!$B14,0),0)))*Appraisal!$M$26 -> 0 | D49: =IF(Costs!$G14="Sales",IF(D$210>0,-Costs!$B14*D$210,0),IF(Costs!$G14="Build",IF(D$212>0,-Costs!$B14*D$212,0),IF(Costs!$G14="Single",IF(Costs!$H14=D$4,-Costs!$B14,0),0)))*Appraisal!$M$26 -> 0 | E49: =IF(Costs!$G14="Sales",IF(E$210>0,-Costs!$B14*E$210,0),IF(Costs!$G14="Build",IF(E$212>0,-Costs!$B14*E$212,0),IF(Costs!$G14="Single",IF(Costs!$H14=E$4,-Costs!$B14,0),0)))*Appraisal!$M$26 -> 0 | F49: =IF(Costs!$G14="Sales",IF(F$210>0,-Costs!$B14*F$210,0),IF(Costs!$G14="Build",IF(F$212>0,-Costs!$B14*F$212,0),IF(Costs!$G14="Single",IF(Costs!$H14=F$4,-Costs!$B14,0),0)))*Appraisal!$M$26 -> 0 | G49: =IF(Costs!$G14="Sales",IF(G$210>0,-Costs!$B14*G$210,0),IF(Costs!$G14="Build",IF(G$212>0,-Costs!$B14*G$212,0),IF(Costs!$G14="Single",IF(Costs!$H14=G$4,-Costs!$B14,0),0)))*Appraisal!$M$26 -> 0 | H49: =IF(Costs!$G14="Sales",IF(H$210>0,-Costs!$B14*H$210,0),IF(Costs!$G14="Build",IF(H$212>0,-Costs!$B14*H$212,0),IF(Costs!$G14="Single",IF(Costs!$H14=H$4,-Costs!$B14,0),0)))*Appraisal!$M$26 -> 0 | I49: =IF(Costs!$G14="Sales",IF(I$210>0,-Costs!$B14*I$210,0),IF(Costs!$G14="Build",IF(I$212>0,-Costs!$B14*I$212,0),IF(Costs!$G14="Single",IF(Costs!$H14=I$4,-Costs!$B14,0),0)))*Appraisal!$M$26 -> 0 | J49: =IF(Costs!$G14="Sales",IF(J$210>0,-Costs!$B14*J$210,0),IF(Costs!$G14="Build",IF(J$212>0,-Costs!$B14*J$212,0),IF(Costs!$G14="Single",IF(Costs!$H14=J$4,-Costs!$B14,0),0)))*Appraisal!$M$26 -> 0 | K49: =IF(Costs!$G14="Sales",IF(K$210>0,-Costs!$B14*K$210,0),IF(Costs!$G14="Build",IF(K$212>0,-Costs!$B14*K$212,0),IF(Costs!$G14="Single",IF(Costs!$H14=K$4,-Costs!$B14,0),0)))*Appraisal!$M$26 -> 0 | L49: =IF(Costs!$G14="Sales",IF(L$210>0,-Costs!$B14*L$210,0),IF(Costs!$G14="Build",IF(L$212>0,-Costs!$B14*L$212,0),IF(Costs!$G14="Single",IF(Costs!$H14=L$4,-Costs!$B14,0),0)))*Appraisal!$M$26 -> 0 | M49: =IF(Costs!$G14="Sales",IF(M$210>0,-Costs!$B14*M$210,0),IF(Costs!$G14="Build",IF(M$212>0,-Costs!$B14*M$212,0),IF(Costs!$G14="Single",IF(Costs!$H14=M$4,-Costs!$B14,0),0)))*Appraisal!$M$26 -> -19637.88341 | N49: =IF(Costs!$G14="Sales",IF(N$210>0,-Costs!$B14*N$210,0),IF(Costs!$G14="Build",IF(N$212>0,-Costs!$B14*N$212,0),IF(Costs!$G14="Single",IF(Costs!$H14=N$4,-Costs!$B14,0),0)))*Appraisal!$M$26 -> -8057.938655 | O49: =IF(Costs!$G14="Sales",IF(O$210>0,-Costs!$B14*O$210,0),IF(Costs!$G14="Build",IF(O$212>0,-Costs!$B14*O$212,0),IF(Costs!$G14="Single",IF(Costs!$H14=O$4,-Costs!$B14,0),0)))*Appraisal!$M$26 -> -8057.938655 | P49: =IF(Costs!$G14="Sales",IF(P$210>0,-Costs!$B14*P$210,0),IF(Costs!$G14="Build",IF(P$212>0,-Costs!$B14*P$212,0),IF(Costs!$G14="Single",IF(Costs!$H14=P$4,-Costs!$B14,0),0)))*Appraisal!$M$26 -> -8057.938655 | Q49: =IF(Costs!$G14="Sales",IF(Q$210>0,-Costs!$B14*Q$210,0),IF(Costs!$G14="Build",IF(Q$212>0,-Costs!$B14*Q$212,0),IF(Costs!$G14="Single",IF(Costs!$H14=Q$4,-Costs!$B14,0),0)))*Appraisal!$M$26 -> -8057.938655 | R49: =IF(Costs!$G14="Sales",IF(R$210>0,-Costs!$B14*R$210,0),IF(Costs!$G14="Build",IF(R$212>0,-Costs!$B14*R$212,0),IF(Costs!$G14="Single",IF(Costs!$H14=R$4,-Costs!$B14,0),0)))*Appraisal!$M$26 -> -8057.938655 | S49: =IF(Costs!$G14="Sales",IF(S$210>0,-Costs!$B14*S$210,0),IF(Costs!$G14="Build",IF(S$212>0,-Costs!$B14*S$212,0),IF(Costs!$G14="Single",IF(Costs!$H14=S$4,-Costs!$B14,0),0)))*Appraisal!$M$26 -> -5036.21166 | T49: =IF(Costs!$G14="Sales",IF(T$210>0,-Costs!$B14*T$210,0),IF(Costs!$G14="Build",IF(T$212>0,-Costs!$B14*T$212,0),IF(Costs!$G14="Single",IF(Costs!$H14=T$4,-Costs!$B14,0),0)))*Appraisal!$M$26 -> -5036.21166 | U49: =IF(Costs!$G14="Sales",IF(U$210>0,-Costs!$B14*U$210,0),IF(Costs!$G14="Build",IF(U$212>0,-Costs!$B14*U$212,0),IF(Costs!$G14="Single",IF(Costs!$H14=U$4,-Costs!$B14,0),0)))*Appraisal!$M$26 -> 0 | V49: =IF(Costs!$G14="Sales",IF(V$210>0,-Costs!$B14*V$210,0),IF(Costs!$G14="Build",IF(V$212>0,-Costs!$B14*V$212,0),IF(Costs!$G14="Single",IF(Costs!$H14=V$4,-Costs!$B14,0),0)))*Appraisal!$M$26 -> 0 | W49: =IF(Costs!$G14="Sales",IF(W$210>0,-Costs!$B14*W$210,0),IF(Costs!$G14="Build",IF(W$212>0,-Costs!$B14*W$212,0),IF(Costs!$G14="Single",IF(Costs!$H14=W$4,-Costs!$B14,0),0)))*Appraisal!$M$26 -> 0 | X49: =IF(Costs!$G14="Sales",IF(X$210>0,-Costs!$B14*X$210,0),IF(Costs!$G14="Build",IF(X$212>0,-Costs!$B14*X$212,0),IF(Costs!$G14="Single",IF(Costs!$H14=X$4,-Costs!$B14,0),0)))*Appraisal!$M$26 -> 0 | Y49: =IF(Costs!$G14="Sales",IF(Y$210>0,-Costs!$B14*Y$210,0),IF(Costs!$G14="Build",IF(Y$212>0,-Costs!$B14*Y$212,0),IF(Costs!$G14="Single",IF(Costs!$H14=Y$4,-Costs!$B14,0),0)))*Appraisal!$M$26 -> 0 | Z49: =IF(Costs!$G14="Sales",IF(Z$210>0,-Costs!$B14*Z$210,0),IF(Costs!$G14="Build",IF(Z$212>0,-Costs!$B14*Z$212,0),IF(Costs!$G14="Single",IF(Costs!$H14=Z$4,-Costs!$B14,0),0)))*Appraisal!$M$26 -> 0 | AA49: =IF(Costs!$G14="Sales",IF(AA$210>0,-Costs!$B14*AA$210,0),IF(Costs!$G14="Build",IF(AA$212>0,-Costs!$B14*AA$212,0),IF(Costs!$G14="Single",IF(Costs!$H14=AA$4,-Costs!$B14,0),0)))*Appraisal!$M$26 -> 0 | AB49: =IF(Costs!$G14="Sales",IF(AB$210>0,-Costs!$B14*AB$210,0),IF(Costs!$G14="Build",IF(AB$212>0,-Costs!$B14*AB$212,0),IF(Costs!$G14="Single",IF(Costs!$H14=AB$4,-Costs!$B14,0),0)))*Appraisal!$M$26 -> 0 | AC49: =IF(Costs!$G14="Sales",IF(AC$210>0,-Costs!$B14*AC$210,0),IF(Costs!$G14="Build",IF(AC$212>0,-Costs!$B14*AC$212,0),IF(Costs!$G14="Single",IF(Costs!$H14=AC$4,-Costs!$B14,0),0)))*Appraisal!$M$26 -> 0 | AD49: =IF(Costs!$G14="Sales",IF(AD$210>0,-Costs!$B14*AD$210,0),IF(Costs!$G14="Build",IF(AD$212>0,-Costs!$B14*AD$212,0),IF(Costs!$G14="Single",IF(Costs!$H14=AD$4,-Costs!$B14,0),0)))*Appraisal!$M$26 -> 0 | AE49: =IF(Costs!$G14="Sales",IF(AE$210>0,-Costs!$B14*AE$210,0),IF(Costs!$G14="Build",IF(AE$212>0,-Costs!$B14*AE$212,0),IF(Costs!$G14="Single",IF(Costs!$H14=AE$4,-Costs!$B14,0),0)))*Appraisal!$M$26 -> 0 | AF49: =IF(Costs!$G14="Sales",IF(AF$210>0,-Costs!$B14*AF$210,0),IF(Costs!$G14="Build",IF(AF$212>0,-Costs!$B14*AF$212,0),IF(Costs!$G14="Single",IF(Costs!$H14=AF$4,-Costs!$B14,0),0)))*Appraisal!$M$26 -> 0 | AG49: =IF(Costs!$G14="Sales",IF(AG$210>0,-Costs!$B14*AG$210,0),IF(Costs!$G14="Build",IF(AG$212>0,-Costs!$B14*AG$212,0),IF(Costs!$G14="Single",IF(Costs!$H14=AG$4,-Costs!$B14,0),0)))*Appraisal!$M$26 -> 0 | AH49: =IF(Costs!$G14="Sales",IF(AH$210>0,-Costs!$B14*AH$210,0),IF(Costs!$G14="Build",IF(AH$212>0,-Costs!$B14*AH$212,0),IF(Costs!$G14="Single",IF(Costs!$H14=AH$4,-Costs!$B14,0),0)))*Appraisal!$M$26 -> 0 | AI49: =IF(Costs!$G14="Sales",IF(AI$210>0,-Costs!$B14*AI$210,0),IF(Costs!$G14="Build",IF(AI$212>0,-Costs!$B14*AI$212,0),IF(Costs!$G14="Single",IF(Costs!$H14=AI$4,-Costs!$B14,0),0)))*Appraisal!$M$26 -> 0 | AJ49: =IF(Costs!$G14="Sales",IF(AJ$210>0,-Costs!$B14*AJ$210,0),IF(Costs!$G14="Build",IF(AJ$212>0,-Costs!$B14*AJ$212,0),IF(Costs!$G14="Single",IF(Costs!$H14=AJ$4,-Costs!$B14,0),0)))*Appraisal!$M$26 -> 0 | AK49: =IF(Costs!$G14="Sales",IF(AK$210>0,-Costs!$B14*AK$210,0),IF(Costs!$G14="Build",IF(AK$212>0,-Costs!$B14*AK$212,0),IF(Costs!$G14="Single",IF(Costs!$H14=AK$4,-Costs!$B14,0),0)))*Appraisal!$M$26 -> 0 | AL49: =IF(Costs!$G14="Sales",IF(AL$210>0,-Costs!$B14*AL$210,0),IF(Costs!$G14="Build",IF(AL$212>0,-Costs!$B14*AL$212,0),IF(Costs!$G14="Single",IF(Costs!$H14=AL$4,-Costs!$B14,0),0)))*Appraisal!$M$26 -> 0 | AM49: =IF(Costs!$G14="Sales",IF(AM$210>0,-Costs!$B14*AM$210,0),IF(Costs!$G14="Build",IF(AM$212>0,-Costs!$B14*AM$212,0),IF(Costs!$G14="Single",IF(Costs!$H14=AM$4,-Costs!$B14,0),0)))*Appraisal!$M$26 -> 0 | AN49: =IF(Costs!$G14="Sales",IF(AN$210>0,-Costs!$B14*AN$210,0),IF(Costs!$G14="Build",IF(AN$212>0,-Costs!$B14*AN$212,0),IF(Costs!$G14="Single",IF(Costs!$H14=AN$4,-Costs!$B14,0),0)))*Appraisal!$M$26 -> 0 | AO49: =IF(Costs!$G14="Sales",IF(AO$210>0,-Costs!$B14*AO$210,0),IF(Costs!$G14="Build",IF(AO$212>0,-Costs!$B14*AO$212,0),IF(Costs!$G14="Single",IF(Costs!$H14=AO$4,-Costs!$B14,0),0)))*Appraisal!$M$26 -> 0 | AP49: =IF(Costs!$G14="Sales",IF(AP$210>0,-Costs!$B14*AP$210,0),IF(Costs!$G14="Build",IF(AP$212>0,-Costs!$B14*AP$212,0),IF(Costs!$G14="Single",IF(Costs!$H14=AP$4,-Costs!$B14,0),0)))*Appraisal!$M$26 -> 0 | AQ49: =IF(Costs!$G14="Sales",IF(AQ$210>0,-Costs!$B14*AQ$210,0),IF(Costs!$G14="Build",IF(AQ$212>0,-Costs!$B14*AQ$212,0),IF(Costs!$G14="Single",IF(Costs!$H14=AQ$4,-Costs!$B14,0),0)))*Appraisal!$M$26 -> 0 | AR49: =IF(Costs!$G14="Sales",IF(AR$210>0,-Costs!$B14*AR$210,0),IF(Costs!$G14="Build",IF(AR$212>0,-Costs!$B14*AR$212,0),IF(Costs!$G14="Single",IF(Costs!$H14=AR$4,-Costs!$B14,0),0)))*Appraisal!$M$26 -> 0 | AS49: =IF(Costs!$G14="Sales",IF(AS$210>0,-Costs!$B14*AS$210,0),IF(Costs!$G14="Build",IF(AS$212>0,-Costs!$B14*AS$212,0),IF(Costs!$G14="Single",IF(Costs!$H14=AS$4,-Costs!$B14,0),0)))*Appraisal!$M$26 -> 0 | AT49: =IF(Costs!$G14="Sales",IF(AT$210>0,-Costs!$B14*AT$210,0),IF(Costs!$G14="Build",IF(AT$212>0,-Costs!$B14*AT$212,0),IF(Costs!$G14="Single",IF(Costs!$H14=AT$4,-Costs!$B14,0),0)))*Appraisal!$M$26 -> 0 | AU49: =IF(Costs!$G14="Sales",IF(AU$210>0,-Costs!$B14*AU$210,0),IF(Costs!$G14="Build",IF(AU$212>0,-Costs!$B14*AU$212,0),IF(Costs!$G14="Single",IF(Costs!$H14=AU$4,-Costs!$B14,0),0)))*Appraisal!$M$26 -> 0 | AV49: =IF(Costs!$G14="Sales",IF(AV$210>0,-Costs!$B14*AV$210,0),IF(Costs!$G14="Build",IF(AV$212>0,-Costs!$B14*AV$212,0),IF(Costs!$G14="Single",IF(Costs!$H14=AV$4,-Costs!$B14,0),0)))*Appraisal!$M$26 -> 0 | AW49: =IF(Costs!$G14="Sales",IF(AW$210>0,-Costs!$B14*AW$210,0),IF(Costs!$G14="Build",IF(AW$212>0,-Costs!$B14*AW$212,0),IF(Costs!$G14="Single",IF(Costs!$H14=AW$4,-Costs!$B14,0),0)))*Appraisal!$M$26 -> 0 | AX49: =IF(Costs!$G14="Sales",IF(AX$210>0,-Costs!$B14*AX$210,0),IF(Costs!$G14="Build",IF(AX$212>0,-Costs!$B14*AX$212,0),IF(Costs!$G14="Single",IF(Costs!$H14=AX$4,-Costs!$B14,0),0)))*Appraisal!$M$26 -> 0 | AY49: =IF(Costs!$G14="Sales",IF(AY$210>0,-Costs!$B14*AY$210,0),IF(Costs!$G14="Build",IF(AY$212>0,-Costs!$B14*AY$212,0),IF(Costs!$G14="Single",IF(Costs!$H14=AY$4,-Costs!$B14,0),0)))*Appraisal!$M$26 -> 0 | AZ49: =IF(Costs!$G14="Sales",IF(AZ$210>0,-Costs!$B14*AZ$210,0),IF(Costs!$G14="Build",IF(AZ$212>0,-Costs!$B14*AZ$212,0),IF(Costs!$G14="Single",IF(Costs!$H14=AZ$4,-Costs!$B14,0),0)))*Appraisal!$M$26 -> 0 | BA49: =IF(Costs!$G14="Sales",IF(BA$210>0,-Costs!$B14*BA$210,0),IF(Costs!$G14="Build",IF(BA$212>0,-Costs!$B14*BA$212,0),IF(Costs!$G14="Single",IF(Costs!$H14=BA$4,-Costs!$B14,0),0)))*Appraisal!$M$26 -> 0 | BB49: =IF(Costs!$G14="Sales",IF(BB$210>0,-Costs!$B14*BB$210,0),IF(Costs!$G14="Build",IF(BB$212>0,-Costs!$B14*BB$212,0),IF(Costs!$G14="Single",IF(Costs!$H14=BB$4,-Costs!$B14,0),0)))*Appraisal!$M$26 -> 0 | BC49: =IF(Costs!$G14="Sales",IF(BC$210>0,-Costs!$B14*BC$210,0),IF(Costs!$G14="Build",IF(BC$212>0,-Costs!$B14*BC$212,0),IF(Costs!$G14="Single",IF(Costs!$H14=BC$4,-Costs!$B14,0),0)))*Appraisal!$M$26 -> 0 | BD49: =IF(Costs!$G14="Sales",IF(BD$210>0,-Costs!$B14*BD$210,0),IF(Costs!$G14="Build",IF(BD$212>0,-Costs!$B14*BD$212,0),IF(Costs!$G14="Single",IF(Costs!$H14=BD$4,-Costs!$B14,0),0)))*Appraisal!$M$26 -> 0 | BE49: =IF(Costs!$G14="Sales",IF(BE$210>0,-Costs!$B14*BE$210,0),IF(Costs!$G14="Build",IF(BE$212>0,-Costs!$B14*BE$212,0),IF(Costs!$G14="Single",IF(Costs!$H14=BE$4,-Costs!$B14,0),0)))*Appraisal!$M$26 -> 0 | BF49: =IF(Costs!$G14="Sales",IF(BF$210>0,-Costs!$B14*BF$210,0),IF(Costs!$G14="Build",IF(BF$212>0,-Costs!$B14*BF$212,0),IF(Costs!$G14="Single",IF(Costs!$H14=BF$4,-Costs!$B14,0),0)))*Appraisal!$M$26 -> 0 | BG49: =IF(Costs!$G14="Sales",IF(BG$210>0,-Costs!$B14*BG$210,0),IF(Costs!$G14="Build",IF(BG$212>0,-Costs!$B14*BG$212,0),IF(Costs!$G14="Single",IF(Costs!$H14=BG$4,-Costs!$B14,0),0)))*Appraisal!$M$26 -> 0 | BH49: =IF(Costs!$G14="Sales",IF(BH$210>0,-Costs!$B14*BH$210,0),IF(Costs!$G14="Build",IF(BH$212>0,-Costs!$B14*BH$212,0),IF(Costs!$G14="Single",IF(Costs!$H14=BH$4,-Costs!$B14,0),0)))*Appraisal!$M$26 -> 0 | BI49: =IF(Costs!$G14="Sales",IF(BI$210>0,-Costs!$B14*BI$210,0),IF(Costs!$G14="Build",IF(BI$212>0,-Costs!$B14*BI$212,0),IF(Costs!$G14="Single",IF(Costs!$H14=BI$4,-Costs!$B14,0),0)))*Appraisal!$M$26 -> 0 | BJ49: =IF(Costs!$G14="Sales",IF(BJ$210>0,-Costs!$B14*BJ$210,0),IF(Costs!$G14="Build",IF(BJ$212>0,-Costs!$B14*BJ$212,0),IF(Costs!$G14="Single",IF(Costs!$H14=BJ$4,-Costs!$B14,0),0)))*Appraisal!$M$26 -> 0
A50: =Costs!A15 -> 0 | B50: 0 | C50: =IF(Costs!$G15="Sales",IF(C$210>0,-Costs!$B15*C$210,0),IF(Costs!$G15="Build",IF(C$212>0,-Costs!$B15*C$212,0),IF(Costs!$G15="Single",IF(Costs!$H15=C$4,-Costs!$B15,0),0)))*Appraisal!$M$26 -> 0 | D50: =IF(Costs!$G15="Sales",IF(D$210>0,-Costs!$B15*D$210,0),IF(Costs!$G15="Build",IF(D$212>0,-Costs!$B15*D$212,0),IF(Costs!$G15="Single",IF(Costs!$H15=D$4,-Costs!$B15,0),0)))*Appraisal!$M$26 -> 0 | E50: =IF(Costs!$G15="Sales",IF(E$210>0,-Costs!$B15*E$210,0),IF(Costs!$G15="Build",IF(E$212>0,-Costs!$B15*E$212,0),IF(Costs!$G15="Single",IF(Costs!$H15=E$4,-Costs!$B15,0),0)))*Appraisal!$M$26 -> 0 | F50: =IF(Costs!$G15="Sales",IF(F$210>0,-Costs!$B15*F$210,0),IF(Costs!$G15="Build",IF(F$212>0,-Costs!$B15*F$212,0),IF(Costs!$G15="Single",IF(Costs!$H15=F$4,-Costs!$B15,0),0)))*Appraisal!$M$26 -> 0 | G50: =IF(Costs!$G15="Sales",IF(G$210>0,-Costs!$B15*G$210,0),IF(Costs!$G15="Build",IF(G$212>0,-Costs!$B15*G$212,0),IF(Costs!$G15="Single",IF(Costs!$H15=G$4,-Costs!$B15,0),0)))*Appraisal!$M$26 -> 0 | H50: =IF(Costs!$G15="Sales",IF(H$210>0,-Costs!$B15*H$210,0),IF(Costs!$G15="Build",IF(H$212>0,-Costs!$B15*H$212,0),IF(Costs!$G15="Single",IF(Costs!$H15=H$4,-Costs!$B15,0),0)))*Appraisal!$M$26 -> 0 | I50: =IF(Costs!$G15="Sales",IF(I$210>0,-Costs!$B15*I$210,0),IF(Costs!$G15="Build",IF(I$212>0,-Costs!$B15*I$212,0),IF(Costs!$G15="Single",IF(Costs!$H15=I$4,-Costs!$B15,0),0)))*Appraisal!$M$26 -> 0 | J50: =IF(Costs!$G15="Sales",IF(J$210>0,-Costs!$B15*J$210,0),IF(Costs!$G15="Build",IF(J$212>0,-Costs!$B15*J$212,0),IF(Costs!$G15="Single",IF(Costs!$H15=J$4,-Costs!$B15,0),0)))*Appraisal!$M$26 -> 0 | K50: =IF(Costs!$G15="Sales",IF(K$210>0,-Costs!$B15*K$210,0),IF(Costs!$G15="Build",IF(K$212>0,-Costs!$B15*K$212,0),IF(Costs!$G15="Single",IF(Costs!$H15=K$4,-Costs!$B15,0),0)))*Appraisal!$M$26 -> 0 | L50: =IF(Costs!$G15="Sales",IF(L$210>0,-Costs!$B15*L$210,0),IF(Costs!$G15="Build",IF(L$212>0,-Costs!$B15*L$212,0),IF(Costs!$G15="Single",IF(Costs!$H15=L$4,-Costs!$B15,0),0)))*Appraisal!$M$26 -> 0 | M50: =IF(Costs!$G15="Sales",IF(M$210>0,-Costs!$B15*M$210,0),IF(Costs!$G15="Build",IF(M$212>0,-Costs!$B15*M$212,0),IF(Costs!$G15="Single",IF(Costs!$H15=M$4,-Costs!$B15,0),0)))*Appraisal!$M$26 -> 0 | N50: =IF(Costs!$G15="Sales",IF(N$210>0,-Costs!$B15*N$210,0),IF(Costs!$G15="Build",IF(N$212>0,-Costs!$B15*N$212,0),IF(Costs!$G15="Single",IF(Costs!$H15=N$4,-Costs!$B15,0),0)))*Appraisal!$M$26 -> 0 | O50: =IF(Costs!$G15="Sales",IF(O$210>0,-Costs!$B15*O$210,0),IF(Costs!$G15="Build",IF(O$212>0,-Costs!$B15*O$212,0),IF(Costs!$G15="Single",IF(Costs!$H15=O$4,-Costs!$B15,0),0)))*Appraisal!$M$26 -> 0 | P50: =IF(Costs!$G15="Sales",IF(P$210>0,-Costs!$B15*P$210,0),IF(Costs!$G15="Build",IF(P$212>0,-Costs!$B15*P$212,0),IF(Costs!$G15="Single",IF(Costs!$H15=P$4,-Costs!$B15,0),0)))*Appraisal!$M$26 -> 0 | Q50: =IF(Costs!$G15="Sales",IF(Q$210>0,-Costs!$B15*Q$210,0),IF(Costs!$G15="Build",IF(Q$212>0,-Costs!$B15*Q$212,0),IF(Costs!$G15="Single",IF(Costs!$H15=Q$4,-Costs!$B15,0),0)))*Appraisal!$M$26 -> 0 | R50: =IF(Costs!$G15="Sales",IF(R$210>0,-Costs!$B15*R$210,0),IF(Costs!$G15="Build",IF(R$212>0,-Costs!$B15*R$212,0),IF(Costs!$G15="Single",IF(Costs!$H15=R$4,-Costs!$B15,0),0)))*Appraisal!$M$26 -> 0 | S50: =IF(Costs!$G15="Sales",IF(S$210>0,-Costs!$B15*S$210,0),IF(Costs!$G15="Build",IF(S$212>0,-Costs!$B15*S$212,0),IF(Costs!$G15="Single",IF(Costs!$H15=S$4,-Costs!$B15,0),0)))*Appraisal!$M$26 -> 0 | T50: =IF(Costs!$G15="Sales",IF(T$210>0,-Costs!$B15*T$210,0),IF(Costs!$G15="Build",IF(T$212>0,-Costs!$B15*T$212,0),IF(Costs!$G15="Single",IF(Costs!$H15=T$4,-Costs!$B15,0),0)))*Appraisal!$M$26 -> 0 | U50: =IF(Costs!$G15="Sales",IF(U$210>0,-Costs!$B15*U$210,0),IF(Costs!$G15="Build",IF(U$212>0,-Costs!$B15*U$212,0),IF(Costs!$G15="Single",IF(Costs!$H15=U$4,-Costs!$B15,0),0)))*Appraisal!$M$26 -> 0 | V50: =IF(Costs!$G15="Sales",IF(V$210>0,-Costs!$B15*V$210,0),IF(Costs!$G15="Build",IF(V$212>0,-Costs!$B15*V$212,0),IF(Costs!$G15="Single",IF(Costs!$H15=V$4,-Costs!$B15,0),0)))*Appraisal!$M$26 -> 0 | W50: =IF(Costs!$G15="Sales",IF(W$210>0,-Costs!$B15*W$210,0),IF(Costs!$G15="Build",IF(W$212>0,-Costs!$B15*W$212,0),IF(Costs!$G15="Single",IF(Costs!$H15=W$4,-Costs!$B15,0),0)))*Appraisal!$M$26 -> 0 | X50: =IF(Costs!$G15="Sales",IF(X$210>0,-Costs!$B15*X$210,0),IF(Costs!$G15="Build",IF(X$212>0,-Costs!$B15*X$212,0),IF(Costs!$G15="Single",IF(Costs!$H15=X$4,-Costs!$B15,0),0)))*Appraisal!$M$26 -> 0 | Y50: =IF(Costs!$G15="Sales",IF(Y$210>0,-Costs!$B15*Y$210,0),IF(Costs!$G15="Build",IF(Y$212>0,-Costs!$B15*Y$212,0),IF(Costs!$G15="Single",IF(Costs!$H15=Y$4,-Costs!$B15,0),0)))*Appraisal!$M$26 -> 0 | Z50: =IF(Costs!$G15="Sales",IF(Z$210>0,-Costs!$B15*Z$210,0),IF(Costs!$G15="Build",IF(Z$212>0,-Costs!$B15*Z$212,0),IF(Costs!$G15="Single",IF(Costs!$H15=Z$4,-Costs!$B15,0),0)))*Appraisal!$M$26 -> 0 | AA50: =IF(Costs!$G15="Sales",IF(AA$210>0,-Costs!$B15*AA$210,0),IF(Costs!$G15="Build",IF(AA$212>0,-Costs!$B15*AA$212,0),IF(Costs!$G15="Single",IF(Costs!$H15=AA$4,-Costs!$B15,0),0)))*Appraisal!$M$26 -> 0 | AB50: =IF(Costs!$G15="Sales",IF(AB$210>0,-Costs!$B15*AB$210,0),IF(Costs!$G15="Build",IF(AB$212>0,-Costs!$B15*AB$212,0),IF(Costs!$G15="Single",IF(Costs!$H15=AB$4,-Costs!$B15,0),0)))*Appraisal!$M$26 -> 0 | AC50: =IF(Costs!$G15="Sales",IF(AC$210>0,-Costs!$B15*AC$210,0),IF(Costs!$G15="Build",IF(AC$212>0,-Costs!$B15*AC$212,0),IF(Costs!$G15="Single",IF(Costs!$H15=AC$4,-Costs!$B15,0),0)))*Appraisal!$M$26 -> 0 | AD50: =IF(Costs!$G15="Sales",IF(AD$210>0,-Costs!$B15*AD$210,0),IF(Costs!$G15="Build",IF(AD$212>0,-Costs!$B15*AD$212,0),IF(Costs!$G15="Single",IF(Costs!$H15=AD$4,-Costs!$B15,0),0)))*Appraisal!$M$26 -> 0 | AE50: =IF(Costs!$G15="Sales",IF(AE$210>0,-Costs!$B15*AE$210,0),IF(Costs!$G15="Build",IF(AE$212>0,-Costs!$B15*AE$212,0),IF(Costs!$G15="Single",IF(Costs!$H15=AE$4,-Costs!$B15,0),0)))*Appraisal!$M$26 -> 0 | AF50: =IF(Costs!$G15="Sales",IF(AF$210>0,-Costs!$B15*AF$210,0),IF(Costs!$G15="Build",IF(AF$212>0,-Costs!$B15*AF$212,0),IF(Costs!$G15="Single",IF(Costs!$H15=AF$4,-Costs!$B15,0),0)))*Appraisal!$M$26 -> 0 | AG50: =IF(Costs!$G15="Sales",IF(AG$210>0,-Costs!$B15*AG$210,0),IF(Costs!$G15="Build",IF(AG$212>0,-Costs!$B15*AG$212,0),IF(Costs!$G15="Single",IF(Costs!$H15=AG$4,-Costs!$B15,0),0)))*Appraisal!$M$26 -> 0 | AH50: =IF(Costs!$G15="Sales",IF(AH$210>0,-Costs!$B15*AH$210,0),IF(Costs!$G15="Build",IF(AH$212>0,-Costs!$B15*AH$212,0),IF(Costs!$G15="Single",IF(Costs!$H15=AH$4,-Costs!$B15,0),0)))*Appraisal!$M$26 -> 0 | AI50: =IF(Costs!$G15="Sales",IF(AI$210>0,-Costs!$B15*AI$210,0),IF(Costs!$G15="Build",IF(AI$212>0,-Costs!$B15*AI$212,0),IF(Costs!$G15="Single",IF(Costs!$H15=AI$4,-Costs!$B15,0),0)))*Appraisal!$M$26 -> 0 | AJ50: =IF(Costs!$G15="Sales",IF(AJ$210>0,-Costs!$B15*AJ$210,0),IF(Costs!$G15="Build",IF(AJ$212>0,-Costs!$B15*AJ$212,0),IF(Costs!$G15="Single",IF(Costs!$H15=AJ$4,-Costs!$B15,0),0)))*Appraisal!$M$26 -> 0 | AK50: =IF(Costs!$G15="Sales",IF(AK$210>0,-Costs!$B15*AK$210,0),IF(Costs!$G15="Build",IF(AK$212>0,-Costs!$B15*AK$212,0),IF(Costs!$G15="Single",IF(Costs!$H15=AK$4,-Costs!$B15,0),0)))*Appraisal!$M$26 -> 0 | AL50: =IF(Costs!$G15="Sales",IF(AL$210>0,-Costs!$B15*AL$210,0),IF(Costs!$G15="Build",IF(AL$212>0,-Costs!$B15*AL$212,0),IF(Costs!$G15="Single",IF(Costs!$H15=AL$4,-Costs!$B15,0),0)))*Appraisal!$M$26 -> 0 | AM50: =IF(Costs!$G15="Sales",IF(AM$210>0,-Costs!$B15*AM$210,0),IF(Costs!$G15="Build",IF(AM$212>0,-Costs!$B15*AM$212,0),IF(Costs!$G15="Single",IF(Costs!$H15=AM$4,-Costs!$B15,0),0)))*Appraisal!$M$26 -> 0 | AN50: =IF(Costs!$G15="Sales",IF(AN$210>0,-Costs!$B15*AN$210,0),IF(Costs!$G15="Build",IF(AN$212>0,-Costs!$B15*AN$212,0),IF(Costs!$G15="Single",IF(Costs!$H15=AN$4,-Costs!$B15,0),0)))*Appraisal!$M$26 -> 0 | AO50: =IF(Costs!$G15="Sales",IF(AO$210>0,-Costs!$B15*AO$210,0),IF(Costs!$G15="Build",IF(AO$212>0,-Costs!$B15*AO$212,0),IF(Costs!$G15="Single",IF(Costs!$H15=AO$4,-Costs!$B15,0),0)))*Appraisal!$M$26 -> 0 | AP50: =IF(Costs!$G15="Sales",IF(AP$210>0,-Costs!$B15*AP$210,0),IF(Costs!$G15="Build",IF(AP$212>0,-Costs!$B15*AP$212,0),IF(Costs!$G15="Single",IF(Costs!$H15=AP$4,-Costs!$B15,0),0)))*Appraisal!$M$26 -> 0 | AQ50: =IF(Costs!$G15="Sales",IF(AQ$210>0,-Costs!$B15*AQ$210,0),IF(Costs!$G15="Build",IF(AQ$212>0,-Costs!$B15*AQ$212,0),IF(Costs!$G15="Single",IF(Costs!$H15=AQ$4,-Costs!$B15,0),0)))*Appraisal!$M$26 -> 0 | AR50: =IF(Costs!$G15="Sales",IF(AR$210>0,-Costs!$B15*AR$210,0),IF(Costs!$G15="Build",IF(AR$212>0,-Costs!$B15*AR$212,0),IF(Costs!$G15="Single",IF(Costs!$H15=AR$4,-Costs!$B15,0),0)))*Appraisal!$M$26 -> 0 | AS50: =IF(Costs!$G15="Sales",IF(AS$210>0,-Costs!$B15*AS$210,0),IF(Costs!$G15="Build",IF(AS$212>0,-Costs!$B15*AS$212,0),IF(Costs!$G15="Single",IF(Costs!$H15=AS$4,-Costs!$B15,0),0)))*Appraisal!$M$26 -> 0 | AT50: =IF(Costs!$G15="Sales",IF(AT$210>0,-Costs!$B15*AT$210,0),IF(Costs!$G15="Build",IF(AT$212>0,-Costs!$B15*AT$212,0),IF(Costs!$G15="Single",IF(Costs!$H15=AT$4,-Costs!$B15,0),0)))*Appraisal!$M$26 -> 0 | AU50: =IF(Costs!$G15="Sales",IF(AU$210>0,-Costs!$B15*AU$210,0),IF(Costs!$G15="Build",IF(AU$212>0,-Costs!$B15*AU$212,0),IF(Costs!$G15="Single",IF(Costs!$H15=AU$4,-Costs!$B15,0),0)))*Appraisal!$M$26 -> 0 | AV50: =IF(Costs!$G15="Sales",IF(AV$210>0,-Costs!$B15*AV$210,0),IF(Costs!$G15="Build",IF(AV$212>0,-Costs!$B15*AV$212,0),IF(Costs!$G15="Single",IF(Costs!$H15=AV$4,-Costs!$B15,0),0)))*Appraisal!$M$26 -> 0 | AW50: =IF(Costs!$G15="Sales",IF(AW$210>0,-Costs!$B15*AW$210,0),IF(Costs!$G15="Build",IF(AW$212>0,-Costs!$B15*AW$212,0),IF(Costs!$G15="Single",IF(Costs!$H15=AW$4,-Costs!$B15,0),0)))*Appraisal!$M$26 -> 0 | AX50: =IF(Costs!$G15="Sales",IF(AX$210>0,-Costs!$B15*AX$210,0),IF(Costs!$G15="Build",IF(AX$212>0,-Costs!$B15*AX$212,0),IF(Costs!$G15="Single",IF(Costs!$H15=AX$4,-Costs!$B15,0),0)))*Appraisal!$M$26 -> 0 | AY50: =IF(Costs!$G15="Sales",IF(AY$210>0,-Costs!$B15*AY$210,0),IF(Costs!$G15="Build",IF(AY$212>0,-Costs!$B15*AY$212,0),IF(Costs!$G15="Single",IF(Costs!$H15=AY$4,-Costs!$B15,0),0)))*Appraisal!$M$26 -> 0 | AZ50: =IF(Costs!$G15="Sales",IF(AZ$210>0,-Costs!$B15*AZ$210,0),IF(Costs!$G15="Build",IF(AZ$212>0,-Costs!$B15*AZ$212,0),IF(Costs!$G15="Single",IF(Costs!$H15=AZ$4,-Costs!$B15,0),0)))*Appraisal!$M$26 -> 0 | BA50: =IF(Costs!$G15="Sales",IF(BA$210>0,-Costs!$B15*BA$210,0),IF(Costs!$G15="Build",IF(BA$212>0,-Costs!$B15*BA$212,0),IF(Costs!$G15="Single",IF(Costs!$H15=BA$4,-Costs!$B15,0),0)))*Appraisal!$M$26 -> 0 | BB50: =IF(Costs!$G15="Sales",IF(BB$210>0,-Costs!$B15*BB$210,0),IF(Costs!$G15="Build",IF(BB$212>0,-Costs!$B15*BB$212,0),IF(Costs!$G15="Single",IF(Costs!$H15=BB$4,-Costs!$B15,0),0)))*Appraisal!$M$26 -> 0 | BC50: =IF(Costs!$G15="Sales",IF(BC$210>0,-Costs!$B15*BC$210,0),IF(Costs!$G15="Build",IF(BC$212>0,-Costs!$B15*BC$212,0),IF(Costs!$G15="Single",IF(Costs!$H15=BC$4,-Costs!$B15,0),0)))*Appraisal!$M$26 -> 0 | BD50: =IF(Costs!$G15="Sales",IF(BD$210>0,-Costs!$B15*BD$210,0),IF(Costs!$G15="Build",IF(BD$212>0,-Costs!$B15*BD$212,0),IF(Costs!$G15="Single",IF(Costs!$H15=BD$4,-Costs!$B15,0),0)))*Appraisal!$M$26 -> 0 | BE50: =IF(Costs!$G15="Sales",IF(BE$210>0,-Costs!$B15*BE$210,0),IF(Costs!$G15="Build",IF(BE$212>0,-Costs!$B15*BE$212,0),IF(Costs!$G15="Single",IF(Costs!$H15=BE$4,-Costs!$B15,0),0)))*Appraisal!$M$26 -> 0 | BF50: =IF(Costs!$G15="Sales",IF(BF$210>0,-Costs!$B15*BF$210,0),IF(Costs!$G15="Build",IF(BF$212>0,-Costs!$B15*BF$212,0),IF(Costs!$G15="Single",IF(Costs!$H15=BF$4,-Costs!$B15,0),0)))*Appraisal!$M$26 -> 0 | BG50: =IF(Costs!$G15="Sales",IF(BG$210>0,-Costs!$B15*BG$210,0),IF(Costs!$G15="Build",IF(BG$212>0,-Costs!$B15*BG$212,0),IF(Costs!$G15="Single",IF(Costs!$H15=BG$4,-Costs!$B15,0),0)))*Appraisal!$M$26 -> 0 | BH50: =IF(Costs!$G15="Sales",IF(BH$210>0,-Costs!$B15*BH$210,0),IF(Costs!$G15="Build",IF(BH$212>0,-Costs!$B15*BH$212,0),IF(Costs!$G15="Single",IF(Costs!$H15=BH$4,-Costs!$B15,0),0)))*Appraisal!$M$26 -> 0 | BI50: =IF(Costs!$G15="Sales",IF(BI$210>0,-Costs!$B15*BI$210,0),IF(Costs!$G15="Build",IF(BI$212>0,-Costs!$B15*BI$212,0),IF(Costs!$G15="Single",IF(Costs!$H15=BI$4,-Costs!$B15,0),0)))*Appraisal!$M$26 -> 0 | BJ50: =IF(Costs!$G15="Sales",IF(BJ$210>0,-Costs!$B15*BJ$210,0),IF(Costs!$G15="Build",IF(BJ$212>0,-Costs!$B15*BJ$212,0),IF(Costs!$G15="Single",IF(Costs!$H15=BJ$4,-Costs!$B15,0),0)))*Appraisal!$M$26 -> 0
A51: =Costs!A16 -> 0 | B51: 0 | C51: =IF(Costs!$G16="Sales",IF(C$210>0,-Costs!$B16*C$210,0),IF(Costs!$G16="Build",IF(C$212>0,-Costs!$B16*C$212,0),IF(Costs!$G16="Single",IF(Costs!$H16=C$4,-Costs!$B16,0),0)))*Appraisal!$M$26 -> 0 | D51: =IF(Costs!$G16="Sales",IF(D$210>0,-Costs!$B16*D$210,0),IF(Costs!$G16="Build",IF(D$212>0,-Costs!$B16*D$212,0),IF(Costs!$G16="Single",IF(Costs!$H16=D$4,-Costs!$B16,0),0)))*Appraisal!$M$26 -> 0 | E51: =IF(Costs!$G16="Sales",IF(E$210>0,-Costs!$B16*E$210,0),IF(Costs!$G16="Build",IF(E$212>0,-Costs!$B16*E$212,0),IF(Costs!$G16="Single",IF(Costs!$H16=E$4,-Costs!$B16,0),0)))*Appraisal!$M$26 -> 0 | F51: =IF(Costs!$G16="Sales",IF(F$210>0,-Costs!$B16*F$210,0),IF(Costs!$G16="Build",IF(F$212>0,-Costs!$B16*F$212,0),IF(Costs!$G16="Single",IF(Costs!$H16=F$4,-Costs!$B16,0),0)))*Appraisal!$M$26 -> 0 | G51: =IF(Costs!$G16="Sales",IF(G$210>0,-Costs!$B16*G$210,0),IF(Costs!$G16="Build",IF(G$212>0,-Costs!$B16*G$212,0),IF(Costs!$G16="Single",IF(Costs!$H16=G$4,-Costs!$B16,0),0)))*Appraisal!$M$26 -> 0 | H51: =IF(Costs!$G16="Sales",IF(H$210>0,-Costs!$B16*H$210,0),IF(Costs!$G16="Build",IF(H$212>0,-Costs!$B16*H$212,0),IF(Costs!$G16="Single",IF(Costs!$H16=H$4,-Costs!$B16,0),0)))*Appraisal!$M$26 -> 0 | I51: =IF(Costs!$G16="Sales",IF(I$210>0,-Costs!$B16*I$210,0),IF(Costs!$G16="Build",IF(I$212>0,-Costs!$B16*I$212,0),IF(Costs!$G16="Single",IF(Costs!$H16=I$4,-Costs!$B16,0),0)))*Appraisal!$M$26 -> 0 | J51: =IF(Costs!$G16="Sales",IF(J$210>0,-Costs!$B16*J$210,0),IF(Costs!$G16="Build",IF(J$212>0,-Costs!$B16*J$212,0),IF(Costs!$G16="Single",IF(Costs!$H16=J$4,-Costs!$B16,0),0)))*Appraisal!$M$26 -> 0 | K51: =IF(Costs!$G16="Sales",IF(K$210>0,-Costs!$B16*K$210,0),IF(Costs!$G16="Build",IF(K$212>0,-Costs!$B16*K$212,0),IF(Costs!$G16="Single",IF(Costs!$H16=K$4,-Costs!$B16,0),0)))*Appraisal!$M$26 -> 0 | L51: =IF(Costs!$G16="Sales",IF(L$210>0,-Costs!$B16*L$210,0),IF(Costs!$G16="Build",IF(L$212>0,-Costs!$B16*L$212,0),IF(Costs!$G16="Single",IF(Costs!$H16=L$4,-Costs!$B16,0),0)))*Appraisal!$M$26 -> 0 | M51: =IF(Costs!$G16="Sales",IF(M$210>0,-Costs!$B16*M$210,0),IF(Costs!$G16="Build",IF(M$212>0,-Costs!$B16*M$212,0),IF(Costs!$G16="Single",IF(Costs!$H16=M$4,-Costs!$B16,0),0)))*Appraisal!$M$26 -> 0 | N51: =IF(Costs!$G16="Sales",IF(N$210>0,-Costs!$B16*N$210,0),IF(Costs!$G16="Build",IF(N$212>0,-Costs!$B16*N$212,0),IF(Costs!$G16="Single",IF(Costs!$H16=N$4,-Costs!$B16,0),0)))*Appraisal!$M$26 -> 0 | O51: =IF(Costs!$G16="Sales",IF(O$210>0,-Costs!$B16*O$210,0),IF(Costs!$G16="Build",IF(O$212>0,-Costs!$B16*O$212,0),IF(Costs!$G16="Single",IF(Costs!$H16=O$4,-Costs!$B16,0),0)))*Appraisal!$M$26 -> 0 | P51: =IF(Costs!$G16="Sales",IF(P$210>0,-Costs!$B16*P$210,0),IF(Costs!$G16="Build",IF(P$212>0,-Costs!$B16*P$212,0),IF(Costs!$G16="Single",IF(Costs!$H16=P$4,-Costs!$B16,0),0)))*Appraisal!$M$26 -> 0 | Q51: =IF(Costs!$G16="Sales",IF(Q$210>0,-Costs!$B16*Q$210,0),IF(Costs!$G16="Build",IF(Q$212>0,-Costs!$B16*Q$212,0),IF(Costs!$G16="Single",IF(Costs!$H16=Q$4,-Costs!$B16,0),0)))*Appraisal!$M$26 -> 0 | R51: =IF(Costs!$G16="Sales",IF(R$210>0,-Costs!$B16*R$210,0),IF(Costs!$G16="Build",IF(R$212>0,-Costs!$B16*R$212,0),IF(Costs!$G16="Single",IF(Costs!$H16=R$4,-Costs!$B16,0),0)))*Appraisal!$M$26 -> 0 | S51: =IF(Costs!$G16="Sales",IF(S$210>0,-Costs!$B16*S$210,0),IF(Costs!$G16="Build",IF(S$212>0,-Costs!$B16*S$212,0),IF(Costs!$G16="Single",IF(Costs!$H16=S$4,-Costs!$B16,0),0)))*Appraisal!$M$26 -> 0 | T51: =IF(Costs!$G16="Sales",IF(T$210>0,-Costs!$B16*T$210,0),IF(Costs!$G16="Build",IF(T$212>0,-Costs!$B16*T$212,0),IF(Costs!$G16="Single",IF(Costs!$H16=T$4,-Costs!$B16,0),0)))*Appraisal!$M$26 -> 0 | U51: =IF(Costs!$G16="Sales",IF(U$210>0,-Costs!$B16*U$210,0),IF(Costs!$G16="Build",IF(U$212>0,-Costs!$B16*U$212,0),IF(Costs!$G16="Single",IF(Costs!$H16=U$4,-Costs!$B16,0),0)))*Appraisal!$M$26 -> 0 | V51: =IF(Costs!$G16="Sales",IF(V$210>0,-Costs!$B16*V$210,0),IF(Costs!$G16="Build",IF(V$212>0,-Costs!$B16*V$212,0),IF(Costs!$G16="Single",IF(Costs!$H16=V$4,-Costs!$B16,0),0)))*Appraisal!$M$26 -> 0 | W51: =IF(Costs!$G16="Sales",IF(W$210>0,-Costs!$B16*W$210,0),IF(Costs!$G16="Build",IF(W$212>0,-Costs!$B16*W$212,0),IF(Costs!$G16="Single",IF(Costs!$H16=W$4,-Costs!$B16,0),0)))*Appraisal!$M$26 -> 0 | X51: =IF(Costs!$G16="Sales",IF(X$210>0,-Costs!$B16*X$210,0),IF(Costs!$G16="Build",IF(X$212>0,-Costs!$B16*X$212,0),IF(Costs!$G16="Single",IF(Costs!$H16=X$4,-Costs!$B16,0),0)))*Appraisal!$M$26 -> 0 | Y51: =IF(Costs!$G16="Sales",IF(Y$210>0,-Costs!$B16*Y$210,0),IF(Costs!$G16="Build",IF(Y$212>0,-Costs!$B16*Y$212,0),IF(Costs!$G16="Single",IF(Costs!$H16=Y$4,-Costs!$B16,0),0)))*Appraisal!$M$26 -> 0 | Z51: =IF(Costs!$G16="Sales",IF(Z$210>0,-Costs!$B16*Z$210,0),IF(Costs!$G16="Build",IF(Z$212>0,-Costs!$B16*Z$212,0),IF(Costs!$G16="Single",IF(Costs!$H16=Z$4,-Costs!$B16,0),0)))*Appraisal!$M$26 -> 0 | AA51: =IF(Costs!$G16="Sales",IF(AA$210>0,-Costs!$B16*AA$210,0),IF(Costs!$G16="Build",IF(AA$212>0,-Costs!$B16*AA$212,0),IF(Costs!$G16="Single",IF(Costs!$H16=AA$4,-Costs!$B16,0),0)))*Appraisal!$M$26 -> 0 | AB51: =IF(Costs!$G16="Sales",IF(AB$210>0,-Costs!$B16*AB$210,0),IF(Costs!$G16="Build",IF(AB$212>0,-Costs!$B16*AB$212,0),IF(Costs!$G16="Single",IF(Costs!$H16=AB$4,-Costs!$B16,0),0)))*Appraisal!$M$26 -> 0 | AC51: =IF(Costs!$G16="Sales",IF(AC$210>0,-Costs!$B16*AC$210,0),IF(Costs!$G16="Build",IF(AC$212>0,-Costs!$B16*AC$212,0),IF(Costs!$G16="Single",IF(Costs!$H16=AC$4,-Costs!$B16,0),0)))*Appraisal!$M$26 -> 0 | AD51: =IF(Costs!$G16="Sales",IF(AD$210>0,-Costs!$B16*AD$210,0),IF(Costs!$G16="Build",IF(AD$212>0,-Costs!$B16*AD$212,0),IF(Costs!$G16="Single",IF(Costs!$H16=AD$4,-Costs!$B16,0),0)))*Appraisal!$M$26 -> 0 | AE51: =IF(Costs!$G16="Sales",IF(AE$210>0,-Costs!$B16*AE$210,0),IF(Costs!$G16="Build",IF(AE$212>0,-Costs!$B16*AE$212,0),IF(Costs!$G16="Single",IF(Costs!$H16=AE$4,-Costs!$B16,0),0)))*Appraisal!$M$26 -> 0 | AF51: =IF(Costs!$G16="Sales",IF(AF$210>0,-Costs!$B16*AF$210,0),IF(Costs!$G16="Build",IF(AF$212>0,-Costs!$B16*AF$212,0),IF(Costs!$G16="Single",IF(Costs!$H16=AF$4,-Costs!$B16,0),0)))*Appraisal!$M$26 -> 0 | AG51: =IF(Costs!$G16="Sales",IF(AG$210>0,-Costs!$B16*AG$210,0),IF(Costs!$G16="Build",IF(AG$212>0,-Costs!$B16*AG$212,0),IF(Costs!$G16="Single",IF(Costs!$H16=AG$4,-Costs!$B16,0),0)))*Appraisal!$M$26 -> 0 | AH51: =IF(Costs!$G16="Sales",IF(AH$210>0,-Costs!$B16*AH$210,0),IF(Costs!$G16="Build",IF(AH$212>0,-Costs!$B16*AH$212,0),IF(Costs!$G16="Single",IF(Costs!$H16=AH$4,-Costs!$B16,0),0)))*Appraisal!$M$26 -> 0 | AI51: =IF(Costs!$G16="Sales",IF(AI$210>0,-Costs!$B16*AI$210,0),IF(Costs!$G16="Build",IF(AI$212>0,-Costs!$B16*AI$212,0),IF(Costs!$G16="Single",IF(Costs!$H16=AI$4,-Costs!$B16,0),0)))*Appraisal!$M$26 -> 0 | AJ51: =IF(Costs!$G16="Sales",IF(AJ$210>0,-Costs!$B16*AJ$210,0),IF(Costs!$G16="Build",IF(AJ$212>0,-Costs!$B16*AJ$212,0),IF(Costs!$G16="Single",IF(Costs!$H16=AJ$4,-Costs!$B16,0),0)))*Appraisal!$M$26 -> 0 | AK51: =IF(Costs!$G16="Sales",IF(AK$210>0,-Costs!$B16*AK$210,0),IF(Costs!$G16="Build",IF(AK$212>0,-Costs!$B16*AK$212,0),IF(Costs!$G16="Single",IF(Costs!$H16=AK$4,-Costs!$B16,0),0)))*Appraisal!$M$26 -> 0 | AL51: =IF(Costs!$G16="Sales",IF(AL$210>0,-Costs!$B16*AL$210,0),IF(Costs!$G16="Build",IF(AL$212>0,-Costs!$B16*AL$212,0),IF(Costs!$G16="Single",IF(Costs!$H16=AL$4,-Costs!$B16,0),0)))*Appraisal!$M$26 -> 0 | AM51: =IF(Costs!$G16="Sales",IF(AM$210>0,-Costs!$B16*AM$210,0),IF(Costs!$G16="Build",IF(AM$212>0,-Costs!$B16*AM$212,0),IF(Costs!$G16="Single",IF(Costs!$H16=AM$4,-Costs!$B16,0),0)))*Appraisal!$M$26 -> 0 | AN51: =IF(Costs!$G16="Sales",IF(AN$210>0,-Costs!$B16*AN$210,0),IF(Costs!$G16="Build",IF(AN$212>0,-Costs!$B16*AN$212,0),IF(Costs!$G16="Single",IF(Costs!$H16=AN$4,-Costs!$B16,0),0)))*Appraisal!$M$26 -> 0 | AO51: =IF(Costs!$G16="Sales",IF(AO$210>0,-Costs!$B16*AO$210,0),IF(Costs!$G16="Build",IF(AO$212>0,-Costs!$B16*AO$212,0),IF(Costs!$G16="Single",IF(Costs!$H16=AO$4,-Costs!$B16,0),0)))*Appraisal!$M$26 -> 0 | AP51: =IF(Costs!$G16="Sales",IF(AP$210>0,-Costs!$B16*AP$210,0),IF(Costs!$G16="Build",IF(AP$212>0,-Costs!$B16*AP$212,0),IF(Costs!$G16="Single",IF(Costs!$H16=AP$4,-Costs!$B16,0),0)))*Appraisal!$M$26 -> 0 | AQ51: =IF(Costs!$G16="Sales",IF(AQ$210>0,-Costs!$B16*AQ$210,0),IF(Costs!$G16="Build",IF(AQ$212>0,-Costs!$B16*AQ$212,0),IF(Costs!$G16="Single",IF(Costs!$H16=AQ$4,-Costs!$B16,0),0)))*Appraisal!$M$26 -> 0 | AR51: =IF(Costs!$G16="Sales",IF(AR$210>0,-Costs!$B16*AR$210,0),IF(Costs!$G16="Build",IF(AR$212>0,-Costs!$B16*AR$212,0),IF(Costs!$G16="Single",IF(Costs!$H16=AR$4,-Costs!$B16,0),0)))*Appraisal!$M$26 -> 0 | AS51: =IF(Costs!$G16="Sales",IF(AS$210>0,-Costs!$B16*AS$210,0),IF(Costs!$G16="Build",IF(AS$212>0,-Costs!$B16*AS$212,0),IF(Costs!$G16="Single",IF(Costs!$H16=AS$4,-Costs!$B16,0),0)))*Appraisal!$M$26 -> 0 | AT51: =IF(Costs!$G16="Sales",IF(AT$210>0,-Costs!$B16*AT$210,0),IF(Costs!$G16="Build",IF(AT$212>0,-Costs!$B16*AT$212,0),IF(Costs!$G16="Single",IF(Costs!$H16=AT$4,-Costs!$B16,0),0)))*Appraisal!$M$26 -> 0 | AU51: =IF(Costs!$G16="Sales",IF(AU$210>0,-Costs!$B16*AU$210,0),IF(Costs!$G16="Build",IF(AU$212>0,-Costs!$B16*AU$212,0),IF(Costs!$G16="Single",IF(Costs!$H16=AU$4,-Costs!$B16,0),0)))*Appraisal!$M$26 -> 0 | AV51: =IF(Costs!$G16="Sales",IF(AV$210>0,-Costs!$B16*AV$210,0),IF(Costs!$G16="Build",IF(AV$212>0,-Costs!$B16*AV$212,0),IF(Costs!$G16="Single",IF(Costs!$H16=AV$4,-Costs!$B16,0),0)))*Appraisal!$M$26 -> 0 | AW51: =IF(Costs!$G16="Sales",IF(AW$210>0,-Costs!$B16*AW$210,0),IF(Costs!$G16="Build",IF(AW$212>0,-Costs!$B16*AW$212,0),IF(Costs!$G16="Single",IF(Costs!$H16=AW$4,-Costs!$B16,0),0)))*Appraisal!$M$26 -> 0 | AX51: =IF(Costs!$G16="Sales",IF(AX$210>0,-Costs!$B16*AX$210,0),IF(Costs!$G16="Build",IF(AX$212>0,-Costs!$B16*AX$212,0),IF(Costs!$G16="Single",IF(Costs!$H16=AX$4,-Costs!$B16,0),0)))*Appraisal!$M$26 -> 0 | AY51: =IF(Costs!$G16="Sales",IF(AY$210>0,-Costs!$B16*AY$210,0),IF(Costs!$G16="Build",IF(AY$212>0,-Costs!$B16*AY$212,0),IF(Costs!$G16="Single",IF(Costs!$H16=AY$4,-Costs!$B16,0),0)))*Appraisal!$M$26 -> 0 | AZ51: =IF(Costs!$G16="Sales",IF(AZ$210>0,-Costs!$B16*AZ$210,0),IF(Costs!$G16="Build",IF(AZ$212>0,-Costs!$B16*AZ$212,0),IF(Costs!$G16="Single",IF(Costs!$H16=AZ$4,-Costs!$B16,0),0)))*Appraisal!$M$26 -> 0 | BA51: =IF(Costs!$G16="Sales",IF(BA$210>0,-Costs!$B16*BA$210,0),IF(Costs!$G16="Build",IF(BA$212>0,-Costs!$B16*BA$212,0),IF(Costs!$G16="Single",IF(Costs!$H16=BA$4,-Costs!$B16,0),0)))*Appraisal!$M$26 -> 0 | BB51: =IF(Costs!$G16="Sales",IF(BB$210>0,-Costs!$B16*BB$210,0),IF(Costs!$G16="Build",IF(BB$212>0,-Costs!$B16*BB$212,0),IF(Costs!$G16="Single",IF(Costs!$H16=BB$4,-Costs!$B16,0),0)))*Appraisal!$M$26 -> 0 | BC51: =IF(Costs!$G16="Sales",IF(BC$210>0,-Costs!$B16*BC$210,0),IF(Costs!$G16="Build",IF(BC$212>0,-Costs!$B16*BC$212,0),IF(Costs!$G16="Single",IF(Costs!$H16=BC$4,-Costs!$B16,0),0)))*Appraisal!$M$26 -> 0 | BD51: =IF(Costs!$G16="Sales",IF(BD$210>0,-Costs!$B16*BD$210,0),IF(Costs!$G16="Build",IF(BD$212>0,-Costs!$B16*BD$212,0),IF(Costs!$G16="Single",IF(Costs!$H16=BD$4,-Costs!$B16,0),0)))*Appraisal!$M$26 -> 0 | BE51: =IF(Costs!$G16="Sales",IF(BE$210>0,-Costs!$B16*BE$210,0),IF(Costs!$G16="Build",IF(BE$212>0,-Costs!$B16*BE$212,0),IF(Costs!$G16="Single",IF(Costs!$H16=BE$4,-Costs!$B16,0),0)))*Appraisal!$M$26 -> 0 | BF51: =IF(Costs!$G16="Sales",IF(BF$210>0,-Costs!$B16*BF$210,0),IF(Costs!$G16="Build",IF(BF$212>0,-Costs!$B16*BF$212,0),IF(Costs!$G16="Single",IF(Costs!$H16=BF$4,-Costs!$B16,0),0)))*Appraisal!$M$26 -> 0 | BG51: =IF(Costs!$G16="Sales",IF(BG$210>0,-Costs!$B16*BG$210,0),IF(Costs!$G16="Build",IF(BG$212>0,-Costs!$B16*BG$212,0),IF(Costs!$G16="Single",IF(Costs!$H16=BG$4,-Costs!$B16,0),0)))*Appraisal!$M$26 -> 0 | BH51: =IF(Costs!$G16="Sales",IF(BH$210>0,-Costs!$B16*BH$210,0),IF(Costs!$G16="Build",IF(BH$212>0,-Costs!$B16*BH$212,0),IF(Costs!$G16="Single",IF(Costs!$H16=BH$4,-Costs!$B16,0),0)))*Appraisal!$M$26 -> 0 | BI51: =IF(Costs!$G16="Sales",IF(BI$210>0,-Costs!$B16*BI$210,0),IF(Costs!$G16="Build",IF(BI$212>0,-Costs!$B16*BI$212,0),IF(Costs!$G16="Single",IF(Costs!$H16=BI$4,-Costs!$B16,0),0)))*Appraisal!$M$26 -> 0 | BJ51: =IF(Costs!$G16="Sales",IF(BJ$210>0,-Costs!$B16*BJ$210,0),IF(Costs!$G16="Build",IF(BJ$212>0,-Costs!$B16*BJ$212,0),IF(Costs!$G16="Single",IF(Costs!$H16=BJ$4,-Costs!$B16,0),0)))*Appraisal!$M$26 -> 0
A52: =Costs!A17 -> 0 | B52: 0 | C52: =IF(Costs!$G17="Sales",IF(C$210>0,-Costs!$B17*C$210,0),IF(Costs!$G17="Build",IF(C$212>0,-Costs!$B17*C$212,0),IF(Costs!$G17="Single",IF(Costs!$H17=C$4,-Costs!$B17,0),0)))*Appraisal!$M$26 -> 0 | D52: =IF(Costs!$G17="Sales",IF(D$210>0,-Costs!$B17*D$210,0),IF(Costs!$G17="Build",IF(D$212>0,-Costs!$B17*D$212,0),IF(Costs!$G17="Single",IF(Costs!$H17=D$4,-Costs!$B17,0),0)))*Appraisal!$M$26 -> 0 | E52: =IF(Costs!$G17="Sales",IF(E$210>0,-Costs!$B17*E$210,0),IF(Costs!$G17="Build",IF(E$212>0,-Costs!$B17*E$212,0),IF(Costs!$G17="Single",IF(Costs!$H17=E$4,-Costs!$B17,0),0)))*Appraisal!$M$26 -> 0 | F52: =IF(Costs!$G17="Sales",IF(F$210>0,-Costs!$B17*F$210,0),IF(Costs!$G17="Build",IF(F$212>0,-Costs!$B17*F$212,0),IF(Costs!$G17="Single",IF(Costs!$H17=F$4,-Costs!$B17,0),0)))*Appraisal!$M$26 -> 0 | G52: =IF(Costs!$G17="Sales",IF(G$210>0,-Costs!$B17*G$210,0),IF(Costs!$G17="Build",IF(G$212>0,-Costs!$B17*G$212,0),IF(Costs!$G17="Single",IF(Costs!$H17=G$4,-Costs!$B17,0),0)))*Appraisal!$M$26 -> 0 | H52: =IF(Costs!$G17="Sales",IF(H$210>0,-Costs!$B17*H$210,0),IF(Costs!$G17="Build",IF(H$212>0,-Costs!$B17*H$212,0),IF(Costs!$G17="Single",IF(Costs!$H17=H$4,-Costs!$B17,0),0)))*Appraisal!$M$26 -> 0 | I52: =IF(Costs!$G17="Sales",IF(I$210>0,-Costs!$B17*I$210,0),IF(Costs!$G17="Build",IF(I$212>0,-Costs!$B17*I$212,0),IF(Costs!$G17="Single",IF(Costs!$H17=I$4,-Costs!$B17,0),0)))*Appraisal!$M$26 -> 0 | J52: =IF(Costs!$G17="Sales",IF(J$210>0,-Costs!$B17*J$210,0),IF(Costs!$G17="Build",IF(J$212>0,-Costs!$B17*J$212,0),IF(Costs!$G17="Single",IF(Costs!$H17=J$4,-Costs!$B17,0),0)))*Appraisal!$M$26 -> 0 | K52: =IF(Costs!$G17="Sales",IF(K$210>0,-Costs!$B17*K$210,0),IF(Costs!$G17="Build",IF(K$212>0,-Costs!$B17*K$212,0),IF(Costs!$G17="Single",IF(Costs!$H17=K$4,-Costs!$B17,0),0)))*Appraisal!$M$26 -> 0 | L52: =IF(Costs!$G17="Sales",IF(L$210>0,-Costs!$B17*L$210,0),IF(Costs!$G17="Build",IF(L$212>0,-Costs!$B17*L$212,0),IF(Costs!$G17="Single",IF(Costs!$H17=L$4,-Costs!$B17,0),0)))*Appraisal!$M$26 -> 0 | M52: =IF(Costs!$G17="Sales",IF(M$210>0,-Costs!$B17*M$210,0),IF(Costs!$G17="Build",IF(M$212>0,-Costs!$B17*M$212,0),IF(Costs!$G17="Single",IF(Costs!$H17=M$4,-Costs!$B17,0),0)))*Appraisal!$M$26 -> 0 | N52: =IF(Costs!$G17="Sales",IF(N$210>0,-Costs!$B17*N$210,0),IF(Costs!$G17="Build",IF(N$212>0,-Costs!$B17*N$212,0),IF(Costs!$G17="Single",IF(Costs!$H17=N$4,-Costs!$B17,0),0)))*Appraisal!$M$26 -> 0 | O52: =IF(Costs!$G17="Sales",IF(O$210>0,-Costs!$B17*O$210,0),IF(Costs!$G17="Build",IF(O$212>0,-Costs!$B17*O$212,0),IF(Costs!$G17="Single",IF(Costs!$H17=O$4,-Costs!$B17,0),0)))*Appraisal!$M$26 -> 0 | P52: =IF(Costs!$G17="Sales",IF(P$210>0,-Costs!$B17*P$210,0),IF(Costs!$G17="Build",IF(P$212>0,-Costs!$B17*P$212,0),IF(Costs!$G17="Single",IF(Costs!$H17=P$4,-Costs!$B17,0),0)))*Appraisal!$M$26 -> 0 | Q52: =IF(Costs!$G17="Sales",IF(Q$210>0,-Costs!$B17*Q$210,0),IF(Costs!$G17="Build",IF(Q$212>0,-Costs!$B17*Q$212,0),IF(Costs!$G17="Single",IF(Costs!$H17=Q$4,-Costs!$B17,0),0)))*Appraisal!$M$26 -> 0 | R52: =IF(Costs!$G17="Sales",IF(R$210>0,-Costs!$B17*R$210,0),IF(Costs!$G17="Build",IF(R$212>0,-Costs!$B17*R$212,0),IF(Costs!$G17="Single",IF(Costs!$H17=R$4,-Costs!$B17,0),0)))*Appraisal!$M$26 -> 0 | S52: =IF(Costs!$G17="Sales",IF(S$210>0,-Costs!$B17*S$210,0),IF(Costs!$G17="Build",IF(S$212>0,-Costs!$B17*S$212,0),IF(Costs!$G17="Single",IF(Costs!$H17=S$4,-Costs!$B17,0),0)))*Appraisal!$M$26 -> 0 | T52: =IF(Costs!$G17="Sales",IF(T$210>0,-Costs!$B17*T$210,0),IF(Costs!$G17="Build",IF(T$212>0,-Costs!$B17*T$212,0),IF(Costs!$G17="Single",IF(Costs!$H17=T$4,-Costs!$B17,0),0)))*Appraisal!$M$26 -> 0 | U52: =IF(Costs!$G17="Sales",IF(U$210>0,-Costs!$B17*U$210,0),IF(Costs!$G17="Build",IF(U$212>0,-Costs!$B17*U$212,0),IF(Costs!$G17="Single",IF(Costs!$H17=U$4,-Costs!$B17,0),0)))*Appraisal!$M$26 -> 0 | V52: =IF(Costs!$G17="Sales",IF(V$210>0,-Costs!$B17*V$210,0),IF(Costs!$G17="Build",IF(V$212>0,-Costs!$B17*V$212,0),IF(Costs!$G17="Single",IF(Costs!$H17=V$4,-Costs!$B17,0),0)))*Appraisal!$M$26 -> 0 | W52: =IF(Costs!$G17="Sales",IF(W$210>0,-Costs!$B17*W$210,0),IF(Costs!$G17="Build",IF(W$212>0,-Costs!$B17*W$212,0),IF(Costs!$G17="Single",IF(Costs!$H17=W$4,-Costs!$B17,0),0)))*Appraisal!$M$26 -> 0 | X52: =IF(Costs!$G17="Sales",IF(X$210>0,-Costs!$B17*X$210,0),IF(Costs!$G17="Build",IF(X$212>0,-Costs!$B17*X$212,0),IF(Costs!$G17="Single",IF(Costs!$H17=X$4,-Costs!$B17,0),0)))*Appraisal!$M$26 -> 0 | Y52: =IF(Costs!$G17="Sales",IF(Y$210>0,-Costs!$B17*Y$210,0),IF(Costs!$G17="Build",IF(Y$212>0,-Costs!$B17*Y$212,0),IF(Costs!$G17="Single",IF(Costs!$H17=Y$4,-Costs!$B17,0),0)))*Appraisal!$M$26 -> 0 | Z52: =IF(Costs!$G17="Sales",IF(Z$210>0,-Costs!$B17*Z$210,0),IF(Costs!$G17="Build",IF(Z$212>0,-Costs!$B17*Z$212,0),IF(Costs!$G17="Single",IF(Costs!$H17=Z$4,-Costs!$B17,0),0)))*Appraisal!$M$26 -> 0 | AA52: =IF(Costs!$G17="Sales",IF(AA$210>0,-Costs!$B17*AA$210,0),IF(Costs!$G17="Build",IF(AA$212>0,-Costs!$B17*AA$212,0),IF(Costs!$G17="Single",IF(Costs!$H17=AA$4,-Costs!$B17,0),0)))*Appraisal!$M$26 -> 0 | AB52: =IF(Costs!$G17="Sales",IF(AB$210>0,-Costs!$B17*AB$210,0),IF(Costs!$G17="Build",IF(AB$212>0,-Costs!$B17*AB$212,0),IF(Costs!$G17="Single",IF(Costs!$H17=AB$4,-Costs!$B17,0),0)))*Appraisal!$M$26 -> 0 | AC52: =IF(Costs!$G17="Sales",IF(AC$210>0,-Costs!$B17*AC$210,0),IF(Costs!$G17="Build",IF(AC$212>0,-Costs!$B17*AC$212,0),IF(Costs!$G17="Single",IF(Costs!$H17=AC$4,-Costs!$B17,0),0)))*Appraisal!$M$26 -> 0 | AD52: =IF(Costs!$G17="Sales",IF(AD$210>0,-Costs!$B17*AD$210,0),IF(Costs!$G17="Build",IF(AD$212>0,-Costs!$B17*AD$212,0),IF(Costs!$G17="Single",IF(Costs!$H17=AD$4,-Costs!$B17,0),0)))*Appraisal!$M$26 -> 0 | AE52: =IF(Costs!$G17="Sales",IF(AE$210>0,-Costs!$B17*AE$210,0),IF(Costs!$G17="Build",IF(AE$212>0,-Costs!$B17*AE$212,0),IF(Costs!$G17="Single",IF(Costs!$H17=AE$4,-Costs!$B17,0),0)))*Appraisal!$M$26 -> 0 | AF52: =IF(Costs!$G17="Sales",IF(AF$210>0,-Costs!$B17*AF$210,0),IF(Costs!$G17="Build",IF(AF$212>0,-Costs!$B17*AF$212,0),IF(Costs!$G17="Single",IF(Costs!$H17=AF$4,-Costs!$B17,0),0)))*Appraisal!$M$26 -> 0 | AG52: =IF(Costs!$G17="Sales",IF(AG$210>0,-Costs!$B17*AG$210,0),IF(Costs!$G17="Build",IF(AG$212>0,-Costs!$B17*AG$212,0),IF(Costs!$G17="Single",IF(Costs!$H17=AG$4,-Costs!$B17,0),0)))*Appraisal!$M$26 -> 0 | AH52: =IF(Costs!$G17="Sales",IF(AH$210>0,-Costs!$B17*AH$210,0),IF(Costs!$G17="Build",IF(AH$212>0,-Costs!$B17*AH$212,0),IF(Costs!$G17="Single",IF(Costs!$H17=AH$4,-Costs!$B17,0),0)))*Appraisal!$M$26 -> 0 | AI52: =IF(Costs!$G17="Sales",IF(AI$210>0,-Costs!$B17*AI$210,0),IF(Costs!$G17="Build",IF(AI$212>0,-Costs!$B17*AI$212,0),IF(Costs!$G17="Single",IF(Costs!$H17=AI$4,-Costs!$B17,0),0)))*Appraisal!$M$26 -> 0 | AJ52: =IF(Costs!$G17="Sales",IF(AJ$210>0,-Costs!$B17*AJ$210,0),IF(Costs!$G17="Build",IF(AJ$212>0,-Costs!$B17*AJ$212,0),IF(Costs!$G17="Single",IF(Costs!$H17=AJ$4,-Costs!$B17,0),0)))*Appraisal!$M$26 -> 0 | AK52: =IF(Costs!$G17="Sales",IF(AK$210>0,-Costs!$B17*AK$210,0),IF(Costs!$G17="Build",IF(AK$212>0,-Costs!$B17*AK$212,0),IF(Costs!$G17="Single",IF(Costs!$H17=AK$4,-Costs!$B17,0),0)))*Appraisal!$M$26 -> 0 | AL52: =IF(Costs!$G17="Sales",IF(AL$210>0,-Costs!$B17*AL$210,0),IF(Costs!$G17="Build",IF(AL$212>0,-Costs!$B17*AL$212,0),IF(Costs!$G17="Single",IF(Costs!$H17=AL$4,-Costs!$B17,0),0)))*Appraisal!$M$26 -> 0 | AM52: =IF(Costs!$G17="Sales",IF(AM$210>0,-Costs!$B17*AM$210,0),IF(Costs!$G17="Build",IF(AM$212>0,-Costs!$B17*AM$212,0),IF(Costs!$G17="Single",IF(Costs!$H17=AM$4,-Costs!$B17,0),0)))*Appraisal!$M$26 -> 0 | AN52: =IF(Costs!$G17="Sales",IF(AN$210>0,-Costs!$B17*AN$210,0),IF(Costs!$G17="Build",IF(AN$212>0,-Costs!$B17*AN$212,0),IF(Costs!$G17="Single",IF(Costs!$H17=AN$4,-Costs!$B17,0),0)))*Appraisal!$M$26 -> 0 | AO52: =IF(Costs!$G17="Sales",IF(AO$210>0,-Costs!$B17*AO$210,0),IF(Costs!$G17="Build",IF(AO$212>0,-Costs!$B17*AO$212,0),IF(Costs!$G17="Single",IF(Costs!$H17=AO$4,-Costs!$B17,0),0)))*Appraisal!$M$26 -> 0 | AP52: =IF(Costs!$G17="Sales",IF(AP$210>0,-Costs!$B17*AP$210,0),IF(Costs!$G17="Build",IF(AP$212>0,-Costs!$B17*AP$212,0),IF(Costs!$G17="Single",IF(Costs!$H17=AP$4,-Costs!$B17,0),0)))*Appraisal!$M$26 -> 0 | AQ52: =IF(Costs!$G17="Sales",IF(AQ$210>0,-Costs!$B17*AQ$210,0),IF(Costs!$G17="Build",IF(AQ$212>0,-Costs!$B17*AQ$212,0),IF(Costs!$G17="Single",IF(Costs!$H17=AQ$4,-Costs!$B17,0),0)))*Appraisal!$M$26 -> 0 | AR52: =IF(Costs!$G17="Sales",IF(AR$210>0,-Costs!$B17*AR$210,0),IF(Costs!$G17="Build",IF(AR$212>0,-Costs!$B17*AR$212,0),IF(Costs!$G17="Single",IF(Costs!$H17=AR$4,-Costs!$B17,0),0)))*Appraisal!$M$26 -> 0 | AS52: =IF(Costs!$G17="Sales",IF(AS$210>0,-Costs!$B17*AS$210,0),IF(Costs!$G17="Build",IF(AS$212>0,-Costs!$B17*AS$212,0),IF(Costs!$G17="Single",IF(Costs!$H17=AS$4,-Costs!$B17,0),0)))*Appraisal!$M$26 -> 0 | AT52: =IF(Costs!$G17="Sales",IF(AT$210>0,-Costs!$B17*AT$210,0),IF(Costs!$G17="Build",IF(AT$212>0,-Costs!$B17*AT$212,0),IF(Costs!$G17="Single",IF(Costs!$H17=AT$4,-Costs!$B17,0),0)))*Appraisal!$M$26 -> 0 | AU52: =IF(Costs!$G17="Sales",IF(AU$210>0,-Costs!$B17*AU$210,0),IF(Costs!$G17="Build",IF(AU$212>0,-Costs!$B17*AU$212,0),IF(Costs!$G17="Single",IF(Costs!$H17=AU$4,-Costs!$B17,0),0)))*Appraisal!$M$26 -> 0 | AV52: =IF(Costs!$G17="Sales",IF(AV$210>0,-Costs!$B17*AV$210,0),IF(Costs!$G17="Build",IF(AV$212>0,-Costs!$B17*AV$212,0),IF(Costs!$G17="Single",IF(Costs!$H17=AV$4,-Costs!$B17,0),0)))*Appraisal!$M$26 -> 0 | AW52: =IF(Costs!$G17="Sales",IF(AW$210>0,-Costs!$B17*AW$210,0),IF(Costs!$G17="Build",IF(AW$212>0,-Costs!$B17*AW$212,0),IF(Costs!$G17="Single",IF(Costs!$H17=AW$4,-Costs!$B17,0),0)))*Appraisal!$M$26 -> 0 | AX52: =IF(Costs!$G17="Sales",IF(AX$210>0,-Costs!$B17*AX$210,0),IF(Costs!$G17="Build",IF(AX$212>0,-Costs!$B17*AX$212,0),IF(Costs!$G17="Single",IF(Costs!$H17=AX$4,-Costs!$B17,0),0)))*Appraisal!$M$26 -> 0 | AY52: =IF(Costs!$G17="Sales",IF(AY$210>0,-Costs!$B17*AY$210,0),IF(Costs!$G17="Build",IF(AY$212>0,-Costs!$B17*AY$212,0),IF(Costs!$G17="Single",IF(Costs!$H17=AY$4,-Costs!$B17,0),0)))*Appraisal!$M$26 -> 0 | AZ52: =IF(Costs!$G17="Sales",IF(AZ$210>0,-Costs!$B17*AZ$210,0),IF(Costs!$G17="Build",IF(AZ$212>0,-Costs!$B17*AZ$212,0),IF(Costs!$G17="Single",IF(Costs!$H17=AZ$4,-Costs!$B17,0),0)))*Appraisal!$M$26 -> 0 | BA52: =IF(Costs!$G17="Sales",IF(BA$210>0,-Costs!$B17*BA$210,0),IF(Costs!$G17="Build",IF(BA$212>0,-Costs!$B17*BA$212,0),IF(Costs!$G17="Single",IF(Costs!$H17=BA$4,-Costs!$B17,0),0)))*Appraisal!$M$26 -> 0 | BB52: =IF(Costs!$G17="Sales",IF(BB$210>0,-Costs!$B17*BB$210,0),IF(Costs!$G17="Build",IF(BB$212>0,-Costs!$B17*BB$212,0),IF(Costs!$G17="Single",IF(Costs!$H17=BB$4,-Costs!$B17,0),0)))*Appraisal!$M$26 -> 0 | BC52: =IF(Costs!$G17="Sales",IF(BC$210>0,-Costs!$B17*BC$210,0),IF(Costs!$G17="Build",IF(BC$212>0,-Costs!$B17*BC$212,0),IF(Costs!$G17="Single",IF(Costs!$H17=BC$4,-Costs!$B17,0),0)))*Appraisal!$M$26 -> 0 | BD52: =IF(Costs!$G17="Sales",IF(BD$210>0,-Costs!$B17*BD$210,0),IF(Costs!$G17="Build",IF(BD$212>0,-Costs!$B17*BD$212,0),IF(Costs!$G17="Single",IF(Costs!$H17=BD$4,-Costs!$B17,0),0)))*Appraisal!$M$26 -> 0 | BE52: =IF(Costs!$G17="Sales",IF(BE$210>0,-Costs!$B17*BE$210,0),IF(Costs!$G17="Build",IF(BE$212>0,-Costs!$B17*BE$212,0),IF(Costs!$G17="Single",IF(Costs!$H17=BE$4,-Costs!$B17,0),0)))*Appraisal!$M$26 -> 0 | BF52: =IF(Costs!$G17="Sales",IF(BF$210>0,-Costs!$B17*BF$210,0),IF(Costs!$G17="Build",IF(BF$212>0,-Costs!$B17*BF$212,0),IF(Costs!$G17="Single",IF(Costs!$H17=BF$4,-Costs!$B17,0),0)))*Appraisal!$M$26 -> 0 | BG52: =IF(Costs!$G17="Sales",IF(BG$210>0,-Costs!$B17*BG$210,0),IF(Costs!$G17="Build",IF(BG$212>0,-Costs!$B17*BG$212,0),IF(Costs!$G17="Single",IF(Costs!$H17=BG$4,-Costs!$B17,0),0)))*Appraisal!$M$26 -> 0 | BH52: =IF(Costs!$G17="Sales",IF(BH$210>0,-Costs!$B17*BH$210,0),IF(Costs!$G17="Build",IF(BH$212>0,-Costs!$B17*BH$212,0),IF(Costs!$G17="Single",IF(Costs!$H17=BH$4,-Costs!$B17,0),0)))*Appraisal!$M$26 -> 0 | BI52: =IF(Costs!$G17="Sales",IF(BI$210>0,-Costs!$B17*BI$210,0),IF(Costs!$G17="Build",IF(BI$212>0,-Costs!$B17*BI$212,0),IF(Costs!$G17="Single",IF(Costs!$H17=BI$4,-Costs!$B17,0),0)))*Appraisal!$M$26 -> 0 | BJ52: =IF(Costs!$G17="Sales",IF(BJ$210>0,-Costs!$B17*BJ$210,0),IF(Costs!$G17="Build",IF(BJ$212>0,-Costs!$B17*BJ$212,0),IF(Costs!$G17="Single",IF(Costs!$H17=BJ$4,-Costs!$B17,0),0)))*Appraisal!$M$26 -> 0
